Workbook

Sheet Instructions
B2: LEA EDFacts Edit Check and Data Display Tool - IDEA Exiting
B3: The LEA EDFacts Edit Check and Data Display Tool - IDEA Exiting is designed for states to use as they prepare their data for submission via EDFacts. States use this tool to check LEA-level EDFacts data file FS009. The tool identifies format, validation, and other errors in category sets or subtotals. State staff also can use this tool as a data display in their work with LEAs, including monitoring, performing desk audits of LEA data, and providing technical assistance and professional development to LEA staff. States cannot submit data using this tool. They must submit all data following the guidelines provided in the data file specifications at
B4: The EDFacts Initiative
B6: Please read the following instructions before using this tool:
B7: 1. | C7: To begin using this tool, you must enter the state’s LEA identifiers and LEA names in the LEA Identifiers & Names tab. You will use this list in the drop-down menu in the Select LEA tab. You can copy and paste the state’s LEA identifiers and LEA names into the table in the LEA Identifiers & Names tab from an existing list such as the state’s LEA-level Directory (FS029) file columns, LEA Identifier (State) and Education Entity Name.
C9: The LEA names will appear in the drop-down list in the order in which they are listed on the LEA Identifiers & Names tab. Please consider alphabetizing your list of LEA names and codes before pasting them into the table on that tab.
B11: 2. | C11: To select, copy, and paste data from your LEA FS009 EDFacts file into the tool, do the following:
C12: a. Open your LEA-level FS009 – Children with Disabilities (IDEA) Exiting Special Education EDFacts data file in Excel (or similar application).
C13: b. Select and copy all rows and columns from the EDFacts data file. i. Include the EDFacts data file header row and filler columns. ii. Do NOT use the "Select All" function in Excel.
C14: c. Paste the selected data to cell A12 in the Exiting (LEA FS009) tab in this tool.
C15: d. In the Exiting (LEA FS009) data file tab, click the "Check Data Format" button to run all format checks. If there are format errors, you will see pop-up boxes containing important information about the errors.
C17: The “Check Data Format” button identifies the following format errors: i. compares the text in the File Type cell in the header row (in cell A12) to the required value for the LEA FS009 file, LEA CHILDREN WITH DISAB EXITING SPEC ED; ii. compares the number of records entered in the file header row (in cell B12) to confirm it matches the actual number of rows of data in the file; iii. checks the school year date format in the header row (in cell E12); iv. checks the filler columns for any characters (all filler columns should be blank); and v. checks the file record number, state code, state agency number, LEA identifier (state), table name, total indicator, and student count columns for blanks (there should be no blanks in these columns).
C18: e. To delete the data pasted into the Exiting (LEA FS009) tab, click the "Clear Data" button.
B20: 3. | C20: To review data for each LEA, click on the Select LEA tab.
C21: a. The "Select LEA" box should have the names of the LEAs that you copied and pasted in the LEA Identifiers & Names tab. Open the "Select LEA" box by clicking on the down arrow to the right of the box.
C22: b. Select the LEA you would like to analyze or review; then click the “Select LEA Data” button to the right of the selected LEA. The rows from the EDFacts file that match that LEA's state identifier (code) will populate in the Excel sheet.
C23: c. To select another LEA, first click on the “Clear ‘Select LEA’ Field” button to clear the current LEA out of the yellow selection box. Once the LEA has been cleared, the full list of LEAs will be available again in the "Select LEA" box when you click on the down arrow. Select another LEA, click the “Select LEA Data” button, and the table will update with the newly selected LEA’s data.
C24: d. To quickly search for an LEA in the drop-down list in the “Select LEA” field, click on the yellow box (F6), type in the first three or more letters that appear in the name of the LEA or group of LEAs you want to locate. Next, click the carat beside the yellow box (F6) to see the list of LEA names that contain the letters you entered.
B25: 4. | C25: To check errors for each LEA, follow these steps:
C26: a. On the Select LEA tab, review the “Data quality checks" table to the right of the data displayed for the selected LEA to see (1) lists of data category sets and subtotals not included in the LEA FS009 file for the selected LEA, (2) duplicate rows, and (3) rows that contain invalid values.
C27: b. To facilitate locating data errors in the EDFacts file, data with errors displayed in the Error Messages, Subtotals, Category Sets A-D, Category Set A by Age, and Category Set A by Basis of Exit tabs are highlighted in red and hyperlinked. Use the hyperlinked data to trace each highlighted error through the Error Messages, Subtotals, Category Sets A-D, Category Set A by Age, and Category Set A by Basis of Exit tabs back to the EDFacts data file in the LEA FS009 tab where the error originates.
C28: c. Error messages in the Error Messages tab indicate computational or other errors in reporting only for the LEA selected in the Select LEA tab. Please correct all errors before submitting the data file to the U.S. Department of Education via the EDFacts Submission System.
C29: d. Please note, this tool does not identify the state-specific differences in EDFacts file contents. State-specific differences noted in the EDFacts IDEA State Supplemental Survey (SSS) may show up as error messages in this tool.
B31: 5. | C31: Review and address each triggered format check and error message. If you need to make changes to the data, make these changes in the corresponding data system and/or EDFacts file. Then check the corrected FS009 file by carefully pasting the updated data into the Exiting (LEA FS009) tab. Do NOT make data modifications corrections directly in the LEA Edit Check Tool spreadsheet. You must make these changes in the EDFacts file that you will submit, then copy them from that file into the LEA Edit Check Tool spreadsheet.
B33: If you would like assistance using this tool, please contact your IDC State Liaison or email | H33: IDEAdata@westat.com
B35: Please note, this tool is currently not 508 accessible. If you need assistance with the use of this tool, please contact your IDC State Liaison or email
B36: IDEAdata@westat.com
B38: The IDEA Data Center (IDC) created this publication under U.S. Department of Education, Office of Special Education Programs grant number H373Y190001. Richelle Davis and Rebecca Smith serve as the project officers.
B41: The views expressed herein do not necessarily represent the positions or policies of the U.S. Department of Education. No official endorsement by the U.S. Department of Education of any product, commodity, service, or enterprise mentioned in this publication is intended or should be inferred. This product is in the public domain. Authorization to reproduce it in whole or in part is granted.
B43: Westat is the lead organization for IDC. For more information about the center’s work and its partners, see
B44: ideadata.org
B46: Version Date: September 2021
B48: Suggested Citation:
B49: Long, T., Thacker, C., and Edora, F. (2021, September). LEA EDFacts Edit Check and Data Display Tool - IDEA Exiting. IDEA Data Center. Rockville, MD: Westat.

Sheet LEA Identifiers & Names
A1: LEA Identifiers and Names
B3: Instructions: Enter your state's LEA identifiers and names below. You will use this list in the drop-down menu on the Select LEA tab to select the name of the LEA for data display in the tables on the Error Messages tab, Subtotals tab, and Category Sets tabs. The LEA identifiers must match those you used in your LEA FS009 file. The LEA names will appear in the drop-down list in the order in which you list them below. Please consider alphabetizing your list of LEA names and codes before pasting them into the table below.
B5: LEA identifier (state) | C5: LEA name

Sheet Exiting (LEA FS009)
A1: ="IDEA LEA Exiting Data for School Year "&'Exiting (LEA FS009)'!E12 -> IDEA LEA Exiting Data for School Year
A10: FS009 – Children with Disabilities (IDEA) Exiting Special Education
A11: File record number | B11: State code | C11: State agency number | D11: LEA identifier (state) | E11: Filler | F11: Table name | G11: Filler | H11: Racial ethnic | I11: Sex (membership) | J11: Filler | K11: Filler | L11: Filler | M11: Filler | N11: Filler | O11: Filler | P11: Disability category (IDEA) exiting | Q11: Age (exiting) | R11: English learner status (both) | S11: Filler | T11: Filler | U11: Filler | V11: Basis of exit | W11: Total indicator | X11: Explanation | Y11: Student count | AB11: Master Listing (For lookup) | AC11: Master Listing (For output) | AE11: LEA identifier (state)
AE12: ='Select LEA'!$F$8 -> 
AB13: Y | AC13: ______Y
AB14: DY | AC14: _____D_Y
AB15: DROPOUTY | AC15: _____DROPOUT_Y
AB16: GHSY | AC16: _____GHS_Y
AB17: GRADALTDPLY | AC17: _____GRADALTDPL_Y
AB18: MKCY | AC18: _____MKC_Y
AB19: RCY | AC19: _____RC_Y
AB20: RMAY | AC20: _____RMA_Y
AB21: TRANY | AC21: _____TRAN_Y
AB22: LEPY | AC22: ____LEP__Y
AB23: LEPDN | AC23: ____LEP_D_N
AB24: LEPDROPOUTN | AC24: ____LEP_DROPOUT_N
AB25: LEPGHSN | AC25: ____LEP_GHS_N
AB26: LEPGRADALTDPLN | AC26: ____LEP_GRADALTDPL_N
AB27: LEPMKCN | AC27: ____LEP_MKC_N
AB28: LEPRCN | AC28: ____LEP_RC_N
AB29: LEPRMAN | AC29: ____LEP_RMA_N
AB30: LEPTRANN | AC30: ____LEP_TRAN_N
AB31: NLEPY | AC31: ____NLEP__Y
AB32: NLEPDN | AC32: ____NLEP_D_N
AB33: NLEPDROPOUTN | AC33: ____NLEP_DROPOUT_N
AB34: NLEPGHSN | AC34: ____NLEP_GHS_N
AB35: NLEPGRADALTDPLN | AC35: ____NLEP_GRADALTDPL_N
AB36: NLEPMKCN | AC36: ____NLEP_MKC_N
AB37: NLEPRCN | AC37: ____NLEP_RC_N
AB38: NLEPRMAN | AC38: ____NLEP_RMA_N
AB39: NLEPTRANN | AC39: ____NLEP_TRAN_N
AB40: 14Y | AC40: ___14___Y
AB41: 15Y | AC41: ___15___Y
AB42: 16Y | AC42: ___16___Y
AB43: 17Y | AC43: ___17___Y
AB44: 18Y | AC44: ___18___Y
AB45: 19Y | AC45: ___19___Y
AB46: 20Y | AC46: ___20___Y
AB47: 21Y | AC47: ___21___Y
AB48: AUTY | AC48: __AUT____Y
AB49: AUT14DN | AC49: __AUT_14__D_N
AB50: AUT14DROPOUTN | AC50: __AUT_14__DROPOUT_N
AB51: AUT14GHSN | AC51: __AUT_14__GHS_N
AB52: AUT14GRADALTDPLN | AC52: __AUT_14__GRADALTDPL_N
AB53: AUT14MKCN | AC53: __AUT_14__MKC_N
AB54: AUT14RCN | AC54: __AUT_14__RC_N
AB55: AUT14RMAN | AC55: __AUT_14__RMA_N
AB56: AUT14TRANN | AC56: __AUT_14__TRAN_N
AB57: AUT15DN | AC57: __AUT_15__D_N
AB58: AUT15DROPOUTN | AC58: __AUT_15__DROPOUT_N
AB59: AUT15GHSN | AC59: __AUT_15__GHS_N
AB60: AUT15GRADALTDPLN | AC60: __AUT_15__GRADALTDPL_N
AB61: AUT15MKCN | AC61: __AUT_15__MKC_N
AB62: AUT15RCN | AC62: __AUT_15__RC_N
AB63: AUT15RMAN | AC63: __AUT_15__RMA_N
AB64: AUT15TRANN | AC64: __AUT_15__TRAN_N
AB65: AUT16DN | AC65: __AUT_16__D_N
AB66: AUT16DROPOUTN | AC66: __AUT_16__DROPOUT_N
AB67: AUT16GHSN | AC67: __AUT_16__GHS_N
AB68: AUT16GRADALTDPLN | AC68: __AUT_16__GRADALTDPL_N
AB69: AUT16MKCN | AC69: __AUT_16__MKC_N
AB70: AUT16RCN | AC70: __AUT_16__RC_N
AB71: AUT16RMAN | AC71: __AUT_16__RMA_N
AB72: AUT16TRANN | AC72: __AUT_16__TRAN_N
AB73: AUT17DN | AC73: __AUT_17__D_N
AB74: AUT17DROPOUTN | AC74: __AUT_17__DROPOUT_N
AB75: AUT17GHSN | AC75: __AUT_17__GHS_N
AB76: AUT17GRADALTDPLN | AC76: __AUT_17__GRADALTDPL_N
AB77: AUT17MKCN | AC77: __AUT_17__MKC_N
AB78: AUT17RCN | AC78: __AUT_17__RC_N
AB79: AUT17RMAN | AC79: __AUT_17__RMA_N
AB80: AUT17TRANN | AC80: __AUT_17__TRAN_N
AB81: AUT18DN | AC81: __AUT_18__D_N
AB82: AUT18DROPOUTN | AC82: __AUT_18__DROPOUT_N
AB83: AUT18GHSN | AC83: __AUT_18__GHS_N
AB84: AUT18GRADALTDPLN | AC84: __AUT_18__GRADALTDPL_N
AB85: AUT18MKCN | AC85: __AUT_18__MKC_N
AB86: AUT18RCN | AC86: __AUT_18__RC_N
AB87: AUT18RMAN | AC87: __AUT_18__RMA_N
AB88: AUT18TRANN | AC88: __AUT_18__TRAN_N
AB89: AUT19DN | AC89: __AUT_19__D_N
AB90: AUT19DROPOUTN | AC90: __AUT_19__DROPOUT_N
AB91: AUT19GHSN | AC91: __AUT_19__GHS_N
AB92: AUT19GRADALTDPLN | AC92: __AUT_19__GRADALTDPL_N
AB93: AUT19MKCN | AC93: __AUT_19__MKC_N
AB94: AUT19RCN | AC94: __AUT_19__RC_N
AB95: AUT19RMAN | AC95: __AUT_19__RMA_N
AB96: AUT19TRANN | AC96: __AUT_19__TRAN_N
AB97: AUT20DN | AC97: __AUT_20__D_N
AB98: AUT20DROPOUTN | AC98: __AUT_20__DROPOUT_N
AB99: AUT20GHSN | AC99: __AUT_20__GHS_N
AB100: AUT20GRADALTDPLN | AC100: __AUT_20__GRADALTDPL_N
AB101: AUT20MKCN | AC101: __AUT_20__MKC_N
AB102: AUT20RCN | AC102: __AUT_20__RC_N
AB103: AUT20RMAN | AC103: __AUT_20__RMA_N
AB104: AUT20TRANN | AC104: __AUT_20__TRAN_N
AB105: AUT21DN | AC105: __AUT_21__D_N
AB106: AUT21DROPOUTN | AC106: __AUT_21__DROPOUT_N
AB107: AUT21GHSN | AC107: __AUT_21__GHS_N
AB108: AUT21GRADALTDPLN | AC108: __AUT_21__GRADALTDPL_N
AB109: AUT21MKCN | AC109: __AUT_21__MKC_N
AB110: AUT21RCN | AC110: __AUT_21__RC_N
AB111: AUT21RMAN | AC111: __AUT_21__RMA_N
AB112: AUT21TRANN | AC112: __AUT_21__TRAN_N
AB113: DBY | AC113: __DB____Y
AB114: DB14DN | AC114: __DB_14__D_N
AB115: DB14DROPOUTN | AC115: __DB_14__DROPOUT_N
AB116: DB14GHSN | AC116: __DB_14__GHS_N
AB117: DB14GRADALTDPLN | AC117: __DB_14__GRADALTDPL_N
AB118: DB14MKCN | AC118: __DB_14__MKC_N
AB119: DB14RCN | AC119: __DB_14__RC_N
AB120: DB14RMAN | AC120: __DB_14__RMA_N
AB121: DB14TRANN | AC121: __DB_14__TRAN_N
AB122: DB15DN | AC122: __DB_15__D_N
AB123: DB15DROPOUTN | AC123: __DB_15__DROPOUT_N
AB124: DB15GHSN | AC124: __DB_15__GHS_N
AB125: DB15GRADALTDPLN | AC125: __DB_15__GRADALTDPL_N
AB126: DB15MKCN | AC126: __DB_15__MKC_N
AB127: DB15RCN | AC127: __DB_15__RC_N
AB128: DB15RMAN | AC128: __DB_15__RMA_N
AB129: DB15TRANN | AC129: __DB_15__TRAN_N
AB130: DB16DN | AC130: __DB_16__D_N
AB131: DB16DROPOUTN | AC131: __DB_16__DROPOUT_N
AB132: DB16GHSN | AC132: __DB_16__GHS_N
AB133: DB16GRADALTDPLN | AC133: __DB_16__GRADALTDPL_N
AB134: DB16MKCN | AC134: __DB_16__MKC_N
AB135: DB16RCN | AC135: __DB_16__RC_N
AB136: DB16RMAN | AC136: __DB_16__RMA_N
AB137: DB16TRANN | AC137: __DB_16__TRAN_N
AB138: DB17DN | AC138: __DB_17__D_N
AB139: DB17DROPOUTN | AC139: __DB_17__DROPOUT_N
AB140: DB17GHSN | AC140: __DB_17__GHS_N
AB141: DB17GRADALTDPLN | AC141: __DB_17__GRADALTDPL_N
AB142: DB17MKCN | AC142: __DB_17__MKC_N
AB143: DB17RCN | AC143: __DB_17__RC_N
AB144: DB17RMAN | AC144: __DB_17__RMA_N
AB145: DB17TRANN | AC145: __DB_17__TRAN_N
AB146: DB18DN | AC146: __DB_18__D_N
AB147: DB18DROPOUTN | AC147: __DB_18__DROPOUT_N
AB148: DB18GHSN | AC148: __DB_18__GHS_N
AB149: DB18GRADALTDPLN | AC149: __DB_18__GRADALTDPL_N
AB150: DB18MKCN | AC150: __DB_18__MKC_N
AB151: DB18RCN | AC151: __DB_18__RC_N
AB152: DB18RMAN | AC152: __DB_18__RMA_N
AB153: DB18TRANN | AC153: __DB_18__TRAN_N
AB154: DB19DN | AC154: __DB_19__D_N
AB155: DB19DROPOUTN | AC155: __DB_19__DROPOUT_N
AB156: DB19GHSN | AC156: __DB_19__GHS_N
AB157: DB19GRADALTDPLN | AC157: __DB_19__GRADALTDPL_N
AB158: DB19MKCN | AC158: __DB_19__MKC_N
AB159: DB19RCN | AC159: __DB_19__RC_N
AB160: DB19RMAN | AC160: __DB_19__RMA_N
AB161: DB19TRANN | AC161: __DB_19__TRAN_N
AB162: DB20DN | AC162: __DB_20__D_N
AB163: DB20DROPOUTN | AC163: __DB_20__DROPOUT_N
AB164: DB20GHSN | AC164: __DB_20__GHS_N
AB165: DB20GRADALTDPLN | AC165: __DB_20__GRADALTDPL_N
AB166: DB20MKCN | AC166: __DB_20__MKC_N
AB167: DB20RCN | AC167: __DB_20__RC_N
AB168: DB20RMAN | AC168: __DB_20__RMA_N
AB169: DB20TRANN | AC169: __DB_20__TRAN_N
AB170: DB21DN | AC170: __DB_21__D_N
AB171: DB21DROPOUTN | AC171: __DB_21__DROPOUT_N
AB172: DB21GHSN | AC172: __DB_21__GHS_N
AB173: DB21GRADALTDPLN | AC173: __DB_21__GRADALTDPL_N
AB174: DB21MKCN | AC174: __DB_21__MKC_N
AB175: DB21RCN | AC175: __DB_21__RC_N
AB176: DB21RMAN | AC176: __DB_21__RMA_N
AB177: DB21TRANN | AC177: __DB_21__TRAN_N
AB178: EMNY | AC178: __EMN____Y
AB179: EMN14DN | AC179: __EMN_14__D_N
AB180: EMN14DROPOUTN | AC180: __EMN_14__DROPOUT_N
AB181: EMN14GHSN | AC181: __EMN_14__GHS_N
AB182: EMN14GRADALTDPLN | AC182: __EMN_14__GRADALTDPL_N
AB183: EMN14MKCN | AC183: __EMN_14__MKC_N
AB184: EMN14RCN | AC184: __EMN_14__RC_N
AB185: EMN14RMAN | AC185: __EMN_14__RMA_N
AB186: EMN14TRANN | AC186: __EMN_14__TRAN_N
AB187: EMN15DN | AC187: __EMN_15__D_N
AB188: EMN15DROPOUTN | AC188: __EMN_15__DROPOUT_N
AB189: EMN15GHSN | AC189: __EMN_15__GHS_N
AB190: EMN15GRADALTDPLN | AC190: __EMN_15__GRADALTDPL_N
AB191: EMN15MKCN | AC191: __EMN_15__MKC_N
AB192: EMN15RCN | AC192: __EMN_15__RC_N
AB193: EMN15RMAN | AC193: __EMN_15__RMA_N
AB194: EMN15TRANN | AC194: __EMN_15__TRAN_N
AB195: EMN16DN | AC195: __EMN_16__D_N
AB196: EMN16DROPOUTN | AC196: __EMN_16__DROPOUT_N
AB197: EMN16GHSN | AC197: __EMN_16__GHS_N
AB198: EMN16GRADALTDPLN | AC198: __EMN_16__GRADALTDPL_N
AB199: EMN16MKCN | AC199: __EMN_16__MKC_N
AB200: EMN16RCN | AC200: __EMN_16__RC_N
AB201: EMN16RMAN | AC201: __EMN_16__RMA_N
AB202: EMN16TRANN | AC202: __EMN_16__TRAN_N
AB203: EMN17DN | AC203: __EMN_17__D_N
AB204: EMN17DROPOUTN | AC204: __EMN_17__DROPOUT_N
AB205: EMN17GHSN | AC205: __EMN_17__GHS_N
AB206: EMN17GRADALTDPLN | AC206: __EMN_17__GRADALTDPL_N
AB207: EMN17MKCN | AC207: __EMN_17__MKC_N
AB208: EMN17RCN | AC208: __EMN_17__RC_N
... 795 more rows

Sheet Select LEA
A1: ="IDEA LEA Exiting Data for School Year "&'Exiting (LEA FS009)'!E12&" - "&F6 -> IDEA LEA Exiting Data for School Year - | AD1: End of worksheet
W3: Data quality checks
W4: Type | Y4: Total
W5: Data elements not included for this LEA | Y5: =COUNTIF(AA13:AA1003,"?*") -> 895
D6: Select LEA: | W6: Duplicate row elements | Y6: =COUNTIF(AB12:AB1003,"?*") -> 0
W7: Invalid data elements | Y7: =COUNTIF(AC12:AC1003,"?*") -> 0
D8: LEA identifier: | F8: =IFERROR(IF(F6="", "", INDEX(LEA_identifier,MATCH($F$6,LEA_Name_009,0))),"") -> 
A10: FS009 – Children with Disabilities (IDEA) Exiting Special Education | AA10: Data quality checks | AE10: Count of Missing Data: | AF10: =SUM(AI13:AI1003) -> 895 | AO10: =COUNTIF(AR12:AR3014,"?*") -> 0 | AR10: x =IFERROR(VLOOKUP(ROWS($AR$13:AR13),$AO$13:$AP$3014,2,0),"")
A11: File record number | B11: State code | C11: State agency number | D11: LEA identifier (state) | E11: Filler | F11: Table name | G11: Filler | H11: Racial ethnic | I11: Sex (membership) | J11: Filler | K11: Filler | L11: Filler | M11: Filler | N11: Filler | O11: Filler | P11: Disability category (IDEA) exiting | Q11: Age (exiting) | R11: English learner status (both) | S11: Filler | T11: Filler | U11: Filler | V11: Basis of exit | W11: Total indicator | X11: Explanation | Y11: Student count | AA11: Data elements not included for this LEA (formatted) | AB11: Duplicate row elements | AC11: Invalid data elements | AE11: Missing Data | AF11: Current Listing | AG11: Master Listing (For lookup) | AH11: Master Listing (For output) | AI11: Is Missing Data Element | AJ11: Current Listing (For output) | AK11: Current Listing for INDEX
AA12: =IFERROR(INDEX($AE$13:$AE$1003, SMALL(IF(ISBLANK($AE$13:$AE$1003)+ISERROR($AE$13:$AE$1003)+LEN($AE$13:$AE$1003)=0, "", ROW($AE$13:$AE$1003)-MIN(ROW($AE$13:$AE$1003))+1), ROW(1:1))),"") -> ______Y | AB12: =IF(AF13="","",IF(COUNTIF(CurrentListing,AF13)>1,AJ13,"")) ->  | AC12: =IF(LEN(AF13)=0,"",IF(ISNA(MATCH(AF13,MasterListing,0)),AJ13,"")) ->  | AE12: =IF(LEN(AG12)=0,"",IF(ISNA(MATCH(AG12,CurrentListing,0)),AH12,"")) ->  | AF12: =H12&I12&P12&Q12&R12&V12&W12 ->  | AI12: =IF(LEN(AA12)>0,1,0) -> 1 | AJ12: =H12&"_"&I12&"_"&P12&"_"&Q12&"_"&R12&"_"&V12&"_"&W12 -> ______ | AO12: =IF(ISNUMBER(SEARCH($F$6,AP12)),MAX($AO$11:AO11)+1,0) -> 1 | AP12: =LEA_Name_009 -> 0 | AQ12: =ROWS($AQ$12:AQ12) -> 1 | AR12: =IFERROR(VLOOKUP(ROWS($AR$12:AR12),$AO$12:$AP$3014,2,0),"") -> 0
AA13: =IFERROR(INDEX($AE$13:$AE$1003, SMALL(IF(ISBLANK($AE$13:$AE$1003)+ISERROR($AE$13:$AE$1003)+LEN($AE$13:$AE$1003)=0, "", ROW($AE$13:$AE$1003)-MIN(ROW($AE$13:$AE$1003))+1), ROW(2:2))),"") -> _____D_Y | AB13: =IF(AF14="","",IF(COUNTIF(CurrentListing,AF14)>1,AJ14,"")) ->  | AC13: =IF(LEN(AF14)=0,"",IF(ISNA(MATCH(AF14,MasterListing,0)),AJ14,"")) ->  | AE13: ______Y | AG13: Y | AH13: ______Y | AI13: =IF(LEN(AA13)>0,1,0) -> 1 | AJ13: =H13&"_"&I13&"_"&P13&"_"&Q13&"_"&R13&"_"&V13&"_"&W13 -> ______ | AK13: =AF13 ->  | AO13: =IF(ISNUMBER(SEARCH($F$6,AP13)),MAX($AO$11:AO12)+1,0) -> 2 | AP13: 0 | AQ13: =ROWS($AQ$12:AQ13) -> 2 | AR13: =IFERROR(VLOOKUP(ROWS($AR$12:AR13),$AO$12:$AP$3014,2,0),"") -> 0
AA14: =IFERROR(INDEX($AE$13:$AE$1003, SMALL(IF(ISBLANK($AE$13:$AE$1003)+ISERROR($AE$13:$AE$1003)+LEN($AE$13:$AE$1003)=0, "", ROW($AE$13:$AE$1003)-MIN(ROW($AE$13:$AE$1003))+1), ROW(3:3))),"") -> _____DROPOUT_Y | AB14: =IF(AF15="","",IF(COUNTIF(CurrentListing,AF15)>1,AJ15,"")) ->  | AC14: =IF(LEN(AF15)=0,"",IF(ISNA(MATCH(AF15,MasterListing,0)),AJ15,"")) ->  | AE14: _____D_Y | AG14: DY | AH14: _____D_Y | AI14: =IF(LEN(AA14)>0,1,0) -> 1 | AJ14: =H14&"_"&I14&"_"&P14&"_"&Q14&"_"&R14&"_"&V14&"_"&W14 -> ______ | AO14: =IF(ISNUMBER(SEARCH($F$6,AP14)),MAX($AO$11:AO13)+1,0) -> 3 | AP14: 0 | AQ14: =ROWS($AQ$12:AQ14) -> 3 | AR14: =IFERROR(VLOOKUP(ROWS($AR$12:AR14),$AO$12:$AP$3014,2,0),"") -> 0
AA15: =IFERROR(INDEX($AE$13:$AE$1003, SMALL(IF(ISBLANK($AE$13:$AE$1003)+ISERROR($AE$13:$AE$1003)+LEN($AE$13:$AE$1003)=0, "", ROW($AE$13:$AE$1003)-MIN(ROW($AE$13:$AE$1003))+1), ROW(4:4))),"") -> _____GHS_Y | AB15: =IF(AF16="","",IF(COUNTIF(CurrentListing,AF16)>1,AJ16,"")) ->  | AC15: =IF(LEN(AF16)=0,"",IF(ISNA(MATCH(AF16,MasterListing,0)),AJ16,"")) ->  | AE15: _____DROPOUT_Y | AG15: DROPOUTY | AH15: _____DROPOUT_Y | AI15: 1 | AJ15: ______ | AO15: =IF(ISNUMBER(SEARCH($F$6,AP15)),MAX($AO$11:AO14)+1,0) -> 4 | AP15: 0 | AQ15: =ROWS($AQ$12:AQ15) -> 4 | AR15: =IFERROR(VLOOKUP(ROWS($AR$12:AR15),$AO$12:$AP$3014,2,0),"") -> 0
AA16: =IFERROR(INDEX($AE$13:$AE$1003, SMALL(IF(ISBLANK($AE$13:$AE$1003)+ISERROR($AE$13:$AE$1003)+LEN($AE$13:$AE$1003)=0, "", ROW($AE$13:$AE$1003)-MIN(ROW($AE$13:$AE$1003))+1), ROW(5:5))),"") -> _____GRADALTDPL_Y | AB16: =IF(AF17="","",IF(COUNTIF(CurrentListing,AF17)>1,AJ17,"")) ->  | AC16: =IF(LEN(AF17)=0,"",IF(ISNA(MATCH(AF17,MasterListing,0)),AJ17,"")) ->  | AE16: _____GHS_Y | AG16: GHSY | AH16: _____GHS_Y | AI16: 1 | AJ16: ______ | AO16: =IF(ISNUMBER(SEARCH($F$6,AP16)),MAX($AO$11:AO15)+1,0) -> 5 | AP16: 0 | AQ16: =ROWS($AQ$12:AQ16) -> 5 | AR16: =IFERROR(VLOOKUP(ROWS($AR$12:AR16),$AO$12:$AP$3014,2,0),"") -> 0
AA17: =IFERROR(INDEX($AE$13:$AE$1003, SMALL(IF(ISBLANK($AE$13:$AE$1003)+ISERROR($AE$13:$AE$1003)+LEN($AE$13:$AE$1003)=0, "", ROW($AE$13:$AE$1003)-MIN(ROW($AE$13:$AE$1003))+1), ROW(6:6))),"") -> _____MKC_Y | AB17: =IF(AF18="","",IF(COUNTIF(CurrentListing,AF18)>1,AJ18,"")) ->  | AC17: =IF(LEN(AF18)=0,"",IF(ISNA(MATCH(AF18,MasterListing,0)),AJ18,"")) ->  | AE17: _____GRADALTDPL_Y | AG17: GRADALTDPLY | AH17: _____GRADALTDPL_Y | AI17: 1 | AJ17: ______ | AO17: =IF(ISNUMBER(SEARCH($F$6,AP17)),MAX($AO$11:AO16)+1,0) -> 6 | AP17: 0 | AQ17: =ROWS($AQ$12:AQ17) -> 6 | AR17: =IFERROR(VLOOKUP(ROWS($AR$12:AR17),$AO$12:$AP$3014,2,0),"") -> 0
AA18: =IFERROR(INDEX($AE$13:$AE$1003, SMALL(IF(ISBLANK($AE$13:$AE$1003)+ISERROR($AE$13:$AE$1003)+LEN($AE$13:$AE$1003)=0, "", ROW($AE$13:$AE$1003)-MIN(ROW($AE$13:$AE$1003))+1), ROW(7:7))),"") -> _____RC_Y | AB18: =IF(AF19="","",IF(COUNTIF(CurrentListing,AF19)>1,AJ19,"")) ->  | AC18: =IF(LEN(AF19)=0,"",IF(ISNA(MATCH(AF19,MasterListing,0)),AJ19,"")) ->  | AE18: _____MKC_Y | AG18: MKCY | AH18: _____MKC_Y | AI18: 1 | AJ18: ______ | AO18: =IF(ISNUMBER(SEARCH($F$6,AP18)),MAX($AO$11:AO17)+1,0) -> 7 | AP18: 0 | AQ18: =ROWS($AQ$12:AQ18) -> 7 | AR18: =IFERROR(VLOOKUP(ROWS($AR$12:AR18),$AO$12:$AP$3014,2,0),"") -> 0
AA19: =IFERROR(INDEX($AE$13:$AE$1003, SMALL(IF(ISBLANK($AE$13:$AE$1003)+ISERROR($AE$13:$AE$1003)+LEN($AE$13:$AE$1003)=0, "", ROW($AE$13:$AE$1003)-MIN(ROW($AE$13:$AE$1003))+1), ROW(8:8))),"") -> _____RMA_Y | AB19: =IF(AF20="","",IF(COUNTIF(CurrentListing,AF20)>1,AJ20,"")) ->  | AC19: =IF(LEN(AF20)=0,"",IF(ISNA(MATCH(AF20,MasterListing,0)),AJ20,"")) ->  | AE19: _____RC_Y | AG19: RCY | AH19: _____RC_Y | AI19: 1 | AJ19: ______ | AO19: =IF(ISNUMBER(SEARCH($F$6,AP19)),MAX($AO$11:AO18)+1,0) -> 8 | AP19: 0 | AQ19: =ROWS($AQ$12:AQ19) -> 8 | AR19: =IFERROR(VLOOKUP(ROWS($AR$12:AR19),$AO$12:$AP$3014,2,0),"") -> 0
AA20: =IFERROR(INDEX($AE$13:$AE$1003, SMALL(IF(ISBLANK($AE$13:$AE$1003)+ISERROR($AE$13:$AE$1003)+LEN($AE$13:$AE$1003)=0, "", ROW($AE$13:$AE$1003)-MIN(ROW($AE$13:$AE$1003))+1), ROW(9:9))),"") -> _____TRAN_Y | AB20: =IF(AF21="","",IF(COUNTIF(CurrentListing,AF21)>1,AJ21,"")) ->  | AC20: =IF(LEN(AF21)=0,"",IF(ISNA(MATCH(AF21,MasterListing,0)),AJ21,"")) ->  | AE20: _____RMA_Y | AG20: RMAY | AH20: _____RMA_Y | AI20: 1 | AJ20: ______ | AO20: =IF(ISNUMBER(SEARCH($F$6,AP20)),MAX($AO$11:AO19)+1,0) -> 9 | AP20: 0 | AQ20: =ROWS($AQ$12:AQ20) -> 9 | AR20: =IFERROR(VLOOKUP(ROWS($AR$12:AR20),$AO$12:$AP$3014,2,0),"") -> 0
AA21: =IFERROR(INDEX($AE$13:$AE$1003, SMALL(IF(ISBLANK($AE$13:$AE$1003)+ISERROR($AE$13:$AE$1003)+LEN($AE$13:$AE$1003)=0, "", ROW($AE$13:$AE$1003)-MIN(ROW($AE$13:$AE$1003))+1), ROW(10:10))),"") -> ____LEP__Y | AB21: =IF(AF22="","",IF(COUNTIF(CurrentListing,AF22)>1,AJ22,"")) ->  | AC21: =IF(LEN(AF22)=0,"",IF(ISNA(MATCH(AF22,MasterListing,0)),AJ22,"")) ->  | AE21: _____TRAN_Y | AG21: TRANY | AH21: _____TRAN_Y | AI21: 1 | AJ21: ______ | AO21: =IF(ISNUMBER(SEARCH($F$6,AP21)),MAX($AO$11:AO20)+1,0) -> 10 | AP21: 0 | AQ21: =ROWS($AQ$12:AQ21) -> 10 | AR21: =IFERROR(VLOOKUP(ROWS($AR$12:AR21),$AO$12:$AP$3014,2,0),"") -> 0
AA22: =IFERROR(INDEX($AE$13:$AE$1003, SMALL(IF(ISBLANK($AE$13:$AE$1003)+ISERROR($AE$13:$AE$1003)+LEN($AE$13:$AE$1003)=0, "", ROW($AE$13:$AE$1003)-MIN(ROW($AE$13:$AE$1003))+1), ROW(11:11))),"") -> ____LEP_D_N | AB22: =IF(AF23="","",IF(COUNTIF(CurrentListing,AF23)>1,AJ23,"")) ->  | AC22: =IF(LEN(AF23)=0,"",IF(ISNA(MATCH(AF23,MasterListing,0)),AJ23,"")) ->  | AE22: ____LEP__Y | AG22: LEPY | AH22: ____LEP__Y | AI22: 1 | AJ22: ______ | AO22: =IF(ISNUMBER(SEARCH($F$6,AP22)),MAX($AO$11:AO21)+1,0) -> 11 | AP22: 0 | AQ22: =ROWS($AQ$12:AQ22) -> 11 | AR22: =IFERROR(VLOOKUP(ROWS($AR$12:AR22),$AO$12:$AP$3014,2,0),"") -> 0
AA23: =IFERROR(INDEX($AE$13:$AE$1003, SMALL(IF(ISBLANK($AE$13:$AE$1003)+ISERROR($AE$13:$AE$1003)+LEN($AE$13:$AE$1003)=0, "", ROW($AE$13:$AE$1003)-MIN(ROW($AE$13:$AE$1003))+1), ROW(12:12))),"") -> ____LEP_DROPOUT_N | AB23: =IF(AF24="","",IF(COUNTIF(CurrentListing,AF24)>1,AJ24,"")) ->  | AC23: =IF(LEN(AF24)=0,"",IF(ISNA(MATCH(AF24,MasterListing,0)),AJ24,"")) ->  | AE23: ____LEP_D_N | AG23: LEPDN | AH23: ____LEP_D_N | AI23: 1 | AJ23: ______ | AO23: =IF(ISNUMBER(SEARCH($F$6,AP23)),MAX($AO$11:AO22)+1,0) -> 12 | AP23: 0 | AQ23: =ROWS($AQ$12:AQ23) -> 12 | AR23: =IFERROR(VLOOKUP(ROWS($AR$12:AR23),$AO$12:$AP$3014,2,0),"") -> 0
AA24: =IFERROR(INDEX($AE$13:$AE$1003, SMALL(IF(ISBLANK($AE$13:$AE$1003)+ISERROR($AE$13:$AE$1003)+LEN($AE$13:$AE$1003)=0, "", ROW($AE$13:$AE$1003)-MIN(ROW($AE$13:$AE$1003))+1), ROW(13:13))),"") -> ____LEP_GHS_N | AB24: =IF(AF25="","",IF(COUNTIF(CurrentListing,AF25)>1,AJ25,"")) ->  | AC24: =IF(LEN(AF25)=0,"",IF(ISNA(MATCH(AF25,MasterListing,0)),AJ25,"")) ->  | AE24: ____LEP_DROPOUT_N | AG24: LEPDROPOUTN | AH24: ____LEP_DROPOUT_N | AI24: 1 | AJ24: ______ | AO24: =IF(ISNUMBER(SEARCH($F$6,AP24)),MAX($AO$11:AO23)+1,0) -> 13 | AP24: 0 | AQ24: =ROWS($AQ$12:AQ24) -> 13 | AR24: =IFERROR(VLOOKUP(ROWS($AR$12:AR24),$AO$12:$AP$3014,2,0),"") -> 0
AA25: =IFERROR(INDEX($AE$13:$AE$1003, SMALL(IF(ISBLANK($AE$13:$AE$1003)+ISERROR($AE$13:$AE$1003)+LEN($AE$13:$AE$1003)=0, "", ROW($AE$13:$AE$1003)-MIN(ROW($AE$13:$AE$1003))+1), ROW(14:14))),"") -> ____LEP_GRADALTDPL_N | AB25: =IF(AF26="","",IF(COUNTIF(CurrentListing,AF26)>1,AJ26,"")) ->  | AC25: =IF(LEN(AF26)=0,"",IF(ISNA(MATCH(AF26,MasterListing,0)),AJ26,"")) ->  | AE25: ____LEP_GHS_N | AG25: LEPGHSN | AH25: ____LEP_GHS_N | AI25: 1 | AJ25: ______ | AO25: =IF(ISNUMBER(SEARCH($F$6,AP25)),MAX($AO$11:AO24)+1,0) -> 14 | AP25: 0 | AQ25: =ROWS($AQ$12:AQ25) -> 14 | AR25: =IFERROR(VLOOKUP(ROWS($AR$12:AR25),$AO$12:$AP$3014,2,0),"") -> 0
AA26: =IFERROR(INDEX($AE$13:$AE$1003, SMALL(IF(ISBLANK($AE$13:$AE$1003)+ISERROR($AE$13:$AE$1003)+LEN($AE$13:$AE$1003)=0, "", ROW($AE$13:$AE$1003)-MIN(ROW($AE$13:$AE$1003))+1), ROW(15:15))),"") -> ____LEP_MKC_N | AB26: =IF(AF27="","",IF(COUNTIF(CurrentListing,AF27)>1,AJ27,"")) ->  | AC26: =IF(LEN(AF27)=0,"",IF(ISNA(MATCH(AF27,MasterListing,0)),AJ27,"")) ->  | AE26: ____LEP_GRADALTDPL_N | AG26: LEPGRADALTDPLN | AH26: ____LEP_GRADALTDPL_N | AI26: 1 | AJ26: ______ | AO26: =IF(ISNUMBER(SEARCH($F$6,AP26)),MAX($AO$11:AO25)+1,0) -> 15 | AP26: 0 | AQ26: =ROWS($AQ$12:AQ26) -> 15 | AR26: =IFERROR(VLOOKUP(ROWS($AR$12:AR26),$AO$12:$AP$3014,2,0),"") -> 0
AA27: =IFERROR(INDEX($AE$13:$AE$1003, SMALL(IF(ISBLANK($AE$13:$AE$1003)+ISERROR($AE$13:$AE$1003)+LEN($AE$13:$AE$1003)=0, "", ROW($AE$13:$AE$1003)-MIN(ROW($AE$13:$AE$1003))+1), ROW(16:16))),"") -> ____LEP_RC_N | AB27: =IF(AF28="","",IF(COUNTIF(CurrentListing,AF28)>1,AJ28,"")) ->  | AC27: =IF(LEN(AF28)=0,"",IF(ISNA(MATCH(AF28,MasterListing,0)),AJ28,"")) ->  | AE27: ____LEP_MKC_N | AG27: LEPMKCN | AH27: ____LEP_MKC_N | AI27: 1 | AJ27: ______ | AO27: =IF(ISNUMBER(SEARCH($F$6,AP27)),MAX($AO$11:AO26)+1,0) -> 16 | AP27: 0 | AQ27: =ROWS($AQ$12:AQ27) -> 16 | AR27: =IFERROR(VLOOKUP(ROWS($AR$12:AR27),$AO$12:$AP$3014,2,0),"") -> 0
AA28: =IFERROR(INDEX($AE$13:$AE$1003, SMALL(IF(ISBLANK($AE$13:$AE$1003)+ISERROR($AE$13:$AE$1003)+LEN($AE$13:$AE$1003)=0, "", ROW($AE$13:$AE$1003)-MIN(ROW($AE$13:$AE$1003))+1), ROW(17:17))),"") -> ____LEP_RMA_N | AB28: =IF(AF29="","",IF(COUNTIF(CurrentListing,AF29)>1,AJ29,"")) ->  | AC28: =IF(LEN(AF29)=0,"",IF(ISNA(MATCH(AF29,MasterListing,0)),AJ29,"")) ->  | AE28: ____LEP_RC_N | AG28: LEPRCN | AH28: ____LEP_RC_N | AI28: 1 | AJ28: ______ | AO28: =IF(ISNUMBER(SEARCH($F$6,AP28)),MAX($AO$11:AO27)+1,0) -> 17 | AP28: 0 | AQ28: =ROWS($AQ$12:AQ28) -> 17 | AR28: =IFERROR(VLOOKUP(ROWS($AR$12:AR28),$AO$12:$AP$3014,2,0),"") -> 0
AA29: =IFERROR(INDEX($AE$13:$AE$1003, SMALL(IF(ISBLANK($AE$13:$AE$1003)+ISERROR($AE$13:$AE$1003)+LEN($AE$13:$AE$1003)=0, "", ROW($AE$13:$AE$1003)-MIN(ROW($AE$13:$AE$1003))+1), ROW(18:18))),"") -> ____LEP_TRAN_N | AB29: =IF(AF30="","",IF(COUNTIF(CurrentListing,AF30)>1,AJ30,"")) ->  | AC29: =IF(LEN(AF30)=0,"",IF(ISNA(MATCH(AF30,MasterListing,0)),AJ30,"")) ->  | AE29: ____LEP_RMA_N | AG29: LEPRMAN | AH29: ____LEP_RMA_N | AI29: 1 | AJ29: ______ | AO29: =IF(ISNUMBER(SEARCH($F$6,AP29)),MAX($AO$11:AO28)+1,0) -> 18 | AP29: 0 | AQ29: =ROWS($AQ$12:AQ29) -> 18 | AR29: =IFERROR(VLOOKUP(ROWS($AR$12:AR29),$AO$12:$AP$3014,2,0),"") -> 0
AA30: =IFERROR(INDEX($AE$13:$AE$1003, SMALL(IF(ISBLANK($AE$13:$AE$1003)+ISERROR($AE$13:$AE$1003)+LEN($AE$13:$AE$1003)=0, "", ROW($AE$13:$AE$1003)-MIN(ROW($AE$13:$AE$1003))+1), ROW(19:19))),"") -> ____NLEP__Y | AB30: =IF(AF31="","",IF(COUNTIF(CurrentListing,AF31)>1,AJ31,"")) ->  | AC30: =IF(LEN(AF31)=0,"",IF(ISNA(MATCH(AF31,MasterListing,0)),AJ31,"")) ->  | AE30: ____LEP_TRAN_N | AG30: LEPTRANN | AH30: ____LEP_TRAN_N | AI30: 1 | AJ30: ______ | AO30: =IF(ISNUMBER(SEARCH($F$6,AP30)),MAX($AO$11:AO29)+1,0) -> 19 | AP30: 0 | AQ30: =ROWS($AQ$12:AQ30) -> 19 | AR30: =IFERROR(VLOOKUP(ROWS($AR$12:AR30),$AO$12:$AP$3014,2,0),"") -> 0
AA31: =IFERROR(INDEX($AE$13:$AE$1003, SMALL(IF(ISBLANK($AE$13:$AE$1003)+ISERROR($AE$13:$AE$1003)+LEN($AE$13:$AE$1003)=0, "", ROW($AE$13:$AE$1003)-MIN(ROW($AE$13:$AE$1003))+1), ROW(20:20))),"") -> ____NLEP_D_N | AB31: =IF(AF32="","",IF(COUNTIF(CurrentListing,AF32)>1,AJ32,"")) ->  | AC31: =IF(LEN(AF32)=0,"",IF(ISNA(MATCH(AF32,MasterListing,0)),AJ32,"")) ->  | AE31: ____NLEP__Y | AG31: NLEPY | AH31: ____NLEP__Y | AI31: 1 | AJ31: ______ | AO31: =IF(ISNUMBER(SEARCH($F$6,AP31)),MAX($AO$11:AO30)+1,0) -> 20 | AP31: 0 | AQ31: =ROWS($AQ$12:AQ31) -> 20 | AR31: =IFERROR(VLOOKUP(ROWS($AR$12:AR31),$AO$12:$AP$3014,2,0),"") -> 0
AA32: =IFERROR(INDEX($AE$13:$AE$1003, SMALL(IF(ISBLANK($AE$13:$AE$1003)+ISERROR($AE$13:$AE$1003)+LEN($AE$13:$AE$1003)=0, "", ROW($AE$13:$AE$1003)-MIN(ROW($AE$13:$AE$1003))+1), ROW(21:21))),"") -> ____NLEP_DROPOUT_N | AB32: =IF(AF33="","",IF(COUNTIF(CurrentListing,AF33)>1,AJ33,"")) ->  | AC32: =IF(LEN(AF33)=0,"",IF(ISNA(MATCH(AF33,MasterListing,0)),AJ33,"")) ->  | AE32: ____NLEP_D_N | AG32: NLEPDN | AH32: ____NLEP_D_N | AI32: 1 | AJ32: ______ | AO32: =IF(ISNUMBER(SEARCH($F$6,AP32)),MAX($AO$11:AO31)+1,0) -> 21 | AP32: 0 | AQ32: =ROWS($AQ$12:AQ32) -> 21 | AR32: =IFERROR(VLOOKUP(ROWS($AR$12:AR32),$AO$12:$AP$3014,2,0),"") -> 0
AA33: =IFERROR(INDEX($AE$13:$AE$1003, SMALL(IF(ISBLANK($AE$13:$AE$1003)+ISERROR($AE$13:$AE$1003)+LEN($AE$13:$AE$1003)=0, "", ROW($AE$13:$AE$1003)-MIN(ROW($AE$13:$AE$1003))+1), ROW(22:22))),"") -> ____NLEP_GHS_N | AB33: =IF(AF34="","",IF(COUNTIF(CurrentListing,AF34)>1,AJ34,"")) ->  | AC33: =IF(LEN(AF34)=0,"",IF(ISNA(MATCH(AF34,MasterListing,0)),AJ34,"")) ->  | AE33: ____NLEP_DROPOUT_N | AG33: NLEPDROPOUTN | AH33: ____NLEP_DROPOUT_N | AI33: 1 | AJ33: ______ | AO33: =IF(ISNUMBER(SEARCH($F$6,AP33)),MAX($AO$11:AO32)+1,0) -> 22 | AP33: 0 | AQ33: =ROWS($AQ$12:AQ33) -> 22 | AR33: =IFERROR(VLOOKUP(ROWS($AR$12:AR33),$AO$12:$AP$3014,2,0),"") -> 0
AA34: =IFERROR(INDEX($AE$13:$AE$1003, SMALL(IF(ISBLANK($AE$13:$AE$1003)+ISERROR($AE$13:$AE$1003)+LEN($AE$13:$AE$1003)=0, "", ROW($AE$13:$AE$1003)-MIN(ROW($AE$13:$AE$1003))+1), ROW(23:23))),"") -> ____NLEP_GRADALTDPL_N | AB34: =IF(AF35="","",IF(COUNTIF(CurrentListing,AF35)>1,AJ35,"")) ->  | AC34: =IF(LEN(AF35)=0,"",IF(ISNA(MATCH(AF35,MasterListing,0)),AJ35,"")) ->  | AE34: ____NLEP_GHS_N | AG34: NLEPGHSN | AH34: ____NLEP_GHS_N | AI34: 1 | AJ34: ______ | AO34: =IF(ISNUMBER(SEARCH($F$6,AP34)),MAX($AO$11:AO33)+1,0) -> 23 | AP34: 0 | AQ34: =ROWS($AQ$12:AQ34) -> 23 | AR34: =IFERROR(VLOOKUP(ROWS($AR$12:AR34),$AO$12:$AP$3014,2,0),"") -> 0
AA35: =IFERROR(INDEX($AE$13:$AE$1003, SMALL(IF(ISBLANK($AE$13:$AE$1003)+ISERROR($AE$13:$AE$1003)+LEN($AE$13:$AE$1003)=0, "", ROW($AE$13:$AE$1003)-MIN(ROW($AE$13:$AE$1003))+1), ROW(24:24))),"") -> ____NLEP_MKC_N | AB35: =IF(AF36="","",IF(COUNTIF(CurrentListing,AF36)>1,AJ36,"")) ->  | AC35: =IF(LEN(AF36)=0,"",IF(ISNA(MATCH(AF36,MasterListing,0)),AJ36,"")) ->  | AE35: ____NLEP_GRADALTDPL_N | AG35: NLEPGRADALTDPLN | AH35: ____NLEP_GRADALTDPL_N | AI35: 1 | AJ35: ______ | AO35: =IF(ISNUMBER(SEARCH($F$6,AP35)),MAX($AO$11:AO34)+1,0) -> 24 | AP35: 0 | AQ35: =ROWS($AQ$12:AQ35) -> 24 | AR35: =IFERROR(VLOOKUP(ROWS($AR$12:AR35),$AO$12:$AP$3014,2,0),"") -> 0
AA36: =IFERROR(INDEX($AE$13:$AE$1003, SMALL(IF(ISBLANK($AE$13:$AE$1003)+ISERROR($AE$13:$AE$1003)+LEN($AE$13:$AE$1003)=0, "", ROW($AE$13:$AE$1003)-MIN(ROW($AE$13:$AE$1003))+1), ROW(25:25))),"") -> ____NLEP_RC_N | AB36: =IF(AF37="","",IF(COUNTIF(CurrentListing,AF37)>1,AJ37,"")) ->  | AC36: =IF(LEN(AF37)=0,"",IF(ISNA(MATCH(AF37,MasterListing,0)),AJ37,"")) ->  | AE36: ____NLEP_MKC_N | AG36: NLEPMKCN | AH36: ____NLEP_MKC_N | AI36: 1 | AJ36: ______ | AO36: =IF(ISNUMBER(SEARCH($F$6,AP36)),MAX($AO$11:AO35)+1,0) -> 25 | AP36: 0 | AQ36: =ROWS($AQ$12:AQ36) -> 25 | AR36: =IFERROR(VLOOKUP(ROWS($AR$12:AR36),$AO$12:$AP$3014,2,0),"") -> 0
AA37: =IFERROR(INDEX($AE$13:$AE$1003, SMALL(IF(ISBLANK($AE$13:$AE$1003)+ISERROR($AE$13:$AE$1003)+LEN($AE$13:$AE$1003)=0, "", ROW($AE$13:$AE$1003)-MIN(ROW($AE$13:$AE$1003))+1), ROW(26:26))),"") -> ____NLEP_RMA_N | AB37: =IF(AF38="","",IF(COUNTIF(CurrentListing,AF38)>1,AJ38,"")) ->  | AC37: =IF(LEN(AF38)=0,"",IF(ISNA(MATCH(AF38,MasterListing,0)),AJ38,"")) ->  | AE37: ____NLEP_RC_N | AG37: NLEPRCN | AH37: ____NLEP_RC_N | AI37: 1 | AJ37: ______ | AO37: =IF(ISNUMBER(SEARCH($F$6,AP37)),MAX($AO$11:AO36)+1,0) -> 26 | AP37: 0 | AQ37: =ROWS($AQ$12:AQ37) -> 26 | AR37: =IFERROR(VLOOKUP(ROWS($AR$12:AR37),$AO$12:$AP$3014,2,0),"") -> 0
AA38: =IFERROR(INDEX($AE$13:$AE$1003, SMALL(IF(ISBLANK($AE$13:$AE$1003)+ISERROR($AE$13:$AE$1003)+LEN($AE$13:$AE$1003)=0, "", ROW($AE$13:$AE$1003)-MIN(ROW($AE$13:$AE$1003))+1), ROW(27:27))),"") -> ____NLEP_TRAN_N | AB38: =IF(AF39="","",IF(COUNTIF(CurrentListing,AF39)>1,AJ39,"")) ->  | AC38: =IF(LEN(AF39)=0,"",IF(ISNA(MATCH(AF39,MasterListing,0)),AJ39,"")) ->  | AE38: ____NLEP_RMA_N | AG38: NLEPRMAN | AH38: ____NLEP_RMA_N | AI38: 1 | AJ38: ______ | AO38: =IF(ISNUMBER(SEARCH($F$6,AP38)),MAX($AO$11:AO37)+1,0) -> 27 | AP38: 0 | AQ38: =ROWS($AQ$12:AQ38) -> 27 | AR38: =IFERROR(VLOOKUP(ROWS($AR$12:AR38),$AO$12:$AP$3014,2,0),"") -> 0
AA39: =IFERROR(INDEX($AE$13:$AE$1003, SMALL(IF(ISBLANK($AE$13:$AE$1003)+ISERROR($AE$13:$AE$1003)+LEN($AE$13:$AE$1003)=0, "", ROW($AE$13:$AE$1003)-MIN(ROW($AE$13:$AE$1003))+1), ROW(28:28))),"") -> ___14___Y | AB39: =IF(AF40="","",IF(COUNTIF(CurrentListing,AF40)>1,AJ40,"")) ->  | AC39: =IF(LEN(AF40)=0,"",IF(ISNA(MATCH(AF40,MasterListing,0)),AJ40,"")) ->  | AE39: ____NLEP_TRAN_N | AG39: NLEPTRANN | AH39: ____NLEP_TRAN_N | AI39: 1 | AJ39: ______ | AO39: =IF(ISNUMBER(SEARCH($F$6,AP39)),MAX($AO$11:AO38)+1,0) -> 28 | AP39: 0 | AQ39: =ROWS($AQ$12:AQ39) -> 28 | AR39: =IFERROR(VLOOKUP(ROWS($AR$12:AR39),$AO$12:$AP$3014,2,0),"") -> 0
AA40: =IFERROR(INDEX($AE$13:$AE$1003, SMALL(IF(ISBLANK($AE$13:$AE$1003)+ISERROR($AE$13:$AE$1003)+LEN($AE$13:$AE$1003)=0, "", ROW($AE$13:$AE$1003)-MIN(ROW($AE$13:$AE$1003))+1), ROW(29:29))),"") -> ___15___Y | AB40: =IF(AF41="","",IF(COUNTIF(CurrentListing,AF41)>1,AJ41,"")) ->  | AC40: =IF(LEN(AF41)=0,"",IF(ISNA(MATCH(AF41,MasterListing,0)),AJ41,"")) ->  | AE40: ___14___Y | AG40: 14Y | AH40: ___14___Y | AI40: 1 | AJ40: ______ | AO40: =IF(ISNUMBER(SEARCH($F$6,AP40)),MAX($AO$11:AO39)+1,0) -> 29 | AP40: 0 | AQ40: =ROWS($AQ$12:AQ40) -> 29 | AR40: =IFERROR(VLOOKUP(ROWS($AR$12:AR40),$AO$12:$AP$3014,2,0),"") -> 0
AA41: =IFERROR(INDEX($AE$13:$AE$1003, SMALL(IF(ISBLANK($AE$13:$AE$1003)+ISERROR($AE$13:$AE$1003)+LEN($AE$13:$AE$1003)=0, "", ROW($AE$13:$AE$1003)-MIN(ROW($AE$13:$AE$1003))+1), ROW(30:30))),"") -> ___16___Y | AB41: =IF(AF42="","",IF(COUNTIF(CurrentListing,AF42)>1,AJ42,"")) ->  | AC41: =IF(LEN(AF42)=0,"",IF(ISNA(MATCH(AF42,MasterListing,0)),AJ42,"")) ->  | AE41: ___15___Y | AG41: 15Y | AH41: ___15___Y | AI41: 1 | AJ41: ______ | AO41: =IF(ISNUMBER(SEARCH($F$6,AP41)),MAX($AO$11:AO40)+1,0) -> 30 | AP41: 0 | AQ41: =ROWS($AQ$12:AQ41) -> 30 | AR41: =IFERROR(VLOOKUP(ROWS($AR$12:AR41),$AO$12:$AP$3014,2,0),"") -> 0
AA42: =IFERROR(INDEX($AE$13:$AE$1003, SMALL(IF(ISBLANK($AE$13:$AE$1003)+ISERROR($AE$13:$AE$1003)+LEN($AE$13:$AE$1003)=0, "", ROW($AE$13:$AE$1003)-MIN(ROW($AE$13:$AE$1003))+1), ROW(31:31))),"") -> ___17___Y | AB42: =IF(AF43="","",IF(COUNTIF(CurrentListing,AF43)>1,AJ43,"")) ->  | AC42: =IF(LEN(AF43)=0,"",IF(ISNA(MATCH(AF43,MasterListing,0)),AJ43,"")) ->  | AE42: ___16___Y | AG42: 16Y | AH42: ___16___Y | AI42: 1 | AJ42: ______ | AO42: =IF(ISNUMBER(SEARCH($F$6,AP42)),MAX($AO$11:AO41)+1,0) -> 31 | AP42: 0 | AQ42: =ROWS($AQ$12:AQ42) -> 31 | AR42: =IFERROR(VLOOKUP(ROWS($AR$12:AR42),$AO$12:$AP$3014,2,0),"") -> 0
AA43: =IFERROR(INDEX($AE$13:$AE$1003, SMALL(IF(ISBLANK($AE$13:$AE$1003)+ISERROR($AE$13:$AE$1003)+LEN($AE$13:$AE$1003)=0, "", ROW($AE$13:$AE$1003)-MIN(ROW($AE$13:$AE$1003))+1), ROW(32:32))),"") -> ___18___Y | AB43: =IF(AF44="","",IF(COUNTIF(CurrentListing,AF44)>1,AJ44,"")) ->  | AC43: =IF(LEN(AF44)=0,"",IF(ISNA(MATCH(AF44,MasterListing,0)),AJ44,"")) ->  | AE43: ___17___Y | AG43: 17Y | AH43: ___17___Y | AI43: 1 | AJ43: ______ | AO43: =IF(ISNUMBER(SEARCH($F$6,AP43)),MAX($AO$11:AO42)+1,0) -> 32 | AP43: 0 | AQ43: =ROWS($AQ$12:AQ43) -> 32 | AR43: =IFERROR(VLOOKUP(ROWS($AR$12:AR43),$AO$12:$AP$3014,2,0),"") -> 0
AA44: =IFERROR(INDEX($AE$13:$AE$1003, SMALL(IF(ISBLANK($AE$13:$AE$1003)+ISERROR($AE$13:$AE$1003)+LEN($AE$13:$AE$1003)=0, "", ROW($AE$13:$AE$1003)-MIN(ROW($AE$13:$AE$1003))+1), ROW(33:33))),"") -> ___19___Y | AB44: =IF(AF45="","",IF(COUNTIF(CurrentListing,AF45)>1,AJ45,"")) ->  | AC44: =IF(LEN(AF45)=0,"",IF(ISNA(MATCH(AF45,MasterListing,0)),AJ45,"")) ->  | AE44: ___18___Y | AG44: 18Y | AH44: ___18___Y | AI44: 1 | AJ44: ______ | AO44: =IF(ISNUMBER(SEARCH($F$6,AP44)),MAX($AO$11:AO43)+1,0) -> 33 | AP44: 0 | AQ44: =ROWS($AQ$12:AQ44) -> 33 | AR44: =IFERROR(VLOOKUP(ROWS($AR$12:AR44),$AO$12:$AP$3014,2,0),"") -> 0
AA45: =IFERROR(INDEX($AE$13:$AE$1003, SMALL(IF(ISBLANK($AE$13:$AE$1003)+ISERROR($AE$13:$AE$1003)+LEN($AE$13:$AE$1003)=0, "", ROW($AE$13:$AE$1003)-MIN(ROW($AE$13:$AE$1003))+1), ROW(34:34))),"") -> ___20___Y | AB45: =IF(AF46="","",IF(COUNTIF(CurrentListing,AF46)>1,AJ46,"")) ->  | AC45: =IF(LEN(AF46)=0,"",IF(ISNA(MATCH(AF46,MasterListing,0)),AJ46,"")) ->  | AE45: ___19___Y | AG45: 19Y | AH45: ___19___Y | AI45: 1 | AJ45: ______ | AO45: =IF(ISNUMBER(SEARCH($F$6,AP45)),MAX($AO$11:AO44)+1,0) -> 34 | AP45: 0 | AQ45: =ROWS($AQ$12:AQ45) -> 34 | AR45: =IFERROR(VLOOKUP(ROWS($AR$12:AR45),$AO$12:$AP$3014,2,0),"") -> 0
AA46: =IFERROR(INDEX($AE$13:$AE$1003, SMALL(IF(ISBLANK($AE$13:$AE$1003)+ISERROR($AE$13:$AE$1003)+LEN($AE$13:$AE$1003)=0, "", ROW($AE$13:$AE$1003)-MIN(ROW($AE$13:$AE$1003))+1), ROW(35:35))),"") -> ___21___Y | AB46: =IF(AF47="","",IF(COUNTIF(CurrentListing,AF47)>1,AJ47,"")) ->  | AC46: =IF(LEN(AF47)=0,"",IF(ISNA(MATCH(AF47,MasterListing,0)),AJ47,"")) ->  | AE46: ___20___Y | AG46: 20Y | AH46: ___20___Y | AI46: 1 | AJ46: ______ | AO46: =IF(ISNUMBER(SEARCH($F$6,AP46)),MAX($AO$11:AO45)+1,0) -> 35 | AP46: 0 | AQ46: =ROWS($AQ$12:AQ46) -> 35 | AR46: =IFERROR(VLOOKUP(ROWS($AR$12:AR46),$AO$12:$AP$3014,2,0),"") -> 0
AA47: =IFERROR(INDEX($AE$13:$AE$1003, SMALL(IF(ISBLANK($AE$13:$AE$1003)+ISERROR($AE$13:$AE$1003)+LEN($AE$13:$AE$1003)=0, "", ROW($AE$13:$AE$1003)-MIN(ROW($AE$13:$AE$1003))+1), ROW(36:36))),"") -> __AUT____Y | AB47: =IF(AF48="","",IF(COUNTIF(CurrentListing,AF48)>1,AJ48,"")) ->  | AC47: =IF(LEN(AF48)=0,"",IF(ISNA(MATCH(AF48,MasterListing,0)),AJ48,"")) ->  | AE47: ___21___Y | AG47: 21Y | AH47: ___21___Y | AI47: 1 | AJ47: ______ | AO47: =IF(ISNUMBER(SEARCH($F$6,AP47)),MAX($AO$11:AO46)+1,0) -> 36 | AP47: 0 | AQ47: =ROWS($AQ$12:AQ47) -> 36 | AR47: =IFERROR(VLOOKUP(ROWS($AR$12:AR47),$AO$12:$AP$3014,2,0),"") -> 0
AA48: =IFERROR(INDEX($AE$13:$AE$1003, SMALL(IF(ISBLANK($AE$13:$AE$1003)+ISERROR($AE$13:$AE$1003)+LEN($AE$13:$AE$1003)=0, "", ROW($AE$13:$AE$1003)-MIN(ROW($AE$13:$AE$1003))+1), ROW(37:37))),"") -> __AUT_14__D_N | AB48: =IF(AF49="","",IF(COUNTIF(CurrentListing,AF49)>1,AJ49,"")) ->  | AC48: =IF(LEN(AF49)=0,"",IF(ISNA(MATCH(AF49,MasterListing,0)),AJ49,"")) ->  | AE48: __AUT____Y | AG48: AUTY | AH48: __AUT____Y | AI48: 1 | AJ48: ______ | AO48: =IF(ISNUMBER(SEARCH($F$6,AP48)),MAX($AO$11:AO47)+1,0) -> 37 | AP48: 0 | AQ48: =ROWS($AQ$12:AQ48) -> 37 | AR48: =IFERROR(VLOOKUP(ROWS($AR$12:AR48),$AO$12:$AP$3014,2,0),"") -> 0
AA49: =IFERROR(INDEX($AE$13:$AE$1003, SMALL(IF(ISBLANK($AE$13:$AE$1003)+ISERROR($AE$13:$AE$1003)+LEN($AE$13:$AE$1003)=0, "", ROW($AE$13:$AE$1003)-MIN(ROW($AE$13:$AE$1003))+1), ROW(38:38))),"") -> __AUT_14__DROPOUT_N | AB49: =IF(AF50="","",IF(COUNTIF(CurrentListing,AF50)>1,AJ50,"")) ->  | AC49: =IF(LEN(AF50)=0,"",IF(ISNA(MATCH(AF50,MasterListing,0)),AJ50,"")) ->  | AE49: __AUT_14__D_N | AG49: AUT14DN | AH49: __AUT_14__D_N | AI49: 1 | AJ49: ______ | AO49: =IF(ISNUMBER(SEARCH($F$6,AP49)),MAX($AO$11:AO48)+1,0) -> 38 | AP49: 0 | AQ49: =ROWS($AQ$12:AQ49) -> 38 | AR49: =IFERROR(VLOOKUP(ROWS($AR$12:AR49),$AO$12:$AP$3014,2,0),"") -> 0
AA50: =IFERROR(INDEX($AE$13:$AE$1003, SMALL(IF(ISBLANK($AE$13:$AE$1003)+ISERROR($AE$13:$AE$1003)+LEN($AE$13:$AE$1003)=0, "", ROW($AE$13:$AE$1003)-MIN(ROW($AE$13:$AE$1003))+1), ROW(39:39))),"") -> __AUT_14__GHS_N | AB50: =IF(AF51="","",IF(COUNTIF(CurrentListing,AF51)>1,AJ51,"")) ->  | AC50: =IF(LEN(AF51)=0,"",IF(ISNA(MATCH(AF51,MasterListing,0)),AJ51,"")) ->  | AE50: __AUT_14__DROPOUT_N | AG50: AUT14DROPOUTN | AH50: __AUT_14__DROPOUT_N | AI50: 1 | AJ50: ______ | AO50: =IF(ISNUMBER(SEARCH($F$6,AP50)),MAX($AO$11:AO49)+1,0) -> 39 | AP50: 0 | AQ50: =ROWS($AQ$12:AQ50) -> 39 | AR50: =IFERROR(VLOOKUP(ROWS($AR$12:AR50),$AO$12:$AP$3014,2,0),"") -> 0
AA51: =IFERROR(INDEX($AE$13:$AE$1003, SMALL(IF(ISBLANK($AE$13:$AE$1003)+ISERROR($AE$13:$AE$1003)+LEN($AE$13:$AE$1003)=0, "", ROW($AE$13:$AE$1003)-MIN(ROW($AE$13:$AE$1003))+1), ROW(40:40))),"") -> __AUT_14__GRADALTDPL_N | AB51: =IF(AF52="","",IF(COUNTIF(CurrentListing,AF52)>1,AJ52,"")) ->  | AC51: =IF(LEN(AF52)=0,"",IF(ISNA(MATCH(AF52,MasterListing,0)),AJ52,"")) ->  | AE51: __AUT_14__GHS_N | AG51: AUT14GHSN | AH51: __AUT_14__GHS_N | AI51: 1 | AJ51: ______ | AO51: =IF(ISNUMBER(SEARCH($F$6,AP51)),MAX($AO$11:AO50)+1,0) -> 40 | AP51: 0 | AQ51: =ROWS($AQ$12:AQ51) -> 40 | AR51: =IFERROR(VLOOKUP(ROWS($AR$12:AR51),$AO$12:$AP$3014,2,0),"") -> 0
AA52: =IFERROR(INDEX($AE$13:$AE$1003, SMALL(IF(ISBLANK($AE$13:$AE$1003)+ISERROR($AE$13:$AE$1003)+LEN($AE$13:$AE$1003)=0, "", ROW($AE$13:$AE$1003)-MIN(ROW($AE$13:$AE$1003))+1), ROW(41:41))),"") -> __AUT_14__MKC_N | AB52: =IF(AF53="","",IF(COUNTIF(CurrentListing,AF53)>1,AJ53,"")) ->  | AC52: =IF(LEN(AF53)=0,"",IF(ISNA(MATCH(AF53,MasterListing,0)),AJ53,"")) ->  | AE52: __AUT_14__GRADALTDPL_N | AG52: AUT14GRADALTDPLN | AH52: __AUT_14__GRADALTDPL_N | AI52: 1 | AJ52: ______ | AO52: =IF(ISNUMBER(SEARCH($F$6,AP52)),MAX($AO$11:AO51)+1,0) -> 41 | AP52: 0 | AQ52: =ROWS($AQ$12:AQ52) -> 41 | AR52: =IFERROR(VLOOKUP(ROWS($AR$12:AR52),$AO$12:$AP$3014,2,0),"") -> 0
AA53: =IFERROR(INDEX($AE$13:$AE$1003, SMALL(IF(ISBLANK($AE$13:$AE$1003)+ISERROR($AE$13:$AE$1003)+LEN($AE$13:$AE$1003)=0, "", ROW($AE$13:$AE$1003)-MIN(ROW($AE$13:$AE$1003))+1), ROW(42:42))),"") -> __AUT_14__RC_N | AB53: =IF(AF54="","",IF(COUNTIF(CurrentListing,AF54)>1,AJ54,"")) ->  | AC53: =IF(LEN(AF54)=0,"",IF(ISNA(MATCH(AF54,MasterListing,0)),AJ54,"")) ->  | AE53: __AUT_14__MKC_N | AG53: AUT14MKCN | AH53: __AUT_14__MKC_N | AI53: 1 | AJ53: ______ | AO53: =IF(ISNUMBER(SEARCH($F$6,AP53)),MAX($AO$11:AO52)+1,0) -> 42 | AP53: 0 | AQ53: =ROWS($AQ$12:AQ53) -> 42 | AR53: =IFERROR(VLOOKUP(ROWS($AR$12:AR53),$AO$12:$AP$3014,2,0),"") -> 0
AA54: =IFERROR(INDEX($AE$13:$AE$1003, SMALL(IF(ISBLANK($AE$13:$AE$1003)+ISERROR($AE$13:$AE$1003)+LEN($AE$13:$AE$1003)=0, "", ROW($AE$13:$AE$1003)-MIN(ROW($AE$13:$AE$1003))+1), ROW(43:43))),"") -> __AUT_14__RMA_N | AB54: =IF(AF55="","",IF(COUNTIF(CurrentListing,AF55)>1,AJ55,"")) ->  | AC54: =IF(LEN(AF55)=0,"",IF(ISNA(MATCH(AF55,MasterListing,0)),AJ55,"")) ->  | AE54: __AUT_14__RC_N | AG54: AUT14RCN | AH54: __AUT_14__RC_N | AI54: 1 | AJ54: ______ | AO54: =IF(ISNUMBER(SEARCH($F$6,AP54)),MAX($AO$11:AO53)+1,0) -> 43 | AP54: 0 | AQ54: =ROWS($AQ$12:AQ54) -> 43 | AR54: =IFERROR(VLOOKUP(ROWS($AR$12:AR54),$AO$12:$AP$3014,2,0),"") -> 0
AA55: =IFERROR(INDEX($AE$13:$AE$1003, SMALL(IF(ISBLANK($AE$13:$AE$1003)+ISERROR($AE$13:$AE$1003)+LEN($AE$13:$AE$1003)=0, "", ROW($AE$13:$AE$1003)-MIN(ROW($AE$13:$AE$1003))+1), ROW(44:44))),"") -> __AUT_14__TRAN_N | AB55: =IF(AF56="","",IF(COUNTIF(CurrentListing,AF56)>1,AJ56,"")) ->  | AC55: =IF(LEN(AF56)=0,"",IF(ISNA(MATCH(AF56,MasterListing,0)),AJ56,"")) ->  | AE55: __AUT_14__RMA_N | AG55: AUT14RMAN | AH55: __AUT_14__RMA_N | AI55: 1 | AJ55: ______ | AO55: =IF(ISNUMBER(SEARCH($F$6,AP55)),MAX($AO$11:AO54)+1,0) -> 44 | AP55: 0 | AQ55: =ROWS($AQ$12:AQ55) -> 44 | AR55: =IFERROR(VLOOKUP(ROWS($AR$12:AR55),$AO$12:$AP$3014,2,0),"") -> 0
AA56: =IFERROR(INDEX($AE$13:$AE$1003, SMALL(IF(ISBLANK($AE$13:$AE$1003)+ISERROR($AE$13:$AE$1003)+LEN($AE$13:$AE$1003)=0, "", ROW($AE$13:$AE$1003)-MIN(ROW($AE$13:$AE$1003))+1), ROW(45:45))),"") -> __AUT_15__D_N | AB56: =IF(AF57="","",IF(COUNTIF(CurrentListing,AF57)>1,AJ57,"")) ->  | AC56: =IF(LEN(AF57)=0,"",IF(ISNA(MATCH(AF57,MasterListing,0)),AJ57,"")) ->  | AE56: __AUT_14__TRAN_N | AG56: AUT14TRANN | AH56: __AUT_14__TRAN_N | AI56: 1 | AJ56: ______ | AO56: =IF(ISNUMBER(SEARCH($F$6,AP56)),MAX($AO$11:AO55)+1,0) -> 45 | AP56: 0 | AQ56: =ROWS($AQ$12:AQ56) -> 45 | AR56: =IFERROR(VLOOKUP(ROWS($AR$12:AR56),$AO$12:$AP$3014,2,0),"") -> 0
AA57: =IFERROR(INDEX($AE$13:$AE$1003, SMALL(IF(ISBLANK($AE$13:$AE$1003)+ISERROR($AE$13:$AE$1003)+LEN($AE$13:$AE$1003)=0, "", ROW($AE$13:$AE$1003)-MIN(ROW($AE$13:$AE$1003))+1), ROW(46:46))),"") -> __AUT_15__DROPOUT_N | AB57: =IF(AF58="","",IF(COUNTIF(CurrentListing,AF58)>1,AJ58,"")) ->  | AC57: =IF(LEN(AF58)=0,"",IF(ISNA(MATCH(AF58,MasterListing,0)),AJ58,"")) ->  | AE57: __AUT_15__D_N | AG57: AUT15DN | AH57: __AUT_15__D_N | AI57: 1 | AJ57: ______ | AO57: =IF(ISNUMBER(SEARCH($F$6,AP57)),MAX($AO$11:AO56)+1,0) -> 46 | AP57: 0 | AQ57: =ROWS($AQ$12:AQ57) -> 46 | AR57: =IFERROR(VLOOKUP(ROWS($AR$12:AR57),$AO$12:$AP$3014,2,0),"") -> 0
AA58: =IFERROR(INDEX($AE$13:$AE$1003, SMALL(IF(ISBLANK($AE$13:$AE$1003)+ISERROR($AE$13:$AE$1003)+LEN($AE$13:$AE$1003)=0, "", ROW($AE$13:$AE$1003)-MIN(ROW($AE$13:$AE$1003))+1), ROW(47:47))),"") -> __AUT_15__GHS_N | AB58: =IF(AF59="","",IF(COUNTIF(CurrentListing,AF59)>1,AJ59,"")) ->  | AC58: =IF(LEN(AF59)=0,"",IF(ISNA(MATCH(AF59,MasterListing,0)),AJ59,"")) ->  | AE58: __AUT_15__DROPOUT_N | AG58: AUT15DROPOUTN | AH58: __AUT_15__DROPOUT_N | AI58: 1 | AJ58: ______ | AO58: =IF(ISNUMBER(SEARCH($F$6,AP58)),MAX($AO$11:AO57)+1,0) -> 47 | AP58: 0 | AQ58: =ROWS($AQ$12:AQ58) -> 47 | AR58: =IFERROR(VLOOKUP(ROWS($AR$12:AR58),$AO$12:$AP$3014,2,0),"") -> 0
AA59: =IFERROR(INDEX($AE$13:$AE$1003, SMALL(IF(ISBLANK($AE$13:$AE$1003)+ISERROR($AE$13:$AE$1003)+LEN($AE$13:$AE$1003)=0, "", ROW($AE$13:$AE$1003)-MIN(ROW($AE$13:$AE$1003))+1), ROW(48:48))),"") -> __AUT_15__GRADALTDPL_N | AB59: =IF(AF60="","",IF(COUNTIF(CurrentListing,AF60)>1,AJ60,"")) ->  | AC59: =IF(LEN(AF60)=0,"",IF(ISNA(MATCH(AF60,MasterListing,0)),AJ60,"")) ->  | AE59: __AUT_15__GHS_N | AG59: AUT15GHSN | AH59: __AUT_15__GHS_N | AI59: 1 | AJ59: ______ | AO59: =IF(ISNUMBER(SEARCH($F$6,AP59)),MAX($AO$11:AO58)+1,0) -> 48 | AP59: 0 | AQ59: =ROWS($AQ$12:AQ59) -> 48 | AR59: =IFERROR(VLOOKUP(ROWS($AR$12:AR59),$AO$12:$AP$3014,2,0),"") -> 0
AA60: =IFERROR(INDEX($AE$13:$AE$1003, SMALL(IF(ISBLANK($AE$13:$AE$1003)+ISERROR($AE$13:$AE$1003)+LEN($AE$13:$AE$1003)=0, "", ROW($AE$13:$AE$1003)-MIN(ROW($AE$13:$AE$1003))+1), ROW(49:49))),"") -> __AUT_15__MKC_N | AB60: =IF(AF61="","",IF(COUNTIF(CurrentListing,AF61)>1,AJ61,"")) ->  | AC60: =IF(LEN(AF61)=0,"",IF(ISNA(MATCH(AF61,MasterListing,0)),AJ61,"")) ->  | AE60: __AUT_15__GRADALTDPL_N | AG60: AUT15GRADALTDPLN | AH60: __AUT_15__GRADALTDPL_N | AI60: 1 | AJ60: ______ | AO60: =IF(ISNUMBER(SEARCH($F$6,AP60)),MAX($AO$11:AO59)+1,0) -> 49 | AP60: 0 | AQ60: =ROWS($AQ$12:AQ60) -> 49 | AR60: =IFERROR(VLOOKUP(ROWS($AR$12:AR60),$AO$12:$AP$3014,2,0),"") -> 0
AA61: =IFERROR(INDEX($AE$13:$AE$1003, SMALL(IF(ISBLANK($AE$13:$AE$1003)+ISERROR($AE$13:$AE$1003)+LEN($AE$13:$AE$1003)=0, "", ROW($AE$13:$AE$1003)-MIN(ROW($AE$13:$AE$1003))+1), ROW(50:50))),"") -> __AUT_15__RC_N | AB61: =IF(AF62="","",IF(COUNTIF(CurrentListing,AF62)>1,AJ62,"")) ->  | AC61: =IF(LEN(AF62)=0,"",IF(ISNA(MATCH(AF62,MasterListing,0)),AJ62,"")) ->  | AE61: __AUT_15__MKC_N | AG61: AUT15MKCN | AH61: __AUT_15__MKC_N | AI61: 1 | AJ61: ______ | AO61: =IF(ISNUMBER(SEARCH($F$6,AP61)),MAX($AO$11:AO60)+1,0) -> 50 | AP61: 0 | AQ61: =ROWS($AQ$12:AQ61) -> 50 | AR61: =IFERROR(VLOOKUP(ROWS($AR$12:AR61),$AO$12:$AP$3014,2,0),"") -> 0
AA62: =IFERROR(INDEX($AE$13:$AE$1003, SMALL(IF(ISBLANK($AE$13:$AE$1003)+ISERROR($AE$13:$AE$1003)+LEN($AE$13:$AE$1003)=0, "", ROW($AE$13:$AE$1003)-MIN(ROW($AE$13:$AE$1003))+1), ROW(51:51))),"") -> __AUT_15__RMA_N | AB62: =IF(AF63="","",IF(COUNTIF(CurrentListing,AF63)>1,AJ63,"")) ->  | AC62: =IF(LEN(AF63)=0,"",IF(ISNA(MATCH(AF63,MasterListing,0)),AJ63,"")) ->  | AE62: __AUT_15__RC_N | AG62: AUT15RCN | AH62: __AUT_15__RC_N | AI62: 1 | AJ62: ______ | AO62: =IF(ISNUMBER(SEARCH($F$6,AP62)),MAX($AO$11:AO61)+1,0) -> 51 | AP62: 0 | AQ62: =ROWS($AQ$12:AQ62) -> 51 | AR62: =IFERROR(VLOOKUP(ROWS($AR$12:AR62),$AO$12:$AP$3014,2,0),"") -> 0
AA63: =IFERROR(INDEX($AE$13:$AE$1003, SMALL(IF(ISBLANK($AE$13:$AE$1003)+ISERROR($AE$13:$AE$1003)+LEN($AE$13:$AE$1003)=0, "", ROW($AE$13:$AE$1003)-MIN(ROW($AE$13:$AE$1003))+1), ROW(52:52))),"") -> __AUT_15__TRAN_N | AB63: =IF(AF64="","",IF(COUNTIF(CurrentListing,AF64)>1,AJ64,"")) ->  | AC63: =IF(LEN(AF64)=0,"",IF(ISNA(MATCH(AF64,MasterListing,0)),AJ64,"")) ->  | AE63: __AUT_15__RMA_N | AG63: AUT15RMAN | AH63: __AUT_15__RMA_N | AI63: 1 | AJ63: ______ | AO63: =IF(ISNUMBER(SEARCH($F$6,AP63)),MAX($AO$11:AO62)+1,0) -> 52 | AP63: 0 | AQ63: =ROWS($AQ$12:AQ63) -> 52 | AR63: =IFERROR(VLOOKUP(ROWS($AR$12:AR63),$AO$12:$AP$3014,2,0),"") -> 0
AA64: =IFERROR(INDEX($AE$13:$AE$1003, SMALL(IF(ISBLANK($AE$13:$AE$1003)+ISERROR($AE$13:$AE$1003)+LEN($AE$13:$AE$1003)=0, "", ROW($AE$13:$AE$1003)-MIN(ROW($AE$13:$AE$1003))+1), ROW(53:53))),"") -> __AUT_16__D_N | AB64: =IF(AF65="","",IF(COUNTIF(CurrentListing,AF65)>1,AJ65,"")) ->  | AC64: =IF(LEN(AF65)=0,"",IF(ISNA(MATCH(AF65,MasterListing,0)),AJ65,"")) ->  | AE64: __AUT_15__TRAN_N | AG64: AUT15TRANN | AH64: __AUT_15__TRAN_N | AI64: 1 | AJ64: ______ | AO64: =IF(ISNUMBER(SEARCH($F$6,AP64)),MAX($AO$11:AO63)+1,0) -> 53 | AP64: 0 | AQ64: =ROWS($AQ$12:AQ64) -> 53 | AR64: =IFERROR(VLOOKUP(ROWS($AR$12:AR64),$AO$12:$AP$3014,2,0),"") -> 0
AA65: =IFERROR(INDEX($AE$13:$AE$1003, SMALL(IF(ISBLANK($AE$13:$AE$1003)+ISERROR($AE$13:$AE$1003)+LEN($AE$13:$AE$1003)=0, "", ROW($AE$13:$AE$1003)-MIN(ROW($AE$13:$AE$1003))+1), ROW(54:54))),"") -> __AUT_16__DROPOUT_N | AB65: =IF(AF66="","",IF(COUNTIF(CurrentListing,AF66)>1,AJ66,"")) ->  | AC65: =IF(LEN(AF66)=0,"",IF(ISNA(MATCH(AF66,MasterListing,0)),AJ66,"")) ->  | AE65: __AUT_16__D_N | AG65: AUT16DN | AH65: __AUT_16__D_N | AI65: 1 | AJ65: ______ | AO65: =IF(ISNUMBER(SEARCH($F$6,AP65)),MAX($AO$11:AO64)+1,0) -> 54 | AP65: 0 | AQ65: =ROWS($AQ$12:AQ65) -> 54 | AR65: =IFERROR(VLOOKUP(ROWS($AR$12:AR65),$AO$12:$AP$3014,2,0),"") -> 0
AA66: =IFERROR(INDEX($AE$13:$AE$1003, SMALL(IF(ISBLANK($AE$13:$AE$1003)+ISERROR($AE$13:$AE$1003)+LEN($AE$13:$AE$1003)=0, "", ROW($AE$13:$AE$1003)-MIN(ROW($AE$13:$AE$1003))+1), ROW(55:55))),"") -> __AUT_16__GHS_N | AB66: =IF(AF67="","",IF(COUNTIF(CurrentListing,AF67)>1,AJ67,"")) ->  | AC66: =IF(LEN(AF67)=0,"",IF(ISNA(MATCH(AF67,MasterListing,0)),AJ67,"")) ->  | AE66: __AUT_16__DROPOUT_N | AG66: AUT16DROPOUTN | AH66: __AUT_16__DROPOUT_N | AI66: 1 | AJ66: ______ | AO66: =IF(ISNUMBER(SEARCH($F$6,AP66)),MAX($AO$11:AO65)+1,0) -> 55 | AP66: 0 | AQ66: =ROWS($AQ$12:AQ66) -> 55 | AR66: =IFERROR(VLOOKUP(ROWS($AR$12:AR66),$AO$12:$AP$3014,2,0),"") -> 0
AA67: =IFERROR(INDEX($AE$13:$AE$1003, SMALL(IF(ISBLANK($AE$13:$AE$1003)+ISERROR($AE$13:$AE$1003)+LEN($AE$13:$AE$1003)=0, "", ROW($AE$13:$AE$1003)-MIN(ROW($AE$13:$AE$1003))+1), ROW(56:56))),"") -> __AUT_16__GRADALTDPL_N | AB67: =IF(AF68="","",IF(COUNTIF(CurrentListing,AF68)>1,AJ68,"")) ->  | AC67: =IF(LEN(AF68)=0,"",IF(ISNA(MATCH(AF68,MasterListing,0)),AJ68,"")) ->  | AE67: __AUT_16__GHS_N | AG67: AUT16GHSN | AH67: __AUT_16__GHS_N | AI67: 1 | AJ67: ______ | AO67: =IF(ISNUMBER(SEARCH($F$6,AP67)),MAX($AO$11:AO66)+1,0) -> 56 | AP67: 0 | AQ67: =ROWS($AQ$12:AQ67) -> 56 | AR67: =IFERROR(VLOOKUP(ROWS($AR$12:AR67),$AO$12:$AP$3014,2,0),"") -> 0
AA68: =IFERROR(INDEX($AE$13:$AE$1003, SMALL(IF(ISBLANK($AE$13:$AE$1003)+ISERROR($AE$13:$AE$1003)+LEN($AE$13:$AE$1003)=0, "", ROW($AE$13:$AE$1003)-MIN(ROW($AE$13:$AE$1003))+1), ROW(57:57))),"") -> __AUT_16__MKC_N | AB68: =IF(AF69="","",IF(COUNTIF(CurrentListing,AF69)>1,AJ69,"")) ->  | AC68: =IF(LEN(AF69)=0,"",IF(ISNA(MATCH(AF69,MasterListing,0)),AJ69,"")) ->  | AE68: __AUT_16__GRADALTDPL_N | AG68: AUT16GRADALTDPLN | AH68: __AUT_16__GRADALTDPL_N | AI68: 1 | AJ68: ______ | AO68: =IF(ISNUMBER(SEARCH($F$6,AP68)),MAX($AO$11:AO67)+1,0) -> 57 | AP68: 0 | AQ68: =ROWS($AQ$12:AQ68) -> 57 | AR68: =IFERROR(VLOOKUP(ROWS($AR$12:AR68),$AO$12:$AP$3014,2,0),"") -> 0
AA69: =IFERROR(INDEX($AE$13:$AE$1003, SMALL(IF(ISBLANK($AE$13:$AE$1003)+ISERROR($AE$13:$AE$1003)+LEN($AE$13:$AE$1003)=0, "", ROW($AE$13:$AE$1003)-MIN(ROW($AE$13:$AE$1003))+1), ROW(58:58))),"") -> __AUT_16__RC_N | AB69: =IF(AF70="","",IF(COUNTIF(CurrentListing,AF70)>1,AJ70,"")) ->  | AC69: =IF(LEN(AF70)=0,"",IF(ISNA(MATCH(AF70,MasterListing,0)),AJ70,"")) ->  | AE69: __AUT_16__MKC_N | AG69: AUT16MKCN | AH69: __AUT_16__MKC_N | AI69: 1 | AJ69: ______ | AO69: =IF(ISNUMBER(SEARCH($F$6,AP69)),MAX($AO$11:AO68)+1,0) -> 58 | AP69: 0 | AQ69: =ROWS($AQ$12:AQ69) -> 58 | AR69: =IFERROR(VLOOKUP(ROWS($AR$12:AR69),$AO$12:$AP$3014,2,0),"") -> 0
AA70: =IFERROR(INDEX($AE$13:$AE$1003, SMALL(IF(ISBLANK($AE$13:$AE$1003)+ISERROR($AE$13:$AE$1003)+LEN($AE$13:$AE$1003)=0, "", ROW($AE$13:$AE$1003)-MIN(ROW($AE$13:$AE$1003))+1), ROW(59:59))),"") -> __AUT_16__RMA_N | AB70: =IF(AF71="","",IF(COUNTIF(CurrentListing,AF71)>1,AJ71,"")) ->  | AC70: =IF(LEN(AF71)=0,"",IF(ISNA(MATCH(AF71,MasterListing,0)),AJ71,"")) ->  | AE70: __AUT_16__RC_N | AG70: AUT16RCN | AH70: __AUT_16__RC_N | AI70: 1 | AJ70: ______ | AO70: =IF(ISNUMBER(SEARCH($F$6,AP70)),MAX($AO$11:AO69)+1,0) -> 59 | AP70: 0 | AQ70: =ROWS($AQ$12:AQ70) -> 59 | AR70: =IFERROR(VLOOKUP(ROWS($AR$12:AR70),$AO$12:$AP$3014,2,0),"") -> 0
AA71: =IFERROR(INDEX($AE$13:$AE$1003, SMALL(IF(ISBLANK($AE$13:$AE$1003)+ISERROR($AE$13:$AE$1003)+LEN($AE$13:$AE$1003)=0, "", ROW($AE$13:$AE$1003)-MIN(ROW($AE$13:$AE$1003))+1), ROW(60:60))),"") -> __AUT_16__TRAN_N | AB71: =IF(AF72="","",IF(COUNTIF(CurrentListing,AF72)>1,AJ72,"")) ->  | AC71: =IF(LEN(AF72)=0,"",IF(ISNA(MATCH(AF72,MasterListing,0)),AJ72,"")) ->  | AE71: __AUT_16__RMA_N | AG71: AUT16RMAN | AH71: __AUT_16__RMA_N | AI71: 1 | AJ71: ______ | AO71: =IF(ISNUMBER(SEARCH($F$6,AP71)),MAX($AO$11:AO70)+1,0) -> 60 | AP71: 0 | AQ71: =ROWS($AQ$12:AQ71) -> 60 | AR71: =IFERROR(VLOOKUP(ROWS($AR$12:AR71),$AO$12:$AP$3014,2,0),"") -> 0
AA72: =IFERROR(INDEX($AE$13:$AE$1003, SMALL(IF(ISBLANK($AE$13:$AE$1003)+ISERROR($AE$13:$AE$1003)+LEN($AE$13:$AE$1003)=0, "", ROW($AE$13:$AE$1003)-MIN(ROW($AE$13:$AE$1003))+1), ROW(61:61))),"") -> __AUT_17__D_N | AB72: =IF(AF73="","",IF(COUNTIF(CurrentListing,AF73)>1,AJ73,"")) ->  | AC72: =IF(LEN(AF73)=0,"",IF(ISNA(MATCH(AF73,MasterListing,0)),AJ73,"")) ->  | AE72: __AUT_16__TRAN_N | AG72: AUT16TRANN | AH72: __AUT_16__TRAN_N | AI72: 1 | AJ72: ______ | AO72: =IF(ISNUMBER(SEARCH($F$6,AP72)),MAX($AO$11:AO71)+1,0) -> 61 | AP72: 0 | AQ72: =ROWS($AQ$12:AQ72) -> 61 | AR72: =IFERROR(VLOOKUP(ROWS($AR$12:AR72),$AO$12:$AP$3014,2,0),"") -> 0
AA73: =IFERROR(INDEX($AE$13:$AE$1003, SMALL(IF(ISBLANK($AE$13:$AE$1003)+ISERROR($AE$13:$AE$1003)+LEN($AE$13:$AE$1003)=0, "", ROW($AE$13:$AE$1003)-MIN(ROW($AE$13:$AE$1003))+1), ROW(62:62))),"") -> __AUT_17__DROPOUT_N | AB73: =IF(AF74="","",IF(COUNTIF(CurrentListing,AF74)>1,AJ74,"")) ->  | AC73: =IF(LEN(AF74)=0,"",IF(ISNA(MATCH(AF74,MasterListing,0)),AJ74,"")) ->  | AE73: __AUT_17__D_N | AG73: AUT17DN | AH73: __AUT_17__D_N | AI73: 1 | AJ73: ______ | AO73: =IF(ISNUMBER(SEARCH($F$6,AP73)),MAX($AO$11:AO72)+1,0) -> 62 | AP73: 0 | AQ73: =ROWS($AQ$12:AQ73) -> 62 | AR73: =IFERROR(VLOOKUP(ROWS($AR$12:AR73),$AO$12:$AP$3014,2,0),"") -> 0
AA74: =IFERROR(INDEX($AE$13:$AE$1003, SMALL(IF(ISBLANK($AE$13:$AE$1003)+ISERROR($AE$13:$AE$1003)+LEN($AE$13:$AE$1003)=0, "", ROW($AE$13:$AE$1003)-MIN(ROW($AE$13:$AE$1003))+1), ROW(63:63))),"") -> __AUT_17__GHS_N | AB74: =IF(AF75="","",IF(COUNTIF(CurrentListing,AF75)>1,AJ75,"")) ->  | AC74: =IF(LEN(AF75)=0,"",IF(ISNA(MATCH(AF75,MasterListing,0)),AJ75,"")) ->  | AE74: __AUT_17__DROPOUT_N | AG74: AUT17DROPOUTN | AH74: __AUT_17__DROPOUT_N | AI74: 1 | AJ74: ______ | AO74: =IF(ISNUMBER(SEARCH($F$6,AP74)),MAX($AO$11:AO73)+1,0) -> 63 | AP74: 0 | AQ74: =ROWS($AQ$12:AQ74) -> 63 | AR74: =IFERROR(VLOOKUP(ROWS($AR$12:AR74),$AO$12:$AP$3014,2,0),"") -> 0
AA75: =IFERROR(INDEX($AE$13:$AE$1003, SMALL(IF(ISBLANK($AE$13:$AE$1003)+ISERROR($AE$13:$AE$1003)+LEN($AE$13:$AE$1003)=0, "", ROW($AE$13:$AE$1003)-MIN(ROW($AE$13:$AE$1003))+1), ROW(64:64))),"") -> __AUT_17__GRADALTDPL_N | AB75: =IF(AF76="","",IF(COUNTIF(CurrentListing,AF76)>1,AJ76,"")) ->  | AC75: =IF(LEN(AF76)=0,"",IF(ISNA(MATCH(AF76,MasterListing,0)),AJ76,"")) ->  | AE75: __AUT_17__GHS_N | AG75: AUT17GHSN | AH75: __AUT_17__GHS_N | AI75: 1 | AJ75: ______ | AO75: =IF(ISNUMBER(SEARCH($F$6,AP75)),MAX($AO$11:AO74)+1,0) -> 64 | AP75: 0 | AQ75: =ROWS($AQ$12:AQ75) -> 64 | AR75: =IFERROR(VLOOKUP(ROWS($AR$12:AR75),$AO$12:$AP$3014,2,0),"") -> 0
AA76: =IFERROR(INDEX($AE$13:$AE$1003, SMALL(IF(ISBLANK($AE$13:$AE$1003)+ISERROR($AE$13:$AE$1003)+LEN($AE$13:$AE$1003)=0, "", ROW($AE$13:$AE$1003)-MIN(ROW($AE$13:$AE$1003))+1), ROW(65:65))),"") -> __AUT_17__MKC_N | AB76: =IF(AF77="","",IF(COUNTIF(CurrentListing,AF77)>1,AJ77,"")) ->  | AC76: =IF(LEN(AF77)=0,"",IF(ISNA(MATCH(AF77,MasterListing,0)),AJ77,"")) ->  | AE76: =IF(LEN(AG76)=0,"",IF(ISNA(MATCH(AG76,CurrentListing,0)),AH76,"")) -> __AUT_17__GRADALTDPL_N | AG76: AUT17GRADALTDPLN | AH76: __AUT_17__GRADALTDPL_N | AI76: 1 | AJ76: ______ | AO76: =IF(ISNUMBER(SEARCH($F$6,AP76)),MAX($AO$11:AO75)+1,0) -> 65 | AP76: 0 | AQ76: =ROWS($AQ$12:AQ76) -> 65 | AR76: =IFERROR(VLOOKUP(ROWS($AR$12:AR76),$AO$12:$AP$3014,2,0),"") -> 0
AA77: =IFERROR(INDEX($AE$13:$AE$1003, SMALL(IF(ISBLANK($AE$13:$AE$1003)+ISERROR($AE$13:$AE$1003)+LEN($AE$13:$AE$1003)=0, "", ROW($AE$13:$AE$1003)-MIN(ROW($AE$13:$AE$1003))+1), ROW(66:66))),"") -> __AUT_17__RC_N | AB77: =IF(AF78="","",IF(COUNTIF(CurrentListing,AF78)>1,AJ78,"")) ->  | AC77: =IF(LEN(AF78)=0,"",IF(ISNA(MATCH(AF78,MasterListing,0)),AJ78,"")) ->  | AE77: __AUT_17__MKC_N | AF77: =H77&I77&P77&Q77&R77&V77&W77 ->  | AG77: AUT17MKCN | AH77: __AUT_17__MKC_N | AI77: 1 | AJ77: ______ | AO77: =IF(ISNUMBER(SEARCH($F$6,AP77)),MAX($AO$11:AO76)+1,0) -> 66 | AP77: 0 | AQ77: =ROWS($AQ$12:AQ77) -> 66 | AR77: =IFERROR(VLOOKUP(ROWS($AR$12:AR77),$AO$12:$AP$3014,2,0),"") -> 0
AA78: =IFERROR(INDEX($AE$13:$AE$1003, SMALL(IF(ISBLANK($AE$13:$AE$1003)+ISERROR($AE$13:$AE$1003)+LEN($AE$13:$AE$1003)=0, "", ROW($AE$13:$AE$1003)-MIN(ROW($AE$13:$AE$1003))+1), ROW(67:67))),"") -> __AUT_17__RMA_N | AB78: =IF(AF79="","",IF(COUNTIF(CurrentListing,AF79)>1,AJ79,"")) ->  | AC78: =IF(LEN(AF79)=0,"",IF(ISNA(MATCH(AF79,MasterListing,0)),AJ79,"")) ->  | AE78: __AUT_17__RC_N | AG78: AUT17RCN | AH78: __AUT_17__RC_N | AI78: =IF(LEN(AA78)>0,1,0) -> 1 | AJ78: =H78&"_"&I78&"_"&P78&"_"&Q78&"_"&R78&"_"&V78&"_"&W78 -> ______ | AO78: =IF(ISNUMBER(SEARCH($F$6,AP78)),MAX($AO$11:AO77)+1,0) -> 67 | AP78: 0 | AQ78: =ROWS($AQ$12:AQ78) -> 67 | AR78: =IFERROR(VLOOKUP(ROWS($AR$12:AR78),$AO$12:$AP$3014,2,0),"") -> 0
AA79: =IFERROR(INDEX($AE$13:$AE$1003, SMALL(IF(ISBLANK($AE$13:$AE$1003)+ISERROR($AE$13:$AE$1003)+LEN($AE$13:$AE$1003)=0, "", ROW($AE$13:$AE$1003)-MIN(ROW($AE$13:$AE$1003))+1), ROW(68:68))),"") -> __AUT_17__TRAN_N | AB79: =IF(AF80="","",IF(COUNTIF(CurrentListing,AF80)>1,AJ80,"")) ->  | AC79: =IF(LEN(AF80)=0,"",IF(ISNA(MATCH(AF80,MasterListing,0)),AJ80,"")) ->  | AE79: __AUT_17__RMA_N | AG79: AUT17RMAN | AH79: __AUT_17__RMA_N | AI79: 1 | AJ79: ______ | AO79: =IF(ISNUMBER(SEARCH($F$6,AP79)),MAX($AO$11:AO78)+1,0) -> 68 | AP79: 0 | AQ79: =ROWS($AQ$12:AQ79) -> 68 | AR79: =IFERROR(VLOOKUP(ROWS($AR$12:AR79),$AO$12:$AP$3014,2,0),"") -> 0
AA80: =IFERROR(INDEX($AE$13:$AE$1003, SMALL(IF(ISBLANK($AE$13:$AE$1003)+ISERROR($AE$13:$AE$1003)+LEN($AE$13:$AE$1003)=0, "", ROW($AE$13:$AE$1003)-MIN(ROW($AE$13:$AE$1003))+1), ROW(69:69))),"") -> __AUT_18__D_N | AB80: =IF(AF81="","",IF(COUNTIF(CurrentListing,AF81)>1,AJ81,"")) ->  | AC80: =IF(LEN(AF81)=0,"",IF(ISNA(MATCH(AF81,MasterListing,0)),AJ81,"")) ->  | AE80: __AUT_17__TRAN_N | AG80: AUT17TRANN | AH80: __AUT_17__TRAN_N | AI80: 1 | AJ80: ______ | AO80: =IF(ISNUMBER(SEARCH($F$6,AP80)),MAX($AO$11:AO79)+1,0) -> 69 | AP80: 0 | AQ80: =ROWS($AQ$12:AQ80) -> 69 | AR80: =IFERROR(VLOOKUP(ROWS($AR$12:AR80),$AO$12:$AP$3014,2,0),"") -> 0
AA81: =IFERROR(INDEX($AE$13:$AE$1003, SMALL(IF(ISBLANK($AE$13:$AE$1003)+ISERROR($AE$13:$AE$1003)+LEN($AE$13:$AE$1003)=0, "", ROW($AE$13:$AE$1003)-MIN(ROW($AE$13:$AE$1003))+1), ROW(70:70))),"") -> __AUT_18__DROPOUT_N | AB81: =IF(AF82="","",IF(COUNTIF(CurrentListing,AF82)>1,AJ82,"")) ->  | AC81: =IF(LEN(AF82)=0,"",IF(ISNA(MATCH(AF82,MasterListing,0)),AJ82,"")) ->  | AE81: __AUT_18__D_N | AG81: AUT18DN | AH81: __AUT_18__D_N | AI81: 1 | AJ81: ______ | AO81: =IF(ISNUMBER(SEARCH($F$6,AP81)),MAX($AO$11:AO80)+1,0) -> 70 | AP81: 0 | AQ81: =ROWS($AQ$12:AQ81) -> 70 | AR81: =IFERROR(VLOOKUP(ROWS($AR$12:AR81),$AO$12:$AP$3014,2,0),"") -> 0
AA82: =IFERROR(INDEX($AE$13:$AE$1003, SMALL(IF(ISBLANK($AE$13:$AE$1003)+ISERROR($AE$13:$AE$1003)+LEN($AE$13:$AE$1003)=0, "", ROW($AE$13:$AE$1003)-MIN(ROW($AE$13:$AE$1003))+1), ROW(71:71))),"") -> __AUT_18__GHS_N | AB82: =IF(AF83="","",IF(COUNTIF(CurrentListing,AF83)>1,AJ83,"")) ->  | AC82: =IF(LEN(AF83)=0,"",IF(ISNA(MATCH(AF83,MasterListing,0)),AJ83,"")) ->  | AE82: __AUT_18__DROPOUT_N | AG82: AUT18DROPOUTN | AH82: __AUT_18__DROPOUT_N | AI82: 1 | AJ82: ______ | AO82: =IF(ISNUMBER(SEARCH($F$6,AP82)),MAX($AO$11:AO81)+1,0) -> 71 | AP82: 0 | AQ82: =ROWS($AQ$12:AQ82) -> 71 | AR82: =IFERROR(VLOOKUP(ROWS($AR$12:AR82),$AO$12:$AP$3014,2,0),"") -> 0
AA83: =IFERROR(INDEX($AE$13:$AE$1003, SMALL(IF(ISBLANK($AE$13:$AE$1003)+ISERROR($AE$13:$AE$1003)+LEN($AE$13:$AE$1003)=0, "", ROW($AE$13:$AE$1003)-MIN(ROW($AE$13:$AE$1003))+1), ROW(72:72))),"") -> __AUT_18__GRADALTDPL_N | AB83: =IF(AF84="","",IF(COUNTIF(CurrentListing,AF84)>1,AJ84,"")) ->  | AC83: =IF(LEN(AF84)=0,"",IF(ISNA(MATCH(AF84,MasterListing,0)),AJ84,"")) ->  | AE83: __AUT_18__GHS_N | AG83: AUT18GHSN | AH83: __AUT_18__GHS_N | AI83: 1 | AJ83: ______ | AO83: =IF(ISNUMBER(SEARCH($F$6,AP83)),MAX($AO$11:AO82)+1,0) -> 72 | AP83: 0 | AQ83: =ROWS($AQ$12:AQ83) -> 72 | AR83: =IFERROR(VLOOKUP(ROWS($AR$12:AR83),$AO$12:$AP$3014,2,0),"") -> 0
AA84: =IFERROR(INDEX($AE$13:$AE$1003, SMALL(IF(ISBLANK($AE$13:$AE$1003)+ISERROR($AE$13:$AE$1003)+LEN($AE$13:$AE$1003)=0, "", ROW($AE$13:$AE$1003)-MIN(ROW($AE$13:$AE$1003))+1), ROW(73:73))),"") -> __AUT_18__MKC_N | AB84: =IF(AF85="","",IF(COUNTIF(CurrentListing,AF85)>1,AJ85,"")) ->  | AC84: =IF(LEN(AF85)=0,"",IF(ISNA(MATCH(AF85,MasterListing,0)),AJ85,"")) ->  | AE84: __AUT_18__GRADALTDPL_N | AG84: AUT18GRADALTDPLN | AH84: __AUT_18__GRADALTDPL_N | AI84: 1 | AJ84: ______ | AO84: =IF(ISNUMBER(SEARCH($F$6,AP84)),MAX($AO$11:AO83)+1,0) -> 73 | AP84: 0 | AQ84: =ROWS($AQ$12:AQ84) -> 73 | AR84: =IFERROR(VLOOKUP(ROWS($AR$12:AR84),$AO$12:$AP$3014,2,0),"") -> 0
AA85: =IFERROR(INDEX($AE$13:$AE$1003, SMALL(IF(ISBLANK($AE$13:$AE$1003)+ISERROR($AE$13:$AE$1003)+LEN($AE$13:$AE$1003)=0, "", ROW($AE$13:$AE$1003)-MIN(ROW($AE$13:$AE$1003))+1), ROW(74:74))),"") -> __AUT_18__RC_N | AB85: =IF(AF86="","",IF(COUNTIF(CurrentListing,AF86)>1,AJ86,"")) ->  | AC85: =IF(LEN(AF86)=0,"",IF(ISNA(MATCH(AF86,MasterListing,0)),AJ86,"")) ->  | AE85: __AUT_18__MKC_N | AG85: AUT18MKCN | AH85: __AUT_18__MKC_N | AI85: 1 | AJ85: ______ | AO85: =IF(ISNUMBER(SEARCH($F$6,AP85)),MAX($AO$11:AO84)+1,0) -> 74 | AP85: 0 | AQ85: =ROWS($AQ$12:AQ85) -> 74 | AR85: =IFERROR(VLOOKUP(ROWS($AR$12:AR85),$AO$12:$AP$3014,2,0),"") -> 0
AA86: =IFERROR(INDEX($AE$13:$AE$1003, SMALL(IF(ISBLANK($AE$13:$AE$1003)+ISERROR($AE$13:$AE$1003)+LEN($AE$13:$AE$1003)=0, "", ROW($AE$13:$AE$1003)-MIN(ROW($AE$13:$AE$1003))+1), ROW(75:75))),"") -> __AUT_18__RMA_N | AB86: =IF(AF87="","",IF(COUNTIF(CurrentListing,AF87)>1,AJ87,"")) ->  | AC86: =IF(LEN(AF87)=0,"",IF(ISNA(MATCH(AF87,MasterListing,0)),AJ87,"")) ->  | AE86: __AUT_18__RC_N | AG86: AUT18RCN | AH86: __AUT_18__RC_N | AI86: 1 | AJ86: ______ | AO86: =IF(ISNUMBER(SEARCH($F$6,AP86)),MAX($AO$11:AO85)+1,0) -> 75 | AP86: 0 | AQ86: =ROWS($AQ$12:AQ86) -> 75 | AR86: =IFERROR(VLOOKUP(ROWS($AR$12:AR86),$AO$12:$AP$3014,2,0),"") -> 0
AA87: =IFERROR(INDEX($AE$13:$AE$1003, SMALL(IF(ISBLANK($AE$13:$AE$1003)+ISERROR($AE$13:$AE$1003)+LEN($AE$13:$AE$1003)=0, "", ROW($AE$13:$AE$1003)-MIN(ROW($AE$13:$AE$1003))+1), ROW(76:76))),"") -> __AUT_18__TRAN_N | AB87: =IF(AF88="","",IF(COUNTIF(CurrentListing,AF88)>1,AJ88,"")) ->  | AC87: =IF(LEN(AF88)=0,"",IF(ISNA(MATCH(AF88,MasterListing,0)),AJ88,"")) ->  | AE87: __AUT_18__RMA_N | AG87: AUT18RMAN | AH87: __AUT_18__RMA_N | AI87: 1 | AJ87: ______ | AO87: =IF(ISNUMBER(SEARCH($F$6,AP87)),MAX($AO$11:AO86)+1,0) -> 76 | AP87: 0 | AQ87: =ROWS($AQ$12:AQ87) -> 76 | AR87: =IFERROR(VLOOKUP(ROWS($AR$12:AR87),$AO$12:$AP$3014,2,0),"") -> 0
AA88: =IFERROR(INDEX($AE$13:$AE$1003, SMALL(IF(ISBLANK($AE$13:$AE$1003)+ISERROR($AE$13:$AE$1003)+LEN($AE$13:$AE$1003)=0, "", ROW($AE$13:$AE$1003)-MIN(ROW($AE$13:$AE$1003))+1), ROW(77:77))),"") -> __AUT_19__D_N | AB88: =IF(AF89="","",IF(COUNTIF(CurrentListing,AF89)>1,AJ89,"")) ->  | AC88: =IF(LEN(AF89)=0,"",IF(ISNA(MATCH(AF89,MasterListing,0)),AJ89,"")) ->  | AE88: __AUT_18__TRAN_N | AG88: AUT18TRANN | AH88: __AUT_18__TRAN_N | AI88: 1 | AJ88: ______ | AO88: =IF(ISNUMBER(SEARCH($F$6,AP88)),MAX($AO$11:AO87)+1,0) -> 77 | AP88: 0 | AQ88: =ROWS($AQ$12:AQ88) -> 77 | AR88: =IFERROR(VLOOKUP(ROWS($AR$12:AR88),$AO$12:$AP$3014,2,0),"") -> 0
AA89: =IFERROR(INDEX($AE$13:$AE$1003, SMALL(IF(ISBLANK($AE$13:$AE$1003)+ISERROR($AE$13:$AE$1003)+LEN($AE$13:$AE$1003)=0, "", ROW($AE$13:$AE$1003)-MIN(ROW($AE$13:$AE$1003))+1), ROW(78:78))),"") -> __AUT_19__DROPOUT_N | AB89: =IF(AF90="","",IF(COUNTIF(CurrentListing,AF90)>1,AJ90,"")) ->  | AC89: =IF(LEN(AF90)=0,"",IF(ISNA(MATCH(AF90,MasterListing,0)),AJ90,"")) ->  | AE89: __AUT_19__D_N | AG89: AUT19DN | AH89: __AUT_19__D_N | AI89: 1 | AJ89: ______ | AO89: =IF(ISNUMBER(SEARCH($F$6,AP89)),MAX($AO$11:AO88)+1,0) -> 78 | AP89: 0 | AQ89: =ROWS($AQ$12:AQ89) -> 78 | AR89: =IFERROR(VLOOKUP(ROWS($AR$12:AR89),$AO$12:$AP$3014,2,0),"") -> 0
AA90: =IFERROR(INDEX($AE$13:$AE$1003, SMALL(IF(ISBLANK($AE$13:$AE$1003)+ISERROR($AE$13:$AE$1003)+LEN($AE$13:$AE$1003)=0, "", ROW($AE$13:$AE$1003)-MIN(ROW($AE$13:$AE$1003))+1), ROW(79:79))),"") -> __AUT_19__GHS_N | AB90: =IF(AF91="","",IF(COUNTIF(CurrentListing,AF91)>1,AJ91,"")) ->  | AC90: =IF(LEN(AF91)=0,"",IF(ISNA(MATCH(AF91,MasterListing,0)),AJ91,"")) ->  | AE90: __AUT_19__DROPOUT_N | AG90: AUT19DROPOUTN | AH90: __AUT_19__DROPOUT_N | AI90: 1 | AJ90: ______ | AO90: =IF(ISNUMBER(SEARCH($F$6,AP90)),MAX($AO$11:AO89)+1,0) -> 79 | AP90: 0 | AQ90: =ROWS($AQ$12:AQ90) -> 79 | AR90: =IFERROR(VLOOKUP(ROWS($AR$12:AR90),$AO$12:$AP$3014,2,0),"") -> 0
AA91: =IFERROR(INDEX($AE$13:$AE$1003, SMALL(IF(ISBLANK($AE$13:$AE$1003)+ISERROR($AE$13:$AE$1003)+LEN($AE$13:$AE$1003)=0, "", ROW($AE$13:$AE$1003)-MIN(ROW($AE$13:$AE$1003))+1), ROW(80:80))),"") -> __AUT_19__GRADALTDPL_N | AB91: =IF(AF92="","",IF(COUNTIF(CurrentListing,AF92)>1,AJ92,"")) ->  | AC91: =IF(LEN(AF92)=0,"",IF(ISNA(MATCH(AF92,MasterListing,0)),AJ92,"")) ->  | AE91: __AUT_19__GHS_N | AG91: AUT19GHSN | AH91: __AUT_19__GHS_N | AI91: 1 | AJ91: ______ | AO91: =IF(ISNUMBER(SEARCH($F$6,AP91)),MAX($AO$11:AO90)+1,0) -> 80 | AP91: 0 | AQ91: =ROWS($AQ$12:AQ91) -> 80 | AR91: =IFERROR(VLOOKUP(ROWS($AR$12:AR91),$AO$12:$AP$3014,2,0),"") -> 0
AA92: =IFERROR(INDEX($AE$13:$AE$1003, SMALL(IF(ISBLANK($AE$13:$AE$1003)+ISERROR($AE$13:$AE$1003)+LEN($AE$13:$AE$1003)=0, "", ROW($AE$13:$AE$1003)-MIN(ROW($AE$13:$AE$1003))+1), ROW(81:81))),"") -> __AUT_19__MKC_N | AB92: =IF(AF93="","",IF(COUNTIF(CurrentListing,AF93)>1,AJ93,"")) ->  | AC92: =IF(LEN(AF93)=0,"",IF(ISNA(MATCH(AF93,MasterListing,0)),AJ93,"")) ->  | AE92: __AUT_19__GRADALTDPL_N | AG92: AUT19GRADALTDPLN | AH92: __AUT_19__GRADALTDPL_N | AI92: 1 | AJ92: ______ | AO92: =IF(ISNUMBER(SEARCH($F$6,AP92)),MAX($AO$11:AO91)+1,0) -> 81 | AP92: 0 | AQ92: =ROWS($AQ$12:AQ92) -> 81 | AR92: =IFERROR(VLOOKUP(ROWS($AR$12:AR92),$AO$12:$AP$3014,2,0),"") -> 0
AA93: =IFERROR(INDEX($AE$13:$AE$1003, SMALL(IF(ISBLANK($AE$13:$AE$1003)+ISERROR($AE$13:$AE$1003)+LEN($AE$13:$AE$1003)=0, "", ROW($AE$13:$AE$1003)-MIN(ROW($AE$13:$AE$1003))+1), ROW(82:82))),"") -> __AUT_19__RC_N | AB93: =IF(AF94="","",IF(COUNTIF(CurrentListing,AF94)>1,AJ94,"")) ->  | AC93: =IF(LEN(AF94)=0,"",IF(ISNA(MATCH(AF94,MasterListing,0)),AJ94,"")) ->  | AE93: __AUT_19__MKC_N | AG93: AUT19MKCN | AH93: __AUT_19__MKC_N | AI93: 1 | AJ93: ______ | AO93: =IF(ISNUMBER(SEARCH($F$6,AP93)),MAX($AO$11:AO92)+1,0) -> 82 | AP93: 0 | AQ93: =ROWS($AQ$12:AQ93) -> 82 | AR93: =IFERROR(VLOOKUP(ROWS($AR$12:AR93),$AO$12:$AP$3014,2,0),"") -> 0
AA94: =IFERROR(INDEX($AE$13:$AE$1003, SMALL(IF(ISBLANK($AE$13:$AE$1003)+ISERROR($AE$13:$AE$1003)+LEN($AE$13:$AE$1003)=0, "", ROW($AE$13:$AE$1003)-MIN(ROW($AE$13:$AE$1003))+1), ROW(83:83))),"") -> __AUT_19__RMA_N | AB94: =IF(AF95="","",IF(COUNTIF(CurrentListing,AF95)>1,AJ95,"")) ->  | AC94: =IF(LEN(AF95)=0,"",IF(ISNA(MATCH(AF95,MasterListing,0)),AJ95,"")) ->  | AE94: __AUT_19__RC_N | AG94: AUT19RCN | AH94: __AUT_19__RC_N | AI94: 1 | AJ94: ______ | AO94: =IF(ISNUMBER(SEARCH($F$6,AP94)),MAX($AO$11:AO93)+1,0) -> 83 | AP94: 0 | AQ94: =ROWS($AQ$12:AQ94) -> 83 | AR94: =IFERROR(VLOOKUP(ROWS($AR$12:AR94),$AO$12:$AP$3014,2,0),"") -> 0
AA95: =IFERROR(INDEX($AE$13:$AE$1003, SMALL(IF(ISBLANK($AE$13:$AE$1003)+ISERROR($AE$13:$AE$1003)+LEN($AE$13:$AE$1003)=0, "", ROW($AE$13:$AE$1003)-MIN(ROW($AE$13:$AE$1003))+1), ROW(84:84))),"") -> __AUT_19__TRAN_N | AB95: =IF(AF96="","",IF(COUNTIF(CurrentListing,AF96)>1,AJ96,"")) ->  | AC95: =IF(LEN(AF96)=0,"",IF(ISNA(MATCH(AF96,MasterListing,0)),AJ96,"")) ->  | AE95: __AUT_19__RMA_N | AG95: AUT19RMAN | AH95: __AUT_19__RMA_N | AI95: 1 | AJ95: ______ | AO95: =IF(ISNUMBER(SEARCH($F$6,AP95)),MAX($AO$11:AO94)+1,0) -> 84 | AP95: 0 | AQ95: =ROWS($AQ$12:AQ95) -> 84 | AR95: =IFERROR(VLOOKUP(ROWS($AR$12:AR95),$AO$12:$AP$3014,2,0),"") -> 0
AA96: =IFERROR(INDEX($AE$13:$AE$1003, SMALL(IF(ISBLANK($AE$13:$AE$1003)+ISERROR($AE$13:$AE$1003)+LEN($AE$13:$AE$1003)=0, "", ROW($AE$13:$AE$1003)-MIN(ROW($AE$13:$AE$1003))+1), ROW(85:85))),"") -> __AUT_20__D_N | AB96: =IF(AF97="","",IF(COUNTIF(CurrentListing,AF97)>1,AJ97,"")) ->  | AC96: =IF(LEN(AF97)=0,"",IF(ISNA(MATCH(AF97,MasterListing,0)),AJ97,"")) ->  | AE96: __AUT_19__TRAN_N | AG96: AUT19TRANN | AH96: __AUT_19__TRAN_N | AI96: 1 | AJ96: ______ | AO96: =IF(ISNUMBER(SEARCH($F$6,AP96)),MAX($AO$11:AO95)+1,0) -> 85 | AP96: 0 | AQ96: =ROWS($AQ$12:AQ96) -> 85 | AR96: =IFERROR(VLOOKUP(ROWS($AR$12:AR96),$AO$12:$AP$3014,2,0),"") -> 0
AA97: =IFERROR(INDEX($AE$13:$AE$1003, SMALL(IF(ISBLANK($AE$13:$AE$1003)+ISERROR($AE$13:$AE$1003)+LEN($AE$13:$AE$1003)=0, "", ROW($AE$13:$AE$1003)-MIN(ROW($AE$13:$AE$1003))+1), ROW(86:86))),"") -> __AUT_20__DROPOUT_N | AB97: =IF(AF98="","",IF(COUNTIF(CurrentListing,AF98)>1,AJ98,"")) ->  | AC97: =IF(LEN(AF98)=0,"",IF(ISNA(MATCH(AF98,MasterListing,0)),AJ98,"")) ->  | AE97: __AUT_20__D_N | AG97: AUT20DN | AH97: __AUT_20__D_N | AI97: 1 | AJ97: ______ | AO97: =IF(ISNUMBER(SEARCH($F$6,AP97)),MAX($AO$11:AO96)+1,0) -> 86 | AP97: 0 | AQ97: =ROWS($AQ$12:AQ97) -> 86 | AR97: =IFERROR(VLOOKUP(ROWS($AR$12:AR97),$AO$12:$AP$3014,2,0),"") -> 0
AA98: =IFERROR(INDEX($AE$13:$AE$1003, SMALL(IF(ISBLANK($AE$13:$AE$1003)+ISERROR($AE$13:$AE$1003)+LEN($AE$13:$AE$1003)=0, "", ROW($AE$13:$AE$1003)-MIN(ROW($AE$13:$AE$1003))+1), ROW(87:87))),"") -> __AUT_20__GHS_N | AB98: =IF(AF99="","",IF(COUNTIF(CurrentListing,AF99)>1,AJ99,"")) ->  | AC98: =IF(LEN(AF99)=0,"",IF(ISNA(MATCH(AF99,MasterListing,0)),AJ99,"")) ->  | AE98: __AUT_20__DROPOUT_N | AG98: AUT20DROPOUTN | AH98: __AUT_20__DROPOUT_N | AI98: 1 | AJ98: ______ | AO98: =IF(ISNUMBER(SEARCH($F$6,AP98)),MAX($AO$11:AO97)+1,0) -> 87 | AP98: 0 | AQ98: =ROWS($AQ$12:AQ98) -> 87 | AR98: =IFERROR(VLOOKUP(ROWS($AR$12:AR98),$AO$12:$AP$3014,2,0),"") -> 0
AA99: =IFERROR(INDEX($AE$13:$AE$1003, SMALL(IF(ISBLANK($AE$13:$AE$1003)+ISERROR($AE$13:$AE$1003)+LEN($AE$13:$AE$1003)=0, "", ROW($AE$13:$AE$1003)-MIN(ROW($AE$13:$AE$1003))+1), ROW(88:88))),"") -> __AUT_20__GRADALTDPL_N | AB99: =IF(AF100="","",IF(COUNTIF(CurrentListing,AF100)>1,AJ100,"")) ->  | AC99: =IF(LEN(AF100)=0,"",IF(ISNA(MATCH(AF100,MasterListing,0)),AJ100,"")) ->  | AE99: __AUT_20__GHS_N | AG99: AUT20GHSN | AH99: __AUT_20__GHS_N | AI99: 1 | AJ99: ______ | AO99: =IF(ISNUMBER(SEARCH($F$6,AP99)),MAX($AO$11:AO98)+1,0) -> 88 | AP99: 0 | AQ99: =ROWS($AQ$12:AQ99) -> 88 | AR99: =IFERROR(VLOOKUP(ROWS($AR$12:AR99),$AO$12:$AP$3014,2,0),"") -> 0
AA100: =IFERROR(INDEX($AE$13:$AE$1003, SMALL(IF(ISBLANK($AE$13:$AE$1003)+ISERROR($AE$13:$AE$1003)+LEN($AE$13:$AE$1003)=0, "", ROW($AE$13:$AE$1003)-MIN(ROW($AE$13:$AE$1003))+1), ROW(89:89))),"") -> __AUT_20__MKC_N | AB100: =IF(AF101="","",IF(COUNTIF(CurrentListing,AF101)>1,AJ101,"")) ->  | AC100: =IF(LEN(AF101)=0,"",IF(ISNA(MATCH(AF101,MasterListing,0)),AJ101,"")) ->  | AE100: __AUT_20__GRADALTDPL_N | AG100: AUT20GRADALTDPLN | AH100: __AUT_20__GRADALTDPL_N | AI100: 1 | AJ100: ______ | AO100: =IF(ISNUMBER(SEARCH($F$6,AP100)),MAX($AO$11:AO99)+1,0) -> 89 | AP100: 0 | AQ100: =ROWS($AQ$12:AQ100) -> 89 | AR100: =IFERROR(VLOOKUP(ROWS($AR$12:AR100),$AO$12:$AP$3014,2,0),"") -> 0
AA101: =IFERROR(INDEX($AE$13:$AE$1003, SMALL(IF(ISBLANK($AE$13:$AE$1003)+ISERROR($AE$13:$AE$1003)+LEN($AE$13:$AE$1003)=0, "", ROW($AE$13:$AE$1003)-MIN(ROW($AE$13:$AE$1003))+1), ROW(90:90))),"") -> __AUT_20__RC_N | AB101: =IF(AF102="","",IF(COUNTIF(CurrentListing,AF102)>1,AJ102,"")) ->  | AC101: =IF(LEN(AF102)=0,"",IF(ISNA(MATCH(AF102,MasterListing,0)),AJ102,"")) ->  | AE101: __AUT_20__MKC_N | AG101: AUT20MKCN | AH101: __AUT_20__MKC_N | AI101: 1 | AJ101: ______ | AO101: =IF(ISNUMBER(SEARCH($F$6,AP101)),MAX($AO$11:AO100)+1,0) -> 90 | AP101: 0 | AQ101: =ROWS($AQ$12:AQ101) -> 90 | AR101: =IFERROR(VLOOKUP(ROWS($AR$12:AR101),$AO$12:$AP$3014,2,0),"") -> 0
AA102: =IFERROR(INDEX($AE$13:$AE$1003, SMALL(IF(ISBLANK($AE$13:$AE$1003)+ISERROR($AE$13:$AE$1003)+LEN($AE$13:$AE$1003)=0, "", ROW($AE$13:$AE$1003)-MIN(ROW($AE$13:$AE$1003))+1), ROW(91:91))),"") -> __AUT_20__RMA_N | AB102: =IF(AF103="","",IF(COUNTIF(CurrentListing,AF103)>1,AJ103,"")) ->  | AC102: =IF(LEN(AF103)=0,"",IF(ISNA(MATCH(AF103,MasterListing,0)),AJ103,"")) ->  | AE102: __AUT_20__RC_N | AG102: AUT20RCN | AH102: __AUT_20__RC_N | AI102: 1 | AJ102: ______ | AO102: =IF(ISNUMBER(SEARCH($F$6,AP102)),MAX($AO$11:AO101)+1,0) -> 91 | AP102: 0 | AQ102: =ROWS($AQ$12:AQ102) -> 91 | AR102: =IFERROR(VLOOKUP(ROWS($AR$12:AR102),$AO$12:$AP$3014,2,0),"") -> 0
AA103: =IFERROR(INDEX($AE$13:$AE$1003, SMALL(IF(ISBLANK($AE$13:$AE$1003)+ISERROR($AE$13:$AE$1003)+LEN($AE$13:$AE$1003)=0, "", ROW($AE$13:$AE$1003)-MIN(ROW($AE$13:$AE$1003))+1), ROW(92:92))),"") -> __AUT_20__TRAN_N | AB103: =IF(AF104="","",IF(COUNTIF(CurrentListing,AF104)>1,AJ104,"")) ->  | AC103: =IF(LEN(AF104)=0,"",IF(ISNA(MATCH(AF104,MasterListing,0)),AJ104,"")) ->  | AE103: __AUT_20__RMA_N | AG103: AUT20RMAN | AH103: __AUT_20__RMA_N | AI103: 1 | AJ103: ______ | AO103: =IF(ISNUMBER(SEARCH($F$6,AP103)),MAX($AO$11:AO102)+1,0) -> 92 | AP103: 0 | AQ103: =ROWS($AQ$12:AQ103) -> 92 | AR103: =IFERROR(VLOOKUP(ROWS($AR$12:AR103),$AO$12:$AP$3014,2,0),"") -> 0
AA104: =IFERROR(INDEX($AE$13:$AE$1003, SMALL(IF(ISBLANK($AE$13:$AE$1003)+ISERROR($AE$13:$AE$1003)+LEN($AE$13:$AE$1003)=0, "", ROW($AE$13:$AE$1003)-MIN(ROW($AE$13:$AE$1003))+1), ROW(93:93))),"") -> __AUT_21__D_N | AB104: =IF(AF105="","",IF(COUNTIF(CurrentListing,AF105)>1,AJ105,"")) ->  | AC104: =IF(LEN(AF105)=0,"",IF(ISNA(MATCH(AF105,MasterListing,0)),AJ105,"")) ->  | AE104: __AUT_20__TRAN_N | AG104: AUT20TRANN | AH104: __AUT_20__TRAN_N | AI104: 1 | AJ104: ______ | AO104: =IF(ISNUMBER(SEARCH($F$6,AP104)),MAX($AO$11:AO103)+1,0) -> 93 | AP104: 0 | AQ104: =ROWS($AQ$12:AQ104) -> 93 | AR104: =IFERROR(VLOOKUP(ROWS($AR$12:AR104),$AO$12:$AP$3014,2,0),"") -> 0
AA105: =IFERROR(INDEX($AE$13:$AE$1003, SMALL(IF(ISBLANK($AE$13:$AE$1003)+ISERROR($AE$13:$AE$1003)+LEN($AE$13:$AE$1003)=0, "", ROW($AE$13:$AE$1003)-MIN(ROW($AE$13:$AE$1003))+1), ROW(94:94))),"") -> __AUT_21__DROPOUT_N | AB105: =IF(AF106="","",IF(COUNTIF(CurrentListing,AF106)>1,AJ106,"")) ->  | AC105: =IF(LEN(AF106)=0,"",IF(ISNA(MATCH(AF106,MasterListing,0)),AJ106,"")) ->  | AE105: __AUT_21__D_N | AG105: AUT21DN | AH105: __AUT_21__D_N | AI105: 1 | AJ105: ______ | AO105: =IF(ISNUMBER(SEARCH($F$6,AP105)),MAX($AO$11:AO104)+1,0) -> 94 | AP105: 0 | AQ105: =ROWS($AQ$12:AQ105) -> 94 | AR105: =IFERROR(VLOOKUP(ROWS($AR$12:AR105),$AO$12:$AP$3014,2,0),"") -> 0
AA106: =IFERROR(INDEX($AE$13:$AE$1003, SMALL(IF(ISBLANK($AE$13:$AE$1003)+ISERROR($AE$13:$AE$1003)+LEN($AE$13:$AE$1003)=0, "", ROW($AE$13:$AE$1003)-MIN(ROW($AE$13:$AE$1003))+1), ROW(95:95))),"") -> __AUT_21__GHS_N | AB106: =IF(AF107="","",IF(COUNTIF(CurrentListing,AF107)>1,AJ107,"")) ->  | AC106: =IF(LEN(AF107)=0,"",IF(ISNA(MATCH(AF107,MasterListing,0)),AJ107,"")) ->  | AE106: __AUT_21__DROPOUT_N | AG106: AUT21DROPOUTN | AH106: __AUT_21__DROPOUT_N | AI106: 1 | AJ106: ______ | AO106: =IF(ISNUMBER(SEARCH($F$6,AP106)),MAX($AO$11:AO105)+1,0) -> 95 | AP106: 0 | AQ106: =ROWS($AQ$12:AQ106) -> 95 | AR106: =IFERROR(VLOOKUP(ROWS($AR$12:AR106),$AO$12:$AP$3014,2,0),"") -> 0
AA107: =IFERROR(INDEX($AE$13:$AE$1003, SMALL(IF(ISBLANK($AE$13:$AE$1003)+ISERROR($AE$13:$AE$1003)+LEN($AE$13:$AE$1003)=0, "", ROW($AE$13:$AE$1003)-MIN(ROW($AE$13:$AE$1003))+1), ROW(96:96))),"") -> __AUT_21__GRADALTDPL_N | AB107: =IF(AF108="","",IF(COUNTIF(CurrentListing,AF108)>1,AJ108,"")) ->  | AC107: =IF(LEN(AF108)=0,"",IF(ISNA(MATCH(AF108,MasterListing,0)),AJ108,"")) ->  | AE107: __AUT_21__GHS_N | AG107: AUT21GHSN | AH107: __AUT_21__GHS_N | AI107: 1 | AJ107: ______ | AO107: =IF(ISNUMBER(SEARCH($F$6,AP107)),MAX($AO$11:AO106)+1,0) -> 96 | AP107: 0 | AQ107: =ROWS($AQ$12:AQ107) -> 96 | AR107: =IFERROR(VLOOKUP(ROWS($AR$12:AR107),$AO$12:$AP$3014,2,0),"") -> 0
AA108: =IFERROR(INDEX($AE$13:$AE$1003, SMALL(IF(ISBLANK($AE$13:$AE$1003)+ISERROR($AE$13:$AE$1003)+LEN($AE$13:$AE$1003)=0, "", ROW($AE$13:$AE$1003)-MIN(ROW($AE$13:$AE$1003))+1), ROW(97:97))),"") -> __AUT_21__MKC_N | AB108: =IF(AF109="","",IF(COUNTIF(CurrentListing,AF109)>1,AJ109,"")) ->  | AC108: =IF(LEN(AF109)=0,"",IF(ISNA(MATCH(AF109,MasterListing,0)),AJ109,"")) ->  | AE108: __AUT_21__GRADALTDPL_N | AG108: AUT21GRADALTDPLN | AH108: __AUT_21__GRADALTDPL_N | AI108: 1 | AJ108: ______ | AO108: =IF(ISNUMBER(SEARCH($F$6,AP108)),MAX($AO$11:AO107)+1,0) -> 97 | AP108: 0 | AQ108: =ROWS($AQ$12:AQ108) -> 97 | AR108: =IFERROR(VLOOKUP(ROWS($AR$12:AR108),$AO$12:$AP$3014,2,0),"") -> 0
AA109: =IFERROR(INDEX($AE$13:$AE$1003, SMALL(IF(ISBLANK($AE$13:$AE$1003)+ISERROR($AE$13:$AE$1003)+LEN($AE$13:$AE$1003)=0, "", ROW($AE$13:$AE$1003)-MIN(ROW($AE$13:$AE$1003))+1), ROW(98:98))),"") -> __AUT_21__RC_N | AB109: =IF(AF110="","",IF(COUNTIF(CurrentListing,AF110)>1,AJ110,"")) ->  | AC109: =IF(LEN(AF110)=0,"",IF(ISNA(MATCH(AF110,MasterListing,0)),AJ110,"")) ->  | AE109: __AUT_21__MKC_N | AG109: AUT21MKCN | AH109: __AUT_21__MKC_N | AI109: 1 | AJ109: ______ | AO109: =IF(ISNUMBER(SEARCH($F$6,AP109)),MAX($AO$11:AO108)+1,0) -> 98 | AP109: 0 | AQ109: =ROWS($AQ$12:AQ109) -> 98 | AR109: =IFERROR(VLOOKUP(ROWS($AR$12:AR109),$AO$12:$AP$3014,2,0),"") -> 0
AA110: =IFERROR(INDEX($AE$13:$AE$1003, SMALL(IF(ISBLANK($AE$13:$AE$1003)+ISERROR($AE$13:$AE$1003)+LEN($AE$13:$AE$1003)=0, "", ROW($AE$13:$AE$1003)-MIN(ROW($AE$13:$AE$1003))+1), ROW(99:99))),"") -> __AUT_21__RMA_N | AB110: =IF(AF111="","",IF(COUNTIF(CurrentListing,AF111)>1,AJ111,"")) ->  | AC110: =IF(LEN(AF111)=0,"",IF(ISNA(MATCH(AF111,MasterListing,0)),AJ111,"")) ->  | AE110: __AUT_21__RC_N | AG110: AUT21RCN | AH110: __AUT_21__RC_N | AI110: 1 | AJ110: ______ | AO110: =IF(ISNUMBER(SEARCH($F$6,AP110)),MAX($AO$11:AO109)+1,0) -> 99 | AP110: 0 | AQ110: =ROWS($AQ$12:AQ110) -> 99 | AR110: =IFERROR(VLOOKUP(ROWS($AR$12:AR110),$AO$12:$AP$3014,2,0),"") -> 0
AA111: =IFERROR(INDEX($AE$13:$AE$1003, SMALL(IF(ISBLANK($AE$13:$AE$1003)+ISERROR($AE$13:$AE$1003)+LEN($AE$13:$AE$1003)=0, "", ROW($AE$13:$AE$1003)-MIN(ROW($AE$13:$AE$1003))+1), ROW(100:100))),"") -> __AUT_21__TRAN_N | AB111: =IF(AF112="","",IF(COUNTIF(CurrentListing,AF112)>1,AJ112,"")) ->  | AC111: =IF(LEN(AF112)=0,"",IF(ISNA(MATCH(AF112,MasterListing,0)),AJ112,"")) ->  | AE111: __AUT_21__RMA_N | AG111: AUT21RMAN | AH111: __AUT_21__RMA_N | AI111: 1 | AJ111: ______ | AO111: =IF(ISNUMBER(SEARCH($F$6,AP111)),MAX($AO$11:AO110)+1,0) -> 100 | AP111: 0 | AQ111: =ROWS($AQ$12:AQ111) -> 100 | AR111: =IFERROR(VLOOKUP(ROWS($AR$12:AR111),$AO$12:$AP$3014,2,0),"") -> 0
AA112: =IFERROR(INDEX($AE$13:$AE$1003, SMALL(IF(ISBLANK($AE$13:$AE$1003)+ISERROR($AE$13:$AE$1003)+LEN($AE$13:$AE$1003)=0, "", ROW($AE$13:$AE$1003)-MIN(ROW($AE$13:$AE$1003))+1), ROW(101:101))),"") -> __DB____Y | AB112: =IF(AF113="","",IF(COUNTIF(CurrentListing,AF113)>1,AJ113,"")) ->  | AC112: =IF(LEN(AF113)=0,"",IF(ISNA(MATCH(AF113,MasterListing,0)),AJ113,"")) ->  | AE112: __AUT_21__TRAN_N | AG112: AUT21TRANN | AH112: __AUT_21__TRAN_N | AI112: 1 | AJ112: ______ | AO112: =IF(ISNUMBER(SEARCH($F$6,AP112)),MAX($AO$11:AO111)+1,0) -> 101 | AP112: 0 | AQ112: =ROWS($AQ$12:AQ112) -> 101 | AR112: =IFERROR(VLOOKUP(ROWS($AR$12:AR112),$AO$12:$AP$3014,2,0),"") -> 0
AA113: =IFERROR(INDEX($AE$13:$AE$1003, SMALL(IF(ISBLANK($AE$13:$AE$1003)+ISERROR($AE$13:$AE$1003)+LEN($AE$13:$AE$1003)=0, "", ROW($AE$13:$AE$1003)-MIN(ROW($AE$13:$AE$1003))+1), ROW(102:102))),"") -> __DB_14__D_N | AB113: =IF(AF114="","",IF(COUNTIF(CurrentListing,AF114)>1,AJ114,"")) ->  | AC113: =IF(LEN(AF114)=0,"",IF(ISNA(MATCH(AF114,MasterListing,0)),AJ114,"")) ->  | AE113: __DB____Y | AG113: DBY | AH113: __DB____Y | AI113: 1 | AJ113: ______ | AO113: =IF(ISNUMBER(SEARCH($F$6,AP113)),MAX($AO$11:AO112)+1,0) -> 102 | AP113: 0 | AQ113: =ROWS($AQ$12:AQ113) -> 102 | AR113: =IFERROR(VLOOKUP(ROWS($AR$12:AR113),$AO$12:$AP$3014,2,0),"") -> 0
AA114: =IFERROR(INDEX($AE$13:$AE$1003, SMALL(IF(ISBLANK($AE$13:$AE$1003)+ISERROR($AE$13:$AE$1003)+LEN($AE$13:$AE$1003)=0, "", ROW($AE$13:$AE$1003)-MIN(ROW($AE$13:$AE$1003))+1), ROW(103:103))),"") -> __DB_14__DROPOUT_N | AB114: =IF(AF115="","",IF(COUNTIF(CurrentListing,AF115)>1,AJ115,"")) ->  | AC114: =IF(LEN(AF115)=0,"",IF(ISNA(MATCH(AF115,MasterListing,0)),AJ115,"")) ->  | AE114: __DB_14__D_N | AG114: DB14DN | AH114: __DB_14__D_N | AI114: 1 | AJ114: ______ | AO114: =IF(ISNUMBER(SEARCH($F$6,AP114)),MAX($AO$11:AO113)+1,0) -> 103 | AP114: 0 | AQ114: =ROWS($AQ$12:AQ114) -> 103 | AR114: =IFERROR(VLOOKUP(ROWS($AR$12:AR114),$AO$12:$AP$3014,2,0),"") -> 0
AA115: =IFERROR(INDEX($AE$13:$AE$1003, SMALL(IF(ISBLANK($AE$13:$AE$1003)+ISERROR($AE$13:$AE$1003)+LEN($AE$13:$AE$1003)=0, "", ROW($AE$13:$AE$1003)-MIN(ROW($AE$13:$AE$1003))+1), ROW(104:104))),"") -> __DB_14__GHS_N | AB115: =IF(AF116="","",IF(COUNTIF(CurrentListing,AF116)>1,AJ116,"")) ->  | AC115: =IF(LEN(AF116)=0,"",IF(ISNA(MATCH(AF116,MasterListing,0)),AJ116,"")) ->  | AE115: __DB_14__DROPOUT_N | AG115: DB14DROPOUTN | AH115: __DB_14__DROPOUT_N | AI115: 1 | AJ115: ______ | AO115: =IF(ISNUMBER(SEARCH($F$6,AP115)),MAX($AO$11:AO114)+1,0) -> 104 | AP115: 0 | AQ115: =ROWS($AQ$12:AQ115) -> 104 | AR115: =IFERROR(VLOOKUP(ROWS($AR$12:AR115),$AO$12:$AP$3014,2,0),"") -> 0
AA116: =IFERROR(INDEX($AE$13:$AE$1003, SMALL(IF(ISBLANK($AE$13:$AE$1003)+ISERROR($AE$13:$AE$1003)+LEN($AE$13:$AE$1003)=0, "", ROW($AE$13:$AE$1003)-MIN(ROW($AE$13:$AE$1003))+1), ROW(105:105))),"") -> __DB_14__GRADALTDPL_N | AB116: =IF(AF117="","",IF(COUNTIF(CurrentListing,AF117)>1,AJ117,"")) ->  | AC116: =IF(LEN(AF117)=0,"",IF(ISNA(MATCH(AF117,MasterListing,0)),AJ117,"")) ->  | AE116: __DB_14__GHS_N | AG116: DB14GHSN | AH116: __DB_14__GHS_N | AI116: 1 | AJ116: ______ | AO116: =IF(ISNUMBER(SEARCH($F$6,AP116)),MAX($AO$11:AO115)+1,0) -> 105 | AP116: 0 | AQ116: =ROWS($AQ$12:AQ116) -> 105 | AR116: =IFERROR(VLOOKUP(ROWS($AR$12:AR116),$AO$12:$AP$3014,2,0),"") -> 0
AA117: =IFERROR(INDEX($AE$13:$AE$1003, SMALL(IF(ISBLANK($AE$13:$AE$1003)+ISERROR($AE$13:$AE$1003)+LEN($AE$13:$AE$1003)=0, "", ROW($AE$13:$AE$1003)-MIN(ROW($AE$13:$AE$1003))+1), ROW(106:106))),"") -> __DB_14__MKC_N | AB117: =IF(AF118="","",IF(COUNTIF(CurrentListing,AF118)>1,AJ118,"")) ->  | AC117: =IF(LEN(AF118)=0,"",IF(ISNA(MATCH(AF118,MasterListing,0)),AJ118,"")) ->  | AE117: __DB_14__GRADALTDPL_N | AG117: DB14GRADALTDPLN | AH117: __DB_14__GRADALTDPL_N | AI117: 1 | AJ117: ______ | AO117: =IF(ISNUMBER(SEARCH($F$6,AP117)),MAX($AO$11:AO116)+1,0) -> 106 | AP117: 0 | AQ117: =ROWS($AQ$12:AQ117) -> 106 | AR117: =IFERROR(VLOOKUP(ROWS($AR$12:AR117),$AO$12:$AP$3014,2,0),"") -> 0
AA118: =IFERROR(INDEX($AE$13:$AE$1003, SMALL(IF(ISBLANK($AE$13:$AE$1003)+ISERROR($AE$13:$AE$1003)+LEN($AE$13:$AE$1003)=0, "", ROW($AE$13:$AE$1003)-MIN(ROW($AE$13:$AE$1003))+1), ROW(107:107))),"") -> __DB_14__RC_N | AB118: =IF(AF119="","",IF(COUNTIF(CurrentListing,AF119)>1,AJ119,"")) ->  | AC118: =IF(LEN(AF119)=0,"",IF(ISNA(MATCH(AF119,MasterListing,0)),AJ119,"")) ->  | AE118: __DB_14__MKC_N | AG118: DB14MKCN | AH118: __DB_14__MKC_N | AI118: 1 | AJ118: ______ | AO118: =IF(ISNUMBER(SEARCH($F$6,AP118)),MAX($AO$11:AO117)+1,0) -> 107 | AP118: 0 | AQ118: =ROWS($AQ$12:AQ118) -> 107 | AR118: =IFERROR(VLOOKUP(ROWS($AR$12:AR118),$AO$12:$AP$3014,2,0),"") -> 0
AA119: =IFERROR(INDEX($AE$13:$AE$1003, SMALL(IF(ISBLANK($AE$13:$AE$1003)+ISERROR($AE$13:$AE$1003)+LEN($AE$13:$AE$1003)=0, "", ROW($AE$13:$AE$1003)-MIN(ROW($AE$13:$AE$1003))+1), ROW(108:108))),"") -> __DB_14__RMA_N | AB119: =IF(AF120="","",IF(COUNTIF(CurrentListing,AF120)>1,AJ120,"")) ->  | AC119: =IF(LEN(AF120)=0,"",IF(ISNA(MATCH(AF120,MasterListing,0)),AJ120,"")) ->  | AE119: __DB_14__RC_N | AG119: DB14RCN | AH119: __DB_14__RC_N | AI119: 1 | AJ119: ______ | AO119: =IF(ISNUMBER(SEARCH($F$6,AP119)),MAX($AO$11:AO118)+1,0) -> 108 | AP119: 0 | AQ119: =ROWS($AQ$12:AQ119) -> 108 | AR119: =IFERROR(VLOOKUP(ROWS($AR$12:AR119),$AO$12:$AP$3014,2,0),"") -> 0
AA120: =IFERROR(INDEX($AE$13:$AE$1003, SMALL(IF(ISBLANK($AE$13:$AE$1003)+ISERROR($AE$13:$AE$1003)+LEN($AE$13:$AE$1003)=0, "", ROW($AE$13:$AE$1003)-MIN(ROW($AE$13:$AE$1003))+1), ROW(109:109))),"") -> __DB_14__TRAN_N | AB120: =IF(AF121="","",IF(COUNTIF(CurrentListing,AF121)>1,AJ121,"")) ->  | AC120: =IF(LEN(AF121)=0,"",IF(ISNA(MATCH(AF121,MasterListing,0)),AJ121,"")) ->  | AE120: __DB_14__RMA_N | AG120: DB14RMAN | AH120: __DB_14__RMA_N | AI120: 1 | AJ120: ______ | AO120: =IF(ISNUMBER(SEARCH($F$6,AP120)),MAX($AO$11:AO119)+1,0) -> 109 | AP120: 0 | AQ120: =ROWS($AQ$12:AQ120) -> 109 | AR120: =IFERROR(VLOOKUP(ROWS($AR$12:AR120),$AO$12:$AP$3014,2,0),"") -> 0
AA121: =IFERROR(INDEX($AE$13:$AE$1003, SMALL(IF(ISBLANK($AE$13:$AE$1003)+ISERROR($AE$13:$AE$1003)+LEN($AE$13:$AE$1003)=0, "", ROW($AE$13:$AE$1003)-MIN(ROW($AE$13:$AE$1003))+1), ROW(110:110))),"") -> __DB_15__D_N | AB121: =IF(AF122="","",IF(COUNTIF(CurrentListing,AF122)>1,AJ122,"")) ->  | AC121: =IF(LEN(AF122)=0,"",IF(ISNA(MATCH(AF122,MasterListing,0)),AJ122,"")) ->  | AE121: __DB_14__TRAN_N | AG121: DB14TRANN | AH121: __DB_14__TRAN_N | AI121: 1 | AJ121: ______ | AO121: =IF(ISNUMBER(SEARCH($F$6,AP121)),MAX($AO$11:AO120)+1,0) -> 110 | AP121: 0 | AQ121: =ROWS($AQ$12:AQ121) -> 110 | AR121: =IFERROR(VLOOKUP(ROWS($AR$12:AR121),$AO$12:$AP$3014,2,0),"") -> 0
AA122: =IFERROR(INDEX($AE$13:$AE$1003, SMALL(IF(ISBLANK($AE$13:$AE$1003)+ISERROR($AE$13:$AE$1003)+LEN($AE$13:$AE$1003)=0, "", ROW($AE$13:$AE$1003)-MIN(ROW($AE$13:$AE$1003))+1), ROW(111:111))),"") -> __DB_15__DROPOUT_N | AB122: =IF(AF123="","",IF(COUNTIF(CurrentListing,AF123)>1,AJ123,"")) ->  | AC122: =IF(LEN(AF123)=0,"",IF(ISNA(MATCH(AF123,MasterListing,0)),AJ123,"")) ->  | AE122: __DB_15__D_N | AG122: DB15DN | AH122: __DB_15__D_N | AI122: 1 | AJ122: ______ | AO122: =IF(ISNUMBER(SEARCH($F$6,AP122)),MAX($AO$11:AO121)+1,0) -> 111 | AP122: 0 | AQ122: =ROWS($AQ$12:AQ122) -> 111 | AR122: =IFERROR(VLOOKUP(ROWS($AR$12:AR122),$AO$12:$AP$3014,2,0),"") -> 0
AA123: =IFERROR(INDEX($AE$13:$AE$1003, SMALL(IF(ISBLANK($AE$13:$AE$1003)+ISERROR($AE$13:$AE$1003)+LEN($AE$13:$AE$1003)=0, "", ROW($AE$13:$AE$1003)-MIN(ROW($AE$13:$AE$1003))+1), ROW(112:112))),"") -> __DB_15__GHS_N | AB123: =IF(AF124="","",IF(COUNTIF(CurrentListing,AF124)>1,AJ124,"")) ->  | AC123: =IF(LEN(AF124)=0,"",IF(ISNA(MATCH(AF124,MasterListing,0)),AJ124,"")) ->  | AE123: __DB_15__DROPOUT_N | AG123: DB15DROPOUTN | AH123: __DB_15__DROPOUT_N | AI123: 1 | AJ123: ______ | AO123: =IF(ISNUMBER(SEARCH($F$6,AP123)),MAX($AO$11:AO122)+1,0) -> 112 | AP123: 0 | AQ123: =ROWS($AQ$12:AQ123) -> 112 | AR123: =IFERROR(VLOOKUP(ROWS($AR$12:AR123),$AO$12:$AP$3014,2,0),"") -> 0
AA124: =IFERROR(INDEX($AE$13:$AE$1003, SMALL(IF(ISBLANK($AE$13:$AE$1003)+ISERROR($AE$13:$AE$1003)+LEN($AE$13:$AE$1003)=0, "", ROW($AE$13:$AE$1003)-MIN(ROW($AE$13:$AE$1003))+1), ROW(113:113))),"") -> __DB_15__GRADALTDPL_N | AB124: =IF(AF125="","",IF(COUNTIF(CurrentListing,AF125)>1,AJ125,"")) ->  | AC124: =IF(LEN(AF125)=0,"",IF(ISNA(MATCH(AF125,MasterListing,0)),AJ125,"")) ->  | AE124: __DB_15__GHS_N | AG124: DB15GHSN | AH124: __DB_15__GHS_N | AI124: 1 | AJ124: ______ | AO124: =IF(ISNUMBER(SEARCH($F$6,AP124)),MAX($AO$11:AO123)+1,0) -> 113 | AP124: 0 | AQ124: =ROWS($AQ$12:AQ124) -> 113 | AR124: =IFERROR(VLOOKUP(ROWS($AR$12:AR124),$AO$12:$AP$3014,2,0),"") -> 0
AA125: =IFERROR(INDEX($AE$13:$AE$1003, SMALL(IF(ISBLANK($AE$13:$AE$1003)+ISERROR($AE$13:$AE$1003)+LEN($AE$13:$AE$1003)=0, "", ROW($AE$13:$AE$1003)-MIN(ROW($AE$13:$AE$1003))+1), ROW(114:114))),"") -> __DB_15__MKC_N | AB125: =IF(AF126="","",IF(COUNTIF(CurrentListing,AF126)>1,AJ126,"")) ->  | AC125: =IF(LEN(AF126)=0,"",IF(ISNA(MATCH(AF126,MasterListing,0)),AJ126,"")) ->  | AE125: __DB_15__GRADALTDPL_N | AG125: DB15GRADALTDPLN | AH125: __DB_15__GRADALTDPL_N | AI125: 1 | AJ125: ______ | AO125: =IF(ISNUMBER(SEARCH($F$6,AP125)),MAX($AO$11:AO124)+1,0) -> 114 | AP125: 0 | AQ125: =ROWS($AQ$12:AQ125) -> 114 | AR125: =IFERROR(VLOOKUP(ROWS($AR$12:AR125),$AO$12:$AP$3014,2,0),"") -> 0
AA126: =IFERROR(INDEX($AE$13:$AE$1003, SMALL(IF(ISBLANK($AE$13:$AE$1003)+ISERROR($AE$13:$AE$1003)+LEN($AE$13:$AE$1003)=0, "", ROW($AE$13:$AE$1003)-MIN(ROW($AE$13:$AE$1003))+1), ROW(115:115))),"") -> __DB_15__RC_N | AB126: =IF(AF127="","",IF(COUNTIF(CurrentListing,AF127)>1,AJ127,"")) ->  | AC126: =IF(LEN(AF127)=0,"",IF(ISNA(MATCH(AF127,MasterListing,0)),AJ127,"")) ->  | AE126: __DB_15__MKC_N | AG126: DB15MKCN | AH126: __DB_15__MKC_N | AI126: 1 | AJ126: ______ | AO126: =IF(ISNUMBER(SEARCH($F$6,AP126)),MAX($AO$11:AO125)+1,0) -> 115 | AP126: 0 | AQ126: =ROWS($AQ$12:AQ126) -> 115 | AR126: =IFERROR(VLOOKUP(ROWS($AR$12:AR126),$AO$12:$AP$3014,2,0),"") -> 0
AA127: =IFERROR(INDEX($AE$13:$AE$1003, SMALL(IF(ISBLANK($AE$13:$AE$1003)+ISERROR($AE$13:$AE$1003)+LEN($AE$13:$AE$1003)=0, "", ROW($AE$13:$AE$1003)-MIN(ROW($AE$13:$AE$1003))+1), ROW(116:116))),"") -> __DB_15__RMA_N | AB127: =IF(AF128="","",IF(COUNTIF(CurrentListing,AF128)>1,AJ128,"")) ->  | AC127: =IF(LEN(AF128)=0,"",IF(ISNA(MATCH(AF128,MasterListing,0)),AJ128,"")) ->  | AE127: __DB_15__RC_N | AG127: DB15RCN | AH127: __DB_15__RC_N | AI127: 1 | AJ127: ______ | AO127: =IF(ISNUMBER(SEARCH($F$6,AP127)),MAX($AO$11:AO126)+1,0) -> 116 | AP127: 0 | AQ127: =ROWS($AQ$12:AQ127) -> 116 | AR127: =IFERROR(VLOOKUP(ROWS($AR$12:AR127),$AO$12:$AP$3014,2,0),"") -> 0
AA128: =IFERROR(INDEX($AE$13:$AE$1003, SMALL(IF(ISBLANK($AE$13:$AE$1003)+ISERROR($AE$13:$AE$1003)+LEN($AE$13:$AE$1003)=0, "", ROW($AE$13:$AE$1003)-MIN(ROW($AE$13:$AE$1003))+1), ROW(117:117))),"") -> __DB_15__TRAN_N | AB128: =IF(AF129="","",IF(COUNTIF(CurrentListing,AF129)>1,AJ129,"")) ->  | AC128: =IF(LEN(AF129)=0,"",IF(ISNA(MATCH(AF129,MasterListing,0)),AJ129,"")) ->  | AE128: __DB_15__RMA_N | AG128: DB15RMAN | AH128: __DB_15__RMA_N | AI128: 1 | AJ128: ______ | AO128: =IF(ISNUMBER(SEARCH($F$6,AP128)),MAX($AO$11:AO127)+1,0) -> 117 | AP128: 0 | AQ128: =ROWS($AQ$12:AQ128) -> 117 | AR128: =IFERROR(VLOOKUP(ROWS($AR$12:AR128),$AO$12:$AP$3014,2,0),"") -> 0
AA129: =IFERROR(INDEX($AE$13:$AE$1003, SMALL(IF(ISBLANK($AE$13:$AE$1003)+ISERROR($AE$13:$AE$1003)+LEN($AE$13:$AE$1003)=0, "", ROW($AE$13:$AE$1003)-MIN(ROW($AE$13:$AE$1003))+1), ROW(118:118))),"") -> __DB_16__D_N | AB129: =IF(AF130="","",IF(COUNTIF(CurrentListing,AF130)>1,AJ130,"")) ->  | AC129: =IF(LEN(AF130)=0,"",IF(ISNA(MATCH(AF130,MasterListing,0)),AJ130,"")) ->  | AE129: __DB_15__TRAN_N | AG129: DB15TRANN | AH129: __DB_15__TRAN_N | AI129: 1 | AJ129: ______ | AO129: =IF(ISNUMBER(SEARCH($F$6,AP129)),MAX($AO$11:AO128)+1,0) -> 118 | AP129: 0 | AQ129: =ROWS($AQ$12:AQ129) -> 118 | AR129: =IFERROR(VLOOKUP(ROWS($AR$12:AR129),$AO$12:$AP$3014,2,0),"") -> 0
AA130: =IFERROR(INDEX($AE$13:$AE$1003, SMALL(IF(ISBLANK($AE$13:$AE$1003)+ISERROR($AE$13:$AE$1003)+LEN($AE$13:$AE$1003)=0, "", ROW($AE$13:$AE$1003)-MIN(ROW($AE$13:$AE$1003))+1), ROW(119:119))),"") -> __DB_16__DROPOUT_N | AB130: =IF(AF131="","",IF(COUNTIF(CurrentListing,AF131)>1,AJ131,"")) ->  | AC130: =IF(LEN(AF131)=0,"",IF(ISNA(MATCH(AF131,MasterListing,0)),AJ131,"")) ->  | AE130: __DB_16__D_N | AG130: DB16DN | AH130: __DB_16__D_N | AI130: 1 | AJ130: ______ | AO130: =IF(ISNUMBER(SEARCH($F$6,AP130)),MAX($AO$11:AO129)+1,0) -> 119 | AP130: 0 | AQ130: =ROWS($AQ$12:AQ130) -> 119 | AR130: =IFERROR(VLOOKUP(ROWS($AR$12:AR130),$AO$12:$AP$3014,2,0),"") -> 0
AA131: =IFERROR(INDEX($AE$13:$AE$1003, SMALL(IF(ISBLANK($AE$13:$AE$1003)+ISERROR($AE$13:$AE$1003)+LEN($AE$13:$AE$1003)=0, "", ROW($AE$13:$AE$1003)-MIN(ROW($AE$13:$AE$1003))+1), ROW(120:120))),"") -> __DB_16__GHS_N | AB131: =IF(AF132="","",IF(COUNTIF(CurrentListing,AF132)>1,AJ132,"")) ->  | AC131: =IF(LEN(AF132)=0,"",IF(ISNA(MATCH(AF132,MasterListing,0)),AJ132,"")) ->  | AE131: __DB_16__DROPOUT_N | AG131: DB16DROPOUTN | AH131: __DB_16__DROPOUT_N | AI131: 1 | AJ131: ______ | AO131: =IF(ISNUMBER(SEARCH($F$6,AP131)),MAX($AO$11:AO130)+1,0) -> 120 | AP131: 0 | AQ131: =ROWS($AQ$12:AQ131) -> 120 | AR131: =IFERROR(VLOOKUP(ROWS($AR$12:AR131),$AO$12:$AP$3014,2,0),"") -> 0
AA132: =IFERROR(INDEX($AE$13:$AE$1003, SMALL(IF(ISBLANK($AE$13:$AE$1003)+ISERROR($AE$13:$AE$1003)+LEN($AE$13:$AE$1003)=0, "", ROW($AE$13:$AE$1003)-MIN(ROW($AE$13:$AE$1003))+1), ROW(121:121))),"") -> __DB_16__GRADALTDPL_N | AB132: =IF(AF133="","",IF(COUNTIF(CurrentListing,AF133)>1,AJ133,"")) ->  | AC132: =IF(LEN(AF133)=0,"",IF(ISNA(MATCH(AF133,MasterListing,0)),AJ133,"")) ->  | AE132: __DB_16__GHS_N | AG132: DB16GHSN | AH132: __DB_16__GHS_N | AI132: 1 | AJ132: ______ | AO132: =IF(ISNUMBER(SEARCH($F$6,AP132)),MAX($AO$11:AO131)+1,0) -> 121 | AP132: 0 | AQ132: =ROWS($AQ$12:AQ132) -> 121 | AR132: =IFERROR(VLOOKUP(ROWS($AR$12:AR132),$AO$12:$AP$3014,2,0),"") -> 0
AA133: =IFERROR(INDEX($AE$13:$AE$1003, SMALL(IF(ISBLANK($AE$13:$AE$1003)+ISERROR($AE$13:$AE$1003)+LEN($AE$13:$AE$1003)=0, "", ROW($AE$13:$AE$1003)-MIN(ROW($AE$13:$AE$1003))+1), ROW(122:122))),"") -> __DB_16__MKC_N | AB133: =IF(AF134="","",IF(COUNTIF(CurrentListing,AF134)>1,AJ134,"")) ->  | AC133: =IF(LEN(AF134)=0,"",IF(ISNA(MATCH(AF134,MasterListing,0)),AJ134,"")) ->  | AE133: __DB_16__GRADALTDPL_N | AG133: DB16GRADALTDPLN | AH133: __DB_16__GRADALTDPL_N | AI133: 1 | AJ133: ______ | AO133: =IF(ISNUMBER(SEARCH($F$6,AP133)),MAX($AO$11:AO132)+1,0) -> 122 | AP133: 0 | AQ133: =ROWS($AQ$12:AQ133) -> 122 | AR133: =IFERROR(VLOOKUP(ROWS($AR$12:AR133),$AO$12:$AP$3014,2,0),"") -> 0
AA134: =IFERROR(INDEX($AE$13:$AE$1003, SMALL(IF(ISBLANK($AE$13:$AE$1003)+ISERROR($AE$13:$AE$1003)+LEN($AE$13:$AE$1003)=0, "", ROW($AE$13:$AE$1003)-MIN(ROW($AE$13:$AE$1003))+1), ROW(123:123))),"") -> __DB_16__RC_N | AB134: =IF(AF135="","",IF(COUNTIF(CurrentListing,AF135)>1,AJ135,"")) ->  | AC134: =IF(LEN(AF135)=0,"",IF(ISNA(MATCH(AF135,MasterListing,0)),AJ135,"")) ->  | AE134: __DB_16__MKC_N | AG134: DB16MKCN | AH134: __DB_16__MKC_N | AI134: 1 | AJ134: ______ | AO134: =IF(ISNUMBER(SEARCH($F$6,AP134)),MAX($AO$11:AO133)+1,0) -> 123 | AP134: 0 | AQ134: =ROWS($AQ$12:AQ134) -> 123 | AR134: =IFERROR(VLOOKUP(ROWS($AR$12:AR134),$AO$12:$AP$3014,2,0),"") -> 0
AA135: =IFERROR(INDEX($AE$13:$AE$1003, SMALL(IF(ISBLANK($AE$13:$AE$1003)+ISERROR($AE$13:$AE$1003)+LEN($AE$13:$AE$1003)=0, "", ROW($AE$13:$AE$1003)-MIN(ROW($AE$13:$AE$1003))+1), ROW(124:124))),"") -> __DB_16__RMA_N | AB135: =IF(AF136="","",IF(COUNTIF(CurrentListing,AF136)>1,AJ136,"")) ->  | AC135: =IF(LEN(AF136)=0,"",IF(ISNA(MATCH(AF136,MasterListing,0)),AJ136,"")) ->  | AE135: __DB_16__RC_N | AG135: DB16RCN | AH135: __DB_16__RC_N | AI135: 1 | AJ135: ______ | AO135: =IF(ISNUMBER(SEARCH($F$6,AP135)),MAX($AO$11:AO134)+1,0) -> 124 | AP135: 0 | AQ135: =ROWS($AQ$12:AQ135) -> 124 | AR135: =IFERROR(VLOOKUP(ROWS($AR$12:AR135),$AO$12:$AP$3014,2,0),"") -> 0
AA136: =IFERROR(INDEX($AE$13:$AE$1003, SMALL(IF(ISBLANK($AE$13:$AE$1003)+ISERROR($AE$13:$AE$1003)+LEN($AE$13:$AE$1003)=0, "", ROW($AE$13:$AE$1003)-MIN(ROW($AE$13:$AE$1003))+1), ROW(125:125))),"") -> __DB_16__TRAN_N | AB136: =IF(AF137="","",IF(COUNTIF(CurrentListing,AF137)>1,AJ137,"")) ->  | AC136: =IF(LEN(AF137)=0,"",IF(ISNA(MATCH(AF137,MasterListing,0)),AJ137,"")) ->  | AE136: __DB_16__RMA_N | AG136: DB16RMAN | AH136: __DB_16__RMA_N | AI136: 1 | AJ136: ______ | AO136: =IF(ISNUMBER(SEARCH($F$6,AP136)),MAX($AO$11:AO135)+1,0) -> 125 | AP136: 0 | AQ136: =ROWS($AQ$12:AQ136) -> 125 | AR136: =IFERROR(VLOOKUP(ROWS($AR$12:AR136),$AO$12:$AP$3014,2,0),"") -> 0
AA137: =IFERROR(INDEX($AE$13:$AE$1003, SMALL(IF(ISBLANK($AE$13:$AE$1003)+ISERROR($AE$13:$AE$1003)+LEN($AE$13:$AE$1003)=0, "", ROW($AE$13:$AE$1003)-MIN(ROW($AE$13:$AE$1003))+1), ROW(126:126))),"") -> __DB_17__D_N | AB137: =IF(AF138="","",IF(COUNTIF(CurrentListing,AF138)>1,AJ138,"")) ->  | AC137: =IF(LEN(AF138)=0,"",IF(ISNA(MATCH(AF138,MasterListing,0)),AJ138,"")) ->  | AE137: __DB_16__TRAN_N | AG137: DB16TRANN | AH137: __DB_16__TRAN_N | AI137: 1 | AJ137: ______ | AO137: =IF(ISNUMBER(SEARCH($F$6,AP137)),MAX($AO$11:AO136)+1,0) -> 126 | AP137: 0 | AQ137: =ROWS($AQ$12:AQ137) -> 126 | AR137: =IFERROR(VLOOKUP(ROWS($AR$12:AR137),$AO$12:$AP$3014,2,0),"") -> 0
AA138: =IFERROR(INDEX($AE$13:$AE$1003, SMALL(IF(ISBLANK($AE$13:$AE$1003)+ISERROR($AE$13:$AE$1003)+LEN($AE$13:$AE$1003)=0, "", ROW($AE$13:$AE$1003)-MIN(ROW($AE$13:$AE$1003))+1), ROW(127:127))),"") -> __DB_17__DROPOUT_N | AB138: =IF(AF139="","",IF(COUNTIF(CurrentListing,AF139)>1,AJ139,"")) ->  | AC138: =IF(LEN(AF139)=0,"",IF(ISNA(MATCH(AF139,MasterListing,0)),AJ139,"")) ->  | AE138: __DB_17__D_N | AG138: DB17DN | AH138: __DB_17__D_N | AI138: 1 | AJ138: ______ | AO138: =IF(ISNUMBER(SEARCH($F$6,AP138)),MAX($AO$11:AO137)+1,0) -> 127 | AP138: 0 | AQ138: =ROWS($AQ$12:AQ138) -> 127 | AR138: =IFERROR(VLOOKUP(ROWS($AR$12:AR138),$AO$12:$AP$3014,2,0),"") -> 0
AA139: =IFERROR(INDEX($AE$13:$AE$1003, SMALL(IF(ISBLANK($AE$13:$AE$1003)+ISERROR($AE$13:$AE$1003)+LEN($AE$13:$AE$1003)=0, "", ROW($AE$13:$AE$1003)-MIN(ROW($AE$13:$AE$1003))+1), ROW(128:128))),"") -> __DB_17__GHS_N | AB139: =IF(AF140="","",IF(COUNTIF(CurrentListing,AF140)>1,AJ140,"")) ->  | AC139: =IF(LEN(AF140)=0,"",IF(ISNA(MATCH(AF140,MasterListing,0)),AJ140,"")) ->  | AE139: __DB_17__DROPOUT_N | AG139: DB17DROPOUTN | AH139: __DB_17__DROPOUT_N | AI139: 1 | AJ139: ______ | AO139: =IF(ISNUMBER(SEARCH($F$6,AP139)),MAX($AO$11:AO138)+1,0) -> 128 | AP139: 0 | AQ139: =ROWS($AQ$12:AQ139) -> 128 | AR139: =IFERROR(VLOOKUP(ROWS($AR$12:AR139),$AO$12:$AP$3014,2,0),"") -> 0
AA140: =IFERROR(INDEX($AE$13:$AE$1003, SMALL(IF(ISBLANK($AE$13:$AE$1003)+ISERROR($AE$13:$AE$1003)+LEN($AE$13:$AE$1003)=0, "", ROW($AE$13:$AE$1003)-MIN(ROW($AE$13:$AE$1003))+1), ROW(129:129))),"") -> __DB_17__GRADALTDPL_N | AB140: =IF(AF141="","",IF(COUNTIF(CurrentListing,AF141)>1,AJ141,"")) ->  | AC140: =IF(LEN(AF141)=0,"",IF(ISNA(MATCH(AF141,MasterListing,0)),AJ141,"")) ->  | AE140: =IF(LEN(AG140)=0,"",IF(ISNA(MATCH(AG140,CurrentListing,0)),AH140,"")) -> __DB_17__GHS_N | AG140: DB17GHSN | AH140: __DB_17__GHS_N | AI140: 1 | AJ140: ______ | AO140: =IF(ISNUMBER(SEARCH($F$6,AP140)),MAX($AO$11:AO139)+1,0) -> 129 | AP140: 0 | AQ140: =ROWS($AQ$12:AQ140) -> 129 | AR140: =IFERROR(VLOOKUP(ROWS($AR$12:AR140),$AO$12:$AP$3014,2,0),"") -> 0
AA141: =IFERROR(INDEX($AE$13:$AE$1003, SMALL(IF(ISBLANK($AE$13:$AE$1003)+ISERROR($AE$13:$AE$1003)+LEN($AE$13:$AE$1003)=0, "", ROW($AE$13:$AE$1003)-MIN(ROW($AE$13:$AE$1003))+1), ROW(130:130))),"") -> __DB_17__MKC_N | AB141: =IF(AF142="","",IF(COUNTIF(CurrentListing,AF142)>1,AJ142,"")) ->  | AC141: =IF(LEN(AF142)=0,"",IF(ISNA(MATCH(AF142,MasterListing,0)),AJ142,"")) ->  | AE141: __DB_17__GRADALTDPL_N | AF141: =H141&I141&P141&Q141&R141&V141&W141 ->  | AG141: DB17GRADALTDPLN | AH141: __DB_17__GRADALTDPL_N | AI141: 1 | AJ141: ______ | AO141: =IF(ISNUMBER(SEARCH($F$6,AP141)),MAX($AO$11:AO140)+1,0) -> 130 | AP141: 0 | AQ141: =ROWS($AQ$12:AQ141) -> 130 | AR141: =IFERROR(VLOOKUP(ROWS($AR$12:AR141),$AO$12:$AP$3014,2,0),"") -> 0
AA142: =IFERROR(INDEX($AE$13:$AE$1003, SMALL(IF(ISBLANK($AE$13:$AE$1003)+ISERROR($AE$13:$AE$1003)+LEN($AE$13:$AE$1003)=0, "", ROW($AE$13:$AE$1003)-MIN(ROW($AE$13:$AE$1003))+1), ROW(131:131))),"") -> __DB_17__RC_N | AB142: =IF(AF143="","",IF(COUNTIF(CurrentListing,AF143)>1,AJ143,"")) ->  | AC142: =IF(LEN(AF143)=0,"",IF(ISNA(MATCH(AF143,MasterListing,0)),AJ143,"")) ->  | AE142: __DB_17__MKC_N | AG142: DB17MKCN | AH142: __DB_17__MKC_N | AI142: =IF(LEN(AA142)>0,1,0) -> 1 | AJ142: =H142&"_"&I142&"_"&P142&"_"&Q142&"_"&R142&"_"&V142&"_"&W142 -> ______ | AO142: =IF(ISNUMBER(SEARCH($F$6,AP142)),MAX($AO$11:AO141)+1,0) -> 131 | AP142: 0 | AQ142: =ROWS($AQ$12:AQ142) -> 131 | AR142: =IFERROR(VLOOKUP(ROWS($AR$12:AR142),$AO$12:$AP$3014,2,0),"") -> 0
AA143: =IFERROR(INDEX($AE$13:$AE$1003, SMALL(IF(ISBLANK($AE$13:$AE$1003)+ISERROR($AE$13:$AE$1003)+LEN($AE$13:$AE$1003)=0, "", ROW($AE$13:$AE$1003)-MIN(ROW($AE$13:$AE$1003))+1), ROW(132:132))),"") -> __DB_17__RMA_N | AB143: =IF(AF144="","",IF(COUNTIF(CurrentListing,AF144)>1,AJ144,"")) ->  | AC143: =IF(LEN(AF144)=0,"",IF(ISNA(MATCH(AF144,MasterListing,0)),AJ144,"")) ->  | AE143: __DB_17__RC_N | AG143: DB17RCN | AH143: __DB_17__RC_N | AI143: 1 | AJ143: ______ | AO143: =IF(ISNUMBER(SEARCH($F$6,AP143)),MAX($AO$11:AO142)+1,0) -> 132 | AP143: 0 | AQ143: =ROWS($AQ$12:AQ143) -> 132 | AR143: =IFERROR(VLOOKUP(ROWS($AR$12:AR143),$AO$12:$AP$3014,2,0),"") -> 0
AA144: =IFERROR(INDEX($AE$13:$AE$1003, SMALL(IF(ISBLANK($AE$13:$AE$1003)+ISERROR($AE$13:$AE$1003)+LEN($AE$13:$AE$1003)=0, "", ROW($AE$13:$AE$1003)-MIN(ROW($AE$13:$AE$1003))+1), ROW(133:133))),"") -> __DB_17__TRAN_N | AB144: =IF(AF145="","",IF(COUNTIF(CurrentListing,AF145)>1,AJ145,"")) ->  | AC144: =IF(LEN(AF145)=0,"",IF(ISNA(MATCH(AF145,MasterListing,0)),AJ145,"")) ->  | AE144: __DB_17__RMA_N | AG144: DB17RMAN | AH144: __DB_17__RMA_N | AI144: 1 | AJ144: ______ | AO144: =IF(ISNUMBER(SEARCH($F$6,AP144)),MAX($AO$11:AO143)+1,0) -> 133 | AP144: 0 | AQ144: =ROWS($AQ$12:AQ144) -> 133 | AR144: =IFERROR(VLOOKUP(ROWS($AR$12:AR144),$AO$12:$AP$3014,2,0),"") -> 0
AA145: =IFERROR(INDEX($AE$13:$AE$1003, SMALL(IF(ISBLANK($AE$13:$AE$1003)+ISERROR($AE$13:$AE$1003)+LEN($AE$13:$AE$1003)=0, "", ROW($AE$13:$AE$1003)-MIN(ROW($AE$13:$AE$1003))+1), ROW(134:134))),"") -> __DB_18__D_N | AB145: =IF(AF146="","",IF(COUNTIF(CurrentListing,AF146)>1,AJ146,"")) ->  | AC145: =IF(LEN(AF146)=0,"",IF(ISNA(MATCH(AF146,MasterListing,0)),AJ146,"")) ->  | AE145: __DB_17__TRAN_N | AG145: DB17TRANN | AH145: __DB_17__TRAN_N | AI145: 1 | AJ145: ______ | AO145: =IF(ISNUMBER(SEARCH($F$6,AP145)),MAX($AO$11:AO144)+1,0) -> 134 | AP145: 0 | AQ145: =ROWS($AQ$12:AQ145) -> 134 | AR145: =IFERROR(VLOOKUP(ROWS($AR$12:AR145),$AO$12:$AP$3014,2,0),"") -> 0
AA146: =IFERROR(INDEX($AE$13:$AE$1003, SMALL(IF(ISBLANK($AE$13:$AE$1003)+ISERROR($AE$13:$AE$1003)+LEN($AE$13:$AE$1003)=0, "", ROW($AE$13:$AE$1003)-MIN(ROW($AE$13:$AE$1003))+1), ROW(135:135))),"") -> __DB_18__DROPOUT_N | AB146: =IF(AF147="","",IF(COUNTIF(CurrentListing,AF147)>1,AJ147,"")) ->  | AC146: =IF(LEN(AF147)=0,"",IF(ISNA(MATCH(AF147,MasterListing,0)),AJ147,"")) ->  | AE146: __DB_18__D_N | AG146: DB18DN | AH146: __DB_18__D_N | AI146: 1 | AJ146: ______ | AO146: =IF(ISNUMBER(SEARCH($F$6,AP146)),MAX($AO$11:AO145)+1,0) -> 135 | AP146: 0 | AQ146: =ROWS($AQ$12:AQ146) -> 135 | AR146: =IFERROR(VLOOKUP(ROWS($AR$12:AR146),$AO$12:$AP$3014,2,0),"") -> 0
AA147: =IFERROR(INDEX($AE$13:$AE$1003, SMALL(IF(ISBLANK($AE$13:$AE$1003)+ISERROR($AE$13:$AE$1003)+LEN($AE$13:$AE$1003)=0, "", ROW($AE$13:$AE$1003)-MIN(ROW($AE$13:$AE$1003))+1), ROW(136:136))),"") -> __DB_18__GHS_N | AB147: =IF(AF148="","",IF(COUNTIF(CurrentListing,AF148)>1,AJ148,"")) ->  | AC147: =IF(LEN(AF148)=0,"",IF(ISNA(MATCH(AF148,MasterListing,0)),AJ148,"")) ->  | AE147: __DB_18__DROPOUT_N | AG147: DB18DROPOUTN | AH147: __DB_18__DROPOUT_N | AI147: 1 | AJ147: ______ | AO147: =IF(ISNUMBER(SEARCH($F$6,AP147)),MAX($AO$11:AO146)+1,0) -> 136 | AP147: 0 | AQ147: =ROWS($AQ$12:AQ147) -> 136 | AR147: =IFERROR(VLOOKUP(ROWS($AR$12:AR147),$AO$12:$AP$3014,2,0),"") -> 0
AA148: =IFERROR(INDEX($AE$13:$AE$1003, SMALL(IF(ISBLANK($AE$13:$AE$1003)+ISERROR($AE$13:$AE$1003)+LEN($AE$13:$AE$1003)=0, "", ROW($AE$13:$AE$1003)-MIN(ROW($AE$13:$AE$1003))+1), ROW(137:137))),"") -> __DB_18__GRADALTDPL_N | AB148: =IF(AF149="","",IF(COUNTIF(CurrentListing,AF149)>1,AJ149,"")) ->  | AC148: =IF(LEN(AF149)=0,"",IF(ISNA(MATCH(AF149,MasterListing,0)),AJ149,"")) ->  | AE148: __DB_18__GHS_N | AG148: DB18GHSN | AH148: __DB_18__GHS_N | AI148: 1 | AJ148: ______ | AO148: =IF(ISNUMBER(SEARCH($F$6,AP148)),MAX($AO$11:AO147)+1,0) -> 137 | AP148: 0 | AQ148: =ROWS($AQ$12:AQ148) -> 137 | AR148: =IFERROR(VLOOKUP(ROWS($AR$12:AR148),$AO$12:$AP$3014,2,0),"") -> 0
AA149: =IFERROR(INDEX($AE$13:$AE$1003, SMALL(IF(ISBLANK($AE$13:$AE$1003)+ISERROR($AE$13:$AE$1003)+LEN($AE$13:$AE$1003)=0, "", ROW($AE$13:$AE$1003)-MIN(ROW($AE$13:$AE$1003))+1), ROW(138:138))),"") -> __DB_18__MKC_N | AB149: =IF(AF150="","",IF(COUNTIF(CurrentListing,AF150)>1,AJ150,"")) ->  | AC149: =IF(LEN(AF150)=0,"",IF(ISNA(MATCH(AF150,MasterListing,0)),AJ150,"")) ->  | AE149: __DB_18__GRADALTDPL_N | AG149: DB18GRADALTDPLN | AH149: __DB_18__GRADALTDPL_N | AI149: 1 | AJ149: ______ | AO149: =IF(ISNUMBER(SEARCH($F$6,AP149)),MAX($AO$11:AO148)+1,0) -> 138 | AP149: 0 | AQ149: =ROWS($AQ$12:AQ149) -> 138 | AR149: =IFERROR(VLOOKUP(ROWS($AR$12:AR149),$AO$12:$AP$3014,2,0),"") -> 0
AA150: =IFERROR(INDEX($AE$13:$AE$1003, SMALL(IF(ISBLANK($AE$13:$AE$1003)+ISERROR($AE$13:$AE$1003)+LEN($AE$13:$AE$1003)=0, "", ROW($AE$13:$AE$1003)-MIN(ROW($AE$13:$AE$1003))+1), ROW(139:139))),"") -> __DB_18__RC_N | AB150: =IF(AF151="","",IF(COUNTIF(CurrentListing,AF151)>1,AJ151,"")) ->  | AC150: =IF(LEN(AF151)=0,"",IF(ISNA(MATCH(AF151,MasterListing,0)),AJ151,"")) ->  | AE150: __DB_18__MKC_N | AG150: DB18MKCN | AH150: __DB_18__MKC_N | AI150: 1 | AJ150: ______ | AO150: =IF(ISNUMBER(SEARCH($F$6,AP150)),MAX($AO$11:AO149)+1,0) -> 139 | AP150: 0 | AQ150: =ROWS($AQ$12:AQ150) -> 139 | AR150: =IFERROR(VLOOKUP(ROWS($AR$12:AR150),$AO$12:$AP$3014,2,0),"") -> 0
AA151: =IFERROR(INDEX($AE$13:$AE$1003, SMALL(IF(ISBLANK($AE$13:$AE$1003)+ISERROR($AE$13:$AE$1003)+LEN($AE$13:$AE$1003)=0, "", ROW($AE$13:$AE$1003)-MIN(ROW($AE$13:$AE$1003))+1), ROW(140:140))),"") -> __DB_18__RMA_N | AB151: =IF(AF152="","",IF(COUNTIF(CurrentListing,AF152)>1,AJ152,"")) ->  | AC151: =IF(LEN(AF152)=0,"",IF(ISNA(MATCH(AF152,MasterListing,0)),AJ152,"")) ->  | AE151: __DB_18__RC_N | AG151: DB18RCN | AH151: __DB_18__RC_N | AI151: 1 | AJ151: ______ | AO151: =IF(ISNUMBER(SEARCH($F$6,AP151)),MAX($AO$11:AO150)+1,0) -> 140 | AP151: 0 | AQ151: =ROWS($AQ$12:AQ151) -> 140 | AR151: =IFERROR(VLOOKUP(ROWS($AR$12:AR151),$AO$12:$AP$3014,2,0),"") -> 0
AA152: =IFERROR(INDEX($AE$13:$AE$1003, SMALL(IF(ISBLANK($AE$13:$AE$1003)+ISERROR($AE$13:$AE$1003)+LEN($AE$13:$AE$1003)=0, "", ROW($AE$13:$AE$1003)-MIN(ROW($AE$13:$AE$1003))+1), ROW(141:141))),"") -> __DB_18__TRAN_N | AB152: =IF(AF153="","",IF(COUNTIF(CurrentListing,AF153)>1,AJ153,"")) ->  | AC152: =IF(LEN(AF153)=0,"",IF(ISNA(MATCH(AF153,MasterListing,0)),AJ153,"")) ->  | AE152: __DB_18__RMA_N | AG152: DB18RMAN | AH152: __DB_18__RMA_N | AI152: 1 | AJ152: ______ | AO152: =IF(ISNUMBER(SEARCH($F$6,AP152)),MAX($AO$11:AO151)+1,0) -> 141 | AP152: 0 | AQ152: =ROWS($AQ$12:AQ152) -> 141 | AR152: =IFERROR(VLOOKUP(ROWS($AR$12:AR152),$AO$12:$AP$3014,2,0),"") -> 0
AA153: =IFERROR(INDEX($AE$13:$AE$1003, SMALL(IF(ISBLANK($AE$13:$AE$1003)+ISERROR($AE$13:$AE$1003)+LEN($AE$13:$AE$1003)=0, "", ROW($AE$13:$AE$1003)-MIN(ROW($AE$13:$AE$1003))+1), ROW(142:142))),"") -> __DB_19__D_N | AB153: =IF(AF154="","",IF(COUNTIF(CurrentListing,AF154)>1,AJ154,"")) ->  | AC153: =IF(LEN(AF154)=0,"",IF(ISNA(MATCH(AF154,MasterListing,0)),AJ154,"")) ->  | AE153: __DB_18__TRAN_N | AG153: DB18TRANN | AH153: __DB_18__TRAN_N | AI153: 1 | AJ153: ______ | AO153: =IF(ISNUMBER(SEARCH($F$6,AP153)),MAX($AO$11:AO152)+1,0) -> 142 | AP153: 0 | AQ153: =ROWS($AQ$12:AQ153) -> 142 | AR153: =IFERROR(VLOOKUP(ROWS($AR$12:AR153),$AO$12:$AP$3014,2,0),"") -> 0
AA154: =IFERROR(INDEX($AE$13:$AE$1003, SMALL(IF(ISBLANK($AE$13:$AE$1003)+ISERROR($AE$13:$AE$1003)+LEN($AE$13:$AE$1003)=0, "", ROW($AE$13:$AE$1003)-MIN(ROW($AE$13:$AE$1003))+1), ROW(143:143))),"") -> __DB_19__DROPOUT_N | AB154: =IF(AF155="","",IF(COUNTIF(CurrentListing,AF155)>1,AJ155,"")) ->  | AC154: =IF(LEN(AF155)=0,"",IF(ISNA(MATCH(AF155,MasterListing,0)),AJ155,"")) ->  | AE154: __DB_19__D_N | AG154: DB19DN | AH154: __DB_19__D_N | AI154: 1 | AJ154: ______ | AO154: =IF(ISNUMBER(SEARCH($F$6,AP154)),MAX($AO$11:AO153)+1,0) -> 143 | AP154: 0 | AQ154: =ROWS($AQ$12:AQ154) -> 143 | AR154: =IFERROR(VLOOKUP(ROWS($AR$12:AR154),$AO$12:$AP$3014,2,0),"") -> 0
AA155: =IFERROR(INDEX($AE$13:$AE$1003, SMALL(IF(ISBLANK($AE$13:$AE$1003)+ISERROR($AE$13:$AE$1003)+LEN($AE$13:$AE$1003)=0, "", ROW($AE$13:$AE$1003)-MIN(ROW($AE$13:$AE$1003))+1), ROW(144:144))),"") -> __DB_19__GHS_N | AB155: =IF(AF156="","",IF(COUNTIF(CurrentListing,AF156)>1,AJ156,"")) ->  | AC155: =IF(LEN(AF156)=0,"",IF(ISNA(MATCH(AF156,MasterListing,0)),AJ156,"")) ->  | AE155: __DB_19__DROPOUT_N | AG155: DB19DROPOUTN | AH155: __DB_19__DROPOUT_N | AI155: 1 | AJ155: ______ | AO155: =IF(ISNUMBER(SEARCH($F$6,AP155)),MAX($AO$11:AO154)+1,0) -> 144 | AP155: 0 | AQ155: =ROWS($AQ$12:AQ155) -> 144 | AR155: =IFERROR(VLOOKUP(ROWS($AR$12:AR155),$AO$12:$AP$3014,2,0),"") -> 0
AA156: =IFERROR(INDEX($AE$13:$AE$1003, SMALL(IF(ISBLANK($AE$13:$AE$1003)+ISERROR($AE$13:$AE$1003)+LEN($AE$13:$AE$1003)=0, "", ROW($AE$13:$AE$1003)-MIN(ROW($AE$13:$AE$1003))+1), ROW(145:145))),"") -> __DB_19__GRADALTDPL_N | AB156: =IF(AF157="","",IF(COUNTIF(CurrentListing,AF157)>1,AJ157,"")) ->  | AC156: =IF(LEN(AF157)=0,"",IF(ISNA(MATCH(AF157,MasterListing,0)),AJ157,"")) ->  | AE156: __DB_19__GHS_N | AG156: DB19GHSN | AH156: __DB_19__GHS_N | AI156: 1 | AJ156: ______ | AO156: =IF(ISNUMBER(SEARCH($F$6,AP156)),MAX($AO$11:AO155)+1,0) -> 145 | AP156: 0 | AQ156: =ROWS($AQ$12:AQ156) -> 145 | AR156: =IFERROR(VLOOKUP(ROWS($AR$12:AR156),$AO$12:$AP$3014,2,0),"") -> 0
AA157: =IFERROR(INDEX($AE$13:$AE$1003, SMALL(IF(ISBLANK($AE$13:$AE$1003)+ISERROR($AE$13:$AE$1003)+LEN($AE$13:$AE$1003)=0, "", ROW($AE$13:$AE$1003)-MIN(ROW($AE$13:$AE$1003))+1), ROW(146:146))),"") -> __DB_19__MKC_N | AB157: =IF(AF158="","",IF(COUNTIF(CurrentListing,AF158)>1,AJ158,"")) ->  | AC157: =IF(LEN(AF158)=0,"",IF(ISNA(MATCH(AF158,MasterListing,0)),AJ158,"")) ->  | AE157: __DB_19__GRADALTDPL_N | AG157: DB19GRADALTDPLN | AH157: __DB_19__GRADALTDPL_N | AI157: 1 | AJ157: ______ | AO157: =IF(ISNUMBER(SEARCH($F$6,AP157)),MAX($AO$11:AO156)+1,0) -> 146 | AP157: 0 | AQ157: =ROWS($AQ$12:AQ157) -> 146 | AR157: =IFERROR(VLOOKUP(ROWS($AR$12:AR157),$AO$12:$AP$3014,2,0),"") -> 0
AA158: =IFERROR(INDEX($AE$13:$AE$1003, SMALL(IF(ISBLANK($AE$13:$AE$1003)+ISERROR($AE$13:$AE$1003)+LEN($AE$13:$AE$1003)=0, "", ROW($AE$13:$AE$1003)-MIN(ROW($AE$13:$AE$1003))+1), ROW(147:147))),"") -> __DB_19__RC_N | AB158: =IF(AF159="","",IF(COUNTIF(CurrentListing,AF159)>1,AJ159,"")) ->  | AC158: =IF(LEN(AF159)=0,"",IF(ISNA(MATCH(AF159,MasterListing,0)),AJ159,"")) ->  | AE158: __DB_19__MKC_N | AG158: DB19MKCN | AH158: __DB_19__MKC_N | AI158: 1 | AJ158: ______ | AO158: =IF(ISNUMBER(SEARCH($F$6,AP158)),MAX($AO$11:AO157)+1,0) -> 147 | AP158: 0 | AQ158: =ROWS($AQ$12:AQ158) -> 147 | AR158: =IFERROR(VLOOKUP(ROWS($AR$12:AR158),$AO$12:$AP$3014,2,0),"") -> 0
AA159: =IFERROR(INDEX($AE$13:$AE$1003, SMALL(IF(ISBLANK($AE$13:$AE$1003)+ISERROR($AE$13:$AE$1003)+LEN($AE$13:$AE$1003)=0, "", ROW($AE$13:$AE$1003)-MIN(ROW($AE$13:$AE$1003))+1), ROW(148:148))),"") -> __DB_19__RMA_N | AB159: =IF(AF160="","",IF(COUNTIF(CurrentListing,AF160)>1,AJ160,"")) ->  | AC159: =IF(LEN(AF160)=0,"",IF(ISNA(MATCH(AF160,MasterListing,0)),AJ160,"")) ->  | AE159: __DB_19__RC_N | AG159: DB19RCN | AH159: __DB_19__RC_N | AI159: 1 | AJ159: ______ | AO159: =IF(ISNUMBER(SEARCH($F$6,AP159)),MAX($AO$11:AO158)+1,0) -> 148 | AP159: 0 | AQ159: =ROWS($AQ$12:AQ159) -> 148 | AR159: =IFERROR(VLOOKUP(ROWS($AR$12:AR159),$AO$12:$AP$3014,2,0),"") -> 0
AA160: =IFERROR(INDEX($AE$13:$AE$1003, SMALL(IF(ISBLANK($AE$13:$AE$1003)+ISERROR($AE$13:$AE$1003)+LEN($AE$13:$AE$1003)=0, "", ROW($AE$13:$AE$1003)-MIN(ROW($AE$13:$AE$1003))+1), ROW(149:149))),"") -> __DB_19__TRAN_N | AB160: =IF(AF161="","",IF(COUNTIF(CurrentListing,AF161)>1,AJ161,"")) ->  | AC160: =IF(LEN(AF161)=0,"",IF(ISNA(MATCH(AF161,MasterListing,0)),AJ161,"")) ->  | AE160: __DB_19__RMA_N | AG160: DB19RMAN | AH160: __DB_19__RMA_N | AI160: 1 | AJ160: ______ | AO160: =IF(ISNUMBER(SEARCH($F$6,AP160)),MAX($AO$11:AO159)+1,0) -> 149 | AP160: 0 | AQ160: =ROWS($AQ$12:AQ160) -> 149 | AR160: =IFERROR(VLOOKUP(ROWS($AR$12:AR160),$AO$12:$AP$3014,2,0),"") -> 0
AA161: =IFERROR(INDEX($AE$13:$AE$1003, SMALL(IF(ISBLANK($AE$13:$AE$1003)+ISERROR($AE$13:$AE$1003)+LEN($AE$13:$AE$1003)=0, "", ROW($AE$13:$AE$1003)-MIN(ROW($AE$13:$AE$1003))+1), ROW(150:150))),"") -> __DB_20__D_N | AB161: =IF(AF162="","",IF(COUNTIF(CurrentListing,AF162)>1,AJ162,"")) ->  | AC161: =IF(LEN(AF162)=0,"",IF(ISNA(MATCH(AF162,MasterListing,0)),AJ162,"")) ->  | AE161: __DB_19__TRAN_N | AG161: DB19TRANN | AH161: __DB_19__TRAN_N | AI161: 1 | AJ161: ______ | AO161: =IF(ISNUMBER(SEARCH($F$6,AP161)),MAX($AO$11:AO160)+1,0) -> 150 | AP161: 0 | AQ161: =ROWS($AQ$12:AQ161) -> 150 | AR161: =IFERROR(VLOOKUP(ROWS($AR$12:AR161),$AO$12:$AP$3014,2,0),"") -> 0
AA162: =IFERROR(INDEX($AE$13:$AE$1003, SMALL(IF(ISBLANK($AE$13:$AE$1003)+ISERROR($AE$13:$AE$1003)+LEN($AE$13:$AE$1003)=0, "", ROW($AE$13:$AE$1003)-MIN(ROW($AE$13:$AE$1003))+1), ROW(151:151))),"") -> __DB_20__DROPOUT_N | AB162: =IF(AF163="","",IF(COUNTIF(CurrentListing,AF163)>1,AJ163,"")) ->  | AC162: =IF(LEN(AF163)=0,"",IF(ISNA(MATCH(AF163,MasterListing,0)),AJ163,"")) ->  | AE162: __DB_20__D_N | AG162: DB20DN | AH162: __DB_20__D_N | AI162: 1 | AJ162: ______ | AO162: =IF(ISNUMBER(SEARCH($F$6,AP162)),MAX($AO$11:AO161)+1,0) -> 151 | AP162: 0 | AQ162: =ROWS($AQ$12:AQ162) -> 151 | AR162: =IFERROR(VLOOKUP(ROWS($AR$12:AR162),$AO$12:$AP$3014,2,0),"") -> 0
AA163: =IFERROR(INDEX($AE$13:$AE$1003, SMALL(IF(ISBLANK($AE$13:$AE$1003)+ISERROR($AE$13:$AE$1003)+LEN($AE$13:$AE$1003)=0, "", ROW($AE$13:$AE$1003)-MIN(ROW($AE$13:$AE$1003))+1), ROW(152:152))),"") -> __DB_20__GHS_N | AB163: =IF(AF164="","",IF(COUNTIF(CurrentListing,AF164)>1,AJ164,"")) ->  | AC163: =IF(LEN(AF164)=0,"",IF(ISNA(MATCH(AF164,MasterListing,0)),AJ164,"")) ->  | AE163: __DB_20__DROPOUT_N | AG163: DB20DROPOUTN | AH163: __DB_20__DROPOUT_N | AI163: 1 | AJ163: ______ | AO163: =IF(ISNUMBER(SEARCH($F$6,AP163)),MAX($AO$11:AO162)+1,0) -> 152 | AP163: 0 | AQ163: =ROWS($AQ$12:AQ163) -> 152 | AR163: =IFERROR(VLOOKUP(ROWS($AR$12:AR163),$AO$12:$AP$3014,2,0),"") -> 0
AA164: =IFERROR(INDEX($AE$13:$AE$1003, SMALL(IF(ISBLANK($AE$13:$AE$1003)+ISERROR($AE$13:$AE$1003)+LEN($AE$13:$AE$1003)=0, "", ROW($AE$13:$AE$1003)-MIN(ROW($AE$13:$AE$1003))+1), ROW(153:153))),"") -> __DB_20__GRADALTDPL_N | AB164: =IF(AF165="","",IF(COUNTIF(CurrentListing,AF165)>1,AJ165,"")) ->  | AC164: =IF(LEN(AF165)=0,"",IF(ISNA(MATCH(AF165,MasterListing,0)),AJ165,"")) ->  | AE164: __DB_20__GHS_N | AG164: DB20GHSN | AH164: __DB_20__GHS_N | AI164: 1 | AJ164: ______ | AO164: =IF(ISNUMBER(SEARCH($F$6,AP164)),MAX($AO$11:AO163)+1,0) -> 153 | AP164: 0 | AQ164: =ROWS($AQ$12:AQ164) -> 153 | AR164: =IFERROR(VLOOKUP(ROWS($AR$12:AR164),$AO$12:$AP$3014,2,0),"") -> 0
AA165: =IFERROR(INDEX($AE$13:$AE$1003, SMALL(IF(ISBLANK($AE$13:$AE$1003)+ISERROR($AE$13:$AE$1003)+LEN($AE$13:$AE$1003)=0, "", ROW($AE$13:$AE$1003)-MIN(ROW($AE$13:$AE$1003))+1), ROW(154:154))),"") -> __DB_20__MKC_N | AB165: =IF(AF166="","",IF(COUNTIF(CurrentListing,AF166)>1,AJ166,"")) ->  | AC165: =IF(LEN(AF166)=0,"",IF(ISNA(MATCH(AF166,MasterListing,0)),AJ166,"")) ->  | AE165: __DB_20__GRADALTDPL_N | AG165: DB20GRADALTDPLN | AH165: __DB_20__GRADALTDPL_N | AI165: 1 | AJ165: ______ | AO165: =IF(ISNUMBER(SEARCH($F$6,AP165)),MAX($AO$11:AO164)+1,0) -> 154 | AP165: 0 | AQ165: =ROWS($AQ$12:AQ165) -> 154 | AR165: =IFERROR(VLOOKUP(ROWS($AR$12:AR165),$AO$12:$AP$3014,2,0),"") -> 0
AA166: =IFERROR(INDEX($AE$13:$AE$1003, SMALL(IF(ISBLANK($AE$13:$AE$1003)+ISERROR($AE$13:$AE$1003)+LEN($AE$13:$AE$1003)=0, "", ROW($AE$13:$AE$1003)-MIN(ROW($AE$13:$AE$1003))+1), ROW(155:155))),"") -> __DB_20__RC_N | AB166: =IF(AF167="","",IF(COUNTIF(CurrentListing,AF167)>1,AJ167,"")) ->  | AC166: =IF(LEN(AF167)=0,"",IF(ISNA(MATCH(AF167,MasterListing,0)),AJ167,"")) ->  | AE166: __DB_20__MKC_N | AG166: DB20MKCN | AH166: __DB_20__MKC_N | AI166: 1 | AJ166: ______ | AO166: =IF(ISNUMBER(SEARCH($F$6,AP166)),MAX($AO$11:AO165)+1,0) -> 155 | AP166: 0 | AQ166: =ROWS($AQ$12:AQ166) -> 155 | AR166: =IFERROR(VLOOKUP(ROWS($AR$12:AR166),$AO$12:$AP$3014,2,0),"") -> 0
AA167: =IFERROR(INDEX($AE$13:$AE$1003, SMALL(IF(ISBLANK($AE$13:$AE$1003)+ISERROR($AE$13:$AE$1003)+LEN($AE$13:$AE$1003)=0, "", ROW($AE$13:$AE$1003)-MIN(ROW($AE$13:$AE$1003))+1), ROW(156:156))),"") -> __DB_20__RMA_N | AB167: =IF(AF168="","",IF(COUNTIF(CurrentListing,AF168)>1,AJ168,"")) ->  | AC167: =IF(LEN(AF168)=0,"",IF(ISNA(MATCH(AF168,MasterListing,0)),AJ168,"")) ->  | AE167: __DB_20__RC_N | AG167: DB20RCN | AH167: __DB_20__RC_N | AI167: 1 | AJ167: ______ | AO167: =IF(ISNUMBER(SEARCH($F$6,AP167)),MAX($AO$11:AO166)+1,0) -> 156 | AP167: 0 | AQ167: =ROWS($AQ$12:AQ167) -> 156 | AR167: =IFERROR(VLOOKUP(ROWS($AR$12:AR167),$AO$12:$AP$3014,2,0),"") -> 0
AA168: =IFERROR(INDEX($AE$13:$AE$1003, SMALL(IF(ISBLANK($AE$13:$AE$1003)+ISERROR($AE$13:$AE$1003)+LEN($AE$13:$AE$1003)=0, "", ROW($AE$13:$AE$1003)-MIN(ROW($AE$13:$AE$1003))+1), ROW(157:157))),"") -> __DB_20__TRAN_N | AB168: =IF(AF169="","",IF(COUNTIF(CurrentListing,AF169)>1,AJ169,"")) ->  | AC168: =IF(LEN(AF169)=0,"",IF(ISNA(MATCH(AF169,MasterListing,0)),AJ169,"")) ->  | AE168: __DB_20__RMA_N | AG168: DB20RMAN | AH168: __DB_20__RMA_N | AI168: 1 | AJ168: ______ | AO168: =IF(ISNUMBER(SEARCH($F$6,AP168)),MAX($AO$11:AO167)+1,0) -> 157 | AP168: 0 | AQ168: =ROWS($AQ$12:AQ168) -> 157 | AR168: =IFERROR(VLOOKUP(ROWS($AR$12:AR168),$AO$12:$AP$3014,2,0),"") -> 0
AA169: =IFERROR(INDEX($AE$13:$AE$1003, SMALL(IF(ISBLANK($AE$13:$AE$1003)+ISERROR($AE$13:$AE$1003)+LEN($AE$13:$AE$1003)=0, "", ROW($AE$13:$AE$1003)-MIN(ROW($AE$13:$AE$1003))+1), ROW(158:158))),"") -> __DB_21__D_N | AB169: =IF(AF170="","",IF(COUNTIF(CurrentListing,AF170)>1,AJ170,"")) ->  | AC169: =IF(LEN(AF170)=0,"",IF(ISNA(MATCH(AF170,MasterListing,0)),AJ170,"")) ->  | AE169: __DB_20__TRAN_N | AG169: DB20TRANN | AH169: __DB_20__TRAN_N | AI169: 1 | AJ169: ______ | AO169: =IF(ISNUMBER(SEARCH($F$6,AP169)),MAX($AO$11:AO168)+1,0) -> 158 | AP169: 0 | AQ169: =ROWS($AQ$12:AQ169) -> 158 | AR169: =IFERROR(VLOOKUP(ROWS($AR$12:AR169),$AO$12:$AP$3014,2,0),"") -> 0
AA170: =IFERROR(INDEX($AE$13:$AE$1003, SMALL(IF(ISBLANK($AE$13:$AE$1003)+ISERROR($AE$13:$AE$1003)+LEN($AE$13:$AE$1003)=0, "", ROW($AE$13:$AE$1003)-MIN(ROW($AE$13:$AE$1003))+1), ROW(159:159))),"") -> __DB_21__DROPOUT_N | AB170: =IF(AF171="","",IF(COUNTIF(CurrentListing,AF171)>1,AJ171,"")) ->  | AC170: =IF(LEN(AF171)=0,"",IF(ISNA(MATCH(AF171,MasterListing,0)),AJ171,"")) ->  | AE170: __DB_21__D_N | AG170: DB21DN | AH170: __DB_21__D_N | AI170: 1 | AJ170: ______ | AO170: =IF(ISNUMBER(SEARCH($F$6,AP170)),MAX($AO$11:AO169)+1,0) -> 159 | AP170: 0 | AQ170: =ROWS($AQ$12:AQ170) -> 159 | AR170: =IFERROR(VLOOKUP(ROWS($AR$12:AR170),$AO$12:$AP$3014,2,0),"") -> 0
AA171: =IFERROR(INDEX($AE$13:$AE$1003, SMALL(IF(ISBLANK($AE$13:$AE$1003)+ISERROR($AE$13:$AE$1003)+LEN($AE$13:$AE$1003)=0, "", ROW($AE$13:$AE$1003)-MIN(ROW($AE$13:$AE$1003))+1), ROW(160:160))),"") -> __DB_21__GHS_N | AB171: =IF(AF172="","",IF(COUNTIF(CurrentListing,AF172)>1,AJ172,"")) ->  | AC171: =IF(LEN(AF172)=0,"",IF(ISNA(MATCH(AF172,MasterListing,0)),AJ172,"")) ->  | AE171: __DB_21__DROPOUT_N | AG171: DB21DROPOUTN | AH171: __DB_21__DROPOUT_N | AI171: 1 | AJ171: ______ | AO171: =IF(ISNUMBER(SEARCH($F$6,AP171)),MAX($AO$11:AO170)+1,0) -> 160 | AP171: 0 | AQ171: =ROWS($AQ$12:AQ171) -> 160 | AR171: =IFERROR(VLOOKUP(ROWS($AR$12:AR171),$AO$12:$AP$3014,2,0),"") -> 0
AA172: =IFERROR(INDEX($AE$13:$AE$1003, SMALL(IF(ISBLANK($AE$13:$AE$1003)+ISERROR($AE$13:$AE$1003)+LEN($AE$13:$AE$1003)=0, "", ROW($AE$13:$AE$1003)-MIN(ROW($AE$13:$AE$1003))+1), ROW(161:161))),"") -> __DB_21__GRADALTDPL_N | AB172: =IF(AF173="","",IF(COUNTIF(CurrentListing,AF173)>1,AJ173,"")) ->  | AC172: =IF(LEN(AF173)=0,"",IF(ISNA(MATCH(AF173,MasterListing,0)),AJ173,"")) ->  | AE172: __DB_21__GHS_N | AG172: DB21GHSN | AH172: __DB_21__GHS_N | AI172: 1 | AJ172: ______ | AO172: =IF(ISNUMBER(SEARCH($F$6,AP172)),MAX($AO$11:AO171)+1,0) -> 161 | AP172: 0 | AQ172: =ROWS($AQ$12:AQ172) -> 161 | AR172: =IFERROR(VLOOKUP(ROWS($AR$12:AR172),$AO$12:$AP$3014,2,0),"") -> 0
AA173: =IFERROR(INDEX($AE$13:$AE$1003, SMALL(IF(ISBLANK($AE$13:$AE$1003)+ISERROR($AE$13:$AE$1003)+LEN($AE$13:$AE$1003)=0, "", ROW($AE$13:$AE$1003)-MIN(ROW($AE$13:$AE$1003))+1), ROW(162:162))),"") -> __DB_21__MKC_N | AB173: =IF(AF174="","",IF(COUNTIF(CurrentListing,AF174)>1,AJ174,"")) ->  | AC173: =IF(LEN(AF174)=0,"",IF(ISNA(MATCH(AF174,MasterListing,0)),AJ174,"")) ->  | AE173: __DB_21__GRADALTDPL_N | AG173: DB21GRADALTDPLN | AH173: __DB_21__GRADALTDPL_N | AI173: 1 | AJ173: ______ | AO173: =IF(ISNUMBER(SEARCH($F$6,AP173)),MAX($AO$11:AO172)+1,0) -> 162 | AP173: 0 | AQ173: =ROWS($AQ$12:AQ173) -> 162 | AR173: =IFERROR(VLOOKUP(ROWS($AR$12:AR173),$AO$12:$AP$3014,2,0),"") -> 0
AA174: =IFERROR(INDEX($AE$13:$AE$1003, SMALL(IF(ISBLANK($AE$13:$AE$1003)+ISERROR($AE$13:$AE$1003)+LEN($AE$13:$AE$1003)=0, "", ROW($AE$13:$AE$1003)-MIN(ROW($AE$13:$AE$1003))+1), ROW(163:163))),"") -> __DB_21__RC_N | AB174: =IF(AF175="","",IF(COUNTIF(CurrentListing,AF175)>1,AJ175,"")) ->  | AC174: =IF(LEN(AF175)=0,"",IF(ISNA(MATCH(AF175,MasterListing,0)),AJ175,"")) ->  | AE174: __DB_21__MKC_N | AG174: DB21MKCN | AH174: __DB_21__MKC_N | AI174: 1 | AJ174: ______ | AO174: =IF(ISNUMBER(SEARCH($F$6,AP174)),MAX($AO$11:AO173)+1,0) -> 163 | AP174: 0 | AQ174: =ROWS($AQ$12:AQ174) -> 163 | AR174: =IFERROR(VLOOKUP(ROWS($AR$12:AR174),$AO$12:$AP$3014,2,0),"") -> 0
AA175: =IFERROR(INDEX($AE$13:$AE$1003, SMALL(IF(ISBLANK($AE$13:$AE$1003)+ISERROR($AE$13:$AE$1003)+LEN($AE$13:$AE$1003)=0, "", ROW($AE$13:$AE$1003)-MIN(ROW($AE$13:$AE$1003))+1), ROW(164:164))),"") -> __DB_21__RMA_N | AB175: =IF(AF176="","",IF(COUNTIF(CurrentListing,AF176)>1,AJ176,"")) ->  | AC175: =IF(LEN(AF176)=0,"",IF(ISNA(MATCH(AF176,MasterListing,0)),AJ176,"")) ->  | AE175: __DB_21__RC_N | AG175: DB21RCN | AH175: __DB_21__RC_N | AI175: 1 | AJ175: ______ | AO175: =IF(ISNUMBER(SEARCH($F$6,AP175)),MAX($AO$11:AO174)+1,0) -> 164 | AP175: 0 | AQ175: =ROWS($AQ$12:AQ175) -> 164 | AR175: =IFERROR(VLOOKUP(ROWS($AR$12:AR175),$AO$12:$AP$3014,2,0),"") -> 0
AA176: =IFERROR(INDEX($AE$13:$AE$1003, SMALL(IF(ISBLANK($AE$13:$AE$1003)+ISERROR($AE$13:$AE$1003)+LEN($AE$13:$AE$1003)=0, "", ROW($AE$13:$AE$1003)-MIN(ROW($AE$13:$AE$1003))+1), ROW(165:165))),"") -> __DB_21__TRAN_N | AB176: =IF(AF177="","",IF(COUNTIF(CurrentListing,AF177)>1,AJ177,"")) ->  | AC176: =IF(LEN(AF177)=0,"",IF(ISNA(MATCH(AF177,MasterListing,0)),AJ177,"")) ->  | AE176: __DB_21__RMA_N | AG176: DB21RMAN | AH176: __DB_21__RMA_N | AI176: 1 | AJ176: ______ | AO176: =IF(ISNUMBER(SEARCH($F$6,AP176)),MAX($AO$11:AO175)+1,0) -> 165 | AP176: 0 | AQ176: =ROWS($AQ$12:AQ176) -> 165 | AR176: =IFERROR(VLOOKUP(ROWS($AR$12:AR176),$AO$12:$AP$3014,2,0),"") -> 0
AA177: =IFERROR(INDEX($AE$13:$AE$1003, SMALL(IF(ISBLANK($AE$13:$AE$1003)+ISERROR($AE$13:$AE$1003)+LEN($AE$13:$AE$1003)=0, "", ROW($AE$13:$AE$1003)-MIN(ROW($AE$13:$AE$1003))+1), ROW(166:166))),"") -> __EMN____Y | AB177: =IF(AF178="","",IF(COUNTIF(CurrentListing,AF178)>1,AJ178,"")) ->  | AC177: =IF(LEN(AF178)=0,"",IF(ISNA(MATCH(AF178,MasterListing,0)),AJ178,"")) ->  | AE177: __DB_21__TRAN_N | AG177: DB21TRANN | AH177: __DB_21__TRAN_N | AI177: 1 | AJ177: ______ | AO177: =IF(ISNUMBER(SEARCH($F$6,AP177)),MAX($AO$11:AO176)+1,0) -> 166 | AP177: 0 | AQ177: =ROWS($AQ$12:AQ177) -> 166 | AR177: =IFERROR(VLOOKUP(ROWS($AR$12:AR177),$AO$12:$AP$3014,2,0),"") -> 0
AA178: =IFERROR(INDEX($AE$13:$AE$1003, SMALL(IF(ISBLANK($AE$13:$AE$1003)+ISERROR($AE$13:$AE$1003)+LEN($AE$13:$AE$1003)=0, "", ROW($AE$13:$AE$1003)-MIN(ROW($AE$13:$AE$1003))+1), ROW(167:167))),"") -> __EMN_14__D_N | AB178: =IF(AF179="","",IF(COUNTIF(CurrentListing,AF179)>1,AJ179,"")) ->  | AC178: =IF(LEN(AF179)=0,"",IF(ISNA(MATCH(AF179,MasterListing,0)),AJ179,"")) ->  | AE178: __EMN____Y | AG178: EMNY | AH178: __EMN____Y | AI178: 1 | AJ178: ______ | AO178: =IF(ISNUMBER(SEARCH($F$6,AP178)),MAX($AO$11:AO177)+1,0) -> 167 | AP178: 0 | AQ178: =ROWS($AQ$12:AQ178) -> 167 | AR178: =IFERROR(VLOOKUP(ROWS($AR$12:AR178),$AO$12:$AP$3014,2,0),"") -> 0
AA179: =IFERROR(INDEX($AE$13:$AE$1003, SMALL(IF(ISBLANK($AE$13:$AE$1003)+ISERROR($AE$13:$AE$1003)+LEN($AE$13:$AE$1003)=0, "", ROW($AE$13:$AE$1003)-MIN(ROW($AE$13:$AE$1003))+1), ROW(168:168))),"") -> __EMN_14__DROPOUT_N | AB179: =IF(AF180="","",IF(COUNTIF(CurrentListing,AF180)>1,AJ180,"")) ->  | AC179: =IF(LEN(AF180)=0,"",IF(ISNA(MATCH(AF180,MasterListing,0)),AJ180,"")) ->  | AE179: __EMN_14__D_N | AG179: EMN14DN | AH179: __EMN_14__D_N | AI179: 1 | AJ179: ______ | AO179: =IF(ISNUMBER(SEARCH($F$6,AP179)),MAX($AO$11:AO178)+1,0) -> 168 | AP179: 0 | AQ179: =ROWS($AQ$12:AQ179) -> 168 | AR179: =IFERROR(VLOOKUP(ROWS($AR$12:AR179),$AO$12:$AP$3014,2,0),"") -> 0
AA180: =IFERROR(INDEX($AE$13:$AE$1003, SMALL(IF(ISBLANK($AE$13:$AE$1003)+ISERROR($AE$13:$AE$1003)+LEN($AE$13:$AE$1003)=0, "", ROW($AE$13:$AE$1003)-MIN(ROW($AE$13:$AE$1003))+1), ROW(169:169))),"") -> __EMN_14__GHS_N | AB180: =IF(AF181="","",IF(COUNTIF(CurrentListing,AF181)>1,AJ181,"")) ->  | AC180: =IF(LEN(AF181)=0,"",IF(ISNA(MATCH(AF181,MasterListing,0)),AJ181,"")) ->  | AE180: __EMN_14__DROPOUT_N | AG180: EMN14DROPOUTN | AH180: __EMN_14__DROPOUT_N | AI180: 1 | AJ180: ______ | AO180: =IF(ISNUMBER(SEARCH($F$6,AP180)),MAX($AO$11:AO179)+1,0) -> 169 | AP180: 0 | AQ180: =ROWS($AQ$12:AQ180) -> 169 | AR180: =IFERROR(VLOOKUP(ROWS($AR$12:AR180),$AO$12:$AP$3014,2,0),"") -> 0
AA181: =IFERROR(INDEX($AE$13:$AE$1003, SMALL(IF(ISBLANK($AE$13:$AE$1003)+ISERROR($AE$13:$AE$1003)+LEN($AE$13:$AE$1003)=0, "", ROW($AE$13:$AE$1003)-MIN(ROW($AE$13:$AE$1003))+1), ROW(170:170))),"") -> __EMN_14__GRADALTDPL_N | AB181: =IF(AF182="","",IF(COUNTIF(CurrentListing,AF182)>1,AJ182,"")) ->  | AC181: =IF(LEN(AF182)=0,"",IF(ISNA(MATCH(AF182,MasterListing,0)),AJ182,"")) ->  | AE181: __EMN_14__GHS_N | AG181: EMN14GHSN | AH181: __EMN_14__GHS_N | AI181: 1 | AJ181: ______ | AO181: =IF(ISNUMBER(SEARCH($F$6,AP181)),MAX($AO$11:AO180)+1,0) -> 170 | AP181: 0 | AQ181: =ROWS($AQ$12:AQ181) -> 170 | AR181: =IFERROR(VLOOKUP(ROWS($AR$12:AR181),$AO$12:$AP$3014,2,0),"") -> 0
AA182: =IFERROR(INDEX($AE$13:$AE$1003, SMALL(IF(ISBLANK($AE$13:$AE$1003)+ISERROR($AE$13:$AE$1003)+LEN($AE$13:$AE$1003)=0, "", ROW($AE$13:$AE$1003)-MIN(ROW($AE$13:$AE$1003))+1), ROW(171:171))),"") -> __EMN_14__MKC_N | AB182: =IF(AF183="","",IF(COUNTIF(CurrentListing,AF183)>1,AJ183,"")) ->  | AC182: =IF(LEN(AF183)=0,"",IF(ISNA(MATCH(AF183,MasterListing,0)),AJ183,"")) ->  | AE182: __EMN_14__GRADALTDPL_N | AG182: EMN14GRADALTDPLN | AH182: __EMN_14__GRADALTDPL_N | AI182: 1 | AJ182: ______ | AO182: =IF(ISNUMBER(SEARCH($F$6,AP182)),MAX($AO$11:AO181)+1,0) -> 171 | AP182: 0 | AQ182: =ROWS($AQ$12:AQ182) -> 171 | AR182: =IFERROR(VLOOKUP(ROWS($AR$12:AR182),$AO$12:$AP$3014,2,0),"") -> 0
AA183: =IFERROR(INDEX($AE$13:$AE$1003, SMALL(IF(ISBLANK($AE$13:$AE$1003)+ISERROR($AE$13:$AE$1003)+LEN($AE$13:$AE$1003)=0, "", ROW($AE$13:$AE$1003)-MIN(ROW($AE$13:$AE$1003))+1), ROW(172:172))),"") -> __EMN_14__RC_N | AB183: =IF(AF184="","",IF(COUNTIF(CurrentListing,AF184)>1,AJ184,"")) ->  | AC183: =IF(LEN(AF184)=0,"",IF(ISNA(MATCH(AF184,MasterListing,0)),AJ184,"")) ->  | AE183: __EMN_14__MKC_N | AG183: EMN14MKCN | AH183: __EMN_14__MKC_N | AI183: 1 | AJ183: ______ | AO183: =IF(ISNUMBER(SEARCH($F$6,AP183)),MAX($AO$11:AO182)+1,0) -> 172 | AP183: 0 | AQ183: =ROWS($AQ$12:AQ183) -> 172 | AR183: =IFERROR(VLOOKUP(ROWS($AR$12:AR183),$AO$12:$AP$3014,2,0),"") -> 0
AA184: =IFERROR(INDEX($AE$13:$AE$1003, SMALL(IF(ISBLANK($AE$13:$AE$1003)+ISERROR($AE$13:$AE$1003)+LEN($AE$13:$AE$1003)=0, "", ROW($AE$13:$AE$1003)-MIN(ROW($AE$13:$AE$1003))+1), ROW(173:173))),"") -> __EMN_14__RMA_N | AB184: =IF(AF185="","",IF(COUNTIF(CurrentListing,AF185)>1,AJ185,"")) ->  | AC184: =IF(LEN(AF185)=0,"",IF(ISNA(MATCH(AF185,MasterListing,0)),AJ185,"")) ->  | AE184: __EMN_14__RC_N | AG184: EMN14RCN | AH184: __EMN_14__RC_N | AI184: 1 | AJ184: ______ | AO184: =IF(ISNUMBER(SEARCH($F$6,AP184)),MAX($AO$11:AO183)+1,0) -> 173 | AP184: 0 | AQ184: =ROWS($AQ$12:AQ184) -> 173 | AR184: =IFERROR(VLOOKUP(ROWS($AR$12:AR184),$AO$12:$AP$3014,2,0),"") -> 0
AA185: =IFERROR(INDEX($AE$13:$AE$1003, SMALL(IF(ISBLANK($AE$13:$AE$1003)+ISERROR($AE$13:$AE$1003)+LEN($AE$13:$AE$1003)=0, "", ROW($AE$13:$AE$1003)-MIN(ROW($AE$13:$AE$1003))+1), ROW(174:174))),"") -> __EMN_14__TRAN_N | AB185: =IF(AF186="","",IF(COUNTIF(CurrentListing,AF186)>1,AJ186,"")) ->  | AC185: =IF(LEN(AF186)=0,"",IF(ISNA(MATCH(AF186,MasterListing,0)),AJ186,"")) ->  | AE185: __EMN_14__RMA_N | AG185: EMN14RMAN | AH185: __EMN_14__RMA_N | AI185: 1 | AJ185: ______ | AO185: =IF(ISNUMBER(SEARCH($F$6,AP185)),MAX($AO$11:AO184)+1,0) -> 174 | AP185: 0 | AQ185: =ROWS($AQ$12:AQ185) -> 174 | AR185: =IFERROR(VLOOKUP(ROWS($AR$12:AR185),$AO$12:$AP$3014,2,0),"") -> 0
AA186: =IFERROR(INDEX($AE$13:$AE$1003, SMALL(IF(ISBLANK($AE$13:$AE$1003)+ISERROR($AE$13:$AE$1003)+LEN($AE$13:$AE$1003)=0, "", ROW($AE$13:$AE$1003)-MIN(ROW($AE$13:$AE$1003))+1), ROW(175:175))),"") -> __EMN_15__D_N | AB186: =IF(AF187="","",IF(COUNTIF(CurrentListing,AF187)>1,AJ187,"")) ->  | AC186: =IF(LEN(AF187)=0,"",IF(ISNA(MATCH(AF187,MasterListing,0)),AJ187,"")) ->  | AE186: __EMN_14__TRAN_N | AG186: EMN14TRANN | AH186: __EMN_14__TRAN_N | AI186: 1 | AJ186: ______ | AO186: =IF(ISNUMBER(SEARCH($F$6,AP186)),MAX($AO$11:AO185)+1,0) -> 175 | AP186: 0 | AQ186: =ROWS($AQ$12:AQ186) -> 175 | AR186: =IFERROR(VLOOKUP(ROWS($AR$12:AR186),$AO$12:$AP$3014,2,0),"") -> 0
AA187: =IFERROR(INDEX($AE$13:$AE$1003, SMALL(IF(ISBLANK($AE$13:$AE$1003)+ISERROR($AE$13:$AE$1003)+LEN($AE$13:$AE$1003)=0, "", ROW($AE$13:$AE$1003)-MIN(ROW($AE$13:$AE$1003))+1), ROW(176:176))),"") -> __EMN_15__DROPOUT_N | AB187: =IF(AF188="","",IF(COUNTIF(CurrentListing,AF188)>1,AJ188,"")) ->  | AC187: =IF(LEN(AF188)=0,"",IF(ISNA(MATCH(AF188,MasterListing,0)),AJ188,"")) ->  | AE187: __EMN_15__D_N | AG187: EMN15DN | AH187: __EMN_15__D_N | AI187: 1 | AJ187: ______ | AO187: =IF(ISNUMBER(SEARCH($F$6,AP187)),MAX($AO$11:AO186)+1,0) -> 176 | AP187: 0 | AQ187: =ROWS($AQ$12:AQ187) -> 176 | AR187: =IFERROR(VLOOKUP(ROWS($AR$12:AR187),$AO$12:$AP$3014,2,0),"") -> 0
AA188: =IFERROR(INDEX($AE$13:$AE$1003, SMALL(IF(ISBLANK($AE$13:$AE$1003)+ISERROR($AE$13:$AE$1003)+LEN($AE$13:$AE$1003)=0, "", ROW($AE$13:$AE$1003)-MIN(ROW($AE$13:$AE$1003))+1), ROW(177:177))),"") -> __EMN_15__GHS_N | AB188: =IF(AF189="","",IF(COUNTIF(CurrentListing,AF189)>1,AJ189,"")) ->  | AC188: =IF(LEN(AF189)=0,"",IF(ISNA(MATCH(AF189,MasterListing,0)),AJ189,"")) ->  | AE188: __EMN_15__DROPOUT_N | AG188: EMN15DROPOUTN | AH188: __EMN_15__DROPOUT_N | AI188: 1 | AJ188: ______ | AO188: =IF(ISNUMBER(SEARCH($F$6,AP188)),MAX($AO$11:AO187)+1,0) -> 177 | AP188: 0 | AQ188: =ROWS($AQ$12:AQ188) -> 177 | AR188: =IFERROR(VLOOKUP(ROWS($AR$12:AR188),$AO$12:$AP$3014,2,0),"") -> 0
AA189: =IFERROR(INDEX($AE$13:$AE$1003, SMALL(IF(ISBLANK($AE$13:$AE$1003)+ISERROR($AE$13:$AE$1003)+LEN($AE$13:$AE$1003)=0, "", ROW($AE$13:$AE$1003)-MIN(ROW($AE$13:$AE$1003))+1), ROW(178:178))),"") -> __EMN_15__GRADALTDPL_N | AB189: =IF(AF190="","",IF(COUNTIF(CurrentListing,AF190)>1,AJ190,"")) ->  | AC189: =IF(LEN(AF190)=0,"",IF(ISNA(MATCH(AF190,MasterListing,0)),AJ190,"")) ->  | AE189: __EMN_15__GHS_N | AG189: EMN15GHSN | AH189: __EMN_15__GHS_N | AI189: 1 | AJ189: ______ | AO189: =IF(ISNUMBER(SEARCH($F$6,AP189)),MAX($AO$11:AO188)+1,0) -> 178 | AP189: 0 | AQ189: =ROWS($AQ$12:AQ189) -> 178 | AR189: =IFERROR(VLOOKUP(ROWS($AR$12:AR189),$AO$12:$AP$3014,2,0),"") -> 0
AA190: =IFERROR(INDEX($AE$13:$AE$1003, SMALL(IF(ISBLANK($AE$13:$AE$1003)+ISERROR($AE$13:$AE$1003)+LEN($AE$13:$AE$1003)=0, "", ROW($AE$13:$AE$1003)-MIN(ROW($AE$13:$AE$1003))+1), ROW(179:179))),"") -> __EMN_15__MKC_N | AB190: =IF(AF191="","",IF(COUNTIF(CurrentListing,AF191)>1,AJ191,"")) ->  | AC190: =IF(LEN(AF191)=0,"",IF(ISNA(MATCH(AF191,MasterListing,0)),AJ191,"")) ->  | AE190: __EMN_15__GRADALTDPL_N | AG190: EMN15GRADALTDPLN | AH190: __EMN_15__GRADALTDPL_N | AI190: 1 | AJ190: ______ | AO190: =IF(ISNUMBER(SEARCH($F$6,AP190)),MAX($AO$11:AO189)+1,0) -> 179 | AP190: 0 | AQ190: =ROWS($AQ$12:AQ190) -> 179 | AR190: =IFERROR(VLOOKUP(ROWS($AR$12:AR190),$AO$12:$AP$3014,2,0),"") -> 0
AA191: =IFERROR(INDEX($AE$13:$AE$1003, SMALL(IF(ISBLANK($AE$13:$AE$1003)+ISERROR($AE$13:$AE$1003)+LEN($AE$13:$AE$1003)=0, "", ROW($AE$13:$AE$1003)-MIN(ROW($AE$13:$AE$1003))+1), ROW(180:180))),"") -> __EMN_15__RC_N | AB191: =IF(AF192="","",IF(COUNTIF(CurrentListing,AF192)>1,AJ192,"")) ->  | AC191: =IF(LEN(AF192)=0,"",IF(ISNA(MATCH(AF192,MasterListing,0)),AJ192,"")) ->  | AE191: __EMN_15__MKC_N | AG191: EMN15MKCN | AH191: __EMN_15__MKC_N | AI191: 1 | AJ191: ______ | AO191: =IF(ISNUMBER(SEARCH($F$6,AP191)),MAX($AO$11:AO190)+1,0) -> 180 | AP191: 0 | AQ191: =ROWS($AQ$12:AQ191) -> 180 | AR191: =IFERROR(VLOOKUP(ROWS($AR$12:AR191),$AO$12:$AP$3014,2,0),"") -> 0
AA192: =IFERROR(INDEX($AE$13:$AE$1003, SMALL(IF(ISBLANK($AE$13:$AE$1003)+ISERROR($AE$13:$AE$1003)+LEN($AE$13:$AE$1003)=0, "", ROW($AE$13:$AE$1003)-MIN(ROW($AE$13:$AE$1003))+1), ROW(181:181))),"") -> __EMN_15__RMA_N | AB192: =IF(AF193="","",IF(COUNTIF(CurrentListing,AF193)>1,AJ193,"")) ->  | AC192: =IF(LEN(AF193)=0,"",IF(ISNA(MATCH(AF193,MasterListing,0)),AJ193,"")) ->  | AE192: __EMN_15__RC_N | AG192: EMN15RCN | AH192: __EMN_15__RC_N | AI192: 1 | AJ192: ______ | AO192: =IF(ISNUMBER(SEARCH($F$6,AP192)),MAX($AO$11:AO191)+1,0) -> 181 | AP192: 0 | AQ192: =ROWS($AQ$12:AQ192) -> 181 | AR192: =IFERROR(VLOOKUP(ROWS($AR$12:AR192),$AO$12:$AP$3014,2,0),"") -> 0
AA193: =IFERROR(INDEX($AE$13:$AE$1003, SMALL(IF(ISBLANK($AE$13:$AE$1003)+ISERROR($AE$13:$AE$1003)+LEN($AE$13:$AE$1003)=0, "", ROW($AE$13:$AE$1003)-MIN(ROW($AE$13:$AE$1003))+1), ROW(182:182))),"") -> __EMN_15__TRAN_N | AB193: =IF(AF194="","",IF(COUNTIF(CurrentListing,AF194)>1,AJ194,"")) ->  | AC193: =IF(LEN(AF194)=0,"",IF(ISNA(MATCH(AF194,MasterListing,0)),AJ194,"")) ->  | AE193: __EMN_15__RMA_N | AG193: EMN15RMAN | AH193: __EMN_15__RMA_N | AI193: 1 | AJ193: ______ | AO193: =IF(ISNUMBER(SEARCH($F$6,AP193)),MAX($AO$11:AO192)+1,0) -> 182 | AP193: 0 | AQ193: =ROWS($AQ$12:AQ193) -> 182 | AR193: =IFERROR(VLOOKUP(ROWS($AR$12:AR193),$AO$12:$AP$3014,2,0),"") -> 0
AA194: =IFERROR(INDEX($AE$13:$AE$1003, SMALL(IF(ISBLANK($AE$13:$AE$1003)+ISERROR($AE$13:$AE$1003)+LEN($AE$13:$AE$1003)=0, "", ROW($AE$13:$AE$1003)-MIN(ROW($AE$13:$AE$1003))+1), ROW(183:183))),"") -> __EMN_16__D_N | AB194: =IF(AF195="","",IF(COUNTIF(CurrentListing,AF195)>1,AJ195,"")) ->  | AC194: =IF(LEN(AF195)=0,"",IF(ISNA(MATCH(AF195,MasterListing,0)),AJ195,"")) ->  | AE194: __EMN_15__TRAN_N | AG194: EMN15TRANN | AH194: __EMN_15__TRAN_N | AI194: 1 | AJ194: ______ | AO194: =IF(ISNUMBER(SEARCH($F$6,AP194)),MAX($AO$11:AO193)+1,0) -> 183 | AP194: 0 | AQ194: =ROWS($AQ$12:AQ194) -> 183 | AR194: =IFERROR(VLOOKUP(ROWS($AR$12:AR194),$AO$12:$AP$3014,2,0),"") -> 0
AA195: =IFERROR(INDEX($AE$13:$AE$1003, SMALL(IF(ISBLANK($AE$13:$AE$1003)+ISERROR($AE$13:$AE$1003)+LEN($AE$13:$AE$1003)=0, "", ROW($AE$13:$AE$1003)-MIN(ROW($AE$13:$AE$1003))+1), ROW(184:184))),"") -> __EMN_16__DROPOUT_N | AB195: =IF(AF196="","",IF(COUNTIF(CurrentListing,AF196)>1,AJ196,"")) ->  | AC195: =IF(LEN(AF196)=0,"",IF(ISNA(MATCH(AF196,MasterListing,0)),AJ196,"")) ->  | AE195: __EMN_16__D_N | AG195: EMN16DN | AH195: __EMN_16__D_N | AI195: 1 | AJ195: ______ | AO195: =IF(ISNUMBER(SEARCH($F$6,AP195)),MAX($AO$11:AO194)+1,0) -> 184 | AP195: 0 | AQ195: =ROWS($AQ$12:AQ195) -> 184 | AR195: =IFERROR(VLOOKUP(ROWS($AR$12:AR195),$AO$12:$AP$3014,2,0),"") -> 0
AA196: =IFERROR(INDEX($AE$13:$AE$1003, SMALL(IF(ISBLANK($AE$13:$AE$1003)+ISERROR($AE$13:$AE$1003)+LEN($AE$13:$AE$1003)=0, "", ROW($AE$13:$AE$1003)-MIN(ROW($AE$13:$AE$1003))+1), ROW(185:185))),"") -> __EMN_16__GHS_N | AB196: =IF(AF197="","",IF(COUNTIF(CurrentListing,AF197)>1,AJ197,"")) ->  | AC196: =IF(LEN(AF197)=0,"",IF(ISNA(MATCH(AF197,MasterListing,0)),AJ197,"")) ->  | AE196: __EMN_16__DROPOUT_N | AG196: EMN16DROPOUTN | AH196: __EMN_16__DROPOUT_N | AI196: 1 | AJ196: ______ | AO196: =IF(ISNUMBER(SEARCH($F$6,AP196)),MAX($AO$11:AO195)+1,0) -> 185 | AP196: 0 | AQ196: =ROWS($AQ$12:AQ196) -> 185 | AR196: =IFERROR(VLOOKUP(ROWS($AR$12:AR196),$AO$12:$AP$3014,2,0),"") -> 0
AA197: =IFERROR(INDEX($AE$13:$AE$1003, SMALL(IF(ISBLANK($AE$13:$AE$1003)+ISERROR($AE$13:$AE$1003)+LEN($AE$13:$AE$1003)=0, "", ROW($AE$13:$AE$1003)-MIN(ROW($AE$13:$AE$1003))+1), ROW(186:186))),"") -> __EMN_16__GRADALTDPL_N | AB197: =IF(AF198="","",IF(COUNTIF(CurrentListing,AF198)>1,AJ198,"")) ->  | AC197: =IF(LEN(AF198)=0,"",IF(ISNA(MATCH(AF198,MasterListing,0)),AJ198,"")) ->  | AE197: __EMN_16__GHS_N | AG197: EMN16GHSN | AH197: __EMN_16__GHS_N | AI197: 1 | AJ197: ______ | AO197: =IF(ISNUMBER(SEARCH($F$6,AP197)),MAX($AO$11:AO196)+1,0) -> 186 | AP197: 0 | AQ197: =ROWS($AQ$12:AQ197) -> 186 | AR197: =IFERROR(VLOOKUP(ROWS($AR$12:AR197),$AO$12:$AP$3014,2,0),"") -> 0
AA198: =IFERROR(INDEX($AE$13:$AE$1003, SMALL(IF(ISBLANK($AE$13:$AE$1003)+ISERROR($AE$13:$AE$1003)+LEN($AE$13:$AE$1003)=0, "", ROW($AE$13:$AE$1003)-MIN(ROW($AE$13:$AE$1003))+1), ROW(187:187))),"") -> __EMN_16__MKC_N | AB198: =IF(AF199="","",IF(COUNTIF(CurrentListing,AF199)>1,AJ199,"")) ->  | AC198: =IF(LEN(AF199)=0,"",IF(ISNA(MATCH(AF199,MasterListing,0)),AJ199,"")) ->  | AE198: __EMN_16__GRADALTDPL_N | AG198: EMN16GRADALTDPLN | AH198: __EMN_16__GRADALTDPL_N | AI198: 1 | AJ198: ______ | AO198: =IF(ISNUMBER(SEARCH($F$6,AP198)),MAX($AO$11:AO197)+1,0) -> 187 | AP198: 0 | AQ198: =ROWS($AQ$12:AQ198) -> 187 | AR198: =IFERROR(VLOOKUP(ROWS($AR$12:AR198),$AO$12:$AP$3014,2,0),"") -> 0
AA199: =IFERROR(INDEX($AE$13:$AE$1003, SMALL(IF(ISBLANK($AE$13:$AE$1003)+ISERROR($AE$13:$AE$1003)+LEN($AE$13:$AE$1003)=0, "", ROW($AE$13:$AE$1003)-MIN(ROW($AE$13:$AE$1003))+1), ROW(188:188))),"") -> __EMN_16__RC_N | AB199: =IF(AF200="","",IF(COUNTIF(CurrentListing,AF200)>1,AJ200,"")) ->  | AC199: =IF(LEN(AF200)=0,"",IF(ISNA(MATCH(AF200,MasterListing,0)),AJ200,"")) ->  | AE199: __EMN_16__MKC_N | AG199: EMN16MKCN | AH199: __EMN_16__MKC_N | AI199: 1 | AJ199: ______ | AO199: =IF(ISNUMBER(SEARCH($F$6,AP199)),MAX($AO$11:AO198)+1,0) -> 188 | AP199: 0 | AQ199: =ROWS($AQ$12:AQ199) -> 188 | AR199: =IFERROR(VLOOKUP(ROWS($AR$12:AR199),$AO$12:$AP$3014,2,0),"") -> 0
AA200: =IFERROR(INDEX($AE$13:$AE$1003, SMALL(IF(ISBLANK($AE$13:$AE$1003)+ISERROR($AE$13:$AE$1003)+LEN($AE$13:$AE$1003)=0, "", ROW($AE$13:$AE$1003)-MIN(ROW($AE$13:$AE$1003))+1), ROW(189:189))),"") -> __EMN_16__RMA_N | AB200: =IF(AF201="","",IF(COUNTIF(CurrentListing,AF201)>1,AJ201,"")) ->  | AC200: =IF(LEN(AF201)=0,"",IF(ISNA(MATCH(AF201,MasterListing,0)),AJ201,"")) ->  | AE200: __EMN_16__RC_N | AG200: EMN16RCN | AH200: __EMN_16__RC_N | AI200: 1 | AJ200: ______ | AO200: =IF(ISNUMBER(SEARCH($F$6,AP200)),MAX($AO$11:AO199)+1,0) -> 189 | AP200: 0 | AQ200: =ROWS($AQ$12:AQ200) -> 189 | AR200: =IFERROR(VLOOKUP(ROWS($AR$12:AR200),$AO$12:$AP$3014,2,0),"") -> 0
AA201: =IFERROR(INDEX($AE$13:$AE$1003, SMALL(IF(ISBLANK($AE$13:$AE$1003)+ISERROR($AE$13:$AE$1003)+LEN($AE$13:$AE$1003)=0, "", ROW($AE$13:$AE$1003)-MIN(ROW($AE$13:$AE$1003))+1), ROW(190:190))),"") -> __EMN_16__TRAN_N | AB201: =IF(AF202="","",IF(COUNTIF(CurrentListing,AF202)>1,AJ202,"")) ->  | AC201: =IF(LEN(AF202)=0,"",IF(ISNA(MATCH(AF202,MasterListing,0)),AJ202,"")) ->  | AE201: __EMN_16__RMA_N | AG201: EMN16RMAN | AH201: __EMN_16__RMA_N | AI201: 1 | AJ201: ______ | AO201: =IF(ISNUMBER(SEARCH($F$6,AP201)),MAX($AO$11:AO200)+1,0) -> 190 | AP201: 0 | AQ201: =ROWS($AQ$12:AQ201) -> 190 | AR201: =IFERROR(VLOOKUP(ROWS($AR$12:AR201),$AO$12:$AP$3014,2,0),"") -> 0
AA202: =IFERROR(INDEX($AE$13:$AE$1003, SMALL(IF(ISBLANK($AE$13:$AE$1003)+ISERROR($AE$13:$AE$1003)+LEN($AE$13:$AE$1003)=0, "", ROW($AE$13:$AE$1003)-MIN(ROW($AE$13:$AE$1003))+1), ROW(191:191))),"") -> __EMN_17__D_N | AB202: =IF(AF203="","",IF(COUNTIF(CurrentListing,AF203)>1,AJ203,"")) ->  | AC202: =IF(LEN(AF203)=0,"",IF(ISNA(MATCH(AF203,MasterListing,0)),AJ203,"")) ->  | AE202: __EMN_16__TRAN_N | AG202: EMN16TRANN | AH202: __EMN_16__TRAN_N | AI202: 1 | AJ202: ______ | AO202: =IF(ISNUMBER(SEARCH($F$6,AP202)),MAX($AO$11:AO201)+1,0) -> 191 | AP202: 0 | AQ202: =ROWS($AQ$12:AQ202) -> 191 | AR202: =IFERROR(VLOOKUP(ROWS($AR$12:AR202),$AO$12:$AP$3014,2,0),"") -> 0
... 2048 more rows

Sheet Error Messages
A1: ="IDEA LEA Exiting Data for School Year "&'Exiting (LEA FS009)'!E12&" - "&'Select LEA'!F6 -> IDEA LEA Exiting Data for School Year - | N1: End of worksheet
E3: Triggered edit checks | J3: Triggered edit checks
E4: Subtotals | H4: Count | J4: Category set | M4: Count | Q4: Only use these on the edit checks | V4: =IFERROR(INDEX(#REF!, SMALL(IF($C$2=#REF!, ROW(#REF!)-MIN(ROW(#REF!))+1, ""), ROW(A1))),"") -> 
E5: 1 - Basis of exit | H5: =IF(Subtotals!R15=0,"",Subtotals!R15) ->  | J5: A - Basis of exit, disability category, and age | M5: =IF(SUM('Category Sets A-D'!M14:M32)=0,"",SUM('Category Sets A-D'!M14:M32)) ->  | Q5: Have a 1-line note if there are any errors on the raw data page.
E6: 2 - Age | H6: =IF(Subtotals!R16=0,"",Subtotals!R16) ->  | J6: B - Basis of exit and racial ethnic | M6: =IF(SUM('Category Sets A-D'!M39:M58)=0,"",SUM('Category Sets A-D'!M39:M58)) -> 
E7: 3 - Racial ethnic | H7: =IF(Subtotals!R17=0,"",Subtotals!R17) ->  | J7: C - Basis of exit and sex | M7: =IF(SUM('Category Sets A-D'!M64:M77)=0,"",SUM('Category Sets A-D'!M64:M77)) -> 
E8: 4 - Sex | H8: =IF(Subtotals!R18=0,"",Subtotals!R18) ->  | J8: D - Basis of exit and English learner (LEP) status | M8: =IF(SUM('Category Sets A-D'!M89:M102)=0,"",SUM('Category Sets A-D'!M89:M102)) -> 
E9: 5 - English learner (LEP) status | H9: =IF(Subtotals!R19=0,"",Subtotals!R19) ->  | J9: Total | M9: =SUM(M5:M8) -> 0
E10: 6 - Disability category (IDEA) exiting | H10: =IF(Subtotals!R20=0,"",Subtotals!R20) -> 
E11: Total | H11: =SUM(H5:H10) -> 0
A13: =" LEA name: "&'Select LEA'!$F$6 -> LEA name:
A14: =" LEA identifier: "&'Select LEA'!$F$7 -> LEA identifier: | U14: 1
S15: =IFERROR(INDEX(Subtotals!$Q$15:$Q$20, SMALL(IF($U$14=Subtotals!$R$15:$R$20, ROW(Subtotals!$R$15:$R$20)-MIN(ROW(Subtotals!$R$15:$R$20))+1, ""), ROW(A1))),"") ->  | T15: =IFERROR(INDEX(Subtotals!$U$15:$U$20, SMALL(IF($U$14=Subtotals!$R$15:$R$20, ROW(Subtotals!$R$15:$R$20)-MIN(ROW(Subtotals!$R$15:$R$20))+1, ""), ROW(A1))),"") ->  | U15: =IFERROR(INDEX(Subtotals!$S$15:$S$20, SMALL(IF($U$14=Subtotals!$R$15:$R$20, ROW(Subtotals!$R$15:$R$20)-MIN(ROW(Subtotals!$R$15:$R$20))+1, ""), ROW(A1))),"") ->  | V15: =IFERROR(INDEX(Subtotals!$T$15:$T$20, SMALL(IF($U$14=Subtotals!$R$15:$R$20, ROW(Subtotals!$R$15:$R$20)-MIN(ROW(Subtotals!$R$15:$R$20))+1, ""), ROW(A1))),"") -> 
A16: Subtotals | B16: Triggered edit checks | M16: Student count | S16: =IFERROR(INDEX(Subtotals!$Q$15:$Q$20, SMALL(IF($U$14=Subtotals!$R$15:$R$20, ROW(Subtotals!$R$15:$R$20)-MIN(ROW(Subtotals!$R$15:$R$20))+1, ""), ROW(A2))),"") ->  | T16: =IFERROR(INDEX(Subtotals!$U$15:$U$20, SMALL(IF($U$14=Subtotals!$R$15:$R$20, ROW(Subtotals!$R$15:$R$20)-MIN(ROW(Subtotals!$R$15:$R$20))+1, ""), ROW(A2))),"") ->  | U16: =IFERROR(INDEX(Subtotals!$S$15:$S$20, SMALL(IF($U$14=Subtotals!$R$15:$R$20, ROW(Subtotals!$R$15:$R$20)-MIN(ROW(Subtotals!$R$15:$R$20))+1, ""), ROW(A2))),"") ->  | V16: =IFERROR(INDEX(Subtotals!$T$15:$T$20, SMALL(IF($U$14=Subtotals!$R$15:$R$20, ROW(Subtotals!$R$15:$R$20)-MIN(ROW(Subtotals!$R$15:$R$20))+1, ""), ROW(A2))),"") -> 
A17: =V15 ->  | B17: =T15 ->  | M17: =IF(S15="","",HYPERLINK(CONCATENATE("#","'Subtotals'!",S15),U15)) ->  | S17: =IFERROR(INDEX(Subtotals!$Q$15:$Q$20, SMALL(IF($U$14=Subtotals!$R$15:$R$20, ROW(Subtotals!$R$15:$R$20)-MIN(ROW(Subtotals!$R$15:$R$20))+1, ""), ROW(A3))),"") ->  | T17: =IFERROR(INDEX(Subtotals!$U$15:$U$20, SMALL(IF($U$14=Subtotals!$R$15:$R$20, ROW(Subtotals!$R$15:$R$20)-MIN(ROW(Subtotals!$R$15:$R$20))+1, ""), ROW(A3))),"") ->  | U17: =IFERROR(INDEX(Subtotals!$S$15:$S$20, SMALL(IF($U$14=Subtotals!$R$15:$R$20, ROW(Subtotals!$R$15:$R$20)-MIN(ROW(Subtotals!$R$15:$R$20))+1, ""), ROW(A3))),"") ->  | V17: =IFERROR(INDEX(Subtotals!$T$15:$T$20, SMALL(IF($U$14=Subtotals!$R$15:$R$20, ROW(Subtotals!$R$15:$R$20)-MIN(ROW(Subtotals!$R$15:$R$20))+1, ""), ROW(A3))),"") -> 
A18: =V16 ->  | M18: =IF(S16="","",HYPERLINK(CONCATENATE("#","'Subtotals'!",S16),U16)) ->  | S18: =IFERROR(INDEX(Subtotals!$Q$15:$Q$20, SMALL(IF($U$14=Subtotals!$R$15:$R$20, ROW(Subtotals!$R$15:$R$20)-MIN(ROW(Subtotals!$R$15:$R$20))+1, ""), ROW(A4))),"") ->  | T18: =IFERROR(INDEX(Subtotals!$U$15:$U$20, SMALL(IF($U$14=Subtotals!$R$15:$R$20, ROW(Subtotals!$R$15:$R$20)-MIN(ROW(Subtotals!$R$15:$R$20))+1, ""), ROW(A4))),"") ->  | U18: =IFERROR(INDEX(Subtotals!$S$15:$S$20, SMALL(IF($U$14=Subtotals!$R$15:$R$20, ROW(Subtotals!$R$15:$R$20)-MIN(ROW(Subtotals!$R$15:$R$20))+1, ""), ROW(A4))),"") ->  | V18: =IFERROR(INDEX(Subtotals!$T$15:$T$20, SMALL(IF($U$14=Subtotals!$R$15:$R$20, ROW(Subtotals!$R$15:$R$20)-MIN(ROW(Subtotals!$R$15:$R$20))+1, ""), ROW(A4))),"") -> 
A19: =V17 ->  | S19: =IFERROR(INDEX(Subtotals!$Q$15:$Q$20, SMALL(IF($U$14=Subtotals!$R$15:$R$20, ROW(Subtotals!$R$15:$R$20)-MIN(ROW(Subtotals!$R$15:$R$20))+1, ""), ROW(A5))),"") ->  | T19: =IFERROR(INDEX(Subtotals!$U$15:$U$20, SMALL(IF($U$14=Subtotals!$R$15:$R$20, ROW(Subtotals!$R$15:$R$20)-MIN(ROW(Subtotals!$R$15:$R$20))+1, ""), ROW(A5))),"") ->  | U19: =IFERROR(INDEX(Subtotals!$S$15:$S$20, SMALL(IF($U$14=Subtotals!$R$15:$R$20, ROW(Subtotals!$R$15:$R$20)-MIN(ROW(Subtotals!$R$15:$R$20))+1, ""), ROW(A5))),"") ->  | V19: =IFERROR(INDEX(Subtotals!$T$15:$T$20, SMALL(IF($U$14=Subtotals!$R$15:$R$20, ROW(Subtotals!$R$15:$R$20)-MIN(ROW(Subtotals!$R$15:$R$20))+1, ""), ROW(A5))),"") -> 
S20: =IFERROR(INDEX(Subtotals!$Q$15:$Q$20, SMALL(IF($U$14=Subtotals!$R$15:$R$20, ROW(Subtotals!$R$15:$R$20)-MIN(ROW(Subtotals!$R$15:$R$20))+1, ""), ROW(A6))),"") ->  | T20: =IFERROR(INDEX(Subtotals!$U$15:$U$20, SMALL(IF($U$14=Subtotals!$R$15:$R$20, ROW(Subtotals!$R$15:$R$20)-MIN(ROW(Subtotals!$R$15:$R$20))+1, ""), ROW(A6))),"") ->  | U20: =IFERROR(INDEX(Subtotals!$S$15:$S$20, SMALL(IF($U$14=Subtotals!$R$15:$R$20, ROW(Subtotals!$R$15:$R$20)-MIN(ROW(Subtotals!$R$15:$R$20))+1, ""), ROW(A6))),"") ->  | V20: =IFERROR(INDEX(Subtotals!$T$15:$T$20, SMALL(IF($U$14=Subtotals!$R$15:$R$20, ROW(Subtotals!$R$15:$R$20)-MIN(ROW(Subtotals!$R$15:$R$20))+1, ""), ROW(A6))),"") -> 
A31: Category sets | B31: Triggered edit checks | M31: Student count
A32: =V32 ->  | B32: =IF(W32=1,"No Data",T32) ->  | M32: =IF(S32="","",HYPERLINK(CONCATENATE("#","'Category Sets A-D'!",S32),U32)) ->  | S32: =IFERROR(INDEX('Category Sets A-D'!$L$14:$L$102, SMALL(IF($U$14='Category Sets A-D'!$M$14:$M$102, ROW('Category Sets A-D'!$M$14:$M$102)-MIN(ROW('Category Sets A-D'!$M$14:$M$102))+1, ""), ROW(A1))),"") ->  | T32: =IFERROR(INDEX('Category Sets A-D'!$P$14:$P$102, SMALL(IF($U$14='Category Sets A-D'!$M$14:$M$102, ROW('Category Sets A-D'!$M$14:$M$102)-MIN(ROW('Category Sets A-D'!$M$14:$M$102))+1, ""), ROW(A1))),"") ->  | U32: =IFERROR(INDEX('Category Sets A-D'!$N$14:$N$102, SMALL(IF($U$14='Category Sets A-D'!$M$14:$M$102, ROW('Category Sets A-D'!$M$14:$M$102)-MIN(ROW('Category Sets A-D'!$M$14:$M$102))+1, ""), ROW(A1))),"") ->  | V32: =IFERROR(INDEX('Category Sets A-D'!$O$14:$O$102, SMALL(IF($U$14='Category Sets A-D'!$M$14:$M$102, ROW('Category Sets A-D'!$M$14:$M$102)-MIN(ROW('Category Sets A-D'!$M$14:$M$102))+1, ""), ROW(A1))),"") ->  | W32: =IF(U32="No Data",1,0) -> 0
A33: =V33 ->  | B33: =IF(W33=1,"No Data",T33) ->  | S33: =IFERROR(INDEX('Category Sets A-D'!$L$14:$L$102, SMALL(IF($U$14='Category Sets A-D'!$M$14:$M$102, ROW('Category Sets A-D'!$M$14:$M$102)-MIN(ROW('Category Sets A-D'!$M$14:$M$102))+1, ""), ROW(A2))),"") ->  | T33: =IFERROR(INDEX('Category Sets A-D'!$P$14:$P$102, SMALL(IF($U$14='Category Sets A-D'!$M$14:$M$102, ROW('Category Sets A-D'!$M$14:$M$102)-MIN(ROW('Category Sets A-D'!$M$14:$M$102))+1, ""), ROW(A2))),"") ->  | U33: =IFERROR(INDEX('Category Sets A-D'!$N$14:$N$102, SMALL(IF($U$14='Category Sets A-D'!$M$14:$M$102, ROW('Category Sets A-D'!$M$14:$M$102)-MIN(ROW('Category Sets A-D'!$M$14:$M$102))+1, ""), ROW(A2))),"") ->  | V33: =IFERROR(INDEX('Category Sets A-D'!$O$14:$O$102, SMALL(IF($U$14='Category Sets A-D'!$M$14:$M$102, ROW('Category Sets A-D'!$M$14:$M$102)-MIN(ROW('Category Sets A-D'!$M$14:$M$102))+1, ""), ROW(A2))),"") ->  | W33: =IF(U33="No Data",1,0) -> 0
S34: =IFERROR(INDEX('Category Sets A-D'!$L$14:$L$102, SMALL(IF($U$14='Category Sets A-D'!$M$14:$M$102, ROW('Category Sets A-D'!$M$14:$M$102)-MIN(ROW('Category Sets A-D'!$M$14:$M$102))+1, ""), ROW(A3))),"") ->  | T34: =IFERROR(INDEX('Category Sets A-D'!$P$14:$P$102, SMALL(IF($U$14='Category Sets A-D'!$M$14:$M$102, ROW('Category Sets A-D'!$M$14:$M$102)-MIN(ROW('Category Sets A-D'!$M$14:$M$102))+1, ""), ROW(A3))),"") ->  | U34: =IFERROR(INDEX('Category Sets A-D'!$N$14:$N$102, SMALL(IF($U$14='Category Sets A-D'!$M$14:$M$102, ROW('Category Sets A-D'!$M$14:$M$102)-MIN(ROW('Category Sets A-D'!$M$14:$M$102))+1, ""), ROW(A3))),"") ->  | V34: =IFERROR(INDEX('Category Sets A-D'!$O$14:$O$102, SMALL(IF($U$14='Category Sets A-D'!$M$14:$M$102, ROW('Category Sets A-D'!$M$14:$M$102)-MIN(ROW('Category Sets A-D'!$M$14:$M$102))+1, ""), ROW(A3))),"") ->  | W34: 0
S35: =IFERROR(INDEX('Category Sets A-D'!$L$14:$L$102, SMALL(IF($U$14='Category Sets A-D'!$M$14:$M$102, ROW('Category Sets A-D'!$M$14:$M$102)-MIN(ROW('Category Sets A-D'!$M$14:$M$102))+1, ""), ROW(A4))),"") ->  | T35: =IFERROR(INDEX('Category Sets A-D'!$P$14:$P$102, SMALL(IF($U$14='Category Sets A-D'!$M$14:$M$102, ROW('Category Sets A-D'!$M$14:$M$102)-MIN(ROW('Category Sets A-D'!$M$14:$M$102))+1, ""), ROW(A4))),"") ->  | U35: =IFERROR(INDEX('Category Sets A-D'!$N$14:$N$102, SMALL(IF($U$14='Category Sets A-D'!$M$14:$M$102, ROW('Category Sets A-D'!$M$14:$M$102)-MIN(ROW('Category Sets A-D'!$M$14:$M$102))+1, ""), ROW(A4))),"") ->  | V35: =IFERROR(INDEX('Category Sets A-D'!$O$14:$O$102, SMALL(IF($U$14='Category Sets A-D'!$M$14:$M$102, ROW('Category Sets A-D'!$M$14:$M$102)-MIN(ROW('Category Sets A-D'!$M$14:$M$102))+1, ""), ROW(A4))),"") ->  | W35: 0
S36: =IFERROR(INDEX('Category Sets A-D'!$L$14:$L$102, SMALL(IF($U$14='Category Sets A-D'!$M$14:$M$102, ROW('Category Sets A-D'!$M$14:$M$102)-MIN(ROW('Category Sets A-D'!$M$14:$M$102))+1, ""), ROW(A5))),"") ->  | T36: =IFERROR(INDEX('Category Sets A-D'!$P$14:$P$102, SMALL(IF($U$14='Category Sets A-D'!$M$14:$M$102, ROW('Category Sets A-D'!$M$14:$M$102)-MIN(ROW('Category Sets A-D'!$M$14:$M$102))+1, ""), ROW(A5))),"") ->  | U36: =IFERROR(INDEX('Category Sets A-D'!$N$14:$N$102, SMALL(IF($U$14='Category Sets A-D'!$M$14:$M$102, ROW('Category Sets A-D'!$M$14:$M$102)-MIN(ROW('Category Sets A-D'!$M$14:$M$102))+1, ""), ROW(A5))),"") ->  | V36: =IFERROR(INDEX('Category Sets A-D'!$O$14:$O$102, SMALL(IF($U$14='Category Sets A-D'!$M$14:$M$102, ROW('Category Sets A-D'!$M$14:$M$102)-MIN(ROW('Category Sets A-D'!$M$14:$M$102))+1, ""), ROW(A5))),"") ->  | W36: 0
S37: =IFERROR(INDEX('Category Sets A-D'!$L$14:$L$102, SMALL(IF($U$14='Category Sets A-D'!$M$14:$M$102, ROW('Category Sets A-D'!$M$14:$M$102)-MIN(ROW('Category Sets A-D'!$M$14:$M$102))+1, ""), ROW(A6))),"") ->  | T37: =IFERROR(INDEX('Category Sets A-D'!$P$14:$P$102, SMALL(IF($U$14='Category Sets A-D'!$M$14:$M$102, ROW('Category Sets A-D'!$M$14:$M$102)-MIN(ROW('Category Sets A-D'!$M$14:$M$102))+1, ""), ROW(A6))),"") ->  | U37: =IFERROR(INDEX('Category Sets A-D'!$N$14:$N$102, SMALL(IF($U$14='Category Sets A-D'!$M$14:$M$102, ROW('Category Sets A-D'!$M$14:$M$102)-MIN(ROW('Category Sets A-D'!$M$14:$M$102))+1, ""), ROW(A6))),"") ->  | V37: =IFERROR(INDEX('Category Sets A-D'!$O$14:$O$102, SMALL(IF($U$14='Category Sets A-D'!$M$14:$M$102, ROW('Category Sets A-D'!$M$14:$M$102)-MIN(ROW('Category Sets A-D'!$M$14:$M$102))+1, ""), ROW(A6))),"") ->  | W37: 0
S38: =IFERROR(INDEX('Category Sets A-D'!$L$14:$L$102, SMALL(IF($U$14='Category Sets A-D'!$M$14:$M$102, ROW('Category Sets A-D'!$M$14:$M$102)-MIN(ROW('Category Sets A-D'!$M$14:$M$102))+1, ""), ROW(A7))),"") ->  | T38: =IFERROR(INDEX('Category Sets A-D'!$P$14:$P$102, SMALL(IF($U$14='Category Sets A-D'!$M$14:$M$102, ROW('Category Sets A-D'!$M$14:$M$102)-MIN(ROW('Category Sets A-D'!$M$14:$M$102))+1, ""), ROW(A7))),"") ->  | U38: =IFERROR(INDEX('Category Sets A-D'!$N$14:$N$102, SMALL(IF($U$14='Category Sets A-D'!$M$14:$M$102, ROW('Category Sets A-D'!$M$14:$M$102)-MIN(ROW('Category Sets A-D'!$M$14:$M$102))+1, ""), ROW(A7))),"") ->  | V38: =IFERROR(INDEX('Category Sets A-D'!$O$14:$O$102, SMALL(IF($U$14='Category Sets A-D'!$M$14:$M$102, ROW('Category Sets A-D'!$M$14:$M$102)-MIN(ROW('Category Sets A-D'!$M$14:$M$102))+1, ""), ROW(A7))),"") ->  | W38: 0
S39: =IFERROR(INDEX('Category Sets A-D'!$L$14:$L$102, SMALL(IF($U$14='Category Sets A-D'!$M$14:$M$102, ROW('Category Sets A-D'!$M$14:$M$102)-MIN(ROW('Category Sets A-D'!$M$14:$M$102))+1, ""), ROW(A8))),"") ->  | T39: =IFERROR(INDEX('Category Sets A-D'!$P$14:$P$102, SMALL(IF($U$14='Category Sets A-D'!$M$14:$M$102, ROW('Category Sets A-D'!$M$14:$M$102)-MIN(ROW('Category Sets A-D'!$M$14:$M$102))+1, ""), ROW(A8))),"") ->  | U39: =IFERROR(INDEX('Category Sets A-D'!$N$14:$N$102, SMALL(IF($U$14='Category Sets A-D'!$M$14:$M$102, ROW('Category Sets A-D'!$M$14:$M$102)-MIN(ROW('Category Sets A-D'!$M$14:$M$102))+1, ""), ROW(A8))),"") ->  | V39: =IFERROR(INDEX('Category Sets A-D'!$O$14:$O$102, SMALL(IF($U$14='Category Sets A-D'!$M$14:$M$102, ROW('Category Sets A-D'!$M$14:$M$102)-MIN(ROW('Category Sets A-D'!$M$14:$M$102))+1, ""), ROW(A8))),"") ->  | W39: 0
S40: =IFERROR(INDEX('Category Sets A-D'!$L$14:$L$102, SMALL(IF($U$14='Category Sets A-D'!$M$14:$M$102, ROW('Category Sets A-D'!$M$14:$M$102)-MIN(ROW('Category Sets A-D'!$M$14:$M$102))+1, ""), ROW(A9))),"") ->  | T40: =IFERROR(INDEX('Category Sets A-D'!$P$14:$P$102, SMALL(IF($U$14='Category Sets A-D'!$M$14:$M$102, ROW('Category Sets A-D'!$M$14:$M$102)-MIN(ROW('Category Sets A-D'!$M$14:$M$102))+1, ""), ROW(A9))),"") ->  | U40: =IFERROR(INDEX('Category Sets A-D'!$N$14:$N$102, SMALL(IF($U$14='Category Sets A-D'!$M$14:$M$102, ROW('Category Sets A-D'!$M$14:$M$102)-MIN(ROW('Category Sets A-D'!$M$14:$M$102))+1, ""), ROW(A9))),"") ->  | V40: =IFERROR(INDEX('Category Sets A-D'!$O$14:$O$102, SMALL(IF($U$14='Category Sets A-D'!$M$14:$M$102, ROW('Category Sets A-D'!$M$14:$M$102)-MIN(ROW('Category Sets A-D'!$M$14:$M$102))+1, ""), ROW(A9))),"") ->  | W40: 0
S41: =IFERROR(INDEX('Category Sets A-D'!$L$14:$L$102, SMALL(IF($U$14='Category Sets A-D'!$M$14:$M$102, ROW('Category Sets A-D'!$M$14:$M$102)-MIN(ROW('Category Sets A-D'!$M$14:$M$102))+1, ""), ROW(A10))),"") ->  | T41: =IFERROR(INDEX('Category Sets A-D'!$P$14:$P$102, SMALL(IF($U$14='Category Sets A-D'!$M$14:$M$102, ROW('Category Sets A-D'!$M$14:$M$102)-MIN(ROW('Category Sets A-D'!$M$14:$M$102))+1, ""), ROW(A10))),"") ->  | U41: =IFERROR(INDEX('Category Sets A-D'!$N$14:$N$102, SMALL(IF($U$14='Category Sets A-D'!$M$14:$M$102, ROW('Category Sets A-D'!$M$14:$M$102)-MIN(ROW('Category Sets A-D'!$M$14:$M$102))+1, ""), ROW(A10))),"") ->  | V41: =IFERROR(INDEX('Category Sets A-D'!$O$14:$O$102, SMALL(IF($U$14='Category Sets A-D'!$M$14:$M$102, ROW('Category Sets A-D'!$M$14:$M$102)-MIN(ROW('Category Sets A-D'!$M$14:$M$102))+1, ""), ROW(A10))),"") ->  | W41: 0
S42: =IFERROR(INDEX('Category Sets A-D'!$L$14:$L$102, SMALL(IF($U$14='Category Sets A-D'!$M$14:$M$102, ROW('Category Sets A-D'!$M$14:$M$102)-MIN(ROW('Category Sets A-D'!$M$14:$M$102))+1, ""), ROW(A11))),"") ->  | T42: =IFERROR(INDEX('Category Sets A-D'!$P$14:$P$102, SMALL(IF($U$14='Category Sets A-D'!$M$14:$M$102, ROW('Category Sets A-D'!$M$14:$M$102)-MIN(ROW('Category Sets A-D'!$M$14:$M$102))+1, ""), ROW(A11))),"") ->  | U42: =IFERROR(INDEX('Category Sets A-D'!$N$14:$N$102, SMALL(IF($U$14='Category Sets A-D'!$M$14:$M$102, ROW('Category Sets A-D'!$M$14:$M$102)-MIN(ROW('Category Sets A-D'!$M$14:$M$102))+1, ""), ROW(A11))),"") ->  | V42: =IFERROR(INDEX('Category Sets A-D'!$O$14:$O$102, SMALL(IF($U$14='Category Sets A-D'!$M$14:$M$102, ROW('Category Sets A-D'!$M$14:$M$102)-MIN(ROW('Category Sets A-D'!$M$14:$M$102))+1, ""), ROW(A11))),"") ->  | W42: 0
S43: =IFERROR(INDEX('Category Sets A-D'!$L$14:$L$102, SMALL(IF($U$14='Category Sets A-D'!$M$14:$M$102, ROW('Category Sets A-D'!$M$14:$M$102)-MIN(ROW('Category Sets A-D'!$M$14:$M$102))+1, ""), ROW(A12))),"") ->  | T43: =IFERROR(INDEX('Category Sets A-D'!$P$14:$P$102, SMALL(IF($U$14='Category Sets A-D'!$M$14:$M$102, ROW('Category Sets A-D'!$M$14:$M$102)-MIN(ROW('Category Sets A-D'!$M$14:$M$102))+1, ""), ROW(A12))),"") ->  | U43: =IFERROR(INDEX('Category Sets A-D'!$N$14:$N$102, SMALL(IF($U$14='Category Sets A-D'!$M$14:$M$102, ROW('Category Sets A-D'!$M$14:$M$102)-MIN(ROW('Category Sets A-D'!$M$14:$M$102))+1, ""), ROW(A12))),"") ->  | V43: =IFERROR(INDEX('Category Sets A-D'!$O$14:$O$102, SMALL(IF($U$14='Category Sets A-D'!$M$14:$M$102, ROW('Category Sets A-D'!$M$14:$M$102)-MIN(ROW('Category Sets A-D'!$M$14:$M$102))+1, ""), ROW(A12))),"") ->  | W43: 0
B44: =IF(W44=1,"No Data",T44) ->  | S44: =IFERROR(INDEX('Category Sets A-D'!$L$14:$L$102, SMALL(IF($U$14='Category Sets A-D'!$M$14:$M$102, ROW('Category Sets A-D'!$M$14:$M$102)-MIN(ROW('Category Sets A-D'!$M$14:$M$102))+1, ""), ROW(#REF!))),"") ->  | T44: =IFERROR(INDEX('Category Sets A-D'!$P$14:$P$102, SMALL(IF($U$14='Category Sets A-D'!$M$14:$M$102, ROW('Category Sets A-D'!$M$14:$M$102)-MIN(ROW('Category Sets A-D'!$M$14:$M$102))+1, ""), ROW(#REF!))),"") ->  | U44: =IFERROR(INDEX('Category Sets A-D'!$N$14:$N$102, SMALL(IF($U$14='Category Sets A-D'!$M$14:$M$102, ROW('Category Sets A-D'!$M$14:$M$102)-MIN(ROW('Category Sets A-D'!$M$14:$M$102))+1, ""), ROW(#REF!))),"") ->  | V44: =IFERROR(INDEX('Category Sets A-D'!$O$14:$O$102, SMALL(IF($U$14='Category Sets A-D'!$M$14:$M$102, ROW('Category Sets A-D'!$M$14:$M$102)-MIN(ROW('Category Sets A-D'!$M$14:$M$102))+1, ""), ROW(#REF!))),"") ->  | W44: 0
S45: =IFERROR(INDEX('Category Sets A-D'!$L$14:$L$102, SMALL(IF($U$14='Category Sets A-D'!$M$14:$M$102, ROW('Category Sets A-D'!$M$14:$M$102)-MIN(ROW('Category Sets A-D'!$M$14:$M$102))+1, ""), ROW(#REF!))),"") ->  | T45: =IFERROR(INDEX('Category Sets A-D'!$P$14:$P$102, SMALL(IF($U$14='Category Sets A-D'!$M$14:$M$102, ROW('Category Sets A-D'!$M$14:$M$102)-MIN(ROW('Category Sets A-D'!$M$14:$M$102))+1, ""), ROW(#REF!))),"") ->  | U45: =IFERROR(INDEX('Category Sets A-D'!$N$14:$N$102, SMALL(IF($U$14='Category Sets A-D'!$M$14:$M$102, ROW('Category Sets A-D'!$M$14:$M$102)-MIN(ROW('Category Sets A-D'!$M$14:$M$102))+1, ""), ROW(#REF!))),"") ->  | V45: =IFERROR(INDEX('Category Sets A-D'!$O$14:$O$102, SMALL(IF($U$14='Category Sets A-D'!$M$14:$M$102, ROW('Category Sets A-D'!$M$14:$M$102)-MIN(ROW('Category Sets A-D'!$M$14:$M$102))+1, ""), ROW(#REF!))),"") ->  | W45: 0
S46: =IFERROR(INDEX('Category Sets A-D'!$L$14:$L$102, SMALL(IF($U$14='Category Sets A-D'!$M$14:$M$102, ROW('Category Sets A-D'!$M$14:$M$102)-MIN(ROW('Category Sets A-D'!$M$14:$M$102))+1, ""), ROW(A14))),"") ->  | T46: =IFERROR(INDEX('Category Sets A-D'!$P$14:$P$102, SMALL(IF($U$14='Category Sets A-D'!$M$14:$M$102, ROW('Category Sets A-D'!$M$14:$M$102)-MIN(ROW('Category Sets A-D'!$M$14:$M$102))+1, ""), ROW(A14))),"") ->  | U46: =IFERROR(INDEX('Category Sets A-D'!$N$14:$N$102, SMALL(IF($U$14='Category Sets A-D'!$M$14:$M$102, ROW('Category Sets A-D'!$M$14:$M$102)-MIN(ROW('Category Sets A-D'!$M$14:$M$102))+1, ""), ROW(A14))),"") ->  | V46: =IFERROR(INDEX('Category Sets A-D'!$O$14:$O$102, SMALL(IF($U$14='Category Sets A-D'!$M$14:$M$102, ROW('Category Sets A-D'!$M$14:$M$102)-MIN(ROW('Category Sets A-D'!$M$14:$M$102))+1, ""), ROW(A14))),"") ->  | W46: 0
S47: =IFERROR(INDEX('Category Sets A-D'!$L$14:$L$102, SMALL(IF($U$14='Category Sets A-D'!$M$14:$M$102, ROW('Category Sets A-D'!$M$14:$M$102)-MIN(ROW('Category Sets A-D'!$M$14:$M$102))+1, ""), ROW(A16))),"") ->  | T47: =IFERROR(INDEX('Category Sets A-D'!$P$14:$P$102, SMALL(IF($U$14='Category Sets A-D'!$M$14:$M$102, ROW('Category Sets A-D'!$M$14:$M$102)-MIN(ROW('Category Sets A-D'!$M$14:$M$102))+1, ""), ROW(A16))),"") ->  | U47: =IFERROR(INDEX('Category Sets A-D'!$N$14:$N$102, SMALL(IF($U$14='Category Sets A-D'!$M$14:$M$102, ROW('Category Sets A-D'!$M$14:$M$102)-MIN(ROW('Category Sets A-D'!$M$14:$M$102))+1, ""), ROW(A16))),"") ->  | V47: =IFERROR(INDEX('Category Sets A-D'!$O$14:$O$102, SMALL(IF($U$14='Category Sets A-D'!$M$14:$M$102, ROW('Category Sets A-D'!$M$14:$M$102)-MIN(ROW('Category Sets A-D'!$M$14:$M$102))+1, ""), ROW(A16))),"") ->  | W47: 0
S48: =IFERROR(INDEX('Category Sets A-D'!$L$14:$L$102, SMALL(IF($U$14='Category Sets A-D'!$M$14:$M$102, ROW('Category Sets A-D'!$M$14:$M$102)-MIN(ROW('Category Sets A-D'!$M$14:$M$102))+1, ""), ROW(A17))),"") ->  | T48: =IFERROR(INDEX('Category Sets A-D'!$P$14:$P$102, SMALL(IF($U$14='Category Sets A-D'!$M$14:$M$102, ROW('Category Sets A-D'!$M$14:$M$102)-MIN(ROW('Category Sets A-D'!$M$14:$M$102))+1, ""), ROW(A17))),"") ->  | U48: =IFERROR(INDEX('Category Sets A-D'!$N$14:$N$102, SMALL(IF($U$14='Category Sets A-D'!$M$14:$M$102, ROW('Category Sets A-D'!$M$14:$M$102)-MIN(ROW('Category Sets A-D'!$M$14:$M$102))+1, ""), ROW(A17))),"") ->  | V48: =IFERROR(INDEX('Category Sets A-D'!$O$14:$O$102, SMALL(IF($U$14='Category Sets A-D'!$M$14:$M$102, ROW('Category Sets A-D'!$M$14:$M$102)-MIN(ROW('Category Sets A-D'!$M$14:$M$102))+1, ""), ROW(A17))),"") ->  | W48: 0
S49: =IFERROR(INDEX('Category Sets A-D'!$L$14:$L$102, SMALL(IF($U$14='Category Sets A-D'!$M$14:$M$102, ROW('Category Sets A-D'!$M$14:$M$102)-MIN(ROW('Category Sets A-D'!$M$14:$M$102))+1, ""), ROW(A18))),"") ->  | T49: =IFERROR(INDEX('Category Sets A-D'!$P$14:$P$102, SMALL(IF($U$14='Category Sets A-D'!$M$14:$M$102, ROW('Category Sets A-D'!$M$14:$M$102)-MIN(ROW('Category Sets A-D'!$M$14:$M$102))+1, ""), ROW(A18))),"") ->  | U49: =IFERROR(INDEX('Category Sets A-D'!$N$14:$N$102, SMALL(IF($U$14='Category Sets A-D'!$M$14:$M$102, ROW('Category Sets A-D'!$M$14:$M$102)-MIN(ROW('Category Sets A-D'!$M$14:$M$102))+1, ""), ROW(A18))),"") ->  | V49: =IFERROR(INDEX('Category Sets A-D'!$O$14:$O$102, SMALL(IF($U$14='Category Sets A-D'!$M$14:$M$102, ROW('Category Sets A-D'!$M$14:$M$102)-MIN(ROW('Category Sets A-D'!$M$14:$M$102))+1, ""), ROW(A18))),"") ->  | W49: 0
S50: =IFERROR(INDEX('Category Sets A-D'!$L$14:$L$102, SMALL(IF($U$14='Category Sets A-D'!$M$14:$M$102, ROW('Category Sets A-D'!$M$14:$M$102)-MIN(ROW('Category Sets A-D'!$M$14:$M$102))+1, ""), ROW(A19))),"") ->  | T50: =IFERROR(INDEX('Category Sets A-D'!$P$14:$P$102, SMALL(IF($U$14='Category Sets A-D'!$M$14:$M$102, ROW('Category Sets A-D'!$M$14:$M$102)-MIN(ROW('Category Sets A-D'!$M$14:$M$102))+1, ""), ROW(A19))),"") ->  | U50: =IFERROR(INDEX('Category Sets A-D'!$N$14:$N$102, SMALL(IF($U$14='Category Sets A-D'!$M$14:$M$102, ROW('Category Sets A-D'!$M$14:$M$102)-MIN(ROW('Category Sets A-D'!$M$14:$M$102))+1, ""), ROW(A19))),"") ->  | V50: =IFERROR(INDEX('Category Sets A-D'!$O$14:$O$102, SMALL(IF($U$14='Category Sets A-D'!$M$14:$M$102, ROW('Category Sets A-D'!$M$14:$M$102)-MIN(ROW('Category Sets A-D'!$M$14:$M$102))+1, ""), ROW(A19))),"") ->  | W50: 0
B51: =IF(W51=1,"No Data",T51) ->  | S51: =IFERROR(INDEX('Category Sets A-D'!$L$14:$L$102, SMALL(IF($U$14='Category Sets A-D'!$M$14:$M$102, ROW('Category Sets A-D'!$M$14:$M$102)-MIN(ROW('Category Sets A-D'!$M$14:$M$102))+1, ""), ROW(A20))),"") ->  | T51: =IFERROR(INDEX('Category Sets A-D'!$P$14:$P$102, SMALL(IF($U$14='Category Sets A-D'!$M$14:$M$102, ROW('Category Sets A-D'!$M$14:$M$102)-MIN(ROW('Category Sets A-D'!$M$14:$M$102))+1, ""), ROW(A20))),"") ->  | U51: =IFERROR(INDEX('Category Sets A-D'!$N$14:$N$102, SMALL(IF($U$14='Category Sets A-D'!$M$14:$M$102, ROW('Category Sets A-D'!$M$14:$M$102)-MIN(ROW('Category Sets A-D'!$M$14:$M$102))+1, ""), ROW(A20))),"") ->  | V51: =IFERROR(INDEX('Category Sets A-D'!$O$14:$O$102, SMALL(IF($U$14='Category Sets A-D'!$M$14:$M$102, ROW('Category Sets A-D'!$M$14:$M$102)-MIN(ROW('Category Sets A-D'!$M$14:$M$102))+1, ""), ROW(A20))),"") ->  | W51: 0
S52: =IFERROR(INDEX('Category Sets A-D'!$L$14:$L$102, SMALL(IF($U$14='Category Sets A-D'!$M$14:$M$102, ROW('Category Sets A-D'!$M$14:$M$102)-MIN(ROW('Category Sets A-D'!$M$14:$M$102))+1, ""), ROW(A21))),"") ->  | T52: =IFERROR(INDEX('Category Sets A-D'!$P$14:$P$102, SMALL(IF($U$14='Category Sets A-D'!$M$14:$M$102, ROW('Category Sets A-D'!$M$14:$M$102)-MIN(ROW('Category Sets A-D'!$M$14:$M$102))+1, ""), ROW(A21))),"") ->  | U52: =IFERROR(INDEX('Category Sets A-D'!$N$14:$N$102, SMALL(IF($U$14='Category Sets A-D'!$M$14:$M$102, ROW('Category Sets A-D'!$M$14:$M$102)-MIN(ROW('Category Sets A-D'!$M$14:$M$102))+1, ""), ROW(A21))),"") ->  | V52: =IFERROR(INDEX('Category Sets A-D'!$O$14:$O$102, SMALL(IF($U$14='Category Sets A-D'!$M$14:$M$102, ROW('Category Sets A-D'!$M$14:$M$102)-MIN(ROW('Category Sets A-D'!$M$14:$M$102))+1, ""), ROW(A21))),"") ->  | W52: 0
S53: =IFERROR(INDEX('Category Sets A-D'!$L$14:$L$102, SMALL(IF($U$14='Category Sets A-D'!$M$14:$M$102, ROW('Category Sets A-D'!$M$14:$M$102)-MIN(ROW('Category Sets A-D'!$M$14:$M$102))+1, ""), ROW(A22))),"") ->  | T53: =IFERROR(INDEX('Category Sets A-D'!$P$14:$P$102, SMALL(IF($U$14='Category Sets A-D'!$M$14:$M$102, ROW('Category Sets A-D'!$M$14:$M$102)-MIN(ROW('Category Sets A-D'!$M$14:$M$102))+1, ""), ROW(A22))),"") ->  | U53: =IFERROR(INDEX('Category Sets A-D'!$N$14:$N$102, SMALL(IF($U$14='Category Sets A-D'!$M$14:$M$102, ROW('Category Sets A-D'!$M$14:$M$102)-MIN(ROW('Category Sets A-D'!$M$14:$M$102))+1, ""), ROW(A22))),"") ->  | V53: =IFERROR(INDEX('Category Sets A-D'!$O$14:$O$102, SMALL(IF($U$14='Category Sets A-D'!$M$14:$M$102, ROW('Category Sets A-D'!$M$14:$M$102)-MIN(ROW('Category Sets A-D'!$M$14:$M$102))+1, ""), ROW(A22))),"") ->  | W53: 0
B54: =IF(W54=1,"No Data",T54) ->  | S54: =IFERROR(INDEX('Category Sets A-D'!$L$14:$L$102, SMALL(IF($U$14='Category Sets A-D'!$M$14:$M$102, ROW('Category Sets A-D'!$M$14:$M$102)-MIN(ROW('Category Sets A-D'!$M$14:$M$102))+1, ""), ROW(A23))),"") ->  | T54: =IFERROR(INDEX('Category Sets A-D'!$P$14:$P$102, SMALL(IF($U$14='Category Sets A-D'!$M$14:$M$102, ROW('Category Sets A-D'!$M$14:$M$102)-MIN(ROW('Category Sets A-D'!$M$14:$M$102))+1, ""), ROW(A23))),"") ->  | U54: =IFERROR(INDEX('Category Sets A-D'!$N$14:$N$102, SMALL(IF($U$14='Category Sets A-D'!$M$14:$M$102, ROW('Category Sets A-D'!$M$14:$M$102)-MIN(ROW('Category Sets A-D'!$M$14:$M$102))+1, ""), ROW(A23))),"") ->  | V54: =IFERROR(INDEX('Category Sets A-D'!$O$14:$O$102, SMALL(IF($U$14='Category Sets A-D'!$M$14:$M$102, ROW('Category Sets A-D'!$M$14:$M$102)-MIN(ROW('Category Sets A-D'!$M$14:$M$102))+1, ""), ROW(A23))),"") ->  | W54: 0
S55: =IFERROR(INDEX('Category Sets A-D'!$L$14:$L$102, SMALL(IF($U$14='Category Sets A-D'!$M$14:$M$102, ROW('Category Sets A-D'!$M$14:$M$102)-MIN(ROW('Category Sets A-D'!$M$14:$M$102))+1, ""), ROW(A24))),"") ->  | T55: =IFERROR(INDEX('Category Sets A-D'!$P$14:$P$102, SMALL(IF($U$14='Category Sets A-D'!$M$14:$M$102, ROW('Category Sets A-D'!$M$14:$M$102)-MIN(ROW('Category Sets A-D'!$M$14:$M$102))+1, ""), ROW(A24))),"") ->  | U55: =IFERROR(INDEX('Category Sets A-D'!$N$14:$N$102, SMALL(IF($U$14='Category Sets A-D'!$M$14:$M$102, ROW('Category Sets A-D'!$M$14:$M$102)-MIN(ROW('Category Sets A-D'!$M$14:$M$102))+1, ""), ROW(A24))),"") ->  | V55: =IFERROR(INDEX('Category Sets A-D'!$O$14:$O$102, SMALL(IF($U$14='Category Sets A-D'!$M$14:$M$102, ROW('Category Sets A-D'!$M$14:$M$102)-MIN(ROW('Category Sets A-D'!$M$14:$M$102))+1, ""), ROW(A24))),"") ->  | W55: 0
S56: =IFERROR(INDEX('Category Sets A-D'!$L$14:$L$102, SMALL(IF($U$14='Category Sets A-D'!$M$14:$M$102, ROW('Category Sets A-D'!$M$14:$M$102)-MIN(ROW('Category Sets A-D'!$M$14:$M$102))+1, ""), ROW(A25))),"") ->  | T56: =IFERROR(INDEX('Category Sets A-D'!$P$14:$P$102, SMALL(IF($U$14='Category Sets A-D'!$M$14:$M$102, ROW('Category Sets A-D'!$M$14:$M$102)-MIN(ROW('Category Sets A-D'!$M$14:$M$102))+1, ""), ROW(A25))),"") ->  | U56: =IFERROR(INDEX('Category Sets A-D'!$N$14:$N$102, SMALL(IF($U$14='Category Sets A-D'!$M$14:$M$102, ROW('Category Sets A-D'!$M$14:$M$102)-MIN(ROW('Category Sets A-D'!$M$14:$M$102))+1, ""), ROW(A25))),"") ->  | V56: =IFERROR(INDEX('Category Sets A-D'!$O$14:$O$102, SMALL(IF($U$14='Category Sets A-D'!$M$14:$M$102, ROW('Category Sets A-D'!$M$14:$M$102)-MIN(ROW('Category Sets A-D'!$M$14:$M$102))+1, ""), ROW(A25))),"") ->  | W56: 0
S57: =IFERROR(INDEX('Category Sets A-D'!$L$14:$L$102, SMALL(IF($U$14='Category Sets A-D'!$M$14:$M$102, ROW('Category Sets A-D'!$M$14:$M$102)-MIN(ROW('Category Sets A-D'!$M$14:$M$102))+1, ""), ROW(A26))),"") ->  | T57: =IFERROR(INDEX('Category Sets A-D'!$P$14:$P$102, SMALL(IF($U$14='Category Sets A-D'!$M$14:$M$102, ROW('Category Sets A-D'!$M$14:$M$102)-MIN(ROW('Category Sets A-D'!$M$14:$M$102))+1, ""), ROW(A26))),"") ->  | U57: =IFERROR(INDEX('Category Sets A-D'!$N$14:$N$102, SMALL(IF($U$14='Category Sets A-D'!$M$14:$M$102, ROW('Category Sets A-D'!$M$14:$M$102)-MIN(ROW('Category Sets A-D'!$M$14:$M$102))+1, ""), ROW(A26))),"") ->  | V57: =IFERROR(INDEX('Category Sets A-D'!$O$14:$O$102, SMALL(IF($U$14='Category Sets A-D'!$M$14:$M$102, ROW('Category Sets A-D'!$M$14:$M$102)-MIN(ROW('Category Sets A-D'!$M$14:$M$102))+1, ""), ROW(A26))),"") ->  | W57: 0
S58: =IFERROR(INDEX('Category Sets A-D'!$L$14:$L$102, SMALL(IF($U$14='Category Sets A-D'!$M$14:$M$102, ROW('Category Sets A-D'!$M$14:$M$102)-MIN(ROW('Category Sets A-D'!$M$14:$M$102))+1, ""), ROW(A27))),"") ->  | T58: =IFERROR(INDEX('Category Sets A-D'!$P$14:$P$102, SMALL(IF($U$14='Category Sets A-D'!$M$14:$M$102, ROW('Category Sets A-D'!$M$14:$M$102)-MIN(ROW('Category Sets A-D'!$M$14:$M$102))+1, ""), ROW(A27))),"") ->  | U58: =IFERROR(INDEX('Category Sets A-D'!$N$14:$N$102, SMALL(IF($U$14='Category Sets A-D'!$M$14:$M$102, ROW('Category Sets A-D'!$M$14:$M$102)-MIN(ROW('Category Sets A-D'!$M$14:$M$102))+1, ""), ROW(A27))),"") ->  | V58: =IFERROR(INDEX('Category Sets A-D'!$O$14:$O$102, SMALL(IF($U$14='Category Sets A-D'!$M$14:$M$102, ROW('Category Sets A-D'!$M$14:$M$102)-MIN(ROW('Category Sets A-D'!$M$14:$M$102))+1, ""), ROW(A27))),"") ->  | W58: 0
S59: =IFERROR(INDEX('Category Sets A-D'!$L$14:$L$102, SMALL(IF($U$14='Category Sets A-D'!$M$14:$M$102, ROW('Category Sets A-D'!$M$14:$M$102)-MIN(ROW('Category Sets A-D'!$M$14:$M$102))+1, ""), ROW(A28))),"") ->  | T59: =IFERROR(INDEX('Category Sets A-D'!$P$14:$P$102, SMALL(IF($U$14='Category Sets A-D'!$M$14:$M$102, ROW('Category Sets A-D'!$M$14:$M$102)-MIN(ROW('Category Sets A-D'!$M$14:$M$102))+1, ""), ROW(A28))),"") ->  | U59: =IFERROR(INDEX('Category Sets A-D'!$N$14:$N$102, SMALL(IF($U$14='Category Sets A-D'!$M$14:$M$102, ROW('Category Sets A-D'!$M$14:$M$102)-MIN(ROW('Category Sets A-D'!$M$14:$M$102))+1, ""), ROW(A28))),"") ->  | V59: =IFERROR(INDEX('Category Sets A-D'!$O$14:$O$102, SMALL(IF($U$14='Category Sets A-D'!$M$14:$M$102, ROW('Category Sets A-D'!$M$14:$M$102)-MIN(ROW('Category Sets A-D'!$M$14:$M$102))+1, ""), ROW(A28))),"") ->  | W59: 0
S60: =IFERROR(INDEX('Category Sets A-D'!$L$14:$L$102, SMALL(IF($U$14='Category Sets A-D'!$M$14:$M$102, ROW('Category Sets A-D'!$M$14:$M$102)-MIN(ROW('Category Sets A-D'!$M$14:$M$102))+1, ""), ROW(A29))),"") ->  | T60: =IFERROR(INDEX('Category Sets A-D'!$P$14:$P$102, SMALL(IF($U$14='Category Sets A-D'!$M$14:$M$102, ROW('Category Sets A-D'!$M$14:$M$102)-MIN(ROW('Category Sets A-D'!$M$14:$M$102))+1, ""), ROW(A29))),"") ->  | U60: =IFERROR(INDEX('Category Sets A-D'!$N$14:$N$102, SMALL(IF($U$14='Category Sets A-D'!$M$14:$M$102, ROW('Category Sets A-D'!$M$14:$M$102)-MIN(ROW('Category Sets A-D'!$M$14:$M$102))+1, ""), ROW(A29))),"") ->  | V60: =IFERROR(INDEX('Category Sets A-D'!$O$14:$O$102, SMALL(IF($U$14='Category Sets A-D'!$M$14:$M$102, ROW('Category Sets A-D'!$M$14:$M$102)-MIN(ROW('Category Sets A-D'!$M$14:$M$102))+1, ""), ROW(A29))),"") ->  | W60: 0
S61: =IFERROR(INDEX('Category Sets A-D'!$L$14:$L$102, SMALL(IF($U$14='Category Sets A-D'!$M$14:$M$102, ROW('Category Sets A-D'!$M$14:$M$102)-MIN(ROW('Category Sets A-D'!$M$14:$M$102))+1, ""), ROW(A30))),"") ->  | T61: =IFERROR(INDEX('Category Sets A-D'!$P$14:$P$102, SMALL(IF($U$14='Category Sets A-D'!$M$14:$M$102, ROW('Category Sets A-D'!$M$14:$M$102)-MIN(ROW('Category Sets A-D'!$M$14:$M$102))+1, ""), ROW(A30))),"") ->  | U61: =IFERROR(INDEX('Category Sets A-D'!$N$14:$N$102, SMALL(IF($U$14='Category Sets A-D'!$M$14:$M$102, ROW('Category Sets A-D'!$M$14:$M$102)-MIN(ROW('Category Sets A-D'!$M$14:$M$102))+1, ""), ROW(A30))),"") ->  | V61: =IFERROR(INDEX('Category Sets A-D'!$O$14:$O$102, SMALL(IF($U$14='Category Sets A-D'!$M$14:$M$102, ROW('Category Sets A-D'!$M$14:$M$102)-MIN(ROW('Category Sets A-D'!$M$14:$M$102))+1, ""), ROW(A30))),"") ->  | W61: 0
S62: =IFERROR(INDEX('Category Sets A-D'!$L$14:$L$102, SMALL(IF($U$14='Category Sets A-D'!$M$14:$M$102, ROW('Category Sets A-D'!$M$14:$M$102)-MIN(ROW('Category Sets A-D'!$M$14:$M$102))+1, ""), ROW(A31))),"") ->  | T62: =IFERROR(INDEX('Category Sets A-D'!$P$14:$P$102, SMALL(IF($U$14='Category Sets A-D'!$M$14:$M$102, ROW('Category Sets A-D'!$M$14:$M$102)-MIN(ROW('Category Sets A-D'!$M$14:$M$102))+1, ""), ROW(A31))),"") ->  | U62: =IFERROR(INDEX('Category Sets A-D'!$N$14:$N$102, SMALL(IF($U$14='Category Sets A-D'!$M$14:$M$102, ROW('Category Sets A-D'!$M$14:$M$102)-MIN(ROW('Category Sets A-D'!$M$14:$M$102))+1, ""), ROW(A31))),"") ->  | V62: =IFERROR(INDEX('Category Sets A-D'!$O$14:$O$102, SMALL(IF($U$14='Category Sets A-D'!$M$14:$M$102, ROW('Category Sets A-D'!$M$14:$M$102)-MIN(ROW('Category Sets A-D'!$M$14:$M$102))+1, ""), ROW(A31))),"") ->  | W62: 0
S63: =IFERROR(INDEX('Category Sets A-D'!$L$14:$L$102, SMALL(IF($U$14='Category Sets A-D'!$M$14:$M$102, ROW('Category Sets A-D'!$M$14:$M$102)-MIN(ROW('Category Sets A-D'!$M$14:$M$102))+1, ""), ROW(A32))),"") ->  | T63: =IFERROR(INDEX('Category Sets A-D'!$P$14:$P$102, SMALL(IF($U$14='Category Sets A-D'!$M$14:$M$102, ROW('Category Sets A-D'!$M$14:$M$102)-MIN(ROW('Category Sets A-D'!$M$14:$M$102))+1, ""), ROW(A32))),"") ->  | U63: =IFERROR(INDEX('Category Sets A-D'!$N$14:$N$102, SMALL(IF($U$14='Category Sets A-D'!$M$14:$M$102, ROW('Category Sets A-D'!$M$14:$M$102)-MIN(ROW('Category Sets A-D'!$M$14:$M$102))+1, ""), ROW(A32))),"") ->  | V63: =IFERROR(INDEX('Category Sets A-D'!$O$14:$O$102, SMALL(IF($U$14='Category Sets A-D'!$M$14:$M$102, ROW('Category Sets A-D'!$M$14:$M$102)-MIN(ROW('Category Sets A-D'!$M$14:$M$102))+1, ""), ROW(A32))),"") ->  | W63: 0
M64: =IF(S64="","",HYPERLINK(CONCATENATE("#","'Category Sets A-D'!",S64),U64)) ->  | S64: =IFERROR(INDEX('Category Sets A-D'!$L$14:$L$102, SMALL(IF($U$14='Category Sets A-D'!$M$14:$M$102, ROW('Category Sets A-D'!$M$14:$M$102)-MIN(ROW('Category Sets A-D'!$M$14:$M$102))+1, ""), ROW(A33))),"") ->  | T64: =IFERROR(INDEX('Category Sets A-D'!$P$14:$P$102, SMALL(IF($U$14='Category Sets A-D'!$M$14:$M$102, ROW('Category Sets A-D'!$M$14:$M$102)-MIN(ROW('Category Sets A-D'!$M$14:$M$102))+1, ""), ROW(A33))),"") ->  | U64: =IFERROR(INDEX('Category Sets A-D'!$N$14:$N$102, SMALL(IF($U$14='Category Sets A-D'!$M$14:$M$102, ROW('Category Sets A-D'!$M$14:$M$102)-MIN(ROW('Category Sets A-D'!$M$14:$M$102))+1, ""), ROW(A33))),"") ->  | V64: =IFERROR(INDEX('Category Sets A-D'!$O$14:$O$102, SMALL(IF($U$14='Category Sets A-D'!$M$14:$M$102, ROW('Category Sets A-D'!$M$14:$M$102)-MIN(ROW('Category Sets A-D'!$M$14:$M$102))+1, ""), ROW(A33))),"") ->  | W64: 0
S65: =IFERROR(INDEX('Category Sets A-D'!$L$14:$L$102, SMALL(IF($U$14='Category Sets A-D'!$M$14:$M$102, ROW('Category Sets A-D'!$M$14:$M$102)-MIN(ROW('Category Sets A-D'!$M$14:$M$102))+1, ""), ROW(A34))),"") ->  | T65: =IFERROR(INDEX('Category Sets A-D'!$P$14:$P$102, SMALL(IF($U$14='Category Sets A-D'!$M$14:$M$102, ROW('Category Sets A-D'!$M$14:$M$102)-MIN(ROW('Category Sets A-D'!$M$14:$M$102))+1, ""), ROW(A34))),"") ->  | U65: =IFERROR(INDEX('Category Sets A-D'!$N$14:$N$102, SMALL(IF($U$14='Category Sets A-D'!$M$14:$M$102, ROW('Category Sets A-D'!$M$14:$M$102)-MIN(ROW('Category Sets A-D'!$M$14:$M$102))+1, ""), ROW(A34))),"") ->  | V65: =IFERROR(INDEX('Category Sets A-D'!$O$14:$O$102, SMALL(IF($U$14='Category Sets A-D'!$M$14:$M$102, ROW('Category Sets A-D'!$M$14:$M$102)-MIN(ROW('Category Sets A-D'!$M$14:$M$102))+1, ""), ROW(A34))),"") ->  | W65: 0
S66: =IFERROR(INDEX('Category Sets A-D'!$L$14:$L$102, SMALL(IF($U$14='Category Sets A-D'!$M$14:$M$102, ROW('Category Sets A-D'!$M$14:$M$102)-MIN(ROW('Category Sets A-D'!$M$14:$M$102))+1, ""), ROW(A35))),"") ->  | T66: =IFERROR(INDEX('Category Sets A-D'!$P$14:$P$102, SMALL(IF($U$14='Category Sets A-D'!$M$14:$M$102, ROW('Category Sets A-D'!$M$14:$M$102)-MIN(ROW('Category Sets A-D'!$M$14:$M$102))+1, ""), ROW(A35))),"") ->  | U66: =IFERROR(INDEX('Category Sets A-D'!$N$14:$N$102, SMALL(IF($U$14='Category Sets A-D'!$M$14:$M$102, ROW('Category Sets A-D'!$M$14:$M$102)-MIN(ROW('Category Sets A-D'!$M$14:$M$102))+1, ""), ROW(A35))),"") ->  | V66: =IFERROR(INDEX('Category Sets A-D'!$O$14:$O$102, SMALL(IF($U$14='Category Sets A-D'!$M$14:$M$102, ROW('Category Sets A-D'!$M$14:$M$102)-MIN(ROW('Category Sets A-D'!$M$14:$M$102))+1, ""), ROW(A35))),"") ->  | W66: 0
S67: =IFERROR(INDEX('Category Sets A-D'!$L$14:$L$102, SMALL(IF($U$14='Category Sets A-D'!$M$14:$M$102, ROW('Category Sets A-D'!$M$14:$M$102)-MIN(ROW('Category Sets A-D'!$M$14:$M$102))+1, ""), ROW(A36))),"") ->  | T67: =IFERROR(INDEX('Category Sets A-D'!$P$14:$P$102, SMALL(IF($U$14='Category Sets A-D'!$M$14:$M$102, ROW('Category Sets A-D'!$M$14:$M$102)-MIN(ROW('Category Sets A-D'!$M$14:$M$102))+1, ""), ROW(A36))),"") ->  | U67: =IFERROR(INDEX('Category Sets A-D'!$N$14:$N$102, SMALL(IF($U$14='Category Sets A-D'!$M$14:$M$102, ROW('Category Sets A-D'!$M$14:$M$102)-MIN(ROW('Category Sets A-D'!$M$14:$M$102))+1, ""), ROW(A36))),"") ->  | V67: =IFERROR(INDEX('Category Sets A-D'!$O$14:$O$102, SMALL(IF($U$14='Category Sets A-D'!$M$14:$M$102, ROW('Category Sets A-D'!$M$14:$M$102)-MIN(ROW('Category Sets A-D'!$M$14:$M$102))+1, ""), ROW(A36))),"") ->  | W67: 0
S68: =IFERROR(INDEX('Category Sets A-D'!$L$14:$L$102, SMALL(IF($U$14='Category Sets A-D'!$M$14:$M$102, ROW('Category Sets A-D'!$M$14:$M$102)-MIN(ROW('Category Sets A-D'!$M$14:$M$102))+1, ""), ROW(A37))),"") ->  | T68: =IFERROR(INDEX('Category Sets A-D'!$P$14:$P$102, SMALL(IF($U$14='Category Sets A-D'!$M$14:$M$102, ROW('Category Sets A-D'!$M$14:$M$102)-MIN(ROW('Category Sets A-D'!$M$14:$M$102))+1, ""), ROW(A37))),"") ->  | U68: =IFERROR(INDEX('Category Sets A-D'!$N$14:$N$102, SMALL(IF($U$14='Category Sets A-D'!$M$14:$M$102, ROW('Category Sets A-D'!$M$14:$M$102)-MIN(ROW('Category Sets A-D'!$M$14:$M$102))+1, ""), ROW(A37))),"") ->  | V68: =IFERROR(INDEX('Category Sets A-D'!$O$14:$O$102, SMALL(IF($U$14='Category Sets A-D'!$M$14:$M$102, ROW('Category Sets A-D'!$M$14:$M$102)-MIN(ROW('Category Sets A-D'!$M$14:$M$102))+1, ""), ROW(A37))),"") ->  | W68: 0
S69: =IFERROR(INDEX('Category Sets A-D'!$L$14:$L$102, SMALL(IF($U$14='Category Sets A-D'!$M$14:$M$102, ROW('Category Sets A-D'!$M$14:$M$102)-MIN(ROW('Category Sets A-D'!$M$14:$M$102))+1, ""), ROW(A38))),"") ->  | T69: =IFERROR(INDEX('Category Sets A-D'!$P$14:$P$102, SMALL(IF($U$14='Category Sets A-D'!$M$14:$M$102, ROW('Category Sets A-D'!$M$14:$M$102)-MIN(ROW('Category Sets A-D'!$M$14:$M$102))+1, ""), ROW(A38))),"") ->  | U69: =IFERROR(INDEX('Category Sets A-D'!$N$14:$N$102, SMALL(IF($U$14='Category Sets A-D'!$M$14:$M$102, ROW('Category Sets A-D'!$M$14:$M$102)-MIN(ROW('Category Sets A-D'!$M$14:$M$102))+1, ""), ROW(A38))),"") ->  | V69: =IFERROR(INDEX('Category Sets A-D'!$O$14:$O$102, SMALL(IF($U$14='Category Sets A-D'!$M$14:$M$102, ROW('Category Sets A-D'!$M$14:$M$102)-MIN(ROW('Category Sets A-D'!$M$14:$M$102))+1, ""), ROW(A38))),"") ->  | W69: 0
S70: =IFERROR(INDEX('Category Sets A-D'!$L$14:$L$102, SMALL(IF($U$14='Category Sets A-D'!$M$14:$M$102, ROW('Category Sets A-D'!$M$14:$M$102)-MIN(ROW('Category Sets A-D'!$M$14:$M$102))+1, ""), ROW(A39))),"") ->  | T70: =IFERROR(INDEX('Category Sets A-D'!$P$14:$P$102, SMALL(IF($U$14='Category Sets A-D'!$M$14:$M$102, ROW('Category Sets A-D'!$M$14:$M$102)-MIN(ROW('Category Sets A-D'!$M$14:$M$102))+1, ""), ROW(A39))),"") ->  | U70: =IFERROR(INDEX('Category Sets A-D'!$N$14:$N$102, SMALL(IF($U$14='Category Sets A-D'!$M$14:$M$102, ROW('Category Sets A-D'!$M$14:$M$102)-MIN(ROW('Category Sets A-D'!$M$14:$M$102))+1, ""), ROW(A39))),"") ->  | V70: =IFERROR(INDEX('Category Sets A-D'!$O$14:$O$102, SMALL(IF($U$14='Category Sets A-D'!$M$14:$M$102, ROW('Category Sets A-D'!$M$14:$M$102)-MIN(ROW('Category Sets A-D'!$M$14:$M$102))+1, ""), ROW(A39))),"") ->  | W70: 0
S71: =IFERROR(INDEX('Category Sets A-D'!$L$14:$L$102, SMALL(IF($U$14='Category Sets A-D'!$M$14:$M$102, ROW('Category Sets A-D'!$M$14:$M$102)-MIN(ROW('Category Sets A-D'!$M$14:$M$102))+1, ""), ROW(A40))),"") ->  | T71: =IFERROR(INDEX('Category Sets A-D'!$P$14:$P$102, SMALL(IF($U$14='Category Sets A-D'!$M$14:$M$102, ROW('Category Sets A-D'!$M$14:$M$102)-MIN(ROW('Category Sets A-D'!$M$14:$M$102))+1, ""), ROW(A40))),"") ->  | U71: =IFERROR(INDEX('Category Sets A-D'!$N$14:$N$102, SMALL(IF($U$14='Category Sets A-D'!$M$14:$M$102, ROW('Category Sets A-D'!$M$14:$M$102)-MIN(ROW('Category Sets A-D'!$M$14:$M$102))+1, ""), ROW(A40))),"") ->  | V71: =IFERROR(INDEX('Category Sets A-D'!$O$14:$O$102, SMALL(IF($U$14='Category Sets A-D'!$M$14:$M$102, ROW('Category Sets A-D'!$M$14:$M$102)-MIN(ROW('Category Sets A-D'!$M$14:$M$102))+1, ""), ROW(A40))),"") ->  | W71: 0
S72: =IFERROR(INDEX('Category Sets A-D'!$L$14:$L$102, SMALL(IF($U$14='Category Sets A-D'!$M$14:$M$102, ROW('Category Sets A-D'!$M$14:$M$102)-MIN(ROW('Category Sets A-D'!$M$14:$M$102))+1, ""), ROW(A41))),"") ->  | T72: =IFERROR(INDEX('Category Sets A-D'!$P$14:$P$102, SMALL(IF($U$14='Category Sets A-D'!$M$14:$M$102, ROW('Category Sets A-D'!$M$14:$M$102)-MIN(ROW('Category Sets A-D'!$M$14:$M$102))+1, ""), ROW(A41))),"") ->  | U72: =IFERROR(INDEX('Category Sets A-D'!$N$14:$N$102, SMALL(IF($U$14='Category Sets A-D'!$M$14:$M$102, ROW('Category Sets A-D'!$M$14:$M$102)-MIN(ROW('Category Sets A-D'!$M$14:$M$102))+1, ""), ROW(A41))),"") ->  | V72: =IFERROR(INDEX('Category Sets A-D'!$O$14:$O$102, SMALL(IF($U$14='Category Sets A-D'!$M$14:$M$102, ROW('Category Sets A-D'!$M$14:$M$102)-MIN(ROW('Category Sets A-D'!$M$14:$M$102))+1, ""), ROW(A41))),"") ->  | W72: 0
S73: =IFERROR(INDEX('Category Sets A-D'!$L$14:$L$102, SMALL(IF($U$14='Category Sets A-D'!$M$14:$M$102, ROW('Category Sets A-D'!$M$14:$M$102)-MIN(ROW('Category Sets A-D'!$M$14:$M$102))+1, ""), ROW(A42))),"") ->  | T73: =IFERROR(INDEX('Category Sets A-D'!$P$14:$P$102, SMALL(IF($U$14='Category Sets A-D'!$M$14:$M$102, ROW('Category Sets A-D'!$M$14:$M$102)-MIN(ROW('Category Sets A-D'!$M$14:$M$102))+1, ""), ROW(A42))),"") ->  | U73: =IFERROR(INDEX('Category Sets A-D'!$N$14:$N$102, SMALL(IF($U$14='Category Sets A-D'!$M$14:$M$102, ROW('Category Sets A-D'!$M$14:$M$102)-MIN(ROW('Category Sets A-D'!$M$14:$M$102))+1, ""), ROW(A42))),"") ->  | V73: =IFERROR(INDEX('Category Sets A-D'!$O$14:$O$102, SMALL(IF($U$14='Category Sets A-D'!$M$14:$M$102, ROW('Category Sets A-D'!$M$14:$M$102)-MIN(ROW('Category Sets A-D'!$M$14:$M$102))+1, ""), ROW(A42))),"") ->  | W73: 0
S74: =IFERROR(INDEX('Category Sets A-D'!$L$14:$L$102, SMALL(IF($U$14='Category Sets A-D'!$M$14:$M$102, ROW('Category Sets A-D'!$M$14:$M$102)-MIN(ROW('Category Sets A-D'!$M$14:$M$102))+1, ""), ROW(A43))),"") ->  | T74: =IFERROR(INDEX('Category Sets A-D'!$P$14:$P$102, SMALL(IF($U$14='Category Sets A-D'!$M$14:$M$102, ROW('Category Sets A-D'!$M$14:$M$102)-MIN(ROW('Category Sets A-D'!$M$14:$M$102))+1, ""), ROW(A43))),"") ->  | U74: =IFERROR(INDEX('Category Sets A-D'!$N$14:$N$102, SMALL(IF($U$14='Category Sets A-D'!$M$14:$M$102, ROW('Category Sets A-D'!$M$14:$M$102)-MIN(ROW('Category Sets A-D'!$M$14:$M$102))+1, ""), ROW(A43))),"") ->  | V74: =IFERROR(INDEX('Category Sets A-D'!$O$14:$O$102, SMALL(IF($U$14='Category Sets A-D'!$M$14:$M$102, ROW('Category Sets A-D'!$M$14:$M$102)-MIN(ROW('Category Sets A-D'!$M$14:$M$102))+1, ""), ROW(A43))),"") ->  | W74: 0
S75: =IFERROR(INDEX('Category Sets A-D'!$L$14:$L$102, SMALL(IF($U$14='Category Sets A-D'!$M$14:$M$102, ROW('Category Sets A-D'!$M$14:$M$102)-MIN(ROW('Category Sets A-D'!$M$14:$M$102))+1, ""), ROW(A44))),"") ->  | T75: =IFERROR(INDEX('Category Sets A-D'!$P$14:$P$102, SMALL(IF($U$14='Category Sets A-D'!$M$14:$M$102, ROW('Category Sets A-D'!$M$14:$M$102)-MIN(ROW('Category Sets A-D'!$M$14:$M$102))+1, ""), ROW(A44))),"") ->  | U75: =IFERROR(INDEX('Category Sets A-D'!$N$14:$N$102, SMALL(IF($U$14='Category Sets A-D'!$M$14:$M$102, ROW('Category Sets A-D'!$M$14:$M$102)-MIN(ROW('Category Sets A-D'!$M$14:$M$102))+1, ""), ROW(A44))),"") ->  | V75: =IFERROR(INDEX('Category Sets A-D'!$O$14:$O$102, SMALL(IF($U$14='Category Sets A-D'!$M$14:$M$102, ROW('Category Sets A-D'!$M$14:$M$102)-MIN(ROW('Category Sets A-D'!$M$14:$M$102))+1, ""), ROW(A44))),"") ->  | W75: 0
S76: =IFERROR(INDEX('Category Sets A-D'!$L$14:$L$102, SMALL(IF($U$14='Category Sets A-D'!$M$14:$M$102, ROW('Category Sets A-D'!$M$14:$M$102)-MIN(ROW('Category Sets A-D'!$M$14:$M$102))+1, ""), ROW(A45))),"") ->  | T76: =IFERROR(INDEX('Category Sets A-D'!$P$14:$P$102, SMALL(IF($U$14='Category Sets A-D'!$M$14:$M$102, ROW('Category Sets A-D'!$M$14:$M$102)-MIN(ROW('Category Sets A-D'!$M$14:$M$102))+1, ""), ROW(A45))),"") ->  | U76: =IFERROR(INDEX('Category Sets A-D'!$N$14:$N$102, SMALL(IF($U$14='Category Sets A-D'!$M$14:$M$102, ROW('Category Sets A-D'!$M$14:$M$102)-MIN(ROW('Category Sets A-D'!$M$14:$M$102))+1, ""), ROW(A45))),"") ->  | V76: =IFERROR(INDEX('Category Sets A-D'!$O$14:$O$102, SMALL(IF($U$14='Category Sets A-D'!$M$14:$M$102, ROW('Category Sets A-D'!$M$14:$M$102)-MIN(ROW('Category Sets A-D'!$M$14:$M$102))+1, ""), ROW(A45))),"") ->  | W76: 0
S77: =IFERROR(INDEX('Category Sets A-D'!$L$14:$L$102, SMALL(IF($U$14='Category Sets A-D'!$M$14:$M$102, ROW('Category Sets A-D'!$M$14:$M$102)-MIN(ROW('Category Sets A-D'!$M$14:$M$102))+1, ""), ROW(A46))),"") ->  | T77: =IFERROR(INDEX('Category Sets A-D'!$P$14:$P$102, SMALL(IF($U$14='Category Sets A-D'!$M$14:$M$102, ROW('Category Sets A-D'!$M$14:$M$102)-MIN(ROW('Category Sets A-D'!$M$14:$M$102))+1, ""), ROW(A46))),"") ->  | U77: =IFERROR(INDEX('Category Sets A-D'!$N$14:$N$102, SMALL(IF($U$14='Category Sets A-D'!$M$14:$M$102, ROW('Category Sets A-D'!$M$14:$M$102)-MIN(ROW('Category Sets A-D'!$M$14:$M$102))+1, ""), ROW(A46))),"") ->  | V77: =IFERROR(INDEX('Category Sets A-D'!$O$14:$O$102, SMALL(IF($U$14='Category Sets A-D'!$M$14:$M$102, ROW('Category Sets A-D'!$M$14:$M$102)-MIN(ROW('Category Sets A-D'!$M$14:$M$102))+1, ""), ROW(A46))),"") ->  | W77: 0
S78: =IFERROR(INDEX('Category Sets A-D'!$L$14:$L$102, SMALL(IF($U$14='Category Sets A-D'!$M$14:$M$102, ROW('Category Sets A-D'!$M$14:$M$102)-MIN(ROW('Category Sets A-D'!$M$14:$M$102))+1, ""), ROW(A47))),"") ->  | T78: =IFERROR(INDEX('Category Sets A-D'!$P$14:$P$102, SMALL(IF($U$14='Category Sets A-D'!$M$14:$M$102, ROW('Category Sets A-D'!$M$14:$M$102)-MIN(ROW('Category Sets A-D'!$M$14:$M$102))+1, ""), ROW(A47))),"") ->  | U78: =IFERROR(INDEX('Category Sets A-D'!$N$14:$N$102, SMALL(IF($U$14='Category Sets A-D'!$M$14:$M$102, ROW('Category Sets A-D'!$M$14:$M$102)-MIN(ROW('Category Sets A-D'!$M$14:$M$102))+1, ""), ROW(A47))),"") ->  | V78: =IFERROR(INDEX('Category Sets A-D'!$O$14:$O$102, SMALL(IF($U$14='Category Sets A-D'!$M$14:$M$102, ROW('Category Sets A-D'!$M$14:$M$102)-MIN(ROW('Category Sets A-D'!$M$14:$M$102))+1, ""), ROW(A47))),"") ->  | W78: 0
S79: =IFERROR(INDEX('Category Sets A-D'!$L$14:$L$102, SMALL(IF($U$14='Category Sets A-D'!$M$14:$M$102, ROW('Category Sets A-D'!$M$14:$M$102)-MIN(ROW('Category Sets A-D'!$M$14:$M$102))+1, ""), ROW(A48))),"") ->  | T79: =IFERROR(INDEX('Category Sets A-D'!$P$14:$P$102, SMALL(IF($U$14='Category Sets A-D'!$M$14:$M$102, ROW('Category Sets A-D'!$M$14:$M$102)-MIN(ROW('Category Sets A-D'!$M$14:$M$102))+1, ""), ROW(A48))),"") ->  | U79: =IFERROR(INDEX('Category Sets A-D'!$N$14:$N$102, SMALL(IF($U$14='Category Sets A-D'!$M$14:$M$102, ROW('Category Sets A-D'!$M$14:$M$102)-MIN(ROW('Category Sets A-D'!$M$14:$M$102))+1, ""), ROW(A48))),"") ->  | V79: =IFERROR(INDEX('Category Sets A-D'!$O$14:$O$102, SMALL(IF($U$14='Category Sets A-D'!$M$14:$M$102, ROW('Category Sets A-D'!$M$14:$M$102)-MIN(ROW('Category Sets A-D'!$M$14:$M$102))+1, ""), ROW(A48))),"") ->  | W79: 0
S80: =IFERROR(INDEX('Category Sets A-D'!$L$14:$L$102, SMALL(IF($U$14='Category Sets A-D'!$M$14:$M$102, ROW('Category Sets A-D'!$M$14:$M$102)-MIN(ROW('Category Sets A-D'!$M$14:$M$102))+1, ""), ROW(A49))),"") ->  | T80: =IFERROR(INDEX('Category Sets A-D'!$P$14:$P$102, SMALL(IF($U$14='Category Sets A-D'!$M$14:$M$102, ROW('Category Sets A-D'!$M$14:$M$102)-MIN(ROW('Category Sets A-D'!$M$14:$M$102))+1, ""), ROW(A49))),"") ->  | U80: =IFERROR(INDEX('Category Sets A-D'!$N$14:$N$102, SMALL(IF($U$14='Category Sets A-D'!$M$14:$M$102, ROW('Category Sets A-D'!$M$14:$M$102)-MIN(ROW('Category Sets A-D'!$M$14:$M$102))+1, ""), ROW(A49))),"") ->  | V80: =IFERROR(INDEX('Category Sets A-D'!$O$14:$O$102, SMALL(IF($U$14='Category Sets A-D'!$M$14:$M$102, ROW('Category Sets A-D'!$M$14:$M$102)-MIN(ROW('Category Sets A-D'!$M$14:$M$102))+1, ""), ROW(A49))),"") ->  | W80: 0
S81: =IFERROR(INDEX('Category Sets A-D'!$L$14:$L$102, SMALL(IF($U$14='Category Sets A-D'!$M$14:$M$102, ROW('Category Sets A-D'!$M$14:$M$102)-MIN(ROW('Category Sets A-D'!$M$14:$M$102))+1, ""), ROW(A50))),"") ->  | T81: =IFERROR(INDEX('Category Sets A-D'!$P$14:$P$102, SMALL(IF($U$14='Category Sets A-D'!$M$14:$M$102, ROW('Category Sets A-D'!$M$14:$M$102)-MIN(ROW('Category Sets A-D'!$M$14:$M$102))+1, ""), ROW(A50))),"") ->  | U81: =IFERROR(INDEX('Category Sets A-D'!$N$14:$N$102, SMALL(IF($U$14='Category Sets A-D'!$M$14:$M$102, ROW('Category Sets A-D'!$M$14:$M$102)-MIN(ROW('Category Sets A-D'!$M$14:$M$102))+1, ""), ROW(A50))),"") ->  | V81: =IFERROR(INDEX('Category Sets A-D'!$O$14:$O$102, SMALL(IF($U$14='Category Sets A-D'!$M$14:$M$102, ROW('Category Sets A-D'!$M$14:$M$102)-MIN(ROW('Category Sets A-D'!$M$14:$M$102))+1, ""), ROW(A50))),"") ->  | W81: 0
S82: =IFERROR(INDEX('Category Sets A-D'!$L$14:$L$102, SMALL(IF($U$14='Category Sets A-D'!$M$14:$M$102, ROW('Category Sets A-D'!$M$14:$M$102)-MIN(ROW('Category Sets A-D'!$M$14:$M$102))+1, ""), ROW(A51))),"") ->  | T82: =IFERROR(INDEX('Category Sets A-D'!$P$14:$P$102, SMALL(IF($U$14='Category Sets A-D'!$M$14:$M$102, ROW('Category Sets A-D'!$M$14:$M$102)-MIN(ROW('Category Sets A-D'!$M$14:$M$102))+1, ""), ROW(A51))),"") ->  | U82: =IFERROR(INDEX('Category Sets A-D'!$N$14:$N$102, SMALL(IF($U$14='Category Sets A-D'!$M$14:$M$102, ROW('Category Sets A-D'!$M$14:$M$102)-MIN(ROW('Category Sets A-D'!$M$14:$M$102))+1, ""), ROW(A51))),"") ->  | V82: =IFERROR(INDEX('Category Sets A-D'!$O$14:$O$102, SMALL(IF($U$14='Category Sets A-D'!$M$14:$M$102, ROW('Category Sets A-D'!$M$14:$M$102)-MIN(ROW('Category Sets A-D'!$M$14:$M$102))+1, ""), ROW(A51))),"") ->  | W82: 0
S83: =IFERROR(INDEX('Category Sets A-D'!$L$14:$L$102, SMALL(IF($U$14='Category Sets A-D'!$M$14:$M$102, ROW('Category Sets A-D'!$M$14:$M$102)-MIN(ROW('Category Sets A-D'!$M$14:$M$102))+1, ""), ROW(A52))),"") ->  | T83: =IFERROR(INDEX('Category Sets A-D'!$P$14:$P$102, SMALL(IF($U$14='Category Sets A-D'!$M$14:$M$102, ROW('Category Sets A-D'!$M$14:$M$102)-MIN(ROW('Category Sets A-D'!$M$14:$M$102))+1, ""), ROW(A52))),"") ->  | U83: =IFERROR(INDEX('Category Sets A-D'!$N$14:$N$102, SMALL(IF($U$14='Category Sets A-D'!$M$14:$M$102, ROW('Category Sets A-D'!$M$14:$M$102)-MIN(ROW('Category Sets A-D'!$M$14:$M$102))+1, ""), ROW(A52))),"") ->  | V83: =IFERROR(INDEX('Category Sets A-D'!$O$14:$O$102, SMALL(IF($U$14='Category Sets A-D'!$M$14:$M$102, ROW('Category Sets A-D'!$M$14:$M$102)-MIN(ROW('Category Sets A-D'!$M$14:$M$102))+1, ""), ROW(A52))),"") ->  | W83: 0
S84: =IFERROR(INDEX('Category Sets A-D'!$L$14:$L$102, SMALL(IF($U$14='Category Sets A-D'!$M$14:$M$102, ROW('Category Sets A-D'!$M$14:$M$102)-MIN(ROW('Category Sets A-D'!$M$14:$M$102))+1, ""), ROW(A53))),"") ->  | T84: =IFERROR(INDEX('Category Sets A-D'!$P$14:$P$102, SMALL(IF($U$14='Category Sets A-D'!$M$14:$M$102, ROW('Category Sets A-D'!$M$14:$M$102)-MIN(ROW('Category Sets A-D'!$M$14:$M$102))+1, ""), ROW(A53))),"") ->  | U84: =IFERROR(INDEX('Category Sets A-D'!$N$14:$N$102, SMALL(IF($U$14='Category Sets A-D'!$M$14:$M$102, ROW('Category Sets A-D'!$M$14:$M$102)-MIN(ROW('Category Sets A-D'!$M$14:$M$102))+1, ""), ROW(A53))),"") ->  | V84: =IFERROR(INDEX('Category Sets A-D'!$O$14:$O$102, SMALL(IF($U$14='Category Sets A-D'!$M$14:$M$102, ROW('Category Sets A-D'!$M$14:$M$102)-MIN(ROW('Category Sets A-D'!$M$14:$M$102))+1, ""), ROW(A53))),"") ->  | W84: 0
S85: =IFERROR(INDEX('Category Sets A-D'!$L$14:$L$102, SMALL(IF($U$14='Category Sets A-D'!$M$14:$M$102, ROW('Category Sets A-D'!$M$14:$M$102)-MIN(ROW('Category Sets A-D'!$M$14:$M$102))+1, ""), ROW(A54))),"") ->  | T85: =IFERROR(INDEX('Category Sets A-D'!$P$14:$P$102, SMALL(IF($U$14='Category Sets A-D'!$M$14:$M$102, ROW('Category Sets A-D'!$M$14:$M$102)-MIN(ROW('Category Sets A-D'!$M$14:$M$102))+1, ""), ROW(A54))),"") ->  | U85: =IFERROR(INDEX('Category Sets A-D'!$N$14:$N$102, SMALL(IF($U$14='Category Sets A-D'!$M$14:$M$102, ROW('Category Sets A-D'!$M$14:$M$102)-MIN(ROW('Category Sets A-D'!$M$14:$M$102))+1, ""), ROW(A54))),"") ->  | V85: =IFERROR(INDEX('Category Sets A-D'!$O$14:$O$102, SMALL(IF($U$14='Category Sets A-D'!$M$14:$M$102, ROW('Category Sets A-D'!$M$14:$M$102)-MIN(ROW('Category Sets A-D'!$M$14:$M$102))+1, ""), ROW(A54))),"") ->  | W85: 0
S86: =IFERROR(INDEX('Category Sets A-D'!$L$14:$L$102, SMALL(IF($U$14='Category Sets A-D'!$M$14:$M$102, ROW('Category Sets A-D'!$M$14:$M$102)-MIN(ROW('Category Sets A-D'!$M$14:$M$102))+1, ""), ROW(A55))),"") ->  | T86: =IFERROR(INDEX('Category Sets A-D'!$P$14:$P$102, SMALL(IF($U$14='Category Sets A-D'!$M$14:$M$102, ROW('Category Sets A-D'!$M$14:$M$102)-MIN(ROW('Category Sets A-D'!$M$14:$M$102))+1, ""), ROW(A55))),"") ->  | U86: =IFERROR(INDEX('Category Sets A-D'!$N$14:$N$102, SMALL(IF($U$14='Category Sets A-D'!$M$14:$M$102, ROW('Category Sets A-D'!$M$14:$M$102)-MIN(ROW('Category Sets A-D'!$M$14:$M$102))+1, ""), ROW(A55))),"") ->  | V86: =IFERROR(INDEX('Category Sets A-D'!$O$14:$O$102, SMALL(IF($U$14='Category Sets A-D'!$M$14:$M$102, ROW('Category Sets A-D'!$M$14:$M$102)-MIN(ROW('Category Sets A-D'!$M$14:$M$102))+1, ""), ROW(A55))),"") ->  | W86: 0
S87: =IFERROR(INDEX('Category Sets A-D'!$L$14:$L$102, SMALL(IF($U$14='Category Sets A-D'!$M$14:$M$102, ROW('Category Sets A-D'!$M$14:$M$102)-MIN(ROW('Category Sets A-D'!$M$14:$M$102))+1, ""), ROW(A56))),"") ->  | T87: =IFERROR(INDEX('Category Sets A-D'!$P$14:$P$102, SMALL(IF($U$14='Category Sets A-D'!$M$14:$M$102, ROW('Category Sets A-D'!$M$14:$M$102)-MIN(ROW('Category Sets A-D'!$M$14:$M$102))+1, ""), ROW(A56))),"") ->  | U87: =IFERROR(INDEX('Category Sets A-D'!$N$14:$N$102, SMALL(IF($U$14='Category Sets A-D'!$M$14:$M$102, ROW('Category Sets A-D'!$M$14:$M$102)-MIN(ROW('Category Sets A-D'!$M$14:$M$102))+1, ""), ROW(A56))),"") ->  | V87: =IFERROR(INDEX('Category Sets A-D'!$O$14:$O$102, SMALL(IF($U$14='Category Sets A-D'!$M$14:$M$102, ROW('Category Sets A-D'!$M$14:$M$102)-MIN(ROW('Category Sets A-D'!$M$14:$M$102))+1, ""), ROW(A56))),"") ->  | W87: 0
S88: =IFERROR(INDEX('Category Sets A-D'!$L$14:$L$102, SMALL(IF($U$14='Category Sets A-D'!$M$14:$M$102, ROW('Category Sets A-D'!$M$14:$M$102)-MIN(ROW('Category Sets A-D'!$M$14:$M$102))+1, ""), ROW(A57))),"") ->  | T88: =IFERROR(INDEX('Category Sets A-D'!$P$14:$P$102, SMALL(IF($U$14='Category Sets A-D'!$M$14:$M$102, ROW('Category Sets A-D'!$M$14:$M$102)-MIN(ROW('Category Sets A-D'!$M$14:$M$102))+1, ""), ROW(A57))),"") ->  | U88: =IFERROR(INDEX('Category Sets A-D'!$N$14:$N$102, SMALL(IF($U$14='Category Sets A-D'!$M$14:$M$102, ROW('Category Sets A-D'!$M$14:$M$102)-MIN(ROW('Category Sets A-D'!$M$14:$M$102))+1, ""), ROW(A57))),"") ->  | V88: =IFERROR(INDEX('Category Sets A-D'!$O$14:$O$102, SMALL(IF($U$14='Category Sets A-D'!$M$14:$M$102, ROW('Category Sets A-D'!$M$14:$M$102)-MIN(ROW('Category Sets A-D'!$M$14:$M$102))+1, ""), ROW(A57))),"") ->  | W88: 0
S89: =IFERROR(INDEX('Category Sets A-D'!$L$14:$L$102, SMALL(IF($U$14='Category Sets A-D'!$M$14:$M$102, ROW('Category Sets A-D'!$M$14:$M$102)-MIN(ROW('Category Sets A-D'!$M$14:$M$102))+1, ""), ROW(A58))),"") ->  | T89: =IFERROR(INDEX('Category Sets A-D'!$P$14:$P$102, SMALL(IF($U$14='Category Sets A-D'!$M$14:$M$102, ROW('Category Sets A-D'!$M$14:$M$102)-MIN(ROW('Category Sets A-D'!$M$14:$M$102))+1, ""), ROW(A58))),"") ->  | U89: =IFERROR(INDEX('Category Sets A-D'!$N$14:$N$102, SMALL(IF($U$14='Category Sets A-D'!$M$14:$M$102, ROW('Category Sets A-D'!$M$14:$M$102)-MIN(ROW('Category Sets A-D'!$M$14:$M$102))+1, ""), ROW(A58))),"") ->  | V89: =IFERROR(INDEX('Category Sets A-D'!$O$14:$O$102, SMALL(IF($U$14='Category Sets A-D'!$M$14:$M$102, ROW('Category Sets A-D'!$M$14:$M$102)-MIN(ROW('Category Sets A-D'!$M$14:$M$102))+1, ""), ROW(A58))),"") ->  | W89: 0
S90: =IFERROR(INDEX('Category Sets A-D'!$L$14:$L$102, SMALL(IF($U$14='Category Sets A-D'!$M$14:$M$102, ROW('Category Sets A-D'!$M$14:$M$102)-MIN(ROW('Category Sets A-D'!$M$14:$M$102))+1, ""), ROW(A59))),"") ->  | T90: =IFERROR(INDEX('Category Sets A-D'!$P$14:$P$102, SMALL(IF($U$14='Category Sets A-D'!$M$14:$M$102, ROW('Category Sets A-D'!$M$14:$M$102)-MIN(ROW('Category Sets A-D'!$M$14:$M$102))+1, ""), ROW(A59))),"") ->  | U90: =IFERROR(INDEX('Category Sets A-D'!$N$14:$N$102, SMALL(IF($U$14='Category Sets A-D'!$M$14:$M$102, ROW('Category Sets A-D'!$M$14:$M$102)-MIN(ROW('Category Sets A-D'!$M$14:$M$102))+1, ""), ROW(A59))),"") ->  | V90: =IFERROR(INDEX('Category Sets A-D'!$O$14:$O$102, SMALL(IF($U$14='Category Sets A-D'!$M$14:$M$102, ROW('Category Sets A-D'!$M$14:$M$102)-MIN(ROW('Category Sets A-D'!$M$14:$M$102))+1, ""), ROW(A59))),"") ->  | W90: 0
S91: =IFERROR(INDEX('Category Sets A-D'!$L$14:$L$102, SMALL(IF($U$14='Category Sets A-D'!$M$14:$M$102, ROW('Category Sets A-D'!$M$14:$M$102)-MIN(ROW('Category Sets A-D'!$M$14:$M$102))+1, ""), ROW(A60))),"") ->  | T91: =IFERROR(INDEX('Category Sets A-D'!$P$14:$P$102, SMALL(IF($U$14='Category Sets A-D'!$M$14:$M$102, ROW('Category Sets A-D'!$M$14:$M$102)-MIN(ROW('Category Sets A-D'!$M$14:$M$102))+1, ""), ROW(A60))),"") ->  | U91: =IFERROR(INDEX('Category Sets A-D'!$N$14:$N$102, SMALL(IF($U$14='Category Sets A-D'!$M$14:$M$102, ROW('Category Sets A-D'!$M$14:$M$102)-MIN(ROW('Category Sets A-D'!$M$14:$M$102))+1, ""), ROW(A60))),"") ->  | V91: =IFERROR(INDEX('Category Sets A-D'!$O$14:$O$102, SMALL(IF($U$14='Category Sets A-D'!$M$14:$M$102, ROW('Category Sets A-D'!$M$14:$M$102)-MIN(ROW('Category Sets A-D'!$M$14:$M$102))+1, ""), ROW(A60))),"") ->  | W91: 0
S92: =IFERROR(INDEX('Category Sets A-D'!$L$14:$L$102, SMALL(IF($U$14='Category Sets A-D'!$M$14:$M$102, ROW('Category Sets A-D'!$M$14:$M$102)-MIN(ROW('Category Sets A-D'!$M$14:$M$102))+1, ""), ROW(A61))),"") ->  | T92: =IFERROR(INDEX('Category Sets A-D'!$P$14:$P$102, SMALL(IF($U$14='Category Sets A-D'!$M$14:$M$102, ROW('Category Sets A-D'!$M$14:$M$102)-MIN(ROW('Category Sets A-D'!$M$14:$M$102))+1, ""), ROW(A61))),"") ->  | U92: =IFERROR(INDEX('Category Sets A-D'!$N$14:$N$102, SMALL(IF($U$14='Category Sets A-D'!$M$14:$M$102, ROW('Category Sets A-D'!$M$14:$M$102)-MIN(ROW('Category Sets A-D'!$M$14:$M$102))+1, ""), ROW(A61))),"") ->  | V92: =IFERROR(INDEX('Category Sets A-D'!$O$14:$O$102, SMALL(IF($U$14='Category Sets A-D'!$M$14:$M$102, ROW('Category Sets A-D'!$M$14:$M$102)-MIN(ROW('Category Sets A-D'!$M$14:$M$102))+1, ""), ROW(A61))),"") ->  | W92: 0
S93: =IFERROR(INDEX('Category Sets A-D'!$L$14:$L$102, SMALL(IF($U$14='Category Sets A-D'!$M$14:$M$102, ROW('Category Sets A-D'!$M$14:$M$102)-MIN(ROW('Category Sets A-D'!$M$14:$M$102))+1, ""), ROW(A62))),"") ->  | T93: =IFERROR(INDEX('Category Sets A-D'!$P$14:$P$102, SMALL(IF($U$14='Category Sets A-D'!$M$14:$M$102, ROW('Category Sets A-D'!$M$14:$M$102)-MIN(ROW('Category Sets A-D'!$M$14:$M$102))+1, ""), ROW(A62))),"") ->  | U93: =IFERROR(INDEX('Category Sets A-D'!$N$14:$N$102, SMALL(IF($U$14='Category Sets A-D'!$M$14:$M$102, ROW('Category Sets A-D'!$M$14:$M$102)-MIN(ROW('Category Sets A-D'!$M$14:$M$102))+1, ""), ROW(A62))),"") ->  | V93: =IFERROR(INDEX('Category Sets A-D'!$O$14:$O$102, SMALL(IF($U$14='Category Sets A-D'!$M$14:$M$102, ROW('Category Sets A-D'!$M$14:$M$102)-MIN(ROW('Category Sets A-D'!$M$14:$M$102))+1, ""), ROW(A62))),"") ->  | W93: 0
S94: =IFERROR(INDEX('Category Sets A-D'!$L$14:$L$102, SMALL(IF($U$14='Category Sets A-D'!$M$14:$M$102, ROW('Category Sets A-D'!$M$14:$M$102)-MIN(ROW('Category Sets A-D'!$M$14:$M$102))+1, ""), ROW(A63))),"") ->  | T94: =IFERROR(INDEX('Category Sets A-D'!$P$14:$P$102, SMALL(IF($U$14='Category Sets A-D'!$M$14:$M$102, ROW('Category Sets A-D'!$M$14:$M$102)-MIN(ROW('Category Sets A-D'!$M$14:$M$102))+1, ""), ROW(A63))),"") ->  | U94: =IFERROR(INDEX('Category Sets A-D'!$N$14:$N$102, SMALL(IF($U$14='Category Sets A-D'!$M$14:$M$102, ROW('Category Sets A-D'!$M$14:$M$102)-MIN(ROW('Category Sets A-D'!$M$14:$M$102))+1, ""), ROW(A63))),"") ->  | V94: =IFERROR(INDEX('Category Sets A-D'!$O$14:$O$102, SMALL(IF($U$14='Category Sets A-D'!$M$14:$M$102, ROW('Category Sets A-D'!$M$14:$M$102)-MIN(ROW('Category Sets A-D'!$M$14:$M$102))+1, ""), ROW(A63))),"") ->  | W94: 0
S95: =IFERROR(INDEX('Category Sets A-D'!$L$14:$L$102, SMALL(IF($U$14='Category Sets A-D'!$M$14:$M$102, ROW('Category Sets A-D'!$M$14:$M$102)-MIN(ROW('Category Sets A-D'!$M$14:$M$102))+1, ""), ROW(A64))),"") ->  | T95: =IFERROR(INDEX('Category Sets A-D'!$P$14:$P$102, SMALL(IF($U$14='Category Sets A-D'!$M$14:$M$102, ROW('Category Sets A-D'!$M$14:$M$102)-MIN(ROW('Category Sets A-D'!$M$14:$M$102))+1, ""), ROW(A64))),"") ->  | U95: =IFERROR(INDEX('Category Sets A-D'!$N$14:$N$102, SMALL(IF($U$14='Category Sets A-D'!$M$14:$M$102, ROW('Category Sets A-D'!$M$14:$M$102)-MIN(ROW('Category Sets A-D'!$M$14:$M$102))+1, ""), ROW(A64))),"") ->  | V95: =IFERROR(INDEX('Category Sets A-D'!$O$14:$O$102, SMALL(IF($U$14='Category Sets A-D'!$M$14:$M$102, ROW('Category Sets A-D'!$M$14:$M$102)-MIN(ROW('Category Sets A-D'!$M$14:$M$102))+1, ""), ROW(A64))),"") ->  | W95: 0
M96: =IF(S96="","",HYPERLINK(CONCATENATE("#","'Category Sets A-D'!",S96),U96)) ->  | S96: =IFERROR(INDEX('Category Sets A-D'!$L$14:$L$102, SMALL(IF($U$14='Category Sets A-D'!$M$14:$M$102, ROW('Category Sets A-D'!$M$14:$M$102)-MIN(ROW('Category Sets A-D'!$M$14:$M$102))+1, ""), ROW(A65))),"") ->  | T96: =IFERROR(INDEX('Category Sets A-D'!$P$14:$P$102, SMALL(IF($U$14='Category Sets A-D'!$M$14:$M$102, ROW('Category Sets A-D'!$M$14:$M$102)-MIN(ROW('Category Sets A-D'!$M$14:$M$102))+1, ""), ROW(A65))),"") ->  | U96: =IFERROR(INDEX('Category Sets A-D'!$N$14:$N$102, SMALL(IF($U$14='Category Sets A-D'!$M$14:$M$102, ROW('Category Sets A-D'!$M$14:$M$102)-MIN(ROW('Category Sets A-D'!$M$14:$M$102))+1, ""), ROW(A65))),"") ->  | V96: =IFERROR(INDEX('Category Sets A-D'!$O$14:$O$102, SMALL(IF($U$14='Category Sets A-D'!$M$14:$M$102, ROW('Category Sets A-D'!$M$14:$M$102)-MIN(ROW('Category Sets A-D'!$M$14:$M$102))+1, ""), ROW(A65))),"") ->  | W96: 0
A97: =V97 ->  | B97: =IF(W97=1,"No Data",T97) ->  | S97: =IFERROR(INDEX('Category Sets A-D'!$L$14:$L$102, SMALL(IF($U$14='Category Sets A-D'!$M$14:$M$102, ROW('Category Sets A-D'!$M$14:$M$102)-MIN(ROW('Category Sets A-D'!$M$14:$M$102))+1, ""), ROW(A66))),"") ->  | T97: =IFERROR(INDEX('Category Sets A-D'!$P$14:$P$102, SMALL(IF($U$14='Category Sets A-D'!$M$14:$M$102, ROW('Category Sets A-D'!$M$14:$M$102)-MIN(ROW('Category Sets A-D'!$M$14:$M$102))+1, ""), ROW(A66))),"") ->  | U97: =IFERROR(INDEX('Category Sets A-D'!$N$14:$N$102, SMALL(IF($U$14='Category Sets A-D'!$M$14:$M$102, ROW('Category Sets A-D'!$M$14:$M$102)-MIN(ROW('Category Sets A-D'!$M$14:$M$102))+1, ""), ROW(A66))),"") ->  | V97: =IFERROR(INDEX('Category Sets A-D'!$O$14:$O$102, SMALL(IF($U$14='Category Sets A-D'!$M$14:$M$102, ROW('Category Sets A-D'!$M$14:$M$102)-MIN(ROW('Category Sets A-D'!$M$14:$M$102))+1, ""), ROW(A66))),"") ->  | W97: =IF(U97="No Data",1,0) -> 0
S98: =IFERROR(INDEX('Category Sets A-D'!$L$14:$L$102, SMALL(IF($U$14='Category Sets A-D'!$M$14:$M$102, ROW('Category Sets A-D'!$M$14:$M$102)-MIN(ROW('Category Sets A-D'!$M$14:$M$102))+1, ""), ROW(A67))),"") ->  | T98: =IFERROR(INDEX('Category Sets A-D'!$P$14:$P$102, SMALL(IF($U$14='Category Sets A-D'!$M$14:$M$102, ROW('Category Sets A-D'!$M$14:$M$102)-MIN(ROW('Category Sets A-D'!$M$14:$M$102))+1, ""), ROW(A67))),"") ->  | U98: =IFERROR(INDEX('Category Sets A-D'!$N$14:$N$102, SMALL(IF($U$14='Category Sets A-D'!$M$14:$M$102, ROW('Category Sets A-D'!$M$14:$M$102)-MIN(ROW('Category Sets A-D'!$M$14:$M$102))+1, ""), ROW(A67))),"") ->  | V98: =IFERROR(INDEX('Category Sets A-D'!$O$14:$O$102, SMALL(IF($U$14='Category Sets A-D'!$M$14:$M$102, ROW('Category Sets A-D'!$M$14:$M$102)-MIN(ROW('Category Sets A-D'!$M$14:$M$102))+1, ""), ROW(A67))),"") ->  | W98: 0
S99: =IFERROR(INDEX('Category Sets A-D'!$L$14:$L$102, SMALL(IF($U$14='Category Sets A-D'!$M$14:$M$102, ROW('Category Sets A-D'!$M$14:$M$102)-MIN(ROW('Category Sets A-D'!$M$14:$M$102))+1, ""), ROW(A68))),"") ->  | T99: =IFERROR(INDEX('Category Sets A-D'!$P$14:$P$102, SMALL(IF($U$14='Category Sets A-D'!$M$14:$M$102, ROW('Category Sets A-D'!$M$14:$M$102)-MIN(ROW('Category Sets A-D'!$M$14:$M$102))+1, ""), ROW(A68))),"") ->  | U99: =IFERROR(INDEX('Category Sets A-D'!$N$14:$N$102, SMALL(IF($U$14='Category Sets A-D'!$M$14:$M$102, ROW('Category Sets A-D'!$M$14:$M$102)-MIN(ROW('Category Sets A-D'!$M$14:$M$102))+1, ""), ROW(A68))),"") ->  | V99: =IFERROR(INDEX('Category Sets A-D'!$O$14:$O$102, SMALL(IF($U$14='Category Sets A-D'!$M$14:$M$102, ROW('Category Sets A-D'!$M$14:$M$102)-MIN(ROW('Category Sets A-D'!$M$14:$M$102))+1, ""), ROW(A68))),"") ->  | W99: 0
S100: =IFERROR(INDEX('Category Sets A-D'!$L$14:$L$102, SMALL(IF($U$14='Category Sets A-D'!$M$14:$M$102, ROW('Category Sets A-D'!$M$14:$M$102)-MIN(ROW('Category Sets A-D'!$M$14:$M$102))+1, ""), ROW(A69))),"") ->  | T100: =IFERROR(INDEX('Category Sets A-D'!$P$14:$P$102, SMALL(IF($U$14='Category Sets A-D'!$M$14:$M$102, ROW('Category Sets A-D'!$M$14:$M$102)-MIN(ROW('Category Sets A-D'!$M$14:$M$102))+1, ""), ROW(A69))),"") ->  | U100: =IFERROR(INDEX('Category Sets A-D'!$N$14:$N$102, SMALL(IF($U$14='Category Sets A-D'!$M$14:$M$102, ROW('Category Sets A-D'!$M$14:$M$102)-MIN(ROW('Category Sets A-D'!$M$14:$M$102))+1, ""), ROW(A69))),"") ->  | V100: =IFERROR(INDEX('Category Sets A-D'!$O$14:$O$102, SMALL(IF($U$14='Category Sets A-D'!$M$14:$M$102, ROW('Category Sets A-D'!$M$14:$M$102)-MIN(ROW('Category Sets A-D'!$M$14:$M$102))+1, ""), ROW(A69))),"") ->  | W100: 0
S101: =IFERROR(INDEX('Category Sets A-D'!$L$14:$L$102, SMALL(IF($U$14='Category Sets A-D'!$M$14:$M$102, ROW('Category Sets A-D'!$M$14:$M$102)-MIN(ROW('Category Sets A-D'!$M$14:$M$102))+1, ""), ROW(A70))),"") ->  | T101: =IFERROR(INDEX('Category Sets A-D'!$P$14:$P$102, SMALL(IF($U$14='Category Sets A-D'!$M$14:$M$102, ROW('Category Sets A-D'!$M$14:$M$102)-MIN(ROW('Category Sets A-D'!$M$14:$M$102))+1, ""), ROW(A70))),"") ->  | U101: =IFERROR(INDEX('Category Sets A-D'!$N$14:$N$102, SMALL(IF($U$14='Category Sets A-D'!$M$14:$M$102, ROW('Category Sets A-D'!$M$14:$M$102)-MIN(ROW('Category Sets A-D'!$M$14:$M$102))+1, ""), ROW(A70))),"") ->  | V101: =IFERROR(INDEX('Category Sets A-D'!$O$14:$O$102, SMALL(IF($U$14='Category Sets A-D'!$M$14:$M$102, ROW('Category Sets A-D'!$M$14:$M$102)-MIN(ROW('Category Sets A-D'!$M$14:$M$102))+1, ""), ROW(A70))),"") ->  | W101: 0
S102: =IFERROR(INDEX('Category Sets A-D'!$L$14:$L$102, SMALL(IF($U$14='Category Sets A-D'!$M$14:$M$102, ROW('Category Sets A-D'!$M$14:$M$102)-MIN(ROW('Category Sets A-D'!$M$14:$M$102))+1, ""), ROW(A71))),"") ->  | T102: =IFERROR(INDEX('Category Sets A-D'!$P$14:$P$102, SMALL(IF($U$14='Category Sets A-D'!$M$14:$M$102, ROW('Category Sets A-D'!$M$14:$M$102)-MIN(ROW('Category Sets A-D'!$M$14:$M$102))+1, ""), ROW(A71))),"") ->  | U102: =IFERROR(INDEX('Category Sets A-D'!$N$14:$N$102, SMALL(IF($U$14='Category Sets A-D'!$M$14:$M$102, ROW('Category Sets A-D'!$M$14:$M$102)-MIN(ROW('Category Sets A-D'!$M$14:$M$102))+1, ""), ROW(A71))),"") ->  | V102: =IFERROR(INDEX('Category Sets A-D'!$O$14:$O$102, SMALL(IF($U$14='Category Sets A-D'!$M$14:$M$102, ROW('Category Sets A-D'!$M$14:$M$102)-MIN(ROW('Category Sets A-D'!$M$14:$M$102))+1, ""), ROW(A71))),"") ->  | W102: 0
S103: =IFERROR(INDEX('Category Sets A-D'!$L$14:$L$102, SMALL(IF($U$14='Category Sets A-D'!$M$14:$M$102, ROW('Category Sets A-D'!$M$14:$M$102)-MIN(ROW('Category Sets A-D'!$M$14:$M$102))+1, ""), ROW(A72))),"") ->  | T103: =IFERROR(INDEX('Category Sets A-D'!$P$14:$P$102, SMALL(IF($U$14='Category Sets A-D'!$M$14:$M$102, ROW('Category Sets A-D'!$M$14:$M$102)-MIN(ROW('Category Sets A-D'!$M$14:$M$102))+1, ""), ROW(A72))),"") ->  | U103: =IFERROR(INDEX('Category Sets A-D'!$N$14:$N$102, SMALL(IF($U$14='Category Sets A-D'!$M$14:$M$102, ROW('Category Sets A-D'!$M$14:$M$102)-MIN(ROW('Category Sets A-D'!$M$14:$M$102))+1, ""), ROW(A72))),"") ->  | V103: =IFERROR(INDEX('Category Sets A-D'!$O$14:$O$102, SMALL(IF($U$14='Category Sets A-D'!$M$14:$M$102, ROW('Category Sets A-D'!$M$14:$M$102)-MIN(ROW('Category Sets A-D'!$M$14:$M$102))+1, ""), ROW(A72))),"") ->  | W103: 0
S104: =IFERROR(INDEX('Category Sets A-D'!$L$14:$L$102, SMALL(IF($U$14='Category Sets A-D'!$M$14:$M$102, ROW('Category Sets A-D'!$M$14:$M$102)-MIN(ROW('Category Sets A-D'!$M$14:$M$102))+1, ""), ROW(A73))),"") ->  | T104: =IFERROR(INDEX('Category Sets A-D'!$P$14:$P$102, SMALL(IF($U$14='Category Sets A-D'!$M$14:$M$102, ROW('Category Sets A-D'!$M$14:$M$102)-MIN(ROW('Category Sets A-D'!$M$14:$M$102))+1, ""), ROW(A73))),"") ->  | U104: =IFERROR(INDEX('Category Sets A-D'!$N$14:$N$102, SMALL(IF($U$14='Category Sets A-D'!$M$14:$M$102, ROW('Category Sets A-D'!$M$14:$M$102)-MIN(ROW('Category Sets A-D'!$M$14:$M$102))+1, ""), ROW(A73))),"") ->  | V104: =IFERROR(INDEX('Category Sets A-D'!$O$14:$O$102, SMALL(IF($U$14='Category Sets A-D'!$M$14:$M$102, ROW('Category Sets A-D'!$M$14:$M$102)-MIN(ROW('Category Sets A-D'!$M$14:$M$102))+1, ""), ROW(A73))),"") ->  | W104: 0
S105: =IFERROR(INDEX('Category Sets A-D'!$L$14:$L$102, SMALL(IF($U$14='Category Sets A-D'!$M$14:$M$102, ROW('Category Sets A-D'!$M$14:$M$102)-MIN(ROW('Category Sets A-D'!$M$14:$M$102))+1, ""), ROW(A74))),"") ->  | T105: =IFERROR(INDEX('Category Sets A-D'!$P$14:$P$102, SMALL(IF($U$14='Category Sets A-D'!$M$14:$M$102, ROW('Category Sets A-D'!$M$14:$M$102)-MIN(ROW('Category Sets A-D'!$M$14:$M$102))+1, ""), ROW(A74))),"") ->  | U105: =IFERROR(INDEX('Category Sets A-D'!$N$14:$N$102, SMALL(IF($U$14='Category Sets A-D'!$M$14:$M$102, ROW('Category Sets A-D'!$M$14:$M$102)-MIN(ROW('Category Sets A-D'!$M$14:$M$102))+1, ""), ROW(A74))),"") ->  | V105: =IFERROR(INDEX('Category Sets A-D'!$O$14:$O$102, SMALL(IF($U$14='Category Sets A-D'!$M$14:$M$102, ROW('Category Sets A-D'!$M$14:$M$102)-MIN(ROW('Category Sets A-D'!$M$14:$M$102))+1, ""), ROW(A74))),"") ->  | W105: 0
S106: =IFERROR(INDEX('Category Sets A-D'!$L$14:$L$102, SMALL(IF($U$14='Category Sets A-D'!$M$14:$M$102, ROW('Category Sets A-D'!$M$14:$M$102)-MIN(ROW('Category Sets A-D'!$M$14:$M$102))+1, ""), ROW(A75))),"") ->  | T106: =IFERROR(INDEX('Category Sets A-D'!$P$14:$P$102, SMALL(IF($U$14='Category Sets A-D'!$M$14:$M$102, ROW('Category Sets A-D'!$M$14:$M$102)-MIN(ROW('Category Sets A-D'!$M$14:$M$102))+1, ""), ROW(A75))),"") ->  | U106: =IFERROR(INDEX('Category Sets A-D'!$N$14:$N$102, SMALL(IF($U$14='Category Sets A-D'!$M$14:$M$102, ROW('Category Sets A-D'!$M$14:$M$102)-MIN(ROW('Category Sets A-D'!$M$14:$M$102))+1, ""), ROW(A75))),"") ->  | V106: =IFERROR(INDEX('Category Sets A-D'!$O$14:$O$102, SMALL(IF($U$14='Category Sets A-D'!$M$14:$M$102, ROW('Category Sets A-D'!$M$14:$M$102)-MIN(ROW('Category Sets A-D'!$M$14:$M$102))+1, ""), ROW(A75))),"") ->  | W106: 0
S107: =IFERROR(INDEX('Category Sets A-D'!$L$14:$L$102, SMALL(IF($U$14='Category Sets A-D'!$M$14:$M$102, ROW('Category Sets A-D'!$M$14:$M$102)-MIN(ROW('Category Sets A-D'!$M$14:$M$102))+1, ""), ROW(A76))),"") ->  | T107: =IFERROR(INDEX('Category Sets A-D'!$P$14:$P$102, SMALL(IF($U$14='Category Sets A-D'!$M$14:$M$102, ROW('Category Sets A-D'!$M$14:$M$102)-MIN(ROW('Category Sets A-D'!$M$14:$M$102))+1, ""), ROW(A76))),"") ->  | U107: =IFERROR(INDEX('Category Sets A-D'!$N$14:$N$102, SMALL(IF($U$14='Category Sets A-D'!$M$14:$M$102, ROW('Category Sets A-D'!$M$14:$M$102)-MIN(ROW('Category Sets A-D'!$M$14:$M$102))+1, ""), ROW(A76))),"") ->  | V107: =IFERROR(INDEX('Category Sets A-D'!$O$14:$O$102, SMALL(IF($U$14='Category Sets A-D'!$M$14:$M$102, ROW('Category Sets A-D'!$M$14:$M$102)-MIN(ROW('Category Sets A-D'!$M$14:$M$102))+1, ""), ROW(A76))),"") ->  | W107: =IF(U107="No Data",1,0) -> 0
A109: End of worksheet

Sheet Subtotals
A1: ="IDEA LEA Exiting Data for School Year "&'Exiting (LEA FS009)'!E12&" - "&'Select LEA'!F6 -> IDEA LEA Exiting Data for School Year - | O1: End of worksheet | Q1: =IFERROR(IF(INDEX(StudCntC009,MATCH(R1,CurrentListing,0))="","No Data",INDEX(StudCntC009,MATCH(R1,CurrentListing,0))),"") ->  | R1: Y
K3: Calculated subtotals
K4: 1 - Basis of exit | N4: =F23 -> 0
K5: 2 - Age | N5: =M39 -> 0
K6: 3 - Racial ethnic | N6: =F38 -> 0
A7: =" LEA name: "&'Select LEA'!$F$6 -> LEA name: | K7: 4 - Sex | N7: =F45 -> 0
K8: 5 - English learner (LEP) status | N8: =M45 -> 0
A9: =" LEA identifier: "&'Select LEA'!$F$7 -> LEA identifier: | K9: 6 - Disability category (IDEA) exiting | N9: =M27 -> 0
K11: Total of the education unit | N11: =IFERROR(HYPERLINK("#'Select LEA'!"&ADDRESS(ROW(INDEX(CurrentListing,MATCH(R1,CurrentListing,0),1)),25),Q1),HYPERLINK("#'Select LEA'!"&"$S11",Q1)) -> 
A13: Children with disabilities (IDEA) exiting special education for all disabilities, by basis of exit | I13: Children with disabilities (IDEA) exiting special education, by disability category (IDEA) | S13: =IF(OR(F23<>M27,F23<>F38,F23<>M39,F23<>F45,F23<>M45),1,0) -> 0 | AD13: Student counts for Children with Disabilities (IDEA) exiting special education for all disabilities, by basis of exit | AL13: Student counts for Children with Disabilities (IDEA) exiting special education for all disabilities, by disability category
A14: Basis of exit | F14: Student count | G14: Percentage | I14: Disability category (IDEA) | M14: Student count | N14: Percentage | Q14: Link | R14: Triggered? | S14: Count | T14: Category | U14: Error Messages | AD14: Basis of exit | AI14: Student count | AJ14: Percentage | AL14: Disability | AP14: Student count | AQ14: Percentage
A15: Transferred to regular education | F15: =IFERROR(HYPERLINK("#'Select LEA'!"&ADDRESS(ROW(INDEX(CurrentListing,MATCH(AK15,CurrentListing,0),1)),25),AI15),HYPERLINK("#'Select LEA'!"&"$AA11",AI15)) ->  | G15: =IFERROR(IF($F$23<>0,F15/$F$23,0),"") -> 0 | I15: Intellectual disability | M15: =IFERROR(HYPERLINK("#'Select LEA'!"&ADDRESS(ROW(INDEX(CurrentListing,MATCH(AR15,CurrentListing,0),1)),25),AP15),HYPERLINK("#'Select LEA'!"&"$AA$11",AP15)) ->  | N15: =IFERROR(IF($M$27<>0,M15/$M$27,0),"") -> 0 | Q15: F23 | R15: =IF($F$23=0,"",IF(F23<>$Q$1,1,0)) ->  | S15: =F23 -> 0 | T15: Basis of exit | U15: =IF($F$23="","",IF(F23<>$Q$1,"Calculated total of Basis of exit (F15:F22) ≠ Total of the education units from FS009 (N11)","")) -> Calculated total of Basis of exit (F15:F22) ≠ Total of the education units from FS009 (N11) | AD15: Transferred to regular education | AI15: =IFERROR(IF(INDEX(StudCntC009,MATCH(AK15,CurrentListing,0))="","No Data",INDEX(StudCntC009,MATCH(AK15,CurrentListing,0))),"") ->  | AJ15: =IFERROR(IF($AI$23<>0,AI15/$AI$23,0),"NA") -> NA | AK15: TRANY | AL15: Intellectual disability | AP15: =IFERROR(IF(INDEX(StudCntC009,MATCH(AR15,CurrentListing,0))="","No Data",INDEX(StudCntC009,MATCH(AR15,CurrentListing,0))),"") ->  | AQ15: =IFERROR(IF($AP$27<>0,AP15/$AP$27,0),"NA") -> NA | AR15: IDY
A16: Graduated with regular high school diploma | F16: =IFERROR(HYPERLINK("#'Select LEA'!"&ADDRESS(ROW(INDEX(CurrentListing,MATCH(AK16,CurrentListing,0),1)),25),AI16),HYPERLINK("#'Select LEA'!"&"$AA11",AI16)) ->  | G16: 0 | I16: Hearing impairment | M16: =IFERROR(HYPERLINK("#'Select LEA'!"&ADDRESS(ROW(INDEX(CurrentListing,MATCH(AR16,CurrentListing,0),1)),25),AP16),HYPERLINK("#'Select LEA'!"&"$AA$11",AP16)) ->  | N16: 0 | Q16: M39 | R16: =IF(M39=0,"",IF(M39<>$Q$1,1,0)) ->  | S16: =M39 -> 0 | T16: Age | U16: =IF($M$39="","",IF(M39<>$Q$1,"Calculated total of Age (M31:M38) ≠ Total of the education units from FS009 (N11)","")) -> Calculated total of Age (M31:M38) ≠ Total of the education units from FS009 (N11) | AD16: Graduated with regular high school diploma | AI16: =IFERROR(IF(INDEX(StudCntC009,MATCH(AK16,CurrentListing,0))="","No Data",INDEX(StudCntC009,MATCH(AK16,CurrentListing,0))),"") ->  | AJ16: =IFERROR(IF($AI$23<>0,AI16/$AI$23,0),"NA") -> NA | AK16: GHSY | AL16: Hearing impairment | AP16: =IFERROR(IF(INDEX(StudCntC009,MATCH(AR16,CurrentListing,0))="","No Data",INDEX(StudCntC009,MATCH(AR16,CurrentListing,0))),"") ->  | AQ16: NA | AR16: HIY
A17: Graduated with an alternate diploma | F17: =IFERROR(HYPERLINK("#'Select LEA'!"&ADDRESS(ROW(INDEX(CurrentListing,MATCH(AK17,CurrentListing,0),1)),25),AI17),HYPERLINK("#'Select LEA'!"&"$AA11",AI17)) ->  | G17: 0 | I17: Speech or language impairment | M17: =IFERROR(HYPERLINK("#'Select LEA'!"&ADDRESS(ROW(INDEX(CurrentListing,MATCH(AR17,CurrentListing,0),1)),25),AP17),HYPERLINK("#'Select LEA'!"&"$AA$11",AP17)) ->  | N17: 0 | Q17: F38 | R17: =IF(F38=0,"",IF(F38<>$Q$1,1,0)) ->  | S17: =F38 -> 0 | T17: Racial ethnic | U17: =IF($F$38="","",IF(F38<>$Q$1,"Calculated total of Racial ethnic (F31:F37) ≠ Total of the education units from FS009 (N11)","")) -> Calculated total of Racial ethnic (F31:F37) ≠ Total of the education units from FS009 (N11) | AD17: Graduated with an alternate diploma | AI17: =IFERROR(IF(INDEX(StudCntC009,MATCH(AK17,CurrentListing,0))="","No Data",INDEX(StudCntC009,MATCH(AK17,CurrentListing,0))),"") ->  | AJ17: NA | AK17: GRADALTDPLY | AL17: Speech or language impairment | AP17: =IFERROR(IF(INDEX(StudCntC009,MATCH(AR17,CurrentListing,0))="","No Data",INDEX(StudCntC009,MATCH(AR17,CurrentListing,0))),"") ->  | AQ17: NA | AR17: SLIY
A18: Received a certificate | F18: =IFERROR(HYPERLINK("#'Select LEA'!"&ADDRESS(ROW(INDEX(CurrentListing,MATCH(AK18,CurrentListing,0),1)),25),AI18),HYPERLINK("#'Select LEA'!"&"$AA11",AI18)) ->  | G18: 0 | I18: Visual impairment | M18: =IFERROR(HYPERLINK("#'Select LEA'!"&ADDRESS(ROW(INDEX(CurrentListing,MATCH(AR18,CurrentListing,0),1)),25),AP18),HYPERLINK("#'Select LEA'!"&"$AA$11",AP18)) ->  | N18: 0 | Q18: F45 | R18: =IF(F45=0,"",IF(F45<>$Q$1,1,0)) ->  | S18: =F45 -> 0 | T18: Sex | U18: =IF($F$45="","",IF(F45<>$Q$1,"Calculated total of Sex (F43:F44) ≠ Total of the education units from FS009 (N11)","")) -> Calculated total of Sex (F43:F44) ≠ Total of the education units from FS009 (N11) | AD18: Received a certificate | AI18: =IFERROR(IF(INDEX(StudCntC009,MATCH(AK18,CurrentListing,0))="","No Data",INDEX(StudCntC009,MATCH(AK18,CurrentListing,0))),"") ->  | AJ18: NA | AK18: RCY | AL18: Visual impairment | AP18: =IFERROR(IF(INDEX(StudCntC009,MATCH(AR18,CurrentListing,0))="","No Data",INDEX(StudCntC009,MATCH(AR18,CurrentListing,0))),"") ->  | AQ18: NA | AR18: VIY
A19: Reached maximum age | F19: =IFERROR(HYPERLINK("#'Select LEA'!"&ADDRESS(ROW(INDEX(CurrentListing,MATCH(AK19,CurrentListing,0),1)),25),AI19),HYPERLINK("#'Select LEA'!"&"$AA11",AI19)) ->  | G19: 0 | I19: Emotional disturbance | M19: =IFERROR(HYPERLINK("#'Select LEA'!"&ADDRESS(ROW(INDEX(CurrentListing,MATCH(AR19,CurrentListing,0),1)),25),AP19),HYPERLINK("#'Select LEA'!"&"$AA$11",AP19)) ->  | N19: 0 | Q19: M45 | R19: =IF(M45=0,"",IF(M45<>$Q$1,1,0)) ->  | S19: =M45 -> 0 | T19: English learner (LEP) status | U19: =IF($M$45="","",IF(M45<>$Q$1,"Calculated total of LEP status (M43:M44) ≠ Total of the education units from FS009 (N11)","")) -> Calculated total of LEP status (M43:M44) ≠ Total of the education units from FS009 (N11) | AD19: Reached maximum age | AI19: =IFERROR(IF(INDEX(StudCntC009,MATCH(AK19,CurrentListing,0))="","No Data",INDEX(StudCntC009,MATCH(AK19,CurrentListing,0))),"") ->  | AJ19: NA | AK19: RMAY | AL19: Emotional disturbance | AP19: =IFERROR(IF(INDEX(StudCntC009,MATCH(AR19,CurrentListing,0))="","No Data",INDEX(StudCntC009,MATCH(AR19,CurrentListing,0))),"") ->  | AQ19: NA | AR19: EMNY
A20: Died | F20: =IFERROR(HYPERLINK("#'Select LEA'!"&ADDRESS(ROW(INDEX(CurrentListing,MATCH(AK20,CurrentListing,0),1)),25),AI20),HYPERLINK("#'Select LEA'!"&"$AA11",AI20)) ->  | G20: 0 | I20: Orthopedic impairment | M20: =IFERROR(HYPERLINK("#'Select LEA'!"&ADDRESS(ROW(INDEX(CurrentListing,MATCH(AR20,CurrentListing,0),1)),25),AP20),HYPERLINK("#'Select LEA'!"&"$AA$11",AP20)) ->  | N20: 0 | Q20: M27 | R20: =IF(M27=0,"",IF(M27<>$Q$1,1,0)) ->  | S20: =M27 -> 0 | T20: Disability | U20: =IF($M$27="","",IF(M27<>$Q$1,"Calculated total of Disabilities (M15:M26) ≠ Total of the education units from FS009 (N11)","")) -> Calculated total of Disabilities (M15:M26) ≠ Total of the education units from FS009 (N11) | AD20: Died | AI20: =IFERROR(IF(INDEX(StudCntC009,MATCH(AK20,CurrentListing,0))="","No Data",INDEX(StudCntC009,MATCH(AK20,CurrentListing,0))),"") ->  | AJ20: NA | AK20: DY | AL20: Orthopedic impairment | AP20: =IFERROR(IF(INDEX(StudCntC009,MATCH(AR20,CurrentListing,0))="","No Data",INDEX(StudCntC009,MATCH(AR20,CurrentListing,0))),"") ->  | AQ20: NA | AR20: OIY
A21: Moved, known to be continuing | F21: =IFERROR(HYPERLINK("#'Select LEA'!"&ADDRESS(ROW(INDEX(CurrentListing,MATCH(AK21,CurrentListing,0),1)),25),AI21),HYPERLINK("#'Select LEA'!"&"$AA11",AI21)) ->  | G21: 0 | I21: Other health impairment | M21: =IFERROR(HYPERLINK("#'Select LEA'!"&ADDRESS(ROW(INDEX(CurrentListing,MATCH(AR21,CurrentListing,0),1)),25),AP21),HYPERLINK("#'Select LEA'!"&"$AA$11",AP21)) ->  | N21: 0 | AD21: Moved, known to be continuing | AI21: =IFERROR(IF(INDEX(StudCntC009,MATCH(AK21,CurrentListing,0))="","No Data",INDEX(StudCntC009,MATCH(AK21,CurrentListing,0))),"") ->  | AJ21: NA | AK21: MKCY | AL21: Other health impairment | AP21: =IFERROR(IF(INDEX(StudCntC009,MATCH(AR21,CurrentListing,0))="","No Data",INDEX(StudCntC009,MATCH(AR21,CurrentListing,0))),"") ->  | AQ21: NA | AR21: OHIY
A22: Dropped out | F22: =IFERROR(HYPERLINK("#'Select LEA'!"&ADDRESS(ROW(INDEX(CurrentListing,MATCH(AK22,CurrentListing,0),1)),25),AI22),HYPERLINK("#'Select LEA'!"&"$AA11",AI22)) ->  | G22: 0 | I22: Specific learning disability | M22: =IFERROR(HYPERLINK("#'Select LEA'!"&ADDRESS(ROW(INDEX(CurrentListing,MATCH(AR22,CurrentListing,0),1)),25),AP22),HYPERLINK("#'Select LEA'!"&"$AA$11",AP22)) ->  | N22: 0 | AD22: Dropped out | AI22: =IFERROR(IF(INDEX(StudCntC009,MATCH(AK22,CurrentListing,0))="","No Data",INDEX(StudCntC009,MATCH(AK22,CurrentListing,0))),"") ->  | AJ22: NA | AK22: DROPOUTY | AL22: Specific learning disability | AP22: =IFERROR(IF(INDEX(StudCntC009,MATCH(AR22,CurrentListing,0))="","No Data",INDEX(StudCntC009,MATCH(AR22,CurrentListing,0))),"") ->  | AQ22: NA | AR22: SLDY
A23: Calculated subtotal | F23: =IF(AND(F15="MC",F16="MC",F18="MC",F19="MC",F20="MC",F21="MC",F22="MC"),"",SUM(F15:F22)) -> 0 | G23: 0 | I23: Deaf-blindness | M23: =IFERROR(HYPERLINK("#'Select LEA'!"&ADDRESS(ROW(INDEX(CurrentListing,MATCH(AR23,CurrentListing,0),1)),25),AP23),HYPERLINK("#'Select LEA'!"&"$AA$11",AP23)) ->  | N23: 0 | AD23: Calculated Subtotal | AI23: =IFERROR(IF(INDEX(StudCntC009,MATCH(AK23,CurrentListing,0))="","No Data",INDEX(StudCntC009,MATCH(AK23,CurrentListing,0))),"") ->  | AJ23: NA | AK23: Y | AL23: Deaf–blindness | AP23: =IFERROR(IF(INDEX(StudCntC009,MATCH(AR23,CurrentListing,0))="","No Data",INDEX(StudCntC009,MATCH(AR23,CurrentListing,0))),"") ->  | AQ23: NA | AR23: DBY
I24: Multiple disabilities | M24: =IFERROR(HYPERLINK("#'Select LEA'!"&ADDRESS(ROW(INDEX(CurrentListing,MATCH(AR24,CurrentListing,0),1)),25),AP24),HYPERLINK("#'Select LEA'!"&"$AA$11",AP24)) ->  | N24: 0 | W24: =IFERROR(IF(INDEX(FTE_C070,MATCH(F15,CurrentListing,0))="","No Data",INDEX(FTE_C070,MATCH(F15,CurrentListing,0))),"MC") | AL24: Multiple disabilities | AP24: =IFERROR(IF(INDEX(StudCntC009,MATCH(AR24,CurrentListing,0))="","No Data",INDEX(StudCntC009,MATCH(AR24,CurrentListing,0))),"") ->  | AQ24: =IFERROR(IF($AP$27<>0,AP24/$AP$27,0),"NA") -> NA | AR24: MDY
I25: Autism | M25: =IFERROR(HYPERLINK("#'Select LEA'!"&ADDRESS(ROW(INDEX(CurrentListing,MATCH(AR25,CurrentListing,0),1)),25),AP25),HYPERLINK("#'Select LEA'!"&"$AA$11",AP25)) ->  | N25: 0 | AL25: Autism | AP25: =IFERROR(IF(INDEX(StudCntC009,MATCH(AR25,CurrentListing,0))="","No Data",INDEX(StudCntC009,MATCH(AR25,CurrentListing,0))),"") ->  | AQ25: =IFERROR(IF($AP$27<>0,AP25/$AP$27,0),"NA") -> NA | AR25: AUTY
I26: Traumatic brain injury | M26: =IFERROR(HYPERLINK("#'Select LEA'!"&ADDRESS(ROW(INDEX(CurrentListing,MATCH(AR26,CurrentListing,0),1)),25),AP26),HYPERLINK("#'Select LEA'!"&"$AA$11",AP26)) ->  | N26: 0 | W26: =IFERROR(VLOOKUP(AK15,CHOOSE({1,2},RaceEthnicity&Gender&Disability&Age&LEPStatus&ExitReason&Total,StCount),2,0), "No Data") | AL26: Traumatic brain injury | AP26: =IFERROR(IF(INDEX(StudCntC009,MATCH(AR26,CurrentListing,0))="","No Data",INDEX(StudCntC009,MATCH(AR26,CurrentListing,0))),"") ->  | AQ26: =IFERROR(IF($AP$27<>0,AP26/$AP$27,0),"NA") -> NA | AR26: TBIY
I27: Calculated subtotal | M27: =IF(AND(M15="MC",M16="MC",M17="MC",M18="MC",M19="MC",M20="MC",M21="MC",M22="MC",M23="MC",M24="MC",M25="MC",M26="MC"),"",SUM(M15:M26)) -> 0 | N27: 0 | AL27: Calculated Subtotal | AP27: =IFERROR(IF(INDEX(StudCntC009,MATCH(AR27,CurrentListing,0))="","No Data",INDEX(StudCntC009,MATCH(AR27,CurrentListing,0))),"") ->  | AQ27: =IFERROR(IF($AP$27<>0,AP27/$AP$27,0),"NA") -> NA | AR27: Y
A29: Children with disabilities (IDEA) exiting special education for all disabilities, by racial ethnic | I29: Children with disabilities (IDEA) exiting special education for all disabilities, by age | AL29: Student counts for Children with Disabilities (IDEA) exiting special education for all disabilities, by disability category
A30: Racial ethnic | F30: Student count | G30: Percentage | I30: Age | M30: Student count | N30: Percentage | AD30: Student counts for Children with Disabilities (IDEA) exiting special education for all disabilities, by disability category | AL30: Age | AP30: Student count | AQ30: Percentage
A31: Hispanic/Latino | F31: =IFERROR(HYPERLINK("#'Select LEA'!"&ADDRESS(ROW(INDEX(CurrentListing,MATCH(AK32,CurrentListing,0),1)),25),AI32),HYPERLINK("#'Select LEA'!"&"$AA$11",AI32)) ->  | G31: =IFERROR(IF($F$38<>0,F31/$F$38,0),"") -> 0 | I31: 14 years old | M31: =IFERROR(HYPERLINK("#'Select LEA'!"&ADDRESS(ROW(INDEX(CurrentListing,MATCH(AR31,CurrentListing,0),1)),25),AP31),HYPERLINK("#'Select LEA'!"&"$AA$11",AP31)) ->  | N31: =IFERROR(IF($M$39<>0,M31/$M$39,0),"") -> 0 | AD31: Race/Ethnicity | AI31: Student count | AJ31: Percentage | AL31: 14 years old | AP31: =IFERROR(IF(INDEX(StudCntC009,MATCH(AR31,CurrentListing,0))="","No Data",INDEX(StudCntC009,MATCH(AR31,CurrentListing,0))),"") ->  | AQ31: =IFERROR(IF($AP$39<>0,AP31/$AP$39,0),"NA") -> NA | AR31: 14Y
A32: American Indian or Alaska Native | F32: =IFERROR(HYPERLINK("#'Select LEA'!"&ADDRESS(ROW(INDEX(CurrentListing,MATCH(AK33,CurrentListing,0),1)),25),AI33),HYPERLINK("#'Select LEA'!"&"$AA$11",AI33)) ->  | G32: 0 | I32: 15 years old | M32: =IFERROR(HYPERLINK("#'Select LEA'!"&ADDRESS(ROW(INDEX(CurrentListing,MATCH(AR32,CurrentListing,0),1)),25),AP32),HYPERLINK("#'Select LEA'!"&"$AA$11",AP32)) ->  | N32: 0 | AD32: Hispanic/Latino | AI32: =IFERROR(IF(INDEX(StudCntC009,MATCH(AK32,CurrentListing,0))="","No Data",INDEX(StudCntC009,MATCH(AK32,CurrentListing,0))),"") ->  | AJ32: =IFERROR(IF($AI$39<>0,AI32/$AI$39,0),"NA") -> NA | AK32: HI7Y | AL32: 15 years old | AP32: =IFERROR(IF(INDEX(StudCntC009,MATCH(AR32,CurrentListing,0))="","No Data",INDEX(StudCntC009,MATCH(AR32,CurrentListing,0))),"") ->  | AQ32: =IFERROR(IF($AP$39<>0,AP32/$AP$39,0),"NA") -> NA | AR32: 15Y
A33: Asian | F33: =IFERROR(HYPERLINK("#'Select LEA'!"&ADDRESS(ROW(INDEX(CurrentListing,MATCH(AK34,CurrentListing,0),1)),25),AI34),HYPERLINK("#'Select LEA'!"&"$AA$11",AI34)) ->  | G33: 0 | I33: 16 years old | M33: =IFERROR(HYPERLINK("#'Select LEA'!"&ADDRESS(ROW(INDEX(CurrentListing,MATCH(AR33,CurrentListing,0),1)),25),AP33),HYPERLINK("#'Select LEA'!"&"$AA$11",AP33)) ->  | N33: 0 | AD33: American Indian or Alaska Native | AI33: =IFERROR(IF(INDEX(StudCntC009,MATCH(AK33,CurrentListing,0))="","No Data",INDEX(StudCntC009,MATCH(AK33,CurrentListing,0))),"") ->  | AJ33: NA | AK33: AM7Y | AL33: 16 years old | AP33: =IFERROR(IF(INDEX(StudCntC009,MATCH(AR33,CurrentListing,0))="","No Data",INDEX(StudCntC009,MATCH(AR33,CurrentListing,0))),"") ->  | AQ33: NA | AR33: 16Y
A34: Black or African American | F34: =IFERROR(HYPERLINK("#'Select LEA'!"&ADDRESS(ROW(INDEX(CurrentListing,MATCH(AK35,CurrentListing,0),1)),25),AI35),HYPERLINK("#'Select LEA'!"&"$AA$11",AI35)) ->  | G34: 0 | I34: 17 years old | M34: =IFERROR(HYPERLINK("#'Select LEA'!"&ADDRESS(ROW(INDEX(CurrentListing,MATCH(AR34,CurrentListing,0),1)),25),AP34),HYPERLINK("#'Select LEA'!"&"$AA$11",AP34)) ->  | N34: 0 | AD34: Asian | AI34: =IFERROR(IF(INDEX(StudCntC009,MATCH(AK34,CurrentListing,0))="","No Data",INDEX(StudCntC009,MATCH(AK34,CurrentListing,0))),"") ->  | AJ34: NA | AK34: AS7Y | AL34: 17 years old | AP34: =IFERROR(IF(INDEX(StudCntC009,MATCH(AR34,CurrentListing,0))="","No Data",INDEX(StudCntC009,MATCH(AR34,CurrentListing,0))),"") ->  | AQ34: NA | AR34: 17Y
A35: Native Hawaiian or Other Pacific Islander | F35: =IFERROR(HYPERLINK("#'Select LEA'!"&ADDRESS(ROW(INDEX(CurrentListing,MATCH(AK36,CurrentListing,0),1)),25),AI36),HYPERLINK("#'Select LEA'!"&"$AA$11",AI36)) ->  | G35: 0 | I35: 18 years old | M35: =IFERROR(HYPERLINK("#'Select LEA'!"&ADDRESS(ROW(INDEX(CurrentListing,MATCH(AR35,CurrentListing,0),1)),25),AP35),HYPERLINK("#'Select LEA'!"&"$AA$11",AP35)) ->  | N35: 0 | AD35: Black or African American | AI35: =IFERROR(IF(INDEX(StudCntC009,MATCH(AK35,CurrentListing,0))="","No Data",INDEX(StudCntC009,MATCH(AK35,CurrentListing,0))),"") ->  | AJ35: NA | AK35: BL7Y | AL35: 18 years old | AP35: =IFERROR(IF(INDEX(StudCntC009,MATCH(AR35,CurrentListing,0))="","No Data",INDEX(StudCntC009,MATCH(AR35,CurrentListing,0))),"") ->  | AQ35: NA | AR35: 18Y
A36: White | F36: =IFERROR(HYPERLINK("#'Select LEA'!"&ADDRESS(ROW(INDEX(CurrentListing,MATCH(AK37,CurrentListing,0),1)),25),AI37),HYPERLINK("#'Select LEA'!"&"$AA$11",AI37)) ->  | G36: 0 | I36: 19 years old | M36: =IFERROR(HYPERLINK("#'Select LEA'!"&ADDRESS(ROW(INDEX(CurrentListing,MATCH(AR36,CurrentListing,0),1)),25),AP36),HYPERLINK("#'Select LEA'!"&"$AA$11",AP36)) ->  | N36: 0 | AD36: Native Hawaiian or Other Pacific Islander | AI36: =IFERROR(IF(INDEX(StudCntC009,MATCH(AK36,CurrentListing,0))="","No Data",INDEX(StudCntC009,MATCH(AK36,CurrentListing,0))),"") ->  | AJ36: NA | AK36: PI7Y | AL36: 19 years old | AP36: =IFERROR(IF(INDEX(StudCntC009,MATCH(AR36,CurrentListing,0))="","No Data",INDEX(StudCntC009,MATCH(AR36,CurrentListing,0))),"") ->  | AQ36: NA | AR36: 19Y
A37: Two or more races | F37: =IFERROR(HYPERLINK("#'Select LEA'!"&ADDRESS(ROW(INDEX(CurrentListing,MATCH(AK38,CurrentListing,0),1)),25),AI38),HYPERLINK("#'Select LEA'!"&"$AA$11",AI38)) ->  | G37: 0 | I37: 20 years old | M37: =IFERROR(HYPERLINK("#'Select LEA'!"&ADDRESS(ROW(INDEX(CurrentListing,MATCH(AR37,CurrentListing,0),1)),25),AP37),HYPERLINK("#'Select LEA'!"&"$AA$11",AP37)) ->  | N37: 0 | AD37: White | AI37: =IFERROR(IF(INDEX(StudCntC009,MATCH(AK37,CurrentListing,0))="","No Data",INDEX(StudCntC009,MATCH(AK37,CurrentListing,0))),"") ->  | AJ37: NA | AK37: WH7Y | AL37: 20 years old | AP37: =IFERROR(IF(INDEX(StudCntC009,MATCH(AR37,CurrentListing,0))="","No Data",INDEX(StudCntC009,MATCH(AR37,CurrentListing,0))),"") ->  | AQ37: NA | AR37: 20Y
A38: Calculated subtotal | F38: =IF(AND(F31="MC",F32="MC",F33="MC",F34="MC",F35="MC",F36="MC",F37="MC"),"",SUM(F31:F37)) -> 0 | G38: 0 | I38: 21 years old | M38: =IFERROR(HYPERLINK("#'Select LEA'!"&ADDRESS(ROW(INDEX(CurrentListing,MATCH(AR38,CurrentListing,0),1)),25),AP38),HYPERLINK("#'Select LEA'!"&"$AA$11",AP38)) ->  | N38: 0 | AD38: Two or more races | AI38: =IFERROR(IF(INDEX(StudCntC009,MATCH(AK38,CurrentListing,0))="","No Data",INDEX(StudCntC009,MATCH(AK38,CurrentListing,0))),"") ->  | AJ38: NA | AK38: MU7Y | AL38: 21 years old | AP38: =IFERROR(IF(INDEX(StudCntC009,MATCH(AR38,CurrentListing,0))="","No Data",INDEX(StudCntC009,MATCH(AR38,CurrentListing,0))),"") ->  | AQ38: NA | AR38: 21Y
I39: Calculated subtotal | M39: =IF(AND(F31="MC",F32="MC",F33="MC",F34="MC",F35="MC",F36="MC",F37="MC"),"",SUM(M31:M38)) -> 0 | N39: 0 | AD39: Calculated Subtotal | AI39: =IFERROR(IF(INDEX(StudCntC009,MATCH(AK39,CurrentListing,0))="","No Data",INDEX(StudCntC009,MATCH(AK39,CurrentListing,0))),"") ->  | AJ39: NA | AK39: Y | AL39: Calculated Subtotal | AP39: =IFERROR(IF(INDEX(StudCntC009,MATCH(AR39,CurrentListing,0))="","No Data",INDEX(StudCntC009,MATCH(AR39,CurrentListing,0))),"") ->  | AQ39: NA | AR39: Y
A41: Children with disabilities (IDEA) exiting special education for all disabilities, by sex | I41: Children with disabilities (IDEA) exiting special education for all disabilities, by English learner (LEP) status | AL41: Student counts for Children with Disabilities (IDEA) exiting special education for all disabilities, by disability category
A42: Sex | F42: Student count | G42: Percentage | I42: LEP status | M42: Student count | N42: Percentage | AD42: Student counts for Children with Disabilities (IDEA) exiting special education for all disabilities, by disability category | AL42: LEP Status | AP42: Student count | AQ42: Percentage
A43: Male | F43: =IFERROR(HYPERLINK("#'Select LEA'!"&ADDRESS(ROW(INDEX(CurrentListing,MATCH(AK44,CurrentListing,0),1)),25),AI44),HYPERLINK("#'Select LEA'!"&"$AA$11",AI44)) ->  | G43: =IFERROR(IF($F$45<>0,F43/$F$45,0),"") -> 0 | I43: English learner (LEP) | M43: =IFERROR(HYPERLINK("#'Select LEA'!"&ADDRESS(ROW(INDEX(CurrentListing,MATCH(AR43,CurrentListing,0),1)),25),AP43),HYPERLINK("#'Select LEA'!"&"$AA$11",AP43)) ->  | N43: =IFERROR(IF($M$45<>0,M43/$M$45,0),"") -> 0 | AD43: Gender | AI43: Student count | AJ43: Percentage | AL43: LEP – Limited English proficient (LEP) Student | AP43: =IFERROR(IF(INDEX(StudCntC009,MATCH(AR43,CurrentListing,0))="","No Data",INDEX(StudCntC009,MATCH(AR43,CurrentListing,0))),"") ->  | AQ43: =IFERROR(IF($AP$45<>0,AP43/$AP$45,0),"NA") -> NA | AR43: LEPY
A44: Female | F44: =IFERROR(HYPERLINK("#'Select LEA'!"&ADDRESS(ROW(INDEX(CurrentListing,MATCH(AK45,CurrentListing,0),1)),25),AI45),HYPERLINK("#'Select LEA'!"&"$AA$11",AI45)) ->  | G44: =IFERROR(IF($F$45<>0,F44/$F$45,0),"") -> 0 | I44: Non-English learner (NLEP) | M44: =IFERROR(HYPERLINK("#'Select LEA'!"&ADDRESS(ROW(INDEX(CurrentListing,MATCH(AR44,CurrentListing,0),1)),25),AP44),HYPERLINK("#'Select LEA'!"&"$AA$11",AP44)) ->  | N44: =IFERROR(IF($M$45<>0,M44/$M$45,0),"") -> 0 | AD44: Male | AI44: =IFERROR(IF(INDEX(StudCntC009,MATCH(AK44,CurrentListing,0))="","No Data",INDEX(StudCntC009,MATCH(AK44,CurrentListing,0))),"") ->  | AJ44: =IFERROR(IF($AI$46<>0,AI44/$AI$46,0),"NA") -> NA | AK44: MY | AL44: NLEP – Non–Limited English proficient (Non–LEP) Student | AP44: =IFERROR(IF(INDEX(StudCntC009,MATCH(AR44,CurrentListing,0))="","No Data",INDEX(StudCntC009,MATCH(AR44,CurrentListing,0))),"") ->  | AQ44: =IFERROR(IF($AP$45<>0,AP44/$AP$45,0),"NA") -> NA | AR44: NLEPY
A45: Calculated subtotal | F45: =IF(AND(F43="MC",F44="MC"),"",SUM(F43:F44)) -> 0 | G45: =IFERROR(IF($F$45<>0,F45/$F$45,0),"") -> 0 | I45: Calculated subtotal | M45: =IF(AND(F43="MC",F44="MC"),"",SUM(M43:M44)) -> 0 | N45: =IFERROR(IF($M$45<>0,M45/$M$45,0),"") -> 0 | AD45: Female | AI45: =IFERROR(IF(INDEX(StudCntC009,MATCH(AK45,CurrentListing,0))="","No Data",INDEX(StudCntC009,MATCH(AK45,CurrentListing,0))),"") ->  | AJ45: =IFERROR(IF($AI$46<>0,AI45/$AI$46,0),"NA") -> NA | AK45: FY | AL45: Calculated Subtotal | AP45: =IFERROR(IF(INDEX(StudCntC009,MATCH(AR45,CurrentListing,0))="","No Data",INDEX(StudCntC009,MATCH(AR45,CurrentListing,0))),"") ->  | AQ45: =IFERROR(IF($AP$45<>0,AP45/$AP$45,0),"NA") -> NA | AR45: Y
AD46: Calculated Subtotal | AI46: =IFERROR(IF(INDEX(StudCntC009,MATCH(AK46,CurrentListing,0))="","No Data",INDEX(StudCntC009,MATCH(AK46,CurrentListing,0))),"") ->  | AJ46: =IFERROR(IF($AI$46<>0,AI46/$AI$46,0),"NA") -> NA | AK46: Y
A50: End of worksheet

Sheet Category Sets A-D
A1: ="IDEA LEA Exiting Data for School Year "&'Exiting (LEA FS009)'!E12&" - "&'Select LEA'!F6 -> IDEA LEA Exiting Data for School Year - | K1: End of worsheet | Q1: =Subtotals!Q1 ->  | R1: =Subtotals!R1 -> Y | AB1: =IFERROR(VLOOKUP(AA14,CHOOSE({1,2},RaceEthnicity&Gender&Disability&Age&LEPStatus&ExitReason&Total,StCount),2,0), "No Data")
F3: Category set | J3: Calculated category set total | AB3: =IFERROR(IF(INDEX(StudCntC009,MATCH(AC21,CurrentListing,0))="","No Data",INDEX(StudCntC009,MATCH(AC21,CurrentListing,0))),"MC")
F4: A - Basis of exit, disability category, and age | J4: =IF(AND($B$22="MC",$C$22="MC",$D$22="MC",$E$22="MC",$F$22="MC",$G$22="MC",$H$22="MC",$I$22="MC"),"",J22) -> 
A5: =" LEA name: "&'Select LEA'!$F$6 -> LEA name: | F5: B - Basis of exit and racial ethnic | J5: =IF(AND($B$47="MC",$C$47="MC",$D$47="MC",$E$47="MC",$F$47="MC",$G$47="MC",$H$47="MC"),"",I47) -> 
F6: C - Basis of exit and sex | J6: =IF(AND($B$72="MC",$C$72="MC"),"",D72) -> 
A7: =" LEA identifier: "&'Select LEA'!$F$7 -> LEA identifier: | F7: D - Basis of exit and English learner (LEP) status | J7: =IF(AND($B$97="MC",$C$97="MC"),"",D97) -> 
F9: Total of the education unit | J9: =IFERROR(HYPERLINK("#'Select LEA'!"&ADDRESS(ROW(INDEX(CurrentListing,MATCH(R1,CurrentListing,0),1)),25),Q1),HYPERLINK("#'Select LEA'!"&"$AA$10",Q1)) -> 
A11: Category set A – Children with disabilities (IDEA) exiting special education, by age and basis of exit | L11: Note: In September 2018, formulas and cell references below were adjusted to include the new basis of exit permitted value "Graduated with an alternate diploma" for school year 2017-2018 IDEA exit data. | AB11: Category Set A - Student counts for Children with Disabilities (IDEA) exiting special education for all disabilities, by basis of exit and age
A12: Student count by basis of exit | B12: Age | AB12: Student counts by basis of exit | AC12: All Disabilities
B13: 14 | C13: 15 | D13: 16 | E13: 17 | F13: 18 | G13: 19 | H13: 20 | I13: 21 | J13: Total | L13: Link | M13: Triggered? | N13: Count | O13: Category | P13: Error Messages | AC13: 14 | AD13: 15 | AE13: 16 | AF13: 17 | AG13: 18 | AH13: 19 | AI13: 20 | AJ13: 21 | AK13: Total
A14: Transferred to regular education | B14: =IF(AND($B$22="",$C$22="",$D$22="",$E$22="",$F$22="",$G$22="",$H$22="",$I$22=""),"",HYPERLINK("#'Category Set A By Age'!"&CELL("Address",N19),'Category Set A by Age'!N19)) ->  | C14: =IF(AND($B$22="",$C$22="",$D$22="",$E$22="",$F$22="",$G$22="",$H$22="",$I$22=""),"",HYPERLINK("#'Category Set A By Age'!"&CELL("Address",N44),'Category Set A by Age'!N44)) ->  | D14: =IF(AND($B$22="",$C$22="",$D$22="",$E$22="",$F$22="",$G$22="",$H$22="",$I$22=""),"",HYPERLINK("#'Category Set A By Age'!"&CELL("Address",N69),'Category Set A by Age'!N69)) ->  | E14: =IF(AND($B$22="",$C$22="",$D$22="",$E$22="",$F$22="",$G$22="",$H$22="",$I$22=""),"",HYPERLINK("#'Category Set A By Age'!"&CELL("Address",N94),'Category Set A by Age'!N94)) ->  | F14: =IF(AND($B$22="",$C$22="",$D$22="",$E$22="",$F$22="",$G$22="",$H$22="",$I$22=""),"",HYPERLINK("#'Category Set A By Age'!"&CELL("Address",N119),'Category Set A by Age'!N119)) ->  | G14: =IF(AND($B$22="",$C$22="",$D$22="",$E$22="",$F$22="",$G$22="",$H$22="",$I$22=""),"",HYPERLINK("#'Category Set A By Age'!"&CELL("Address",N144),'Category Set A by Age'!N144)) ->  | H14: =IF(AND($B$22="",$C$22="",$D$22="",$E$22="",$F$22="",$G$22="",$H$22="",$I$22=""),"",HYPERLINK("#'Category Set A By Age'!"&CELL("Address",N169),'Category Set A by Age'!N169)) ->  | I14: =IF(AND($B$22="",$C$22="",$D$22="",$E$22="",$F$22="",$G$22="",$H$22="",$I$22=""),"",HYPERLINK("#'Category Set A By Age'!"&CELL("Address",N194),'Category Set A by Age'!N194)) ->  | J14: =IFERROR(HYPERLINK("#'Select LEA'!"&ADDRESS(ROW(INDEX(CurrentListing,MATCH(AA14,CurrentListing,0),1)),25),AK14),HYPERLINK("#'Select LEA'!"&"$AA$10",AK14)) ->  | L14: J14 | M14: =IF(OR($J$14="",$J$14="-9"),0,IF(SUM(B14:I14)<>$J$14,1,0)) -> 0 | N14: =J14 ->  | O14: A | P14: =IF(OR($J$14="",$J$14="No Data"),"",IF(SUM(B14:I14)<>$J$14,"Sum of transferred to regular education for ages 14 through 21 (B14:I14) ≠ Subtotal (J14)","")) ->  | AA14: TRANY | AB14: Transferred to regular education | AK14: =IFERROR(IF(INDEX(StudCntC009,MATCH(AA14,CurrentListing,0))="","No Data",INDEX(StudCntC009,MATCH(AA14,CurrentListing,0))),"") -> 
A15: Graduated with regular high school diploma | B15: =IF(AND($B$22="",$C$22="",$D$22="",$E$22="",$F$22="",$G$22="",$H$22="",$I$22=""),"",HYPERLINK("#'Category Set A By Age'!"&CELL("Address",N20),'Category Set A by Age'!N20)) ->  | C15: =IF(AND($B$22="",$C$22="",$D$22="",$E$22="",$F$22="",$G$22="",$H$22="",$I$22=""),"",HYPERLINK("#'Category Set A By Age'!"&CELL("Address",N45),'Category Set A by Age'!N45)) ->  | D15: =IF(AND($B$22="",$C$22="",$D$22="",$E$22="",$F$22="",$G$22="",$H$22="",$I$22=""),"",HYPERLINK("#'Category Set A By Age'!"&CELL("Address",N70),'Category Set A by Age'!N70)) ->  | E15: =IF(AND($B$22="",$C$22="",$D$22="",$E$22="",$F$22="",$G$22="",$H$22="",$I$22=""),"",HYPERLINK("#'Category Set A By Age'!"&CELL("Address",N95),'Category Set A by Age'!N95)) ->  | F15: =IF(AND($B$22="",$C$22="",$D$22="",$E$22="",$F$22="",$G$22="",$H$22="",$I$22=""),"",HYPERLINK("#'Category Set A By Age'!"&CELL("Address",N120),'Category Set A by Age'!N120)) ->  | G15: =IF(AND($B$22="",$C$22="",$D$22="",$E$22="",$F$22="",$G$22="",$H$22="",$I$22=""),"",HYPERLINK("#'Category Set A By Age'!"&CELL("Address",N145),'Category Set A by Age'!N145)) ->  | H15: =IF(AND($B$22="",$C$22="",$D$22="",$E$22="",$F$22="",$G$22="",$H$22="",$I$22=""),"",HYPERLINK("#'Category Set A By Age'!"&CELL("Address",N170),'Category Set A by Age'!N170)) ->  | I15: =IF(AND($B$22="",$C$22="",$D$22="",$E$22="",$F$22="",$G$22="",$H$22="",$I$22=""),"",HYPERLINK("#'Category Set A By Age'!"&CELL("Address",N195),'Category Set A by Age'!N195)) ->  | J15: =IFERROR(HYPERLINK("#'Select LEA'!"&ADDRESS(ROW(INDEX(CurrentListing,MATCH(AA15,CurrentListing,0),1)),25),AK15),HYPERLINK("#'Select LEA'!"&"$AA$10",AK15)) ->  | L15: J15 | M15: =IF(OR($J$15="",$J$15="-9"),0,IF(SUM(B15:I15)<>$J$15,1,0)) -> 0 | N15: =J15 ->  | O15: A | P15: =IF(OR($J$15="",$J$15="No Data"),"",IF(SUM(B15:I15)<>$J$15,"Sum of graduated with high school diploma for ages 14 through 21 (B15:I15) ≠ Subtotal (J15)","")) ->  | AA15: GHSY | AB15: Graduated with regular high school diploma
A16: Graduated with an alternate diploma | B16: =IF(AND($B$22="",$C$22="",$D$22="",$E$22="",$F$22="",$G$22="",$H$22="",$I$22=""),"",HYPERLINK("#'Category Set A By Age'!"&CELL("Address",N21),'Category Set A by Age'!N21)) ->  | C16: =IF(AND($B$22="",$C$22="",$D$22="",$E$22="",$F$22="",$G$22="",$H$22="",$I$22=""),"",HYPERLINK("#'Category Set A By Age'!"&CELL("Address",N46),'Category Set A by Age'!N46)) ->  | D16: =IF(AND($B$22="",$C$22="",$D$22="",$E$22="",$F$22="",$G$22="",$H$22="",$I$22=""),"",HYPERLINK("#'Category Set A By Age'!"&CELL("Address",N71),'Category Set A by Age'!N71)) ->  | E16: =IF(AND($B$22="",$C$22="",$D$22="",$E$22="",$F$22="",$G$22="",$H$22="",$I$22=""),"",HYPERLINK("#'Category Set A By Age'!"&CELL("Address",N96),'Category Set A by Age'!N96)) ->  | F16: =IF(AND($B$22="",$C$22="",$D$22="",$E$22="",$F$22="",$G$22="",$H$22="",$I$22=""),"",HYPERLINK("#'Category Set A By Age'!"&CELL("Address",N121),'Category Set A by Age'!N121)) ->  | G16: =IF(AND($B$22="",$C$22="",$D$22="",$E$22="",$F$22="",$G$22="",$H$22="",$I$22=""),"",HYPERLINK("#'Category Set A By Age'!"&CELL("Address",N146),'Category Set A by Age'!N146)) ->  | H16: =IF(AND($B$22="",$C$22="",$D$22="",$E$22="",$F$22="",$G$22="",$H$22="",$I$22=""),"",HYPERLINK("#'Category Set A By Age'!"&CELL("Address",N171),'Category Set A by Age'!N171)) ->  | I16: =IF(AND($B$22="",$C$22="",$D$22="",$E$22="",$F$22="",$G$22="",$H$22="",$I$22=""),"",HYPERLINK("#'Category Set A By Age'!"&CELL("Address",N196),'Category Set A by Age'!N196)) ->  | J16: =IFERROR(HYPERLINK("#'Select LEA'!"&ADDRESS(ROW(INDEX(CurrentListing,MATCH(AA16,CurrentListing,0),1)),25),AK16),HYPERLINK("#'Select LEA'!"&"$AA$10",AK16)) ->  | L16: J16 | M16: =IF(OR($J$16="",$J$16="-9"),0,IF(SUM(B16:I16)<>$J$16,1,0)) -> 0 | N16: =J16 ->  | O16: A | P16: =IF(OR($J$16="",$J$16="No Data"),"",IF(SUM(B16:I16)<>$J$16,"Sum of graduated with an alternate diploma for ages 14 through 21 (B16:I16 ) ≠ Subtotal (J16)","")) ->  | AA16: GRADALTDPLY | AB16: Graduated with an alternate diploma
A17: Received a certificate | B17: =IF(AND($B$22="",$C$22="",$D$22="",$E$22="",$F$22="",$G$22="",$H$22="",$I$22=""),"",HYPERLINK("#'Category Set A By Age'!"&CELL("Address",N22),'Category Set A by Age'!N22)) ->  | C17: =IF(AND($B$22="",$C$22="",$D$22="",$E$22="",$F$22="",$G$22="",$H$22="",$I$22=""),"",HYPERLINK("#'Category Set A By Age'!"&CELL("Address",N47),'Category Set A by Age'!N47)) ->  | D17: =IF(AND($B$22="",$C$22="",$D$22="",$E$22="",$F$22="",$G$22="",$H$22="",$I$22=""),"",HYPERLINK("#'Category Set A By Age'!"&CELL("Address",N72),'Category Set A by Age'!N72)) ->  | E17: =IF(AND($B$22="",$C$22="",$D$22="",$E$22="",$F$22="",$G$22="",$H$22="",$I$22=""),"",HYPERLINK("#'Category Set A By Age'!"&CELL("Address",N97),'Category Set A by Age'!N97)) ->  | F17: =IF(AND($B$22="",$C$22="",$D$22="",$E$22="",$F$22="",$G$22="",$H$22="",$I$22=""),"",HYPERLINK("#'Category Set A By Age'!"&CELL("Address",N122),'Category Set A by Age'!N122)) ->  | G17: =IF(AND($B$22="",$C$22="",$D$22="",$E$22="",$F$22="",$G$22="",$H$22="",$I$22=""),"",HYPERLINK("#'Category Set A By Age'!"&CELL("Address",N147),'Category Set A by Age'!N147)) ->  | H17: =IF(AND($B$22="",$C$22="",$D$22="",$E$22="",$F$22="",$G$22="",$H$22="",$I$22=""),"",HYPERLINK("#'Category Set A By Age'!"&CELL("Address",N172),'Category Set A by Age'!N172)) ->  | I17: =IF(AND($B$22="",$C$22="",$D$22="",$E$22="",$F$22="",$G$22="",$H$22="",$I$22=""),"",HYPERLINK("#'Category Set A By Age'!"&CELL("Address",N197),'Category Set A by Age'!N197)) ->  | J17: =IFERROR(HYPERLINK("#'Select LEA'!"&ADDRESS(ROW(INDEX(CurrentListing,MATCH(AA17,CurrentListing,0),1)),25),AK17),HYPERLINK("#'Select LEA'!"&"$AA$10",AK17)) ->  | L17: J17 | M17: =IF(OR($J$17="",$J$17="-9"),0,IF(SUM(B17:I17)<>$J$17,1,0)) -> 0 | O17: A | P17: =IF(OR($J$17="",$J$17="No Data"),"",IF(SUM(B17:I17)<>$J$17,"Sum of received a certificate for ages 14 through 21 (B17:I17) ≠ Subtotal (J17)","")) ->  | AA17: RCY | AB17: Received a certificate
A18: Reached maximum age | F18: =IF(AND($B$22="",$C$22="",$D$22="",$E$22="",$F$22="",$G$22="",$H$22="",$I$22=""),"",HYPERLINK("#'Category Set A By Age'!"&CELL("Address",N123),'Category Set A by Age'!N123)) ->  | G18: =IF(AND($B$22="",$C$22="",$D$22="",$E$22="",$F$22="",$G$22="",$H$22="",$I$22=""),"",HYPERLINK("#'Category Set A By Age'!"&CELL("Address",N148),'Category Set A by Age'!N148)) ->  | H18: =IF(AND($B$22="",$C$22="",$D$22="",$E$22="",$F$22="",$G$22="",$H$22="",$I$22=""),"",HYPERLINK("#'Category Set A By Age'!"&CELL("Address",N173),'Category Set A by Age'!N173)) ->  | I18: =IF(AND($B$22="",$C$22="",$D$22="",$E$22="",$F$22="",$G$22="",$H$22="",$I$22=""),"",HYPERLINK("#'Category Set A By Age'!"&CELL("Address",N198),'Category Set A by Age'!N198)) ->  | J18: =IFERROR(HYPERLINK("#'Select LEA'!"&ADDRESS(ROW(INDEX(CurrentListing,MATCH(AA18,CurrentListing,0),1)),25),AK18),HYPERLINK("#'Select LEA'!"&"$AA$10",AK18)) ->  | L18: J18 | M18: =IF(OR($J$18="",$J$18="-9"),0,IF(SUM(B18:I18)<>$J$18,1,0)) -> 0 | O18: A | P18: =IF(OR($J$18="",$J$18="No Data"),"",IF(SUM(B18:I18)<>$J$18,"Sum of reached maximum age for ages 18 through 21 (B18:I18) ≠ Subtotal (J18)","")) ->  | AA18: RMAY | AB18: Reached maximum age
A19: Died | B19: =IF(AND($B$22="",$C$22="",$D$22="",$E$22="",$F$22="",$G$22="",$H$22="",$I$22=""),"",HYPERLINK("#'Category Set A By Age'!"&CELL("Address",N24),'Category Set A by Age'!N24)) ->  | C19: =IF(AND($B$22="",$C$22="",$D$22="",$E$22="",$F$22="",$G$22="",$H$22="",$I$22=""),"",HYPERLINK("#'Category Set A By Age'!"&CELL("Address",N49),'Category Set A by Age'!N49)) ->  | D19: =IF(AND($B$22="",$C$22="",$D$22="",$E$22="",$F$22="",$G$22="",$H$22="",$I$22=""),"",HYPERLINK("#'Category Set A By Age'!"&CELL("Address",N74),'Category Set A by Age'!N74)) ->  | E19: =IF(AND($B$22="",$C$22="",$D$22="",$E$22="",$F$22="",$G$22="",$H$22="",$I$22=""),"",HYPERLINK("#'Category Set A By Age'!"&CELL("Address",N99),'Category Set A by Age'!N99)) ->  | F19: =IF(AND($B$22="",$C$22="",$D$22="",$E$22="",$F$22="",$G$22="",$H$22="",$I$22=""),"",HYPERLINK("#'Category Set A By Age'!"&CELL("Address",N124),'Category Set A by Age'!N124)) ->  | G19: =IF(AND($B$22="",$C$22="",$D$22="",$E$22="",$F$22="",$G$22="",$H$22="",$I$22=""),"",HYPERLINK("#'Category Set A By Age'!"&CELL("Address",N149),'Category Set A by Age'!N149)) ->  | H19: =IF(AND($B$22="",$C$22="",$D$22="",$E$22="",$F$22="",$G$22="",$H$22="",$I$22=""),"",HYPERLINK("#'Category Set A By Age'!"&CELL("Address",N174),'Category Set A by Age'!N174)) ->  | I19: =IF(AND($B$22="",$C$22="",$D$22="",$E$22="",$F$22="",$G$22="",$H$22="",$I$22=""),"",HYPERLINK("#'Category Set A By Age'!"&CELL("Address",N199),'Category Set A by Age'!N199)) ->  | J19: =IFERROR(HYPERLINK("#'Select LEA'!"&ADDRESS(ROW(INDEX(CurrentListing,MATCH(AA19,CurrentListing,0),1)),25),AK19),HYPERLINK("#'Select LEA'!"&"$AA$10",AK19)) ->  | L19: J19 | M19: =IF(OR($J$19="",$J$19="-9"),0,IF(SUM(B19:I19)<>$J$19,1,0)) -> 0 | O19: A | P19: =IF(OR($J$19="",$J$19="No Data"),"",IF(SUM(B19:I19)<>$J$19,"Sum of died for ages 14 through 21 (B19:I19) ≠ Subtotal (J19)","")) ->  | AA19: DY | AB19: Died
A20: Moved, known to be continuing | B20: =IF(AND($B$22="",$C$22="",$D$22="",$E$22="",$F$22="",$G$22="",$H$22="",$I$22=""),"",HYPERLINK("#'Category Set A By Age'!"&CELL("Address",N25),'Category Set A by Age'!N25)) ->  | C20: =IF(AND($B$22="",$C$22="",$D$22="",$E$22="",$F$22="",$G$22="",$H$22="",$I$22=""),"",HYPERLINK("#'Category Set A By Age'!"&CELL("Address",N51),'Category Set A by Age'!N50)) ->  | D20: =IF(AND($B$22="",$C$22="",$D$22="",$E$22="",$F$22="",$G$22="",$H$22="",$I$22=""),"",HYPERLINK("#'Category Set A By Age'!"&CELL("Address",N75),'Category Set A by Age'!N75)) ->  | E20: =IF(AND($B$22="",$C$22="",$D$22="",$E$22="",$F$22="",$G$22="",$H$22="",$I$22=""),"",HYPERLINK("#'Category Set A By Age'!"&CELL("Address",N100),'Category Set A by Age'!N100)) ->  | F20: =IF(AND($B$22="",$C$22="",$D$22="",$E$22="",$F$22="",$G$22="",$H$22="",$I$22=""),"",HYPERLINK("#'Category Set A By Age'!"&CELL("Address",N125),'Category Set A by Age'!N125)) ->  | G20: =IF(AND($B$22="",$C$22="",$D$22="",$E$22="",$F$22="",$G$22="",$H$22="",$I$22=""),"",HYPERLINK("#'Category Set A By Age'!"&CELL("Address",N150),'Category Set A by Age'!N150)) ->  | H20: =IF(AND($B$22="",$C$22="",$D$22="",$E$22="",$F$22="",$G$22="",$H$22="",$I$22=""),"",HYPERLINK("#'Category Set A By Age'!"&CELL("Address",N175),'Category Set A by Age'!N175)) ->  | I20: =IF(AND($B$22="",$C$22="",$D$22="",$E$22="",$F$22="",$G$22="",$H$22="",$I$22=""),"",HYPERLINK("#'Category Set A By Age'!"&CELL("Address",N200),'Category Set A by Age'!N200)) ->  | J20: =IFERROR(HYPERLINK("#'Select LEA'!"&ADDRESS(ROW(INDEX(CurrentListing,MATCH(AA20,CurrentListing,0),1)),25),AK20),HYPERLINK("#'Select LEA'!"&"$AA$10",AK20)) ->  | L20: J20 | M20: =IF(OR($J$20="",$J$20="-9"),0,IF(SUM(B20:I20)<>$J$20,1,0)) -> 0 | O20: A | P20: =IF(OR($J$20="",$J$20="No Data"),"",IF(SUM(B20:I20)<>$J$20,"Sum of moved known to be continuing, for ages 14 through 21 (B20:I20) ≠ Subtotal (J20)","")) ->  | AA20: MKCY | AB20: Moved, known to be continuing
A21: Dropped out | B21: =IF(AND($B$22="",$C$22="",$D$22="",$E$22="",$F$22="",$G$22="",$H$22="",$I$22=""),"",HYPERLINK("#'Category Set A By Age'!"&CELL("Address",N26),'Category Set A by Age'!N26)) ->  | C21: =IF(AND($B$22="",$C$22="",$D$22="",$E$22="",$F$22="",$G$22="",$H$22="",$I$22=""),"",HYPERLINK("#'Category Set A By Age'!"&CELL("Address",N52),'Category Set A by Age'!N51)) ->  | D21: =IF(AND($B$22="",$C$22="",$D$22="",$E$22="",$F$22="",$G$22="",$H$22="",$I$22=""),"",HYPERLINK("#'Category Set A By Age'!"&CELL("Address",N76),'Category Set A by Age'!N76)) ->  | E21: =IF(AND($B$22="",$C$22="",$D$22="",$E$22="",$F$22="",$G$22="",$H$22="",$I$22=""),"",HYPERLINK("#'Category Set A By Age'!"&CELL("Address",N101),'Category Set A by Age'!N101)) ->  | F21: =IF(AND($B$22="",$C$22="",$D$22="",$E$22="",$F$22="",$G$22="",$H$22="",$I$22=""),"",HYPERLINK("#'Category Set A By Age'!"&CELL("Address",N126),'Category Set A by Age'!N126)) ->  | G21: =IF(AND($B$22="",$C$22="",$D$22="",$E$22="",$F$22="",$G$22="",$H$22="",$I$22=""),"",HYPERLINK("#'Category Set A By Age'!"&CELL("Address",N151),'Category Set A by Age'!N151)) ->  | H21: =IF(AND($B$22="",$C$22="",$D$22="",$E$22="",$F$22="",$G$22="",$H$22="",$I$22=""),"",HYPERLINK("#'Category Set A By Age'!"&CELL("Address",N176),'Category Set A by Age'!N176)) ->  | I21: =IF(AND($B$22="",$C$22="",$D$22="",$E$22="",$F$22="",$G$22="",$H$22="",$I$22=""),"",HYPERLINK("#'Category Set A By Age'!"&CELL("Address",N201),'Category Set A by Age'!N201)) ->  | J21: =IFERROR(HYPERLINK("#'Select LEA'!"&ADDRESS(ROW(INDEX(CurrentListing,MATCH(AA21,CurrentListing,0),1)),25),AK21),HYPERLINK("#'Select LEA'!"&"$AA$10",AK21)) ->  | L21: J21 | M21: =IF(OR($J$21="",$J$21="-9"),0,IF(SUM(B21:I21)<>$J$21,1,0)) -> 0 | O21: A | P21: =IF(OR($J$21="",$J$21="No Data"),"",IF(SUM(B21:I21)<>$J$21,"Sum of dropped out for ages 14 through 21 (B21:I21) ≠ Subtotal (J21)","")) ->  | AA21: DROPOUTY | AB21: Dropped out
A22: Total | B22: =IFERROR(HYPERLINK("#'Select LEA'!"&ADDRESS(ROW(INDEX(CurrentListing,MATCH(AC23,CurrentListing,0),1)),25),AC22),HYPERLINK("#'Select LEA'!"&"$AA$10",AC22)) ->  | J22: =IF(AND($B$22="",$C$22="",$D$22="",$E$22="",$F$22="",$G$22="",$H$22="",$I$22=""),"",SUM(B14:I21)) ->  | L22: J22 | M22: =IF(OR($J$22="",$J$22="-9"),0,IF(OR(SUM(J14:J21)<>$J$22,SUM(B22:I22)<>$J$22),1,0)) -> 0 | O22: A | P22: =IF(OR($J$22="",$J$22="No Data"),"",IF(AND(SUM(J14:J21)<>$J$22,SUM(B22:I22)<>$J$22), "Sum of subtotals for exit categories (J14:J21) or ages 14 through 21 (B22:I22) ≠ Calculated total (J22)", IF(OR($J$22="",$J$22="No Data"),"",IF(SUM(J14:J21)<>$J$22, "Sum of subtotals for exit categories (J14:J21) ≠ Calculated total (J22)", IF(OR($J$22="",$J$22="No Data"),"",IF(SUM(B22:I22)<>$J$22, "Sum of subtotals for ages 14 through 21 (B22:I22) ≠ Calculated total (J22)", "")))))) ->  | AA22: Y | AB22: Total | AC22: =IFERROR(IF(INDEX(StudCntC009,MATCH(AC23,CurrentListing,0))="","No Data",INDEX(StudCntC009,MATCH(AC23,CurrentListing,0))),"") -> 
AC23: 14Y | AD23: 15Y | AE23: 16Y | AF23: 17Y | AG23: 18Y | AH23: 19Y | AI23: 20Y | AJ23: 21Y | AK23: Y
A24: Percent by basis of exit | B24: Age | L24: B22 | M24: =IF(OR($B$22="",$B$22="-9"),0,IF(SUM($B$14:$B$21)<>$B$22,1,0)) -> 0 | N24: =B$22 ->  | O24: A | P24: =IF(OR($B$22="",$B$22="No Data"),"",IF(SUM($B$14:$B$21)<>$B$22,"Sum of exit categories for age 14 (B14:B21) ≠ Subtotal (B22)","")) -> 
B25: 14 (percent) | C25: 15 (percent) | D25: 16 (percent) | E25: 17 (percent) | F25: 18 (percent) | G25: 19 (percent) | H25: 20 (percent) | I25: 21 (percent) | J25: Total (percent) | L25: C22 | M25: =IF(OR($C$22="",$C$22="-9"),0,IF(SUM($C$14:$C$21)<>$C$22,1,0)) -> 0 | N25: =C$22 ->  | O25: A | P25: =IF(OR($C$22="",$C$22="No Data"),"",IF(SUM($C$14:$C$21)<>$C$22,"Sum of exit categories for age 15 (C14:C21) ≠ Subtotal (C22)","")) -> 
A26: Transferred to regular education | B26: =IFERROR(IF($J14<>0,B14/$J14,0),"") ->  | J26: =IF(SUM(B26,C26,D26,E26,F26,G26,H26,I26),SUM(B26,C26,D26,E26,F26,G26,H26,I26),"") ->  | L26: D22 | M26: =IF(OR($D$22="",$D$22="-9"),0,IF(SUM($D$14:$D$21)<>$D$22,1,0)) -> 0 | N26: =D$22 ->  | O26: A | P26: =IF(OR($D$22="",$D$22="No Data"),"",IF(SUM($D$14:$D$21)<>$D$22,"Sum of exit categories for age 16 (D14:D21) ≠ Subtotal (D22)","")) -> 
A27: Graduated with regular high school diploma | J27: =IF(SUM(B27,C27,D27,E27,F27,G27,H27,I27), SUM(B27,C27,D27,E27,F27,G27,H27,I27), "") ->  | L27: E22 | M27: =IF(OR($E$22="",$E$22="-9"),0,IF(SUM($E$14:$E$21)<>$E$22,1,0)) -> 0 | N27: =E$22 ->  | O27: A | P27: =IF(OR($E$22="",$E$22="No Data"),"",IF(SUM($E$14:$E$21)<>$E$22,"Sum of exit categories for age 17 (E14:E21) ≠ Subtotal (E22)","")) -> 
A28: Graduated with an alternate diploma | J28: =IF(SUM(B28,C28,D28,E28,F28,G28,H28,I28), SUM(B28,C28,D28,E28,F28,G28,H28,I28), "") ->  | L28: F22 | M28: =IF(OR($F$22="",$F$22="-9"),0,IF(SUM($F$14:$F$21)<>$F$22,1,0)) -> 0 | N28: =F$22 ->  | O28: A | P28: =IF(OR($F$22="",$F$22="No Data"),"",IF(SUM($F$14:$F$21)<>$F$22,"Sum of exit categories for age 18 (F14:F21) ≠ Subtotal (F22)","")) -> 
A29: Received a certificate | B29: =IFERROR(IF($J17<>0,B17/$J17,0),"") ->  | L29: G22 | M29: =IF(OR($G$22="",$G$22="-9"),0,IF(SUM($G$14:$G$21)<>$G$22,1,0)) -> 0 | N29: =G$22 ->  | O29: A | P29: =IF(OR($G$22="",$G$22="No Data"),"",IF(SUM($G$14:$G$21)<>$G$22,"Sum of exit categories for age 19 (G14:G21) ≠ Subtotal (G22)","")) -> 
A30: Reached maximum age | F30: =IFERROR(IF($J18<>0,F18/$J18,0),"") ->  | L30: H22 | M30: =IF(OR($H$22="",$H$22="-9"),0,IF(SUM($H$14:$H$21)<>$H$22,1,0)) -> 0 | N30: =H$22 ->  | O30: A | P30: =IF(OR($H$22="",$H$22="No Data"),"",IF(SUM($H$14:$H$21)<>$H$22,"Sum of exit categories for age 20 (H14:H21) ≠ Subtotal (H22)","")) -> 
A31: Died | B31: =IFERROR(IF($J19<>0,B19/$J19,0),"") ->  | L31: I22 | M31: =IF(OR($I$22="",$I$22="-9"),0,IF(SUM($I$14:$I$21)<>$I$22,1,0)) -> 0 | N31: =I$22 ->  | O31: A | P31: =IF(OR($I$22="",$I$22="No Data"),"",IF(SUM($I$14:$I$21)<>$I$22,"Sum of exit categories for age 21 (I14:I21) ≠ Subtotal (I22)","")) -> 
A32: Moved, known to be continuing | L32: J22 | M32: =IF(OR($J$22="",$J$22="No Data"),0,IF(OR($I$47<>$J$22,$D$72<>$J$22,$D$97<>$J$22),1,0)) -> 0 | N32: =J22 ->  | O32: A | P32: =IF(OR($J$22="",$J$22="No Data"),"",IF(OR($I$47<>$J$22,$D$72<>$J$22,$D$97<>$J$22),"Calculated total for category Set A (J22) ≠ Calculated totals for category Set B (I47), Set C (D72), or Set D (D97)","")) -> 
A33: Dropped out | AA33: =IFERROR(IF(INDEX(StudCntC009,MATCH(AC21,CurrentListing,0))="","No Data",INDEX(StudCntC009,MATCH(AC21,CurrentListing,0))),"MC")
A34: Total | B34: =IFERROR(IF($J22<>0,B22/$J22,0),"") -> 
A36: Category set B – Children with disabilities (IDEA) exiting special education, by racial ethnic and basis of exit | AB36: Category Set B - Student counts for Children with Disabilities (IDEA) exiting special education by basis of exit and Racial Ethnic category
A37: Student count by basis of exit | B37: Racial ethnic
B38: Hispanic/ Latino | C38: American Indian or Alaska Native | D38: Asian | E38: Black or African American | F38: Native Hawaiian or Other Pacific Islander | G38: White | H38: Two or more races | I38: Total | P38: Error Messages | AB38: Student counts by basis of exit | AC38: Hispanic/ Latino | AD38: American Indian or Alaska Native | AE38: Asian | AF38: Black or African American | AG38: Native Hawaiian or Other Pacific Islander | AH38: White | AI38: Two or More Races | AJ38: Total
A39: Transferred to regular education | B39: =IFERROR(HYPERLINK("#'Select LEA'!"&ADDRESS(ROW(INDEX(CurrentListing,MATCH(AM39,CurrentListing,0),1)),25),AC39),HYPERLINK("#'Select LEA'!"&"$AA$10",AC39)) ->  | C39: =IFERROR(HYPERLINK("#'Select LEA'!"&ADDRESS(ROW(INDEX(CurrentListing,MATCH(AN39,CurrentListing,0),1)),25),AD39),HYPERLINK("#'Select LEA'!"&"$AA$10",AD39)) ->  | D39: =IFERROR(HYPERLINK("#'Select LEA'!"&ADDRESS(ROW(INDEX(CurrentListing,MATCH(AO39,CurrentListing,0),1)),25),AE39),HYPERLINK("#'Select LEA'!"&"$AA$10",AE39)) ->  | E39: =IFERROR(HYPERLINK("#'Select LEA'!"&ADDRESS(ROW(INDEX(CurrentListing,MATCH(AP39,CurrentListing,0),1)),25),AF39),HYPERLINK("#'Select LEA'!"&"$AA$10",AF39)) ->  | F39: =IFERROR(HYPERLINK("#'Select LEA'!"&ADDRESS(ROW(INDEX(CurrentListing,MATCH(AQ39,CurrentListing,0),1)),25),AG39),HYPERLINK("#'Select LEA'!"&"$AA$10",AG39)) ->  | G39: =IFERROR(HYPERLINK("#'Select LEA'!"&ADDRESS(ROW(INDEX(CurrentListing,MATCH(AR39,CurrentListing,0),1)),25),AH39),HYPERLINK("#'Select LEA'!"&"$AA$10",AH39)) ->  | H39: =IFERROR(HYPERLINK("#'Select LEA'!"&ADDRESS(ROW(INDEX(CurrentListing,MATCH(AS39,CurrentListing,0),1)),25),AI39),HYPERLINK("#'Select LEA'!"&"$AA$10",AI39)) ->  | I39: =IFERROR(HYPERLINK("#'Select LEA'!"&ADDRESS(ROW(INDEX(CurrentListing,MATCH(AT39,CurrentListing,0),1)),25),AJ39),HYPERLINK("#'Select LEA'!"&"$AA$10",AJ39)) ->  | L39: I39 | M39: =IF(OR($I$39="",$I$39="-9"),0,IF(SUM(B39:H39)<>$I$39,1,0)) -> 0 | N39: =I39 ->  | O39: B | P39: =IF(OR($I$39="",$I$39="No Data"),"",IF(SUM(B39:H39)<>$I$39,"Sum of transferred to regular education for all racial ethnic categories (B39:H39) ≠ Subtotal (I39)","")) ->  | AB39: Transferred to regular education | AC39: =IFERROR(IF(INDEX(StudCntC009,MATCH(AM39,CurrentListing,0))="","No Data",INDEX(StudCntC009,MATCH(AM39,CurrentListing,0))),"") ->  | AD39: =IFERROR(IF(INDEX(StudCntC009,MATCH(AN39,CurrentListing,0))="","No Data",INDEX(StudCntC009,MATCH(AN39,CurrentListing,0))),"") ->  | AE39: =IFERROR(IF(INDEX(StudCntC009,MATCH(AO39,CurrentListing,0))="","No Data",INDEX(StudCntC009,MATCH(AO39,CurrentListing,0))),"") ->  | AF39: =IFERROR(IF(INDEX(StudCntC009,MATCH(AP39,CurrentListing,0))="","No Data",INDEX(StudCntC009,MATCH(AP39,CurrentListing,0))),"") ->  | AG39: =IFERROR(IF(INDEX(StudCntC009,MATCH(AQ39,CurrentListing,0))="","No Data",INDEX(StudCntC009,MATCH(AQ39,CurrentListing,0))),"") ->  | AH39: =IFERROR(IF(INDEX(StudCntC009,MATCH(AR39,CurrentListing,0))="","No Data",INDEX(StudCntC009,MATCH(AR39,CurrentListing,0))),"") ->  | AI39: =IFERROR(IF(INDEX(StudCntC009,MATCH(AS39,CurrentListing,0))="","No Data",INDEX(StudCntC009,MATCH(AS39,CurrentListing,0))),"") ->  | AJ39: =IFERROR(IF(INDEX(StudCntC009,MATCH(AT39,CurrentListing,0))="","No Data",INDEX(StudCntC009,MATCH(AT39,CurrentListing,0))),"") ->  | AM39: HI7TRANN | AN39: AM7TRANN | AO39: AS7TRANN | AP39: BL7TRANN | AQ39: PI7TRANN | AR39: WH7TRANN | AS39: MU7TRANN | AT39: TRANY
A40: Graduated with regular high school diploma | B40: =IFERROR(HYPERLINK("#'Select LEA'!"&ADDRESS(ROW(INDEX(CurrentListing,MATCH(AM40,CurrentListing,0),1)),25),AC40),HYPERLINK("#'Select LEA'!"&"$AA$10",AC40)) ->  | C40: =IFERROR(HYPERLINK("#'Select LEA'!"&ADDRESS(ROW(INDEX(CurrentListing,MATCH(AN40,CurrentListing,0),1)),25),AD40),HYPERLINK("#'Select LEA'!"&"$AA$10",AD40)) ->  | D40: =IFERROR(HYPERLINK("#'Select LEA'!"&ADDRESS(ROW(INDEX(CurrentListing,MATCH(AO40,CurrentListing,0),1)),25),AE40),HYPERLINK("#'Select LEA'!"&"$AA$10",AE40)) ->  | E40: =IFERROR(HYPERLINK("#'Select LEA'!"&ADDRESS(ROW(INDEX(CurrentListing,MATCH(AP40,CurrentListing,0),1)),25),AF40),HYPERLINK("#'Select LEA'!"&"$AA$10",AF40)) ->  | F40: =IFERROR(HYPERLINK("#'Select LEA'!"&ADDRESS(ROW(INDEX(CurrentListing,MATCH(AQ40,CurrentListing,0),1)),25),AG40),HYPERLINK("#'Select LEA'!"&"$AA$10",AG40)) ->  | G40: =IFERROR(HYPERLINK("#'Select LEA'!"&ADDRESS(ROW(INDEX(CurrentListing,MATCH(AR40,CurrentListing,0),1)),25),AH40),HYPERLINK("#'Select LEA'!"&"$AA$10",AH40)) ->  | H40: =IFERROR(HYPERLINK("#'Select LEA'!"&ADDRESS(ROW(INDEX(CurrentListing,MATCH(AS40,CurrentListing,0),1)),25),AI40),HYPERLINK("#'Select LEA'!"&"$AA$10",AI40)) ->  | I40: =IFERROR(HYPERLINK("#'Select LEA'!"&ADDRESS(ROW(INDEX(CurrentListing,MATCH(AT40,CurrentListing,0),1)),25),AJ40),HYPERLINK("#'Select LEA'!"&"$AA$10",AJ40)) ->  | L40: I40 | M40: =IF(OR($I$40="",$I$40="-9"),0,IF(SUM(B40:H40)<>$I$40,1,0)) -> 0 | N40: =I40 ->  | O40: B | P40: =IF(OR($I$40="",$I$40="No Data"),"",IF(SUM(B40:H40)<>$I$40,"Sum of graduated with high school diploma for all racial ethnic categories (B40:H40) ≠ Subtotal (I40)","")) ->  | AB40: Graduated with regular high school diploma | AM40: HI7GHSN | AN40: AM7GHSN | AO40: AS7GHSN | AP40: BL7GHSN | AQ40: PI7GHSN | AR40: WH7GHSN | AS40: MU7GHSN | AT40: GHSY
A41: Graduated with an alternate diploma | B41: =IFERROR(HYPERLINK("#'Select LEA'!"&ADDRESS(ROW(INDEX(CurrentListing,MATCH(AM41,CurrentListing,0),1)),25),AC41),HYPERLINK("#'Select LEA'!"&"$AA$10",AC41)) ->  | C41: =IFERROR(HYPERLINK("#'Select LEA'!"&ADDRESS(ROW(INDEX(CurrentListing,MATCH(AN41,CurrentListing,0),1)),25),AD41),HYPERLINK("#'Select LEA'!"&"$AA$10",AD41)) ->  | D41: =IFERROR(HYPERLINK("#'Select LEA'!"&ADDRESS(ROW(INDEX(CurrentListing,MATCH(AO41,CurrentListing,0),1)),25),AE41),HYPERLINK("#'Select LEA'!"&"$AA$10",AE41)) ->  | E41: =IFERROR(HYPERLINK("#'Select LEA'!"&ADDRESS(ROW(INDEX(CurrentListing,MATCH(AP41,CurrentListing,0),1)),25),AF41),HYPERLINK("#'Select LEA'!"&"$AA$10",AF41)) ->  | F41: =IFERROR(HYPERLINK("#'Select LEA'!"&ADDRESS(ROW(INDEX(CurrentListing,MATCH(AQ41,CurrentListing,0),1)),25),AG41),HYPERLINK("#'Select LEA'!"&"$AA$10",AG41)) ->  | G41: =IFERROR(HYPERLINK("#'Select LEA'!"&ADDRESS(ROW(INDEX(CurrentListing,MATCH(AR41,CurrentListing,0),1)),25),AH41),HYPERLINK("#'Select LEA'!"&"$AA$10",AH41)) ->  | H41: =IFERROR(HYPERLINK("#'Select LEA'!"&ADDRESS(ROW(INDEX(CurrentListing,MATCH(AS41,CurrentListing,0),1)),25),AI41),HYPERLINK("#'Select LEA'!"&"$AA$10",AI41)) ->  | I41: =IFERROR(HYPERLINK("#'Select LEA'!"&ADDRESS(ROW(INDEX(CurrentListing,MATCH(AT41,CurrentListing,0),1)),25),AJ41),HYPERLINK("#'Select LEA'!"&"$AA$10",AJ41)) ->  | L41: I41 | M41: =IF(OR($I$41="",$I$41="-9"),0,IF(SUM(B41:H41)<>$I$41,1,0)) -> 0 | N41: =I41 ->  | O41: B | P41: =IF(OR($I$41="",$I$41="No Data"),"",IF(SUM(B41:H41)<>$I$41,"Sum of graduated with an alternate diploma for all racial ethnic categories (B41:H41) ≠ Subtotal (I41)","")) ->  | AB41: Graduated with an alternate diploma | AM41: HI7GRADALTDPLN | AN41: AM7GRADALTDPLN | AO41: AS7GRADALTDPLN | AP41: BL7GRADALTDPLN | AQ41: PI7GRADALTDPLN | AR41: WH7GRADALTDPLN | AS41: MU7GRADALTDPLN | AT41: GRADALTDPLY
A42: Received a certificate | B42: =IFERROR(HYPERLINK("#'Select LEA'!"&ADDRESS(ROW(INDEX(CurrentListing,MATCH(AM42,CurrentListing,0),1)),25),AC42),HYPERLINK("#'Select LEA'!"&"$AA$10",AC42)) ->  | C42: =IFERROR(HYPERLINK("#'Select LEA'!"&ADDRESS(ROW(INDEX(CurrentListing,MATCH(AN42,CurrentListing,0),1)),25),AD42),HYPERLINK("#'Select LEA'!"&"$AA$10",AD42)) ->  | D42: =IFERROR(HYPERLINK("#'Select LEA'!"&ADDRESS(ROW(INDEX(CurrentListing,MATCH(AO42,CurrentListing,0),1)),25),AE42),HYPERLINK("#'Select LEA'!"&"$AA$10",AE42)) ->  | E42: =IFERROR(HYPERLINK("#'Select LEA'!"&ADDRESS(ROW(INDEX(CurrentListing,MATCH(AP42,CurrentListing,0),1)),25),AF42),HYPERLINK("#'Select LEA'!"&"$AA$10",AF42)) ->  | F42: =IFERROR(HYPERLINK("#'Select LEA'!"&ADDRESS(ROW(INDEX(CurrentListing,MATCH(AQ42,CurrentListing,0),1)),25),AG42),HYPERLINK("#'Select LEA'!"&"$AA$10",AG42)) ->  | G42: =IFERROR(HYPERLINK("#'Select LEA'!"&ADDRESS(ROW(INDEX(CurrentListing,MATCH(AR42,CurrentListing,0),1)),25),AH42),HYPERLINK("#'Select LEA'!"&"$AA$10",AH42)) ->  | H42: =IFERROR(HYPERLINK("#'Select LEA'!"&ADDRESS(ROW(INDEX(CurrentListing,MATCH(AS42,CurrentListing,0),1)),25),AI42),HYPERLINK("#'Select LEA'!"&"$AA$10",AI42)) ->  | I42: =IFERROR(HYPERLINK("#'Select LEA'!"&ADDRESS(ROW(INDEX(CurrentListing,MATCH(AT42,CurrentListing,0),1)),25),AJ42),HYPERLINK("#'Select LEA'!"&"$AA$10",AJ42)) ->  | L42: I42 | M42: =IF(OR($I$42="",$I$42="-9"),0,IF(SUM(B42:H42)<>$I$42,1,0)) -> 0 | O42: B | P42: =IF(OR($I$42="",$I$42="No Data"),"",IF(SUM(B42:H42)<>$I$42,"Sum of received a certificate for all racial ethnic categories (B42:H42) ≠ Subtotal (I42)","")) ->  | AB42: Received a certificate | AM42: HI7RCN | AN42: AM7RCN | AO42: AS7RCN | AP42: BL7RCN | AQ42: PI7RCN | AR42: WH7RCN | AS42: MU7RCN | AT42: RCY
A43: Reached maximum age | B43: =IFERROR(HYPERLINK("#'Select LEA'!"&ADDRESS(ROW(INDEX(CurrentListing,MATCH(AM43,CurrentListing,0),1)),25),AC43),HYPERLINK("#'Select LEA'!"&"$AA$10",AC43)) ->  | C43: =IFERROR(HYPERLINK("#'Select LEA'!"&ADDRESS(ROW(INDEX(CurrentListing,MATCH(AN43,CurrentListing,0),1)),25),AD43),HYPERLINK("#'Select LEA'!"&"$AA$10",AD43)) ->  | D43: =IFERROR(HYPERLINK("#'Select LEA'!"&ADDRESS(ROW(INDEX(CurrentListing,MATCH(AO43,CurrentListing,0),1)),25),AE43),HYPERLINK("#'Select LEA'!"&"$AA$10",AE43)) ->  | E43: =IFERROR(HYPERLINK("#'Select LEA'!"&ADDRESS(ROW(INDEX(CurrentListing,MATCH(AP43,CurrentListing,0),1)),25),AF43),HYPERLINK("#'Select LEA'!"&"$AA$10",AF43)) ->  | F43: =IFERROR(HYPERLINK("#'Select LEA'!"&ADDRESS(ROW(INDEX(CurrentListing,MATCH(AQ43,CurrentListing,0),1)),25),AG43),HYPERLINK("#'Select LEA'!"&"$AA$10",AG43)) ->  | G43: =IFERROR(HYPERLINK("#'Select LEA'!"&ADDRESS(ROW(INDEX(CurrentListing,MATCH(AR43,CurrentListing,0),1)),25),AH43),HYPERLINK("#'Select LEA'!"&"$AA$10",AH43)) ->  | H43: =IFERROR(HYPERLINK("#'Select LEA'!"&ADDRESS(ROW(INDEX(CurrentListing,MATCH(AS43,CurrentListing,0),1)),25),AI43),HYPERLINK("#'Select LEA'!"&"$AA$10",AI43)) ->  | I43: =IFERROR(HYPERLINK("#'Select LEA'!"&ADDRESS(ROW(INDEX(CurrentListing,MATCH(AT43,CurrentListing,0),1)),25),AJ43),HYPERLINK("#'Select LEA'!"&"$AA$10",AJ43)) ->  | L43: I43 | M43: =IF(OR($I$43="",$I$43="-9"),0,IF(SUM(B43:H43)<>$I$43,1,0)) -> 0 | O43: B | P43: =IF(OR($I$43="",$I$43="No Data"),"",IF(SUM(B43:H43)<>$I$43,"Sum of reached maximum age for all racial ethnic categories (B43:H43) ≠ Subtotal (I43)","")) ->  | AB43: Reached maximum age | AM43: HI7RMAN | AN43: AM7RMAN | AO43: AS7RMAN | AP43: BL7RMAN | AQ43: PI7RMAN | AR43: WH7RMAN | AS43: MU7RMAN | AT43: RMAY
A44: Died | B44: =IFERROR(HYPERLINK("#'Select LEA'!"&ADDRESS(ROW(INDEX(CurrentListing,MATCH(AM44,CurrentListing,0),1)),25),AC44),HYPERLINK("#'Select LEA'!"&"$AA$10",AC44)) ->  | C44: =IFERROR(HYPERLINK("#'Select LEA'!"&ADDRESS(ROW(INDEX(CurrentListing,MATCH(AN44,CurrentListing,0),1)),25),AD44),HYPERLINK("#'Select LEA'!"&"$AA$10",AD44)) ->  | D44: =IFERROR(HYPERLINK("#'Select LEA'!"&ADDRESS(ROW(INDEX(CurrentListing,MATCH(AO44,CurrentListing,0),1)),25),AE44),HYPERLINK("#'Select LEA'!"&"$AA$10",AE44)) ->  | E44: =IFERROR(HYPERLINK("#'Select LEA'!"&ADDRESS(ROW(INDEX(CurrentListing,MATCH(AP44,CurrentListing,0),1)),25),AF44),HYPERLINK("#'Select LEA'!"&"$AA$10",AF44)) ->  | F44: =IFERROR(HYPERLINK("#'Select LEA'!"&ADDRESS(ROW(INDEX(CurrentListing,MATCH(AQ44,CurrentListing,0),1)),25),AG44),HYPERLINK("#'Select LEA'!"&"$AA$10",AG44)) ->  | G44: =IFERROR(HYPERLINK("#'Select LEA'!"&ADDRESS(ROW(INDEX(CurrentListing,MATCH(AR44,CurrentListing,0),1)),25),AH44),HYPERLINK("#'Select LEA'!"&"$AA$10",AH44)) ->  | H44: =IFERROR(HYPERLINK("#'Select LEA'!"&ADDRESS(ROW(INDEX(CurrentListing,MATCH(AS44,CurrentListing,0),1)),25),AI44),HYPERLINK("#'Select LEA'!"&"$AA$10",AI44)) ->  | I44: =IFERROR(HYPERLINK("#'Select LEA'!"&ADDRESS(ROW(INDEX(CurrentListing,MATCH(AT44,CurrentListing,0),1)),25),AJ44),HYPERLINK("#'Select LEA'!"&"$AA$10",AJ44)) ->  | L44: I44 | M44: =IF(OR($I$44="",$I$44="-9"),0,IF(SUM(B44:H44)<>$I$44,1,0)) -> 0 | O44: B | P44: =IF(OR($I$44="",$I$44="No Data"),"",IF(SUM(B44:H44)<>$I$44,"Sum of died for all racial ethnic categories (B44:H44) ≠ Subtotal (I44)","")) ->  | AB44: Died | AM44: HI7DN | AN44: AM7DN | AO44: AS7DN | AP44: BL7DN | AQ44: PI7DN | AR44: WH7DN | AS44: MU7DN | AT44: DY
A45: Moved, known to be continuing | B45: =IFERROR(HYPERLINK("#'Select LEA'!"&ADDRESS(ROW(INDEX(CurrentListing,MATCH(AM45,CurrentListing,0),1)),25),AC45),HYPERLINK("#'Select LEA'!"&"$AA$10",AC45)) ->  | C45: =IFERROR(HYPERLINK("#'Select LEA'!"&ADDRESS(ROW(INDEX(CurrentListing,MATCH(AN45,CurrentListing,0),1)),25),AD45),HYPERLINK("#'Select LEA'!"&"$AA$10",AD45)) ->  | D45: =IFERROR(HYPERLINK("#'Select LEA'!"&ADDRESS(ROW(INDEX(CurrentListing,MATCH(AO45,CurrentListing,0),1)),25),AE45),HYPERLINK("#'Select LEA'!"&"$AA$10",AE45)) ->  | E45: =IFERROR(HYPERLINK("#'Select LEA'!"&ADDRESS(ROW(INDEX(CurrentListing,MATCH(AP45,CurrentListing,0),1)),25),AF45),HYPERLINK("#'Select LEA'!"&"$AA$10",AF45)) ->  | F45: =IFERROR(HYPERLINK("#'Select LEA'!"&ADDRESS(ROW(INDEX(CurrentListing,MATCH(AQ45,CurrentListing,0),1)),25),AG45),HYPERLINK("#'Select LEA'!"&"$AA$10",AG45)) ->  | G45: =IFERROR(HYPERLINK("#'Select LEA'!"&ADDRESS(ROW(INDEX(CurrentListing,MATCH(AR45,CurrentListing,0),1)),25),AH45),HYPERLINK("#'Select LEA'!"&"$AA$10",AH45)) ->  | H45: =IFERROR(HYPERLINK("#'Select LEA'!"&ADDRESS(ROW(INDEX(CurrentListing,MATCH(AS45,CurrentListing,0),1)),25),AI45),HYPERLINK("#'Select LEA'!"&"$AA$10",AI45)) ->  | I45: =IFERROR(HYPERLINK("#'Select LEA'!"&ADDRESS(ROW(INDEX(CurrentListing,MATCH(AT45,CurrentListing,0),1)),25),AJ45),HYPERLINK("#'Select LEA'!"&"$AA$10",AJ45)) ->  | L45: I45 | M45: =IF(OR($I$45="",$I$45="-9"),0,IF(SUM(B45:H45)<>$I$45,1,0)) -> 0 | O45: B | P45: =IF(OR($I$45="",$I$45="No Data"),"",IF(SUM(B45:H45)<>$I$45,"Sum of moved, known to be continuing for all racial ethnic categories (B45:H45) ≠ Subtotal (I45)","")) ->  | AB45: Moved, known to be continuing | AM45: HI7MKCN | AN45: AM7MKCN | AO45: AS7MKCN | AP45: BL7MKCN | AQ45: PI7MKCN | AR45: WH7MKCN | AS45: MU7MKCN | AT45: MKCY
A46: Dropped out | B46: =IFERROR(HYPERLINK("#'Select LEA'!"&ADDRESS(ROW(INDEX(CurrentListing,MATCH(AM46,CurrentListing,0),1)),25),AC46),HYPERLINK("#'Select LEA'!"&"$AA$10",AC46)) ->  | C46: =IFERROR(HYPERLINK("#'Select LEA'!"&ADDRESS(ROW(INDEX(CurrentListing,MATCH(AN46,CurrentListing,0),1)),25),AD46),HYPERLINK("#'Select LEA'!"&"$AA$10",AD46)) ->  | D46: =IFERROR(HYPERLINK("#'Select LEA'!"&ADDRESS(ROW(INDEX(CurrentListing,MATCH(AO46,CurrentListing,0),1)),25),AE46),HYPERLINK("#'Select LEA'!"&"$AA$10",AE46)) ->  | E46: =IFERROR(HYPERLINK("#'Select LEA'!"&ADDRESS(ROW(INDEX(CurrentListing,MATCH(AP46,CurrentListing,0),1)),25),AF46),HYPERLINK("#'Select LEA'!"&"$AA$10",AF46)) ->  | F46: =IFERROR(HYPERLINK("#'Select LEA'!"&ADDRESS(ROW(INDEX(CurrentListing,MATCH(AQ46,CurrentListing,0),1)),25),AG46),HYPERLINK("#'Select LEA'!"&"$AA$10",AG46)) ->  | G46: =IFERROR(HYPERLINK("#'Select LEA'!"&ADDRESS(ROW(INDEX(CurrentListing,MATCH(AR46,CurrentListing,0),1)),25),AH46),HYPERLINK("#'Select LEA'!"&"$AA$10",AH46)) ->  | H46: =IFERROR(HYPERLINK("#'Select LEA'!"&ADDRESS(ROW(INDEX(CurrentListing,MATCH(AS46,CurrentListing,0),1)),25),AI46),HYPERLINK("#'Select LEA'!"&"$AA$10",AI46)) ->  | I46: =IFERROR(HYPERLINK("#'Select LEA'!"&ADDRESS(ROW(INDEX(CurrentListing,MATCH(AT46,CurrentListing,0),1)),25),AJ46),HYPERLINK("#'Select LEA'!"&"$AA$10",AJ46)) ->  | L46: I46 | M46: =IF(OR($I$46="",$I$46="-9"),0,IF(SUM(B46:H46)<>$I$46,1,0)) -> 0 | O46: B | P46: =IF(OR($I$46="",$I$46="No Data"),"",IF(SUM(B46:H46)<>$I$46,"Sum of dropped out for all racial ethnic categories (B46:H46) ≠ Subtotal (I46)","")) ->  | AB46: Dropped out | AM46: HI7DROPOUTN | AN46: AM7DROPOUTN | AO46: AS7DROPOUTN | AP46: BL7DROPOUTN | AQ46: PI7DROPOUTN | AR46: WH7DROPOUTN | AS46: MU7DROPOUTN | AT46: DROPOUTY
A47: Total | B47: =IFERROR(HYPERLINK("#'Select LEA'!"&ADDRESS(ROW(INDEX(CurrentListing,MATCH(AM47,CurrentListing,0),1)),25),AC47),HYPERLINK("#'Select LEA'!"&"$AA$10",AC47)) ->  | C47: =IFERROR(HYPERLINK("#'Select LEA'!"&ADDRESS(ROW(INDEX(CurrentListing,MATCH(AN47,CurrentListing,0),1)),25),AD47),HYPERLINK("#'Select LEA'!"&"$AA$10",AD47)) ->  | D47: =IFERROR(HYPERLINK("#'Select LEA'!"&ADDRESS(ROW(INDEX(CurrentListing,MATCH(AO47,CurrentListing,0),1)),25),AE47),HYPERLINK("#'Select LEA'!"&"$AA$10",AE47)) ->  | E47: =IFERROR(HYPERLINK("#'Select LEA'!"&ADDRESS(ROW(INDEX(CurrentListing,MATCH(AP47,CurrentListing,0),1)),25),AF47),HYPERLINK("#'Select LEA'!"&"$AA$10",AF47)) ->  | F47: =IFERROR(HYPERLINK("#'Select LEA'!"&ADDRESS(ROW(INDEX(CurrentListing,MATCH(AQ47,CurrentListing,0),1)),25),AG47),HYPERLINK("#'Select LEA'!"&"$AA$10",AG47)) ->  | G47: =IFERROR(HYPERLINK("#'Select LEA'!"&ADDRESS(ROW(INDEX(CurrentListing,MATCH(AR47,CurrentListing,0),1)),25),AH47),HYPERLINK("#'Select LEA'!"&"$AA$10",AH47)) ->  | H47: =IFERROR(HYPERLINK("#'Select LEA'!"&ADDRESS(ROW(INDEX(CurrentListing,MATCH(AS47,CurrentListing,0),1)),25),AI47),HYPERLINK("#'Select LEA'!"&"$AA$10",AI47)) ->  | I47: =IF(AND($B$47="",$C$47="",$D$47="",$E$47="",$F$47="",$G$47="",$H$47=""),"",SUM(B39:H46)) ->  | L47: I47 | M47: =IF(OR($I$47="",$I$47="-9"),0,IF(OR(SUM(I39:I46)<>$I$47,SUM(B47:H47)<>$I$47),1,0)) -> 0 | O47: B | P47: =IF(OR($I$47="",$I$47="No Data"),"",IF(AND(SUM(I39:I46)<>$I$47,SUM(B47:H47)<>$I$47), "Sum of exit categories for all Racial Ethnic categories (B47:H47) and subtotals for exit categories (I39:I46) ≠ Calculated total (I47)", IF(OR($I$47="",$I$47="No Data"),"",IF(SUM(I39:I46)<>$I$47, "Sum of subtotals for exit categories (I39:I46) ≠ Calculated total (I47)", IF(OR($I$47="",$I$47="No Data"),"",IF(SUM(B47:H47)<>$I$47, "Sum of exit categories for all Racial Ethnic categories (B47:H47) ≠ Subtotal (I47)", "")))))) ->  | AB47: Total | AM47: HI7Y | AN47: AM7Y | AO47: AS7Y | AP47: BL7Y | AQ47: PI7Y | AR47: WH7Y | AS47: MU7Y | AT47: Y
AE48: =IFERROR(IF(INDEX(StudCntC009,MATCH(AO48,CurrentListing,0))="","No Data",INDEX(StudCntC009,MATCH(AO48,CurrentListing,0))),"") -> 
A49: Percent by basis of exit | B49: Racial ethnic
B50: Hispanic/ Latino (percent) | C50: American Indian or Alaska Native (percent) | D50: Asian (percent) | E50: Black or African American (percent) | F50: Native Hawaiian or Other Pacific Islander (percent) | G50: White (percent) | H50: Two or more races (percent) | I50: Total (percent)
A51: Transferred to regular education | B51: =IFERROR(IF($I39<>0,B39/$I39,0),"") ->  | I51: =IF(SUM(B51:H51), SUM(B51:H51), "") ->  | L51: B47 | M51: =IF(OR($B$47="",$B$47="-9"),0,IF(SUM($B$39:$B$46)<>$B$47,1,0)) -> 0 | N51: =B$47 ->  | O51: B | P51: =IF(OR($B$47="",$B$47="No Data"),"",IF(SUM($B$39:$B$46)<>$B$47,"Sum of exit categories for Hispanic/Latino (B39:B46) ≠ Subtotal (B47)","")) -> 
A52: Graduated with regular high school diploma | I52: =IF(SUM(B52:H52), SUM(B52:H52), "") ->  | L52: C47 | M52: =IF(OR($C$47="",$C$47="-9"),0,IF(SUM($C$39:$C$46)<>$C$47,1,0)) -> 0 | N52: =C$47 ->  | O52: B | P52: =IF(OR($C$47="",$C$47="No Data"),"",IF(SUM($C$39:$C$46)<>$C$47,"Sum of exit categories for American Indian or Alaska Native (C39:C46) ≠ Subtotal (C47)","")) -> 
A53: Graduated with an alternate diploma | L53: D47 | M53: =IF(OR($D$47="",$D$47="-9"),0,IF(SUM($D$39:$D$46)<>$D$47,1,0)) -> 0 | N53: =D$47 ->  | O53: B | P53: =IF(OR($D$47="",$D$47="No Data"),"",IF(SUM($D$39:$D$46)<>$D$47,"Sum of exit categories for Asian (D39:D46) ≠ Subtotal (D47)","")) -> 
A54: Received a certificate | L54: E47 | M54: =IF(OR($E$47="",$E$47="-9"),0,IF(SUM($E$39:$E$46)<>$E$47,1,0)) -> 0 | N54: =E$47 ->  | O54: B | P54: =IF(OR($E$47="",$E$47="No Data"),"",IF(SUM($E$39:$E$46)<>$E$47,"Sum of exit categories for Black or African American (E39:E46) ≠ Subtotal (E47)","")) -> 
A55: Reached maximum age | L55: F47 | M55: =IF(OR($F$47="",$F$47="-9"),0,IF(SUM($F$39:$F$46)<>$F$47,1,0)) -> 0 | N55: =F$47 ->  | O55: B | P55: =IF(OR($F$47="",$F$47="No Data"),"",IF(SUM($F$39:$F$46)<>$F$47,"Sum of exit categories for Native Hawaiian or Other Pacific Islander (F39:F46) ≠ Subtotal (F47)","")) -> 
A56: Died | L56: G47 | M56: =IF(OR($G$47="",$G$47="-9"),0,IF(SUM($G$39:$G$46)<>$G$47,1,0)) -> 0 | N56: =G$47 ->  | O56: B | P56: =IF(OR($G$47="",$G$47="No Data"),"",IF(SUM($G$39:$G$46)<>$G$47,"Sum of exit categories for White (G39:G46) ≠ Subtotal (G47)","")) -> 
A57: Moved, known to be continuing | L57: H47 | M57: =IF(OR($H$47="",$H$47="-9"),0,IF(SUM($H$39:$H$46)<>$H$47,1,0)) -> 0 | N57: =H$47 ->  | O57: B | P57: =IF(OR($H$47="",$H$47="No Data"),"",IF(SUM($H$39:$H$46)<>$H$47,"Sum of exit categories for Two or More Races (H39:H46) ≠ Subtotal (H47)","")) -> 
A58: Dropped out | L58: I47 | M58: =IF(OR($I$47="",$I$47="No Data"),"",IF(OR($J$22<>$I$47,$D$72<>$I$47,$D$97<>$I$47),1,0)) ->  | N58: =I47 ->  | O58: B | P58: =IF(OR($I$47="",$I$47="No Data"),"",IF(OR($J$22<>$I$47,$D$72<>$I$47,$D$97<>$I$47),"Calculated total for category Set B (I47) ≠ Calculated totals for category Set A (J22), Set C (D72), or Set D (D97)","")) -> 
A59: Total
A61: Category set C – Children with disabilities exiting special education for all disabilities, by sex and basis of exit | AB61: Category Set C - Student counts for Children with Disabilities (IDEA) exiting special education by basis of exit and gender
A62: Student count by basis of exit | B62: Sex
B63: Male | C63: Female | D63: Total | P63: Error Messages | AB63: Student counts by basis of exit | AC63: Male | AD63: Female | AE63: Total
A64: Transferred to regular education | B64: =IFERROR(HYPERLINK("#'Select LEA'!"&ADDRESS(ROW(INDEX(CurrentListing,MATCH(AH64,CurrentListing,0),1)),25),AC64),HYPERLINK("#'Select LEA'!"&"$AA$10",AC64)) ->  | C64: =IFERROR(HYPERLINK("#'Select LEA'!"&ADDRESS(ROW(INDEX(CurrentListing,MATCH(AI64,CurrentListing,0),1)),25),AD64),HYPERLINK("#'Select LEA'!"&"$AA$10",AD64)) ->  | D64: =IFERROR(HYPERLINK("#'Select LEA'!"&ADDRESS(ROW(INDEX(CurrentListing,MATCH(AJ64,CurrentListing,0),1)),25),AE64),HYPERLINK("#'Select LEA'!"&"$AA$10",AE64)) ->  | L64: D64 | M64: =IF(OR($D$64="",$D$64="-9"),0,IF(SUM(B64:C64)<>$D$64,1,0)) -> 0 | N64: =D64 ->  | O64: C | P64: =IF(OR($D$64="",$D$64="No Data"),"",IF(SUM(B64:C64)<>$D$64,"Sum of transferred to regular education for all gender categories (B64:C64) ≠ Subtotal (D64)","")) ->  | AB64: Transferred to regular education | AC64: =IFERROR(IF(INDEX(StudCntC009,MATCH(AH64,CurrentListing,0))="","No Data",INDEX(StudCntC009,MATCH(AH64,CurrentListing,0))),"") ->  | AD64: =IFERROR(IF(INDEX(StudCntC009,MATCH(AI64,CurrentListing,0))="","No Data",INDEX(StudCntC009,MATCH(AI64,CurrentListing,0))),"") ->  | AE64: =IFERROR(IF(INDEX(StudCntC009,MATCH(AJ64,CurrentListing,0))="","No Data",INDEX(StudCntC009,MATCH(AJ64,CurrentListing,0))),"") ->  | AH64: MTRANN | AI64: FTRANN | AJ64: TRANY
A65: Graduated with regular high school diploma | B65: =IFERROR(HYPERLINK("#'Select LEA'!"&ADDRESS(ROW(INDEX(CurrentListing,MATCH(AH65,CurrentListing,0),1)),25),AC65),HYPERLINK("#'Select LEA'!"&"$AA$10",AC65)) ->  | C65: =IFERROR(HYPERLINK("#'Select LEA'!"&ADDRESS(ROW(INDEX(CurrentListing,MATCH(AI65,CurrentListing,0),1)),25),AD65),HYPERLINK("#'Select LEA'!"&"$AA$10",AD65)) ->  | D65: =IFERROR(HYPERLINK("#'Select LEA'!"&ADDRESS(ROW(INDEX(CurrentListing,MATCH(AJ65,CurrentListing,0),1)),25),AE65),HYPERLINK("#'Select LEA'!"&"$AA$10",AE65)) ->  | L65: D65 | M65: =IF(OR($D$65="",$D$65="-9"),0,IF(SUM(B65:C65)<>$D$65,1,0)) -> 0 | N65: =D65 ->  | O65: C | P65: =IF(OR($D$65="",$D$65="No Data"),"",IF(SUM(B65:C65)<>$D$65,"Sum of graduated with high school diploma for all gender categories (B65:C65) ≠ Subtotal (D65)","")) ->  | AB65: Graduated with regular high school diploma | AH65: MGHSN | AI65: FGHSN | AJ65: GHSY
A66: Graduated with an alternate diploma | B66: =IFERROR(HYPERLINK("#'Select LEA'!"&ADDRESS(ROW(INDEX(CurrentListing,MATCH(AH66,CurrentListing,0),1)),25),AC66),HYPERLINK("#'Select LEA'!"&"$AA$10",AC66)) ->  | C66: =IFERROR(HYPERLINK("#'Select LEA'!"&ADDRESS(ROW(INDEX(CurrentListing,MATCH(AI66,CurrentListing,0),1)),25),AD66),HYPERLINK("#'Select LEA'!"&"$AA$10",AD66)) ->  | D66: =IFERROR(HYPERLINK("#'Select LEA'!"&ADDRESS(ROW(INDEX(CurrentListing,MATCH(AJ66,CurrentListing,0),1)),25),AE66),HYPERLINK("#'Select LEA'!"&"$AA$10",AE66)) ->  | L66: D66 | M66: =IF(OR($D$66="",$D$66="-9"),0,IF(SUM(B66:C66)<>$D$66,1,0)) -> 0 | N66: =D66 ->  | O66: C | P66: =IF(OR($D$66="",$D$66="No Data"),"",IF(SUM(B66:C66)<>$D$66,"Sum of graduated with an alternate diploma for all gender categories (B66:C66) ≠ Subtotal (D66)","")) ->  | AB66: Graduated with an alternate diploma | AH66: MGRADALTDPLN | AI66: FGRADALTDPLN | AJ66: GRADALTDPLY
A67: Received a certificate | B67: =IFERROR(HYPERLINK("#'Select LEA'!"&ADDRESS(ROW(INDEX(CurrentListing,MATCH(AH67,CurrentListing,0),1)),25),AC67),HYPERLINK("#'Select LEA'!"&"$AA$10",AC67)) ->  | C67: =IFERROR(HYPERLINK("#'Select LEA'!"&ADDRESS(ROW(INDEX(CurrentListing,MATCH(AI67,CurrentListing,0),1)),25),AD67),HYPERLINK("#'Select LEA'!"&"$AA$10",AD67)) ->  | D67: =IFERROR(HYPERLINK("#'Select LEA'!"&ADDRESS(ROW(INDEX(CurrentListing,MATCH(AJ67,CurrentListing,0),1)),25),AE67),HYPERLINK("#'Select LEA'!"&"$AA$10",AE67)) ->  | L67: D67 | M67: =IF(OR($D$67="",$D$67="-9"),0,IF(SUM(B67:C67)<>$D$67,1,0)) -> 0 | O67: C | P67: =IF(OR($D$67="",$D$67="No Data"),"",IF(SUM(B67:C67)<>$D$67,"Sum of received a certificate for all gender categories (B67:C67) ≠ Subtotal (D67)","")) ->  | AB67: Received a certificate | AH67: MRCN | AI67: FRCN | AJ67: RCY
A68: Reached maximum age | B68: =IFERROR(HYPERLINK("#'Select LEA'!"&ADDRESS(ROW(INDEX(CurrentListing,MATCH(AH68,CurrentListing,0),1)),25),AC68),HYPERLINK("#'Select LEA'!"&"$AA$10",AC68)) ->  | C68: =IFERROR(HYPERLINK("#'Select LEA'!"&ADDRESS(ROW(INDEX(CurrentListing,MATCH(AI68,CurrentListing,0),1)),25),AD68),HYPERLINK("#'Select LEA'!"&"$AA$10",AD68)) ->  | D68: =IFERROR(HYPERLINK("#'Select LEA'!"&ADDRESS(ROW(INDEX(CurrentListing,MATCH(AJ68,CurrentListing,0),1)),25),AE68),HYPERLINK("#'Select LEA'!"&"$AA$10",AE68)) ->  | L68: D68 | M68: =IF(OR($D$68="",$D$68="-9"),0,IF(SUM(B68:C68)<>$D$68,1,0)) -> 0 | O68: C | P68: =IF(OR($D$68="",$D$68="No Data"),"",IF(SUM(B68:C68)<>$D$68,"Sum of reached maximum age for all gender categories (B68:C68) ≠ Subtotal (D68)","")) ->  | AB68: Reached maximum age | AH68: MRMAN | AI68: FRMAN | AJ68: RMAY
A69: Died | B69: =IFERROR(HYPERLINK("#'Select LEA'!"&ADDRESS(ROW(INDEX(CurrentListing,MATCH(AH69,CurrentListing,0),1)),25),AC69),HYPERLINK("#'Select LEA'!"&"$AA$10",AC69)) ->  | C69: =IFERROR(HYPERLINK("#'Select LEA'!"&ADDRESS(ROW(INDEX(CurrentListing,MATCH(AI69,CurrentListing,0),1)),25),AD69),HYPERLINK("#'Select LEA'!"&"$AA$10",AD69)) ->  | D69: =IFERROR(HYPERLINK("#'Select LEA'!"&ADDRESS(ROW(INDEX(CurrentListing,MATCH(AJ69,CurrentListing,0),1)),25),AE69),HYPERLINK("#'Select LEA'!"&"$AA$10",AE69)) ->  | L69: D69 | M69: =IF(OR($D$69="",$D$69="-9"),0,IF(SUM(B69:C69)<>$D$69,1,0)) -> 0 | O69: C | P69: =IF(OR($D$69="",$D$69="No Data"),"",IF(SUM(B69:C69)<>$D$69,"Sum of died for all gender categories (B69:C69) ≠ Subtotal (D69)","")) ->  | AB69: Died | AH69: MDN | AI69: FDN | AJ69: DY
A70: Moved, known to be continuing | B70: =IFERROR(HYPERLINK("#'Select LEA'!"&ADDRESS(ROW(INDEX(CurrentListing,MATCH(AH70,CurrentListing,0),1)),25),AC70),HYPERLINK("#'Select LEA'!"&"$AA$10",AC70)) ->  | C70: =IFERROR(HYPERLINK("#'Select LEA'!"&ADDRESS(ROW(INDEX(CurrentListing,MATCH(AI70,CurrentListing,0),1)),25),AD70),HYPERLINK("#'Select LEA'!"&"$AA$10",AD70)) ->  | D70: =IFERROR(HYPERLINK("#'Select LEA'!"&ADDRESS(ROW(INDEX(CurrentListing,MATCH(AJ70,CurrentListing,0),1)),25),AE70),HYPERLINK("#'Select LEA'!"&"$AA$10",AE70)) ->  | L70: D70 | M70: =IF(OR($D$70="",$D$70="-9"),0,IF(SUM(B70:C70)<>$D$70,1,0)) -> 0 | O70: C | P70: =IF(OR($D$70="",$D$70="No Data"),"",IF(SUM(B70:C70)<>$D$70,"Sum of moved, known to be continuing for all gender categories (B70:C70) ≠ Subtotal (D70)","")) ->  | AB70: Moved, known to be continuing | AH70: MMKCN | AI70: FMKCN | AJ70: MKCY
A71: Dropped out | B71: =IFERROR(HYPERLINK("#'Select LEA'!"&ADDRESS(ROW(INDEX(CurrentListing,MATCH(AH71,CurrentListing,0),1)),25),AC71),HYPERLINK("#'Select LEA'!"&"$AA$10",AC71)) ->  | C71: =IFERROR(HYPERLINK("#'Select LEA'!"&ADDRESS(ROW(INDEX(CurrentListing,MATCH(AI71,CurrentListing,0),1)),25),AD71),HYPERLINK("#'Select LEA'!"&"$AA$10",AD71)) ->  | D71: =IFERROR(HYPERLINK("#'Select LEA'!"&ADDRESS(ROW(INDEX(CurrentListing,MATCH(AJ71,CurrentListing,0),1)),25),AE71),HYPERLINK("#'Select LEA'!"&"$AA$10",AE71)) ->  | L71: D71 | M71: =IF(OR($D$71="",$D$71="-9"),0,IF(SUM(B71:C71)<>$D$71,1,0)) -> 0 | O71: C | P71: =IF(OR($D$71="",$D$71="-9"),"",IF(SUM(B71:C71)<>$D$71,"Sum of dropped out for all gender categories (B71:C71) ≠ Subtotal (D71)","")) ->  | AB71: Dropped out | AH71: MDROPOUTN | AI71: FDROPOUTN | AJ71: DROPOUTY
A72: Total | B72: =IFERROR(HYPERLINK("#'Select LEA'!"&ADDRESS(ROW(INDEX(CurrentListing,MATCH(AH72,CurrentListing,0),1)),25),AC72),HYPERLINK("#'Select LEA'!"&"$AA$10",AC72)) ->  | C72: =IFERROR(HYPERLINK("#'Select LEA'!"&ADDRESS(ROW(INDEX(CurrentListing,MATCH(AI72,CurrentListing,0),1)),25),AD72),HYPERLINK("#'Select LEA'!"&"$AA$10",AD72)) ->  | D72: =IF(AND($B$72="",$C$72=""),"",SUM(B64:C71)) ->  | L72: D72 | M72: =IF(OR($D$72="",$D$72="-9"),0,IF(OR(SUM(D64:D71)<>$D$72,SUM(B72:C72)<>$D$72),1,0)) -> 0 | O72: C | P72: =IF(OR($D$72="",$D$72="No Data"),"",IF(AND(SUM(D64:D71)<>$D$72,SUM(B72:C72)<>$D$72), "Sum of subtotals for exit categories (D64:D71) and gender categories (B72:C72) ≠ Calculated total (D72)", IF(OR($D$72="",$D$72="No Data"),"",IF(SUM(D64:D71)<>$D$72, "Sum of subtotals for exit categories (D64:D71) ≠ Calculated total (D72)", IF(OR($D$72="",$D$72="No Data"),"",IF(SUM(B72:C72)<>$D$72, "Sum of subtotals for gender categories (B72:C72) ≠ Calculated total (D72)", "")))))) ->  | AB72: Total | AH72: MY | AI72: FY | AJ72: Y
A74: Percent by basis of exit | B74: Sex
B75: Male (percent) | C75: Female (percent) | D75: Total (percent) | L75: B72 | M75: =IF(OR($B$72="",$B$72="-9"),0,IF(SUM($B$64:$B$71)<>$B$72,1,0)) -> 0 | N75: =B72 ->  | O75: C | P75: =IF(OR($B$72="",$B$72="-9"),"",IF(SUM($B$64:$B$71)<>$B$72,"Sum of exit categories for males (B64:B71) ≠ Subtotal (B72)","")) -> 
A76: Transferred to regular education | B76: =IFERROR(IF($D64<>0,B64/$D64,0),"") ->  | D76: =IF(SUM(B76,C76), SUM(B76,C76), "") ->  | L76: C72 | M76: =IF(OR($C$72="",$C$72="-9"),0,IF(SUM($C$64:$C$71)<>$C$72,1,0)) -> 0 | N76: =C72 ->  | O76: C | P76: =IF(OR($C$72="",$C$72="No data"),"",IF(SUM($C$64:$C$71)<>$C$72,"Sum of exit categories for females (C64:C71) ≠ Subtotal (C72)","")) -> 
A77: Graduated with regular high school diploma | D77: =IF(SUM(B77,C77), SUM(B77,C77), "") ->  | L77: D72 | M77: =IF(OR($D$72="",$D$72="-9"),0,IF(OR($J$22<>$D$72,$I$47<>$D$72,$D$97<>$D$72),1,0)) -> 0 | N77: =D72 ->  | O77: C | P77: =IF(OR($D$72="",$D$72="No Data"),"",IF(OR($J$22<>$D$72,$I$47<>$D$72,$D$97<>$D$72),"Calculated total for category Set C (D72) ≠ Calculated total for category Set A (J22), Set B (I47), or Set D (D97)","")) -> 
A78: Graduated with an alternate diploma | D78: =IF(SUM(B78,C78), SUM(B78,C78), "") -> 
A79: Received a certificate
A80: Reached maximum age
A81: Died
A82: Moved, known to be continuing
A83: Dropped out
A84: Total
A86: Category set D – Children with disabilities (IDEA) exiting special education for all disabilities, by English learner (LEP) status and basis of exit | AB86: Category Set D - Student counts for Children with Disabilities (IDEA) exiting special education by basis of exit and LEP Status
A87: Student count by basis of exit | B87: LEP status
B88: English learner | C88: Non-English learner | D88: Total | P88: Error Messages | AB88: Student counts by basis of exit | AC88: Limited English proficient (LEP) Student | AD88: Non-limited English proficient (non-LEP) Student | AE88: Total
A89: Transferred to regular education | B89: =IFERROR(HYPERLINK("#'Select LEA'!"&ADDRESS(ROW(INDEX(CurrentListing,MATCH(AH89,CurrentListing,0),1)),25),AC89),HYPERLINK("#'Select LEA'!"&"$AA$10",AC89)) ->  | C89: =IFERROR(HYPERLINK("#'Select LEA'!"&ADDRESS(ROW(INDEX(CurrentListing,MATCH(AI89,CurrentListing,0),1)),25),AD89),HYPERLINK("#'Select LEA'!"&"$AA$10",AD89)) ->  | D89: =IFERROR(HYPERLINK("#'Select LEA'!"&ADDRESS(ROW(INDEX(CurrentListing,MATCH(AJ89,CurrentListing,0),1)),25),AE89),HYPERLINK("#'Select LEA'!"&"$AA$10",AE89)) ->  | L89: D89 | M89: =IF(OR($D$89="",$D$89="-9"),0,IF(SUM(B89:C89)<>$D$89,1,0)) -> 0 | N89: =D89 ->  | O89: D | P89: =IF(OR($D$89="",$D$89="No Data"),"",IF(SUM(B89:C89)<>$D$89,"Sum of transferred to regular education for all LEP categories (B89:C89) ≠ Subtotal (D89)","")) ->  | AB89: Transferred to regular education | AC89: =IFERROR(IF(INDEX(StudCntC009,MATCH(AH89,CurrentListing,0))="","No Data",INDEX(StudCntC009,MATCH(AH89,CurrentListing,0))),"") ->  | AD89: =IFERROR(IF(INDEX(StudCntC009,MATCH(AI89,CurrentListing,0))="","No Data",INDEX(StudCntC009,MATCH(AI89,CurrentListing,0))),"") ->  | AE89: =IFERROR(IF(INDEX(StudCntC009,MATCH(AJ89,CurrentListing,0))="","No Data",INDEX(StudCntC009,MATCH(AJ89,CurrentListing,0))),"") ->  | AH89: LEPTRANN | AI89: NLEPTRANN | AJ89: TRANY
A90: Graduated with regular high school diploma | B90: =IFERROR(HYPERLINK("#'Select LEA'!"&ADDRESS(ROW(INDEX(CurrentListing,MATCH(AH90,CurrentListing,0),1)),25),AC90),HYPERLINK("#'Select LEA'!"&"$AA$10",AC90)) ->  | C90: =IFERROR(HYPERLINK("#'Select LEA'!"&ADDRESS(ROW(INDEX(CurrentListing,MATCH(AI90,CurrentListing,0),1)),25),AD90),HYPERLINK("#'Select LEA'!"&"$AA$10",AD90)) ->  | D90: =IFERROR(HYPERLINK("#'Select LEA'!"&ADDRESS(ROW(INDEX(CurrentListing,MATCH(AJ90,CurrentListing,0),1)),25),AE90),HYPERLINK("#'Select LEA'!"&"$AA$10",AE90)) ->  | L90: D90 | M90: =IF(OR($D$90="",$D$90="-9"),0,IF(SUM(B90:C90)<>$D$90,1,0)) -> 0 | N90: =D90 ->  | O90: D | P90: =IF(OR($D$90="",$D$90="No Data"),"",IF(SUM(B90:C90)<>$D$90,"Sum of graduated with high school diploma for all LEP categories (B90:C90) ≠ Subtotal (D90)","")) ->  | AB90: Graduated with regular high school diploma | AH90: LEPGHSN | AI90: NLEPGHSN | AJ90: GHSY
A91: Graduated with an alternate diploma | B91: =IFERROR(HYPERLINK("#'Select LEA'!"&ADDRESS(ROW(INDEX(CurrentListing,MATCH(AH91,CurrentListing,0),1)),25),AC91),HYPERLINK("#'Select LEA'!"&"$AA$10",AC91)) ->  | C91: =IFERROR(HYPERLINK("#'Select LEA'!"&ADDRESS(ROW(INDEX(CurrentListing,MATCH(AI91,CurrentListing,0),1)),25),AD91),HYPERLINK("#'Select LEA'!"&"$AA$10",AD91)) ->  | D91: =IFERROR(HYPERLINK("#'Select LEA'!"&ADDRESS(ROW(INDEX(CurrentListing,MATCH(AJ91,CurrentListing,0),1)),25),AE91),HYPERLINK("#'Select LEA'!"&"$AA$10",AE91)) ->  | L91: D91 | M91: =IF(OR($D$91="",$D$91="-9"),0,IF(SUM(B91:C91)<>$D$91,1,0)) -> 0 | O91: D | P91: =IF(OR($D$91="",$D$91="No Data"),"",IF(SUM(B91:C91)<>$D$91,"Sum of graduated with an alternate diploma for all LEP categories (B91:C91) ≠ Subtotal (D91)","")) ->  | AB91: Graduated with an alternate diploma | AH91: LEPGRADALTDPLN | AI91: NLEPGRADALTDPLN | AJ91: GRADALTDPLY
A92: Received a certificate | B92: =IFERROR(HYPERLINK("#'Select LEA'!"&ADDRESS(ROW(INDEX(CurrentListing,MATCH(AH92,CurrentListing,0),1)),25),AC92),HYPERLINK("#'Select LEA'!"&"$AA$10",AC92)) ->  | C92: =IFERROR(HYPERLINK("#'Select LEA'!"&ADDRESS(ROW(INDEX(CurrentListing,MATCH(AI92,CurrentListing,0),1)),25),AD92),HYPERLINK("#'Select LEA'!"&"$AA$10",AD92)) ->  | D92: =IFERROR(HYPERLINK("#'Select LEA'!"&ADDRESS(ROW(INDEX(CurrentListing,MATCH(AJ92,CurrentListing,0),1)),25),AE92),HYPERLINK("#'Select LEA'!"&"$AA$10",AE92)) ->  | L92: D92 | M92: =IF(OR($D$92="",$D$92="-9"),0,IF(SUM(B92:C92)<>$D$92,1,0)) -> 0 | O92: D | P92: =IF(OR($D$92="",$D$92="No Data"),"",IF(SUM(B92:C92)<>$D$92,"Sum of received a certificate for all LEP categories (B92:C92) ≠ Subtotal (D92)","")) ->  | AB92: Received a certificate | AH92: LEPRCN | AI92: NLEPRCN | AJ92: RCY
A93: Reached maximum age | B93: =IFERROR(HYPERLINK("#'Select LEA'!"&ADDRESS(ROW(INDEX(CurrentListing,MATCH(AH93,CurrentListing,0),1)),25),AC93),HYPERLINK("#'Select LEA'!"&"$AA$10",AC93)) ->  | C93: =IFERROR(HYPERLINK("#'Select LEA'!"&ADDRESS(ROW(INDEX(CurrentListing,MATCH(AI93,CurrentListing,0),1)),25),AD93),HYPERLINK("#'Select LEA'!"&"$AA$10",AD93)) ->  | D93: =IFERROR(HYPERLINK("#'Select LEA'!"&ADDRESS(ROW(INDEX(CurrentListing,MATCH(AJ93,CurrentListing,0),1)),25),AE93),HYPERLINK("#'Select LEA'!"&"$AA$10",AE93)) ->  | L93: D93 | M93: =IF(OR($D$93="",$D$93="-9"),0,IF(SUM(B93:C93)<>$D$93,1,0)) -> 0 | O93: D | P93: =IF(OR($D$93="",$D$93="No Data"),"",IF(SUM(B93:C93)<>$D$93,"Sum of reached maximum age for all LEP categories (B93:C93) ≠ Subtotal (D93)","")) ->  | AB93: Reached maximum age | AH93: LEPRMAN | AI93: NLEPRMAN | AJ93: RMAY
A94: Died | B94: =IFERROR(HYPERLINK("#'Select LEA'!"&ADDRESS(ROW(INDEX(CurrentListing,MATCH(AH94,CurrentListing,0),1)),25),AC94),HYPERLINK("#'Select LEA'!"&"$AA$10",AC94)) ->  | C94: =IFERROR(HYPERLINK("#'Select LEA'!"&ADDRESS(ROW(INDEX(CurrentListing,MATCH(AI94,CurrentListing,0),1)),25),AD94),HYPERLINK("#'Select LEA'!"&"$AA$10",AD94)) ->  | D94: =IFERROR(HYPERLINK("#'Select LEA'!"&ADDRESS(ROW(INDEX(CurrentListing,MATCH(AJ94,CurrentListing,0),1)),25),AE94),HYPERLINK("#'Select LEA'!"&"$AA$10",AE94)) ->  | L94: D94 | M94: =IF(OR($D$94="",$D$94="-9"),0,IF(SUM(B94:C94)<>$D$94,1,0)) -> 0 | O94: D | P94: =IF(OR($D$94="",$D$94="No Data"),"",IF(SUM(B94:C94)<>$D$94,"Sum of died for all LEP categories (B94:C94) ≠ Subtotal (D94)","")) ->  | AB94: Died | AH94: LEPDN | AI94: NLEPDN | AJ94: DY
A95: Moved, known to be continuing | B95: =IFERROR(HYPERLINK("#'Select LEA'!"&ADDRESS(ROW(INDEX(CurrentListing,MATCH(AH95,CurrentListing,0),1)),25),AC95),HYPERLINK("#'Select LEA'!"&"$AA$10",AC95)) ->  | C95: =IFERROR(HYPERLINK("#'Select LEA'!"&ADDRESS(ROW(INDEX(CurrentListing,MATCH(AI95,CurrentListing,0),1)),25),AD95),HYPERLINK("#'Select LEA'!"&"$AA$10",AD95)) ->  | D95: =IFERROR(HYPERLINK("#'Select LEA'!"&ADDRESS(ROW(INDEX(CurrentListing,MATCH(AJ95,CurrentListing,0),1)),25),AE95),HYPERLINK("#'Select LEA'!"&"$AA$10",AE95)) ->  | L95: D95 | M95: =IF(OR($D$95="",$D$95="-9"),0,IF(SUM(B95:C95)<>$D$95,1,0)) -> 0 | O95: D | P95: =IF(OR($D$95="",$D$95="No Data"),"",IF(SUM(B95:C95)<>$D$95,"Sum of moved, known to be continuing for all LEP categories (B95:C95) ≠ Subtotal (D95)","")) ->  | AB95: Moved, known to be continuing | AH95: LEPMKCN | AI95: NLEPMKCN | AJ95: MKCY
